Workbook

Sheet Instructions
A1: ='DNSP Inputs O & M'!$A$3 -> AusNet
A3: Instructions
A5: This model is to be used for the setting of Public Lighting Tariffs for the Regulatory Period 2016 to 2020 based on forecast inflation rates and Real Pre Tax WACC.
A7: Distributor data input fields are shaded | C7: and located in tabs "DNSP Inputs General" , "DNSP Inputs O & M" and "DNSP Inputs Capex"
A8: NOTE : All Distributor data input fields have been populated with test data in this model.
A12: This model will also to be used for the annual Public Lighting Tariff Approvals in the Regulatory Period 2016 to 2020 based on actual inflation rates and Real Pre Tax WACC.
H70: =G70 -> 0 | I70: =H70 -> 0 | J70: =I70 -> 0 | K70: =J70 -> 0 | L70: =K70 -> 0

Sheet DNSP Inputs General
A1: ='DNSP Inputs O & M'!$A$3 -> AusNet
D2: 2009 | E2: 2010 | F2: 2011 | G2: 2012 | H2: 2013 | I2: 2014 | J2: 2015 | K2: 2016 | L2: 2017 | M2: 2018 | N2: 2019 | O2: 2020
A3: Capital Expenditue | D3: Nominal $ - Actual | J3: Real 2015 $ - Forecast
A4: (Net of customer contributions)
A6: Poles and Brackets | D6: 945891.2356 | E6: 957809.4651 | F6: 880178.8893 | G6: 925158.8499 | H6: 998447.2314 | I6: =P6*1604964 -> 775787.6177 | J6: 1086336.971 | K6: ='Capex 2016-2020'!B18 -> 1296223.886 | L6: ='Capex 2016-2020'!C18 -> 1296223.886 | M6: ='Capex 2016-2020'!D18 -> 1296223.886 | N6: ='Capex 2016-2020'!E18 -> 1296223.886 | O6: ='Capex 2016-2020'!F18 -> 1296223.886 | P6: 0.483367613
A8: Existing Lights
A9: Luminaires | D9: 448491.4405 | E9: =1375827.8789002-E6 -> 418018.4138 | F9: -892269.5328 | G9: 258757.3149 | H9: 398955.5693 | I9: =P9*1604964 -> 829176.3823 | J9: 1161608.129 | K9: ='Capex 2016-2020'!B13-'Capex 2016-2020'!B32 -> 694342.8441 | L9: ='Capex 2016-2020'!C13-'Capex 2016-2020'!C32 -> 643361.9588 | M9: ='Capex 2016-2020'!D13-'Capex 2016-2020'!D32 -> 599955.1665 | N9: ='Capex 2016-2020'!E13-'Capex 2016-2020'!E32 -> 563542.9002 | O9: ='Capex 2016-2020'!F13-'Capex 2016-2020'!F32 -> 533816.6483 | P9: 0.516632387
A11: Energy Efficient Lights
A12: Luminaires and Ballasts | D12: 0 | E12: 1941138.457 | F12: 0 | G12: 0 | H12: 0 | I12: 0 | J12: 0 | K12: 0 | L12: 0 | M12: 0 | N12: 0 | O12: 0
A14: Total Net Capex | D14: =SUM(D6,D9,D12) -> 1394382.676 | E14: 3316966.336 | F14: -12090.64345 | G14: 1183916.165 | H14: 1397402.801 | I14: 1604964 | J14: 2247945.101 | K14: 1990566.73 | L14: 1939585.845 | M14: 1896179.052 | N14: 1859766.786 | O14: 1830040.534
F17: 2011 | G17: 2012 | H17: 2013 | I17: 2014 | J17: 2015 | K17: 2016 | L17: 2017 | M17: 2018 | N17: 2019 | O17: 2020
A18: Operating and Maintenance Expenditure | F18: Nominal $ - Actual | J18: Real 2015 $ - Forecast
A20: Total O & M | F20: 2283204.04 | G20: 2209782.26 | H20: 2391738.64 | I20: =124740+1455938 -> 1580678 | J20: 5580946.519 | K20: ='Cashflow Summary'!K13 -> 4978431.367 | L20: ='Cashflow Summary'!L13 -> 4934732.651 | M20: ='Cashflow Summary'!M13 -> 4905254.832 | N20: ='Cashflow Summary'!N13 -> 4886774.628 | O20: ='Cashflow Summary'!O13 -> 4878045.01
A24: WACC
A25: Regulatoy Period | B25: 2016 | C25: 2017 | D25: 2018 | E25: 2019 | F25: 2020
A26: Real Pre Tax WACC | B26: 0.077 | C26: 0.077 | D26: 0.077 | E26: 0.077 | F26: 0.077
A29: CPI Index | B29: CPI Index | C29: Actual CPI | D29: F'cast CPI
A30: 2014-09-30 | B30: 106.4
A31: 2015-09-30 | C31: =IF(B31="","",B31/B30-1) ->  | D31: 0.02524 | E31: =1+D31 -> 1.02524
A32: 2016-09-30 | D32: 0.02524 | E32: =(D32+1)*E31 -> 1.051117058
A33: 2017-09-30 | D33: 0.02524 | E33: =(D33+1)*E32 -> 1.077647252
A34: 2018-09-30 | D34: 0.02524 | E34: 1.104847069
A35: 2019-09-30 | D35: 0.02524 | E35: 1.132733409
A39: Number Of Lights | B39: Central | E39: =J$2 -> 2015 | F39: =F$2 -> 2011 | G39: 2012 | H39: 2013 | I39: 2014 | J39: 2015 | K39: 2016 | L39: 2017 | M39: 2018 | N39: 2019 | O39: 2020
E40: Actual Prices | F40: Actual Volumes | J40: Forecast Volumes
A41: Existing Lights | B41: Reference Light | D41: Price Factor
A42: Mercury Vapour 80W | B42: =A$42 -> Mercury Vapour 80W | D42: 1 | E42: 48.26 | F42: 59322.5 | G42: 58866.85 | H42: 58715.36667 | I42: 56826.28333 | J42: =+J$122*(I42/I$121)*0.85 -> 48843.3699 | K42: =+K$122*(J42/J$121)*0.85 -> 42382.16665 | L42: =+L$122*(K42/K$121)*0.85 -> 36589.69508 | M42: 31578.28651 | N42: 27237.14398 | O42: 23481.41757
A43: HP Sodium 150W | B43: =A$43 -> HP Sodium 150W | D43: 1 | E43: 105.11 | F43: 12679.83333 | G43: 13325.13333 | H43: 13781.75 | I43: 14149.8 | J43: =+J$122*(I43/I$121) -> 14308.29031 | K43: 14606.50637 | L43: 14835.52986 | M43: 15063.08431 | N43: 15285.08953 | O43: 15502.85933
A44: HP Sodium 250W | B44: =A$44 -> HP Sodium 250W | D44: 1 | E44: 106.4 | F44: 6080.266667 | G44: 6156.533333 | H44: 6248.633333 | I44: 6374.183333 | J44: 6445.579842 | K44: 6579.919819 | L44: 6683.090022 | M44: 6785.598452 | N44: 6885.607072 | O44: 6983.707725
A45: Mercury Vapour 50W | B45: =A$42 -> Mercury Vapour 80W | D45: 1.53 | E45: 73.85 | F45: 324 | G45: 322.3333333 | H45: 319.5833333 | I45: 270.1666667 | J45: 273.192773 | K45: 278.8867077 | L45: 283.2595267 | M45: 287.6042968 | N45: 291.8431136 | O45: 296.0010622
A46: Mercury Vapour 125W | B46: =A$42 -> Mercury Vapour 80W | D46: 1.47 | E46: 70.95 | F46: 855.25 | G46: 848.0833333 | H46: 839.5 | I46: 803.65 | J46: 812.651593 | K46: 829.589029 | L46: 842.5966144 | M46: 855.5207641 | N46: 868.1297405 | O46: 880.4981627
A47: Mercury Vapour 250W | B47: =A$44 -> HP Sodium 250W | D47: 1.05 | E47: 111.72 | F47: 875.8666667 | G47: 850.0833333 | H47: 817.7833333 | I47: 791.6 | J47: 800.4666223 | K47: 817.1500969 | L47: 829.9626454 | M47: 842.6930092 | N47: 855.1129255 | O47: 867.2958944
A48: Mercury Vapour 400W | B48: =A$44 -> HP Sodium 250W | D48: 1.09 | E48: 115.97 | F48: 151.1666667 | G48: 146.8666667 | H48: 148 | I48: 147.9166667 | J48: 149.5734646 | K48: 152.6909026 | L48: 155.0850277 | M48: 157.463796 | N48: 159.7845548 | O48: 162.061038
A49: HP Sodium 100W | B49: =A$43 -> HP Sodium 150W | D49: 1.07 | E49: 112.46 | F49: 2304.166667 | G49: 2478.2 | H49: 2612.416667 | I49: 2729.483333 | J49: 2760.055968 | K49: 2817.581569 | L49: 2861.75999 | M49: 2905.655033 | N49: 2948.479634 | O49: 2990.487227
A50: HP Sodium 400W | B50: =A$44 -> HP Sodium 250W | D50: 1.42 | E50: 151.08 | F50: 289.5 | G50: 283.55 | H50: 275.25 | I50: 267.9166667 | J50: 270.917571 | K50: 276.5640856 | L50: 280.9004869 | M50: 285.2090728 | N50: 289.412588 | O50: 293.5359084
A51: Metal Halide 70W | F51: 31 | G51: 31 | H51: 31 | I51: 31 | J51: 31.3472275 | K51: 32.00057226 | L51: 32.50232694 | M51: 33.00086317 | N51: 33.4872419 | O51: 33.9643415
A52: Metal Halide 100W | F52: 34 | G52: 34 | H52: 34 | I52: 34 | J52: 34.38083016 | K52: 35.09740184 | L52: 35.64771342 | M52: 36.19449509 | N52: 36.72794273 | O52: 37.25121325
A53: Metal Halide 150W | F53: 32 | G53: 32 | H53: 32 | I53: 32.16666667 | J53: 32.52696187 | K53: 33.20489488 | L53: 33.7255328 | M53: 34.24283114 | N53: 34.74751445 | O53: 35.2425694
A54: Mercury Vapour 700W | F54: 151.9333333 | G54: 208.0833333 | H54: 206.5 | I54: 205.75 | J54: 208.0545825 | K54: 212.3908949 | L54: 215.7210893 | M54: 219.0299225 | N54: 222.2580652 | O54: 225.4246214
A66: Total Existing Lights | F66: =SUM(F42:F65) -> 83131.48333 | G66: 83582.71667 | H66: 84061.78333 | I66: 82663.91667 | J66: 74970.40765 | K66: 69053.74899 | L66: 63679.47592 | M66: 59083.58336 | N66: 55147.8239 | O66: 51789.74667
A68: Energy Efficient Lights | B68: Reference Light | D68: Price Factor
A69: T5 2X14W | B69: =A$69 -> T5 2X14W | D69: 1 | E69: 39.13 | F69: 3208 | G69: 5186.666667 | H69: 6029.833333 | I69: 8423.166667 | J69: =+J$122*(I69/I$121)+J$122*($I$42/I$121)*(Q69) -> 11521.68437 | K69: =+K$122*(J69/J$121)+K$122*($J$42/J$121)*Q69 -> 14368.58808 | L69: =+L$122*(K69/K$121)+L$122*($K$42/K$121)*Q69 -> 16844.37474 | M69: =+M$122*(L69/L$121)+M$122*($L$42/L$121)*Q69 -> 19045.00266 | N69: =+N$122*(M69/M$121)+N$122*($M$42/M$121)*Q69 -> 21000.94844 | O69: =+O$122*(N69/N$121)+O$122*($N$42/N$121)*Q69 -> 22744.40635 | P69: =+I69/$I$75 -> 0.6970704256 | Q69: =(0.15*P69)*0.5 -> 0.05228028192
A70: T5 2X24W | B70: =A$70 -> T5 2X24W | D70: 1 | E70: 44.31 | F70: 103.75 | G70: 270.75 | H70: 346.4166667 | I70: 537.3333333 | J70: =+J$122*(I70/I$121)+J$122*($I$42/I$121)*(Q70) -> 926.6379815 | K70: =+K$122*(J70/J$121)+K$122*($J$42/J$121)*Q70 -> 1278.534517 | L70: =+L$122*(K70/K$121)+L$122*($K$42/K$121)*Q70 -> 1585.709779 | M70: =+M$122*(L70/L$121)+M$122*($L$42/L$121)*Q70 -> 1857.834801 | N70: =+N$122*(M70/M$121)+N$122*($M$42/M$121)*Q70 -> 2098.95287 | O70: =+O$122*(N70/N$121)+O$122*($N$42/N$121)*Q70 -> 2313.121589 | P70: =+I70/$I$75 -> 0.04446773882 | Q70: =0.15*P70 -> 0.006670160823
A71: LED 18W | F71: 0 | G71: 0 | H71: 0 | I71: 0 | J71: 3004.170763 | K71: 5673.550863 | L71: 8013.003223 | M71: 10078.17135 | N71: 11901.96071 | O71: 13515.78348 | P71: 0 | Q71: =(0.15*P69)*0.5 -> 0.05228028192
A72: Compact Fluorescent 32W | F72: 1923.166667 | G72: 2033.833333 | H72: 2190 | I72: 2332.083333 | J72: 4021.706562 | K72: 5548.974636 | L72: 6882.14767 | M72: 8063.19896 | N72: 9109.676811 | O72: 10039.19164 | P72: 0.192994676 | Q72: 0.0289492014
A73: Compact Fluorescent 42W | F73: 245.5 | G73: 366.3333333 | H73: 572.1666667 | I73: 791.0833333 | J73: 1364.232996 | K73: 1882.308959 | L73: 2334.5445 | M73: 2735.177693 | N73: 3090.161228 | O73: 3405.468866 | P73: 0.06546715953 | Q73: 0.009820073929
A75: Total Energy Efficient Lights | F75: =SUM(F69:F74) -> 5480.416667 | G75: 7857.583333 | H75: 9138.416667 | I75: 12083.66667 | J75: 20838.43267 | K75: 28751.95705 | L75: 35659.77991 | M75: 41779.38546 | N75: 47201.70006 | O75: 52017.97192
A77: Total Number of Lights | F77: =SUM(F66,F75) -> 88611.9 | G77: 91440.3 | H77: 93200.2 | I77: 94747.58333 | J77: 95808.84032 | K77: 97805.70604 | L77: 99339.25582 | M77: 100862.9688 | N77: 102349.524 | O77: 103807.7186
A80: Number Of Lights | B80: North & East | E80: =J$2 -> 2015 | F80: =F$2 -> 2011 | G80: 2012 | H80: 2013 | I80: 2014 | J80: 2015 | K80: 2016 | L80: 2017 | M80: 2018 | N80: 2019 | O80: 2020
E81: Actual Prices | F81: Actual Volumes | J81: Forecast Volumes
A82: Existing Lights | B82: Reference Light | D82: Price Factor
A83: Mercury Vapour 80W | B83: =A$42 -> Mercury Vapour 80W | D83: 1 | E83: 55.38 | F83: 28734.83333 | G83: 28906.48333 | H83: 28889.05 | I83: 26233.91667 | J83: =+J$122*(I83/I$121)*0.85 -> 22548.59584 | K83: =+K$122*(J83/J$121)*0.85 -> 19565.77419 | L83: 16891.67327 | M83: 14578.15096 | N83: 12574.0577 | O83: 10840.22244
A84: HP Sodium 150W | B84: =A$43 -> HP Sodium 150W | D84: 1 | E84: 118.51 | F84: 2339.916667 | G84: 2386.5 | H84: 2394 | I84: 2391.083333 | J84: =+J$122*(I84/I$121) -> 2417.865588 | K84: =+K$122*(J84/J$121) -> 2468.259193 | L84: 2506.960395 | M84: 2545.413352 | N84: 2582.92858 | O84: 2619.728093
A85: HP Sodium 250W | B85: =A$44 -> HP Sodium 250W | D85: 1 | E85: 117.57 | F85: 5184.45 | G85: 5329.116667 | H85: 5377.616667 | I85: 5460.9 | J85: 5522.066925 | K85: =+K$122*(J85/J$121) -> 5637.158873 | L85: 5725.547006 | M85: 5813.368184 | N85: 5899.04772 | O85: 5983.09266
A86: Mercury Vapour 50W | B86: =A$42 -> Mercury Vapour 80W | D86: 1.48 | E86: 81.97 | F86: 376.75 | G86: 367.75 | H86: 363.1666667 | I86: 289.4166667 | J86: 292.6583901 | K86: =+K$122*(J86/J$121) -> 298.7580308 | L86: 303.4424233 | M86: 308.0967683 | N86: 312.6376106 | O86: 317.0918226
A87: Mercury Vapour 125W | B87: =A$42 -> Mercury Vapour 80W | D87: 1.48 | E87: 81.97 | F87: 62 | G87: 62.08333333 | H87: 60.33333333 | I87: 54.58333333 | J87: 55.19471509 | K87: =+K$122*(J87/J$121) -> 56.34509364 | L87: 57.22855954 | M87: 58.10635854 | N87: 58.9627512 | O87: 59.80280559
A88: Mercury Vapour 250W | B88: =A$44 -> HP Sodium 250W | D88: 1.04 | E88: 122.28 | F88: 433.85 | G88: 433.2833333 | H88: 427.8 | I88: 417.6833333 | J88: 422.3617572 | K88: =+K$122*(J88/J$121) -> 431.1646997 | L88: 437.9251696 | M88: 444.6422752 | N88: 451.1955749 | O88: 457.6238507
A89: Mercury Vapour 400W | B89: =A$44 -> HP Sodium 250W | D89: 1.07 | E89: 125.8 | F89: 132 | G89: 131.3333333 | H89: 127.6666667 | I89: 123.1666667 | J89: 124.5462426 | K89: =+K$122*(J89/J$121) -> 127.1420586 | L89: 129.1355893 | M89: 131.1163327 | N89: 133.0487729 | O89: 134.944346
A90: HP Sodium 100W | B90: =A$43 -> HP Sodium 150W | D90: 1.07 | E90: 126.8 | F90: 24 | G90: 23.16666667 | H90: 22.33333333 | I90: 21 | J90: 21.23521863 | K90: =+K$122*(J90/J$121) -> 21.67780702 | L90: 22.01770535 | M90: 22.35542344 | N90: 22.68490581 | O90: 23.0081023
A91: HP Sodium 400W | B91: =A$44 -> HP Sodium 250W | D91: 1.42 | E91: 166.96 | F91: 1835.833333 | G91: 1922 | H91: 1994.333333 | I91: 2063.5 | J91: 2086.613031 | K91: =+K$122*(J91/J$121) -> 2130.102609 | L91: 2163.501666 | M91: 2196.686489 | N91: 2229.062054 | O91: 2260.819957
A92: Metal Halide 70W | F92: 0 | G92: 0 | H92: 0 | I92: 0 | J92: 0 | K92: =+K$122*(J92/J$121) -> 0 | L92: 0 | M92: 0 | N92: 0 | O92: 0
A93: Metal Halide 100W | F93: 0 | G93: 0 | H93: 0 | I93: 0 | J93: 0 | K93: =+K$122*(J93/J$121) -> 0 | L93: 0 | M93: 0 | N93: 0 | O93: 0
A94: Metal Halide 150W | F94: 0 | G94: 0 | H94: 0 | I94: 0 | J94: 0 | K94: =+K$122*(J94/J$121) -> 0 | L94: 0 | M94: 0 | N94: 0 | O94: 0
A95: Mercury Vapour 700W | F95: 180.5833333 | G95: 291.75 | H95: 405.75 | I95: 536.5833333 | J95: 542.5935427 | K95: =+K$122*(J95/J$121) -> 553.9023785 | L95: 562.5873204 | M95: 571.2165537 | N95: 579.6353511 | O95: 587.8935346
A107: Total Existing Lights | F107: =SUM(F83:F106) -> 39304.21667 | G107: 39853.46667 | H107: 40062.05 | I107: 37591.83333 | J107: 34033.73125 | K107: 31290.28494 | L107: 28800.01911 | M107: 26669.1527 | N107: 24843.26102 | O107: 23284.22761
A109: Energy Efficient Lights | B109: Reference Light | D109: Price Factor
A110: T5 2X14W | B110: =A$69 -> T5 2X14W | D110: 1 | E110: 45.39 | F110: 135.0833333 | G110: 145.5 | H110: 161 | I110: 180 | J110: =+J$122*(I110/I$121)+J$122*($I$83/I$121)*(Q110) -> 320.6741715 | K110: =+K$122*(J110/J$121)+K$122*($J$83/J$121)*Q110 -> 447.6734781 | L110: =+L$122*(K110/K$121)+L$122*($K$83/K$121)*Q110 -> 558.5647134 | M110: =+M$122*(L110/L$121)+M$122*($L$83/L$121)*Q110 -> 656.7776254 | N110: =+N$122*(M110/M$121)+N$122*($M$83/M$121)*Q110 -> 743.7790678 | O110: =+O$122*(N110/N$121)+O$122*($N$83/N$121)*Q110 -> 821.0355873 | P110: =+I110/$I$117 -> 0.0348460161 | Q110: =(0.15*P110) -> 0.005226902415
A111: T5 2X24W | B111: =A$70 -> T5 2X24W | D111: 1 | E111: 50.68 | F111: 64.75 | G111: 140 | H111: 249.5833333 | I111: 3014.583333 | J111: =+J$122*(I111/I$121)+J$122*($I$83/I$121)*(Q111) -> 4209.449706 | K111: =+K$122*(J111/J$121)+K$122*($J$83/J$121)*Q111 -> 5304.689042 | L111: =+L$122*(K111/K$121)+L$122*($K$83/K$121)*Q111 -> 6257.671263 | M111: =+M$122*(L111/L$121)+M$122*($L$83/L$121)*Q111 -> 7104.330713 | N111: =+N$122*(M111/M$121)+N$122*($M$83/M$121)*Q111 -> 7856.515955 | O111: =+O$122*(N111/N$121)+O$122*($N$83/N$121)*Q111 -> 8526.647574 | P111: =+I111/$I$117 -> 0.5835901076 | Q111: =0.15*P111*0.5 -> 0.04376925807
A112: LED 18W | F112: 0 | G112: 0 | H112: 0 | I112: 0 | J112: 1161.100365 | K112: 2192.805435 | L112: 3096.994712 | M112: 3895.174193 | N112: 4600.061719 | O112: 5223.797968 | P112: 0 | Q112: =(0.15*P111)*0.5 -> 0.04376925807
A113: Compact Fluorescent 32W | F113: 36.5 | G113: 44.33333333 | H113: 64.41666667 | I113: 93.5 | J113: 166.5724169 | K113: 232.5415011 | L113: 290.1433372 | M113: 341.1594887 | N113: 386.3519047 | O113: 426.4823745 | P113: 0.01810056947 | Q113: =0.15*P113 -> 0.002715085421
A114: Compact Fluorescent 42W | F114: 709.1666667 | G114: 1220.083333 | H114: 1602.333333 | I114: 1877.5 | J114: 3344.809761 | K114: 4669.483084 | L114: 5826.140274 | M114: 6850.555509 | N114: 7758.028888 | O114: 8563.857307 | P114: 0.3634633068 | Q114: 0.05451949602
A117: Total Energy Efficient Lights | F117: =SUM(F110:F116) -> 945.5 | G117: 1549.916667 | H117: 2077.333333 | I117: 5165.583333 | J117: 9202.60642 | K117: 12847.19254 | L117: 16029.5143 | M117: 18847.99753 | N117: 21344.73753 | O117: 23561.82081
A119: Total Number of Lights | F119: =SUM(F107,F117) -> 40249.71667 | G119: 41403.38333 | H119: =SUM(H107,H117) -> 42139.38333 | I119: 42757.41667 | J119: 43236.33767 | K119: 44137.47748 | L119: 44829.53341 | M119: 45517.15023 | N119: 46187.99855 | O119: 46846.04842
A121: Grand Total Number of Lights | F121: =+F119+F77 -> 128861.6167 | G121: 132843.6833 | H121: =+H119+H77 -> 135339.5833 | I121: 137505 | J121: 139045.178 | K121: 141943.1835 | L121: 144168.7892 | M121: 146380.119 | N121: 148537.5225 | O121: 150653.767
J122: =+I121*(1+J123) -> 139045.178 | K122: =+J122*(1+K123) -> 141943.1835 | L122: =+K122*(1+L123) -> 144168.7892 | M122: 146380.119 | N122: 148537.5225 | O122: 150653.767
A123: Customer Growth Rate from PTRM | J123: =+J125/I125-1 -> 0.01120088717 | K123: 0.02084218648 | L123: 0.01567955331 | M123: 0.01533847808 | N123: 0.01473836395 | O123: 0.01424720474
I125: 667000 | J125: 674470.9917 | K125: 688528.4419 | L125: 699324.2603 | M125: 710050.8302 | N125: 720515.8177 | O125: 730781.1541

Sheet DNSP Inputs O & M
A1: Public Lighting Cost Build-up Model
A3: AusNet | C3: O & M Data Inputs
C5: Real 2015 $
A7: Input parameters | C7: 2015 | D7: 2016 | E7: 2017 | F7: 2018 | G7: 2019 | H7: 2020
A9: Inputs - all lamps
A11: Material premium for rural areas | C11: 0.05 | D11: 0.05 | E11: 0.05 | F11: 0.05 | G11: 0.05 | H11: 0.05
A12: Labour rate (per hour) | C12: 95.82595654 | D12: 95.82595654 | E12: 95.82595654 | F12: 95.82595654 | G12: 95.82595654 | H12: 95.82595654
A13: Labour rate for night patrols (per hour) | C13: 119.7793071 | D13: 119.7793071 | E13: 119.7793071 | F13: 119.7793071 | G13: 119.7793071 | H13: 119.7793071
A14: Elevated platform vehicle (per hour) - urban MV,urban T5 | C14: 45.37701738 | D14: 45.37701738 | E14: 45.37701738 | F14: 45.37701738 | G14: 45.37701738 | H14: 45.37701738
A15: Elevated platform vehicle (per hour) - rural MV, rural T5, S-HP | C15: 81.99627041 | D15: 81.99627041 | E15: 81.99627041 | F15: 81.99627041 | G15: 81.99627041 | H15: 81.99627041
A16: Patrol vehicle (per hour) | C16: 31.08325691 | D16: 31.08325691 | E16: 31.08325691 | F16: 31.08325691 | G16: 31.08325691 | H16: 31.08325691
A17: Number of hours in a day | C17: 8 | D17: 8 | E17: 8 | F17: 8 | G17: 8 | H17: 8
A18: Indirect overheads | C18: 0.25 | D18: 0.25 | E18: 0.25 | F18: 0.25 | G18: 0.25 | H18: 0.25
A22: Inputs - MV80
A24: Depreciation period | B24: years | C24: 20 | D24: =C24 -> 20 | E24: =D24 -> 20 | F24: =E24 -> 20 | G24: =F24 -> 20 | H24: =G24 -> 20
A25: Lamps - bulk change | B25: years | C25: 4 | D25: 4 | E25: 4 | F25: 4 | G25: 4 | H25: 4
A26: PE cells - bulk change | B26: years | C26: 8 | D26: 8 | E26: 8 | F26: 8 | G26: 8 | H26: 8
A27: Proportion of lamps that fail between bulk change | C27: 0.107 | D27: 0.107 | E27: 0.107 | F27: 0.107 | G27: 0.107 | H27: 0.107
A28: Unit cost - lamp | C28: 5.57 | D28: 5.57 | E28: 5.57 | F28: 5.57 | G28: 5.57 | H28: 5.57
A29: Unit cost - PE cell | C29: 22.48671374 | D29: 22.48671374 | E29: 22.48671374 | F29: 22.48671374 | G29: 22.48671374 | H29: 22.48671374
A30: Unit cost - luminaire | C30: 193.24 | D30: 193.24 | E30: 193.24 | F30: 193.24 | G30: 193.24 | H30: 193.24
A31: Unit cost - miscellaneous materials (bulk lamp) | C31: 1.218792073 | D31: 1.218792073 | E31: 1.218792073 | F31: 1.218792073 | G31: 1.218792073 | H31: 1.218792073
A32: Unit cost - miscellaneous materials (repair) | C32: 12.18792073 | D32: 12.18792073 | E32: 12.18792073 | F32: 12.18792073 | G32: 12.18792073 | H32: 12.18792073
A33: Number of men in crew | C33: 2 | D33: 2 | E33: 2 | F33: 2 | G33: 2 | H33: 2
A34: Number of bulk lamp changes in 1 day - urban | C34: 85 | D34: 85 | E34: 85 | F34: 85 | G34: 85 | H34: 85
A35: Number of bulk lamp changes in 1 day - rural | C35: 70 | D35: 70 | E35: 70 | F35: 70 | G35: 70 | H35: 70
A36: Number of bulk lamp changes in 1 day - remote | C36: 50 | D36: 50 | E36: 50 | F36: 50 | G36: 50 | H36: 50
A37: Number of repairs in 1 day - urban | C37: 20 | D37: 20 | E37: 20 | F37: 20 | G37: 20 | H37: 20
A38: Number of repairs in 1 day - rural | C38: 15 | D38: 15 | E38: 15 | F38: 15 | G38: 15 | H38: 15
A39: Number of repairs in 1 day - remote | C39: 10 | D39: 10 | E39: 10 | F39: 10 | G39: 10 | H39: 10
A40: % of repairs - lamps | C40: 0.6 | D40: 0.6 | E40: 0.6 | F40: 0.6 | G40: 0.6 | H40: 0.6
A41: % of repairs - PE cells | C41: 0.5 | D41: 0.5 | E41: 0.5 | F41: 0.5 | G41: 0.5 | H41: 0.5
A42: % of repairs - luminaires | C42: 0.15 | D42: 0.15 | E42: 0.15 | F42: 0.15 | G42: 0.15 | H42: 0.15
A43: % of repairs - other | C43: 0.1 | D43: 0.1 | E43: 0.1 | F43: 0.1 | G43: 0.1 | H43: 0.1
A45: Other Maintenance and Repair costs
A46: Traffic control costs | C46: =+C280*C49 -> 12836.1096 | D46: =+D280*D49 -> 11138.09586 | E46: 9615.825792 | F46: 8298.820236 | G46: 7157.961579 | H46: 6170.951145 | I46: These costs have been declined to reflect lower number of luminaires in service
A47: Other costs : Describe……………………………………. | C47: 0 | D47: 0 | E47: 0 | F47: 0 | G47: 0 | H47: 0
C48: =SUM(C46:C47) -> 12836.1096 | D48: 11138.09586 | E48: 9615.825792 | F48: 8298.820236 | G48: 7157.961579 | H48: 6170.951145
A49: Number of Lights | C49: =SUM('DNSP Inputs General'!J42,'DNSP Inputs General'!J83) -> 71391.96574 | D49: =SUM('DNSP Inputs General'!K42,'DNSP Inputs General'!K83) -> 61947.94084 | E49: =SUM('DNSP Inputs General'!L42,'DNSP Inputs General'!L83) -> 53481.36835 | F49: =SUM('DNSP Inputs General'!M42,'DNSP Inputs General'!M83) -> 46156.43747 | G49: =SUM('DNSP Inputs General'!N42,'DNSP Inputs General'!N83) -> 39811.20167 | H49: =SUM('DNSP Inputs General'!O42,'DNSP Inputs General'!O83) -> 34321.64001
A50: Unit Cost | C50: =IF(C49=0,0,C48/C49) -> 0.179797677 | D50: =IF(D49=0,0,D48/D49) -> 0.179797677 | E50: 0.179797677 | F50: 0.179797677 | G50: 0.179797677 | H50: 0.179797677
A52: Other O & M costs specific to North/East zone
A53: Other N\E O & M costs : Describe……………………………………. | C53: =+C$285*C54 -> 5447.261117 | D53: =+D$285*D54 -> 4726.674857 | E53: 4080.668956 | F53: 3521.771176 | G53: 3037.624873 | H53: 2618.767156 | I53: These costs have been declined to reflect lower number of luminaires in service
A54: Number of Lights | C54: ='DNSP Inputs General'!J83 -> 22548.59584 | D54: ='DNSP Inputs General'!K83 -> 19565.77419 | E54: ='DNSP Inputs General'!L83 -> 16891.67327 | F54: ='DNSP Inputs General'!M83 -> 14578.15096 | G54: ='DNSP Inputs General'!N83 -> 12574.0577 | H54: ='DNSP Inputs General'!O83 -> 10840.22244
A55: Unit Cost | C55: =IF(C54=0,0,C53/C54) -> 0.2415787287 | D55: 0.2415787287 | E55: 0.2415787287 | F55: 0.2415787287 | G55: 0.2415787287 | H55: 0.2415787287
A57: Location of selected public lighting assets within distributors' areas (%)
A58: SP AusNet - Central
A59: Urban | C59: 0.96 | D59: 0.96 | E59: 0.96 | F59: 0.96 | G59: 0.96 | H59: 0.96
A60: Rural | C60: 0.04 | D60: 0.04 | E60: 0.04 | F60: 0.04 | G60: 0.04 | H60: 0.04
A61: Remote | C61: 0 | D61: 0 | E61: 0 | F61: 0 | G61: 0 | H61: 0
A63: SP AusNet - North/East
A64: Urban | C64: 0.35 | D64: 0.35 | E64: 0.35 | F64: 0.35 | G64: 0.35 | H64: 0.35
A65: Rural | C65: 0.53 | D65: 0.53 | E65: 0.53 | F65: 0.53 | G65: 0.53 | H65: 0.53
A66: Remote | C66: 0.12 | D66: 0.12 | E66: 0.12 | F66: 0.12 | G66: 0.12 | H66: 0.12
A70: Inputs - S-HP150
A72: Depreciation period | B72: years | C72: 20 | D72: =C72 -> 20 | E72: =D72 -> 20 | F72: =E72 -> 20 | G72: =F72 -> 20 | H72: =G72 -> 20
A73: Number of patrols per year | C73: 3 | D73: 3 | E73: 3 | F73: 3 | G73: 3 | H73: 3
A74: Lamps - frequency of replacement | B74: years | C74: 5 | D74: 5 | E74: 5 | F74: 5 | G74: 5 | H74: 5
A75: PE cells - frequency of replacement | B75: years | C75: 10 | D75: 10 | E75: 10 | F75: 10 | G75: 10 | H75: 10
A76: Unit cost - lamp | C76: 40.28 | D76: 40.28 | E76: 40.28 | F76: 40.28 | G76: 40.28 | H76: 40.28
A77: Unit cost - PE cell | C77: 21.8773177 | D77: 21.8773177 | E77: 21.8773177 | F77: 21.8773177 | G77: 21.8773177 | H77: 21.8773177
A78: Unit cost - miscellaneous materials | C78: 2.437584145 | D78: 2.437584145 | E78: 2.437584145 | F78: 2.437584145 | G78: 2.437584145 | H78: 2.437584145
A79: Number of men in crew - road patrols | C79: 2 | D79: 2 | E79: 2 | F79: 2 | G79: 2 | H79: 2
A80: Number of men in crew - repairs | C80: 2 | D80: 2 | E80: 2 | F80: 2 | G80: 2 | H80: 2
A81: Number of lamps patrolled in 1 day - urban | C81: 3000 | D81: 3000 | E81: 3000 | F81: 3000 | G81: 3000 | H81: 3000
A82: Number of lamps patrolled in 1 day - rural | C82: 2000 | D82: 2000 | E82: 2000 | F82: 2000 | G82: 2000 | H82: 2000
A83: Number of lamps patrolled in 1 day - remote | C83: 1000 | D83: 1000 | E83: 1000 | F83: 1000 | G83: 1000 | H83: 1000
A84: Number of repairs in 1 day - urban | C84: 15 | D84: 15 | E84: 15 | F84: 15 | G84: 15 | H84: 15
A85: Number of repairs in 1 day - rural | C85: 12 | D85: 12 | E85: 12 | F85: 12 | G85: 12 | H85: 12
A86: Number of repairs in 1 day - remote | C86: 9 | D86: 9 | E86: 9 | F86: 9 | G86: 9 | H86: 9
A88: Other Maintenance and Repair costs
A89: Traffic control costs | C89: =+C$280*C92 -> 3007.323976 | D89: =+D$280*D92 -> 3070.003183 | E89: 3118.139462 | F89: 3165.966976 | G89: 3212.628149 | H89: 3258.39912
A90: Other costs : Describe……………………………………. | C90: 907.5403476 | D90: 907.5403476 | E90: 907.5403476 | F90: 907.5403476 | G90: 907.5403476 | H90: 907.5403476
C91: =SUM(C89:C90) -> 3914.864324 | D91: 3977.543531 | E91: 4025.679809 | F91: 4073.507323 | G91: 4120.168497 | H91: 4165.939468
A92: Number of Lights | C92: =SUM('DNSP Inputs General'!J43,'DNSP Inputs General'!J84) -> 16726.1559 | D92: =SUM('DNSP Inputs General'!K43,'DNSP Inputs General'!K84) -> 17074.76556 | E92: =SUM('DNSP Inputs General'!L43,'DNSP Inputs General'!L84) -> 17342.49026 | F92: =SUM('DNSP Inputs General'!M43,'DNSP Inputs General'!M84) -> 17608.49767 | G92: =SUM('DNSP Inputs General'!N43,'DNSP Inputs General'!N84) -> 17868.01811 | H92: =SUM('DNSP Inputs General'!O43,'DNSP Inputs General'!O84) -> 18122.58742
A93: Unit Cost | C93: =IF(C92=0,0,C91/C92) -> 0.2340564292 | D93: 0.2329486467 | E93: 0.2321281286 | F93: 0.2313375849 | G93: 0.2305890038 | H93: 0.2298755343
A95: Other O & M costs specific to North/East zone
A96: Other N\E O & M costs : Describe……………………………………. | C96: =+C$285*C97 -> 584.104895 | D96: =+D$285*D97 -> 596.2789182 | E96: 605.6283053 | F96: 614.9177217 | G96: 623.9806029 | H96: 632.8705823
A97: Number of Lights | C97: ='DNSP Inputs General'!J84 -> 2417.865588 | D97: ='DNSP Inputs General'!K84 -> 2468.259193 | E97: ='DNSP Inputs General'!L84 -> 2506.960395 | F97: ='DNSP Inputs General'!M84 -> 2545.413352 | G97: ='DNSP Inputs General'!N84 -> 2582.92858 | H97: ='DNSP Inputs General'!O84 -> 2619.728093
A98: Unit Cost | C98: =IF(C97=0,0,C96/C97) -> 0.2415787287 | D98: 0.2415787287 | E98: 0.2415787287 | F98: 0.2415787287 | G98: 0.2415787287 | H98: 0.2415787287
A100: Location of selected public lighting assets within distributors' areas (%)
A101: SP AusNet - Central
A102: Urban | C102: 0.94 | D102: 0.94 | E102: 0.94 | F102: 0.94 | G102: 0.94 | H102: 0.94
A103: Rural | C103: 0.06 | D103: 0.06 | E103: 0.06 | F103: 0.06 | G103: 0.06 | H103: 0.06
A104: Remote | C104: 0 | D104: 0 | E104: 0 | F104: 0 | G104: 0 | H104: 0
A106: SP AusNet - North/East
A107: Urban | C107: 0.3 | D107: 0.3 | E107: 0.3 | F107: 0.3 | G107: 0.3 | H107: 0.3
A108: Rural | C108: 0.63 | D108: 0.63 | E108: 0.63 | F108: 0.63 | G108: 0.63 | H108: 0.63
A109: Remote | C109: 0.07 | D109: 0.07 | E109: 0.07 | F109: 0.07 | G109: 0.07 | H109: 0.07
A113: Inputs - S-HP250
A115: Depreciation period | B115: years | C115: =C72 -> 20 | D115: 20 | E115: 20 | F115: 20 | G115: 20 | H115: 20
A116: Number of patrols per year | C116: 3 | D116: 3 | E116: 3 | F116: 3 | G116: 3 | H116: 3
A117: Lamps - frequency of replacement | B117: years | C117: 5 | D117: 5 | E117: 5 | F117: 5 | G117: 5 | H117: 5
A118: PE cells - frequency of replacement | B118: years | C118: 10 | D118: 10 | E118: 10 | F118: 10 | G118: 10 | H118: 10
A119: Unit cost - lamp | C119: 40.48 | D119: 40.48 | E119: 40.48 | F119: 40.48 | G119: 40.48 | H119: 40.48
A120: Unit cost - PE cell | C120: 21.8773177 | D120: 21.8773177 | E120: 21.8773177 | F120: 21.8773177 | G120: 21.8773177 | H120: 21.8773177
A121: Unit cost - miscellaneous materials | C121: 2.437584145 | D121: 2.437584145 | E121: 2.437584145 | F121: 2.437584145 | G121: 2.437584145 | H121: 2.437584145
A122: Number of men in crew - road patrols | C122: =C79 -> 2 | D122: 2 | E122: 2 | F122: 2 | G122: 2 | H122: 2
A123: Number of men in crew - repairs | C123: 2 | D123: 2 | E123: 2 | F123: 2 | G123: 2 | H123: 2
A124: Number of lamps patrolled in 1 day - urban | C124: =C81 -> 3000 | D124: 3000 | E124: 3000 | F124: 3000 | G124: 3000 | H124: 3000
A125: Number of lamps patrolled in 1 day - rural | C125: 2000 | D125: 2000 | E125: 2000 | F125: 2000 | G125: 2000 | H125: 2000
A126: Number of lamps patrolled in 1 day - remote | C126: 1000 | D126: 1000 | E126: 1000 | F126: 1000 | G126: 1000 | H126: 1000
A127: Number of repairs in 1 day - urban | C127: 15 | D127: 15 | E127: 15 | F127: 15 | G127: 15 | H127: 15
A128: Number of repairs in 1 day - rural | C128: 12 | D128: 12 | E128: 12 | F128: 12 | G128: 12 | H128: 12
A129: Number of repairs in 1 day - remote | C129: 9 | D129: 9 | E129: 9 | F129: 9 | G129: 9 | H129: 9
A131: Other Maintenance and Repair costs
A132: Traffic control costs | C132: =+C$280*C135 -> 2151.755088 | D132: =+D$280*D135 -> 2196.602368 | E132: 2231.044112 | F132: 2265.264934 | G132: 2298.651233 | H132: 2331.400587
A133: Other costs : Describe……………………………………. | C133: 907.5403476 | D133: 907.5403476 | E133: 907.5403476 | F133: 907.5403476 | G133: 907.5403476 | H133: 907.5403476
C134: =SUM(C132:C133) -> 3059.295435 | D134: 3104.142716 | E134: 3138.58446 | F134: 3172.805281 | G134: 3206.19158 | H134: 3238.940935
A135: Number of Lights | C135: =SUM('DNSP Inputs General'!J44,'DNSP Inputs General'!J85) -> 11967.64677 | D135: =SUM('DNSP Inputs General'!K44,'DNSP Inputs General'!K85) -> 12217.07869 | E135: =SUM('DNSP Inputs General'!L44,'DNSP Inputs General'!L85) -> 12408.63703 | F135: =SUM('DNSP Inputs General'!M44,'DNSP Inputs General'!M85) -> 12598.96664 | G135: =SUM('DNSP Inputs General'!N44,'DNSP Inputs General'!N85) -> 12784.65479 | H135: =SUM('DNSP Inputs General'!O44,'DNSP Inputs General'!O85) -> 12966.80039
A136: Unit Cost | C136: =IF(C135=0,0,C134/C135) -> 0.2556304924 | D136: 0.2540822397 | E136: 0.2529354717 | F136: 0.2518305963 | G136: 0.2507843687 | H136: 0.2497872134
A138: Other O & M costs specific to North/East zone
A139: Other N\E O & M costs : Describe……………………………………. | C139: =+C$285*C140 -> 1334.013908 | D139: =+D$285*D140 -> 1361.817674 | E139: =+E$285*E140 -> 1383.170367 | F139: =+F$285*F140 -> 1404.386096 | G139: =+G$285*G140 -> 1425.084449 | H139: =+H$285*H140 -> 1445.387919
A140: Number of Lights | C140: ='DNSP Inputs General'!J85 -> 5522.066925 | D140: ='DNSP Inputs General'!K85 -> 5637.158873 | E140: ='DNSP Inputs General'!L85 -> 5725.547006 | F140: ='DNSP Inputs General'!M85 -> 5813.368184 | G140: ='DNSP Inputs General'!N85 -> 5899.04772 | H140: ='DNSP Inputs General'!O85 -> 5983.09266
A141: Unit Cost | C141: =IF(C140=0,0,C139/C140) -> 0.2415787287 | D141: 0.2415787287 | E141: 0.2415787287 | F141: 0.2415787287 | G141: 0.2415787287 | H141: 0.2415787287
A143: Location of selected public lighting assets within distributors' areas (%)
A144: SP AusNet - Central
A145: Urban | C145: 0.9 | D145: 0.9 | E145: 0.9 | F145: 0.9 | G145: 0.9 | H145: 0.9
A146: Rural | C146: 0.1 | D146: 0.1 | E146: 0.1 | F146: 0.1 | G146: 0.1 | H146: 0.1
A147: Remote | C147: 0 | D147: 0 | E147: 0 | F147: 0 | G147: 0 | H147: 0
A149: SP AusNet - North/East
A150: Urban | C150: 0.37 | D150: 0.37 | E150: 0.37 | F150: 0.37 | G150: 0.37 | H150: 0.37
A151: Rural | C151: 0.57 | D151: 0.57 | E151: 0.57 | F151: 0.57 | G151: 0.57 | H151: 0.57
A152: Remote | C152: 0.06 | D152: 0.06 | E152: 0.06 | F152: 0.06 | G152: 0.06 | H152: 0.06
A156: Dedicated street lighting poles
A158: Period of inspection | B158: years | C158: 5 | D158: 5 | E158: 5 | F158: 5 | G158: 5 | H158: 5
A159: Pole inspection rate | B159: per day | C159: 75 | D159: 75 | E159: 75 | F159: 75 | G159: 75 | H159: 75
A160: Depreciation of dedicated street lighting pole & bracket | B160: years | C160: 35 | D160: =C160 -> 35 | E160: =D160 -> 35 | F160: =E160 -> 35 | G160: =F160 -> 35 | H160: =G160 -> 35
A161: Proportion of lights on dedicated poles
A162: SP AusNet - Central | C162: 0.381190625 | D162: 0.381190625 | E162: 0.381190625 | F162: 0.381190625 | G162: 0.381190625 | H162: 0.381190625
A163: SP AusNet - North/East | C163: 0.3829674402 | D163: 0.3829674402 | E163: 0.3829674402 | F163: 0.3829674402 | G163: 0.3829674402 | H163: 0.3829674402
A167: Other direct costs
A168: Call centre
A169: Number of calls | C169: 4000 | D169: 4000 | E169: 4000 | F169: 4000 | G169: 4000 | H169: 4000
A170: Average cost per call $ | C170: 14.61 | D170: 14.61 | E170: 14.61 | F170: 14.61 | G170: 14.61 | H170: 14.61
C171: =C169*C170 -> 58440 | D171: 58440 | E171: 58440 | F171: 58440 | G171: 58440 | H171: 58440
A173: GIS and other | C173: 113442.5434 | D173: 113442.5434 | E173: 113442.5434 | F173: 113442.5434 | G173: 113442.5434 | H173: 113442.5434
A174: Complaints handling | C174: 34032.76303 | D174: 34032.76303 | E174: 34032.76303 | F174: 34032.76303 | G174: 34032.76303 | H174: 34032.76303
A178: ENERGY EFFICIENT LIGHTS
A180: Inputs - T5 (2 X 14W)
A182: Depreciation period | B182: years | C182: 20 | D182: =C182 -> 20 | E182: =D182 -> 20 | F182: =E182 -> 20 | G182: =F182 -> 20 | H182: =G182 -> 20
A183: Lamps - bulk change | B183: years | C183: 4 | D183: 4 | E183: 4 | F183: 4 | G183: 4 | H183: 4
A184: PE cells - bulk change | B184: years | C184: 8 | D184: 8 | E184: 8 | F184: 8 | G184: 8 | H184: 8
A185: Ballast unit life | B185: years | C185: 20 | D185: =C185 -> 20 | E185: =D185 -> 20 | F185: =E185 -> 20 | G185: =F185 -> 20 | H185: =G185 -> 20
A186: Proportion of luminaires that fail between bulk change | C186: 0.114 | D186: 0.114 | E186: 0.114 | F186: 0.114 | G186: 0.114 | H186: 0.114
A187: Unit cost - lamp | C187: 9.75 | D187: 9.75 | E187: 9.75 | F187: 9.75 | G187: 9.75 | H187: 9.75
A188: Unit cost - PE cell | C188: 16.45369298 | D188: 16.45369298 | E188: 16.45369298 | F188: 16.45369298 | G188: 16.45369298 | H188: 16.45369298
A189: Unit cost - luminaire | C189: 235.23 | D189: 235.23 | E189: 235.23 | F189: 235.23 | G189: 235.23 | H189: 235.23
A190: Unit cost - miscellaneous materials (bulk lamp) | C190: 1.218792073 | D190: 1.218792073 | E190: 1.218792073 | F190: 1.218792073 | G190: 1.218792073 | H190: 1.218792073
A191: Unit cost - miscellaneous materials (repair) | C191: 12.18792073 | D191: 12.18792073 | E191: 12.18792073 | F191: 12.18792073 | G191: 12.18792073 | H191: 12.18792073
A192: Number of men in crew | C192: 2 | D192: 2 | E192: 2 | F192: 2 | G192: 2 | H192: 2
A193: Number of bulk lamp changes in 1 day - urban | C193: 85 | D193: 85 | E193: 85 | F193: 85 | G193: 85 | H193: 85
A194: Number of bulk lamp changes in 1 day - rural | C194: 70 | D194: 70 | E194: 70 | F194: 70 | G194: 70 | H194: 70
A195: Number of bulk lamp changes in 1 day - remote | C195: 50 | D195: 50 | E195: 50 | F195: 50 | G195: 50 | H195: 50
A196: Number of repairs in 1 day - urban | C196: 20 | D196: 20 | E196: 20 | F196: 20 | G196: 20 | H196: 20
A197: Number of repairs in 1 day - rural | C197: 15 | D197: 15 | E197: 15 | F197: 15 | G197: 15 | H197: 15
A198: Number of repairs in 1 day - remote | C198: 10 | D198: 10 | E198: 10 | F198: 10 | G198: 10 | H198: 10
A199: % of repairs - lamps | C199: 0.6 | D199: 0.6 | E199: 0.6 | F199: 0.6 | G199: 0.6 | H199: 0.6
A200: % of repairs - PE cells | C200: 0.5 | D200: 0.5 | E200: 0.5 | F200: 0.5 | G200: 0.5 | H200: 0.5
A201: % of repairs - luminaires | C201: 0.15 | D201: 0.15 | E201: 0.15 | F201: 0.15 | G201: 0.15 | H201: 0.15
A202: % of repairs - other | C202: 0.1 | D202: 0.1 | E202: 0.1 | F202: 0.1 | G202: 0.1 | H202: 0.1
A204: Other Maintenance and Repair costs
A205: Traffic control costs | C205: =+C$280*C208 -> 2129.228556 | D205: =+D$280*D208 -> 2663.929409 | E205: 3129.008086 | F205: 3542.334327 | G205: 3909.651494 | H205: 4237.011718
A206: Other costs : Describe……………………………………. | C206: 0 | D206: 0 | E206: 0 | F206: 0 | G206: 0 | H206: 0
C207: =SUM(C205:C206) -> 2129.228556 | D207: 2663.929409 | E207: 3129.008086 | F207: 3542.334327 | G207: 3909.651494 | H207: 4237.011718
A208: Number of Lights | C208: =SUM('DNSP Inputs General'!J69,'DNSP Inputs General'!J110) -> 11842.35854 | D208: =SUM('DNSP Inputs General'!K69,'DNSP Inputs General'!K110) -> 14816.26155 | E208: =SUM('DNSP Inputs General'!L69,'DNSP Inputs General'!L110) -> 17402.93945 | F208: =SUM('DNSP Inputs General'!M69,'DNSP Inputs General'!M110) -> 19701.78028 | G208: =SUM('DNSP Inputs General'!N69,'DNSP Inputs General'!N110) -> 21744.72751 | H208: =SUM('DNSP Inputs General'!O69,'DNSP Inputs General'!O110) -> 23565.44194
A209: Unit Cost | C209: =IF(C208=0,0,C207/C208) -> 0.179797677 | D209: 0.179797677 | E209: 0.179797677 | F209: 0.179797677 | G209: 0.179797677 | H209: 0.179797677
A211: Other O & M costs specific to North/East zone
A212: Other N\E O & M costs : Describe……………………………………. | C212: =+C$285*C213 -> 77.46805869 | D212: =+D$285*D213 -> 108.1483897 | E212: =+E$285*E213 -> 134.9373534 | F212: =+F$285*F213 -> 158.6635038 | G212: =+G$285*G213 -> 179.6812017 | H212: =+H$285*H213 -> 198.3447334
A213: Number of Lights | C213: ='DNSP Inputs General'!J110 -> 320.6741715 | D213: ='DNSP Inputs General'!K110 -> 447.6734781 | E213: ='DNSP Inputs General'!L110 -> 558.5647134 | F213: ='DNSP Inputs General'!M110 -> 656.7776254 | G213: ='DNSP Inputs General'!N110 -> 743.7790678 | H213: ='DNSP Inputs General'!O110 -> 821.0355873
A214: Unit Cost | C214: =IF(C213=0,0,C212/C213) -> 0.2415787287 | D214: 0.2415787287 | E214: 0.2415787287 | F214: 0.2415787287 | G214: 0.2415787287 | H214: 0.2415787287
A216: Location of selected public lighting assets within distributors' areas (%)
A217: SP AusNet - Central
A218: Urban | C218: 0.96 | D218: 0.96 | E218: 0.96 | F218: 0.96 | G218: 0.96 | H218: 0.96
A219: Rural | C219: 0.04 | D219: 0.04 | E219: 0.04 | F219: 0.04 | G219: 0.04 | H219: 0.04
A220: Remote | C220: 0 | D220: 0 | E220: 0 | F220: 0 | G220: 0 | H220: 0
A222: SP AusNet - North/East
A223: Urban | C223: 0.35 | D223: 0.35 | E223: 0.35 | F223: 0.35 | G223: 0.35 | H223: 0.35
A224: Rural | C224: 0.53 | D224: 0.53 | E224: 0.53 | F224: 0.53 | G224: 0.53 | H224: 0.53
A225: Remote | C225: 0.12 | D225: 0.12 | E225: 0.12 | F225: 0.12 | G225: 0.12 | H225: 0.12
A229: Inputs - T5 (2x24W)
A231: Depreciation period | B231: years | C231: 20 | D231: =C231 -> 20 | E231: =D231 -> 20 | F231: =E231 -> 20 | G231: =F231 -> 20 | H231: =G231 -> 20
A232: Lamps - bulk change | B232: years | C232: 4 | D232: 4 | E232: 4 | F232: 4 | G232: 4 | H232: 4
A233: PE cells - bulk change | B233: years | C233: 8 | D233: 8 | E233: 8 | F233: 8 | G233: 8 | H233: 8
A234: Ballast unit life | C234: 20 | D234: =C234 -> 20 | E234: =D234 -> 20 | F234: =E234 -> 20 | G234: =F234 -> 20 | H234: =G234 -> 20
A235: Proportion of luminaires that fail between bulk change | C235: 0.114 | D235: 0.114 | E235: 0.114 | F235: 0.114 | G235: 0.114 | H235: 0.114
A236: Unit cost - lamp | C236: 16.82 | D236: 16.82 | E236: 16.82 | F236: 16.82 | G236: 16.82 | H236: 16.82
A237: Unit cost - PE cell | C237: 21.32886127 | D237: 21.32886127 | E237: 21.32886127 | F237: 21.32886127 | G237: 21.32886127 | H237: 21.32886127
A238: Unit cost - luminaire | C238: 260.82 | D238: 260.82 | E238: 260.82 | F238: 260.82 | G238: 260.82 | H238: 260.82
A239: Unit cost - miscellaneous materials (bulk lamp) | C239: 1.218792073 | D239: 1.218792073 | E239: 1.218792073 | F239: 1.218792073 | G239: 1.218792073 | H239: 1.218792073
A240: Unit cost - miscellaneous materials (repair) | C240: 12.18792073 | D240: 12.18792073 | E240: 12.18792073 | F240: 12.18792073 | G240: 12.18792073 | H240: 12.18792073
A241: Number of men in crew | C241: 2 | D241: 2 | E241: 2 | F241: 2 | G241: 2 | H241: 2
A242: Number of bulk lamp changes in 1 day - urban | C242: 85 | D242: 85 | E242: 85 | F242: 85 | G242: 85 | H242: 85
A243: Number of bulk lamp changes in 1 day - rural | C243: 70 | D243: 70 | E243: 70 | F243: 70 | G243: 70 | H243: 70
A244: Number of bulk lamp changes in 1 day - remote | C244: 50 | D244: 50 | E244: 50 | F244: 50 | G244: 50 | H244: 50
A245: Number of repairs in 1 day - urban | C245: 20 | D245: 20 | E245: 20 | F245: 20 | G245: 20 | H245: 20
A246: Number of repairs in 1 day - rural | C246: 15 | D246: 15 | E246: 15 | F246: 15 | G246: 15 | H246: 15
A247: Number of repairs in 1 day - remote | C247: 10 | D247: 10 | E247: 10 | F247: 10 | G247: 10 | H247: 10
A248: % of repairs - lamps | C248: 0.6 | D248: 0.6 | E248: 0.6 | F248: 0.6 | G248: 0.6 | H248: 0.6
A249: % of repairs - PE cells | C249: 0.5 | D249: 0.5 | E249: 0.5 | F249: 0.5 | G249: 0.5 | H249: 0.5
A250: % of repairs - luminaires | C250: 0.15 | D250: 0.15 | E250: 0.15 | F250: 0.15 | G250: 0.15 | H250: 0.15
... 27 more rows

Sheet DNSP Inputs Capex
A1: Public Lighting Cost Build-up Model
A3: ='DNSP Inputs O & M'!$A$3 -> AusNet | C3: Capex Data Inputs
C5: Real 2015 $
A7: Input parameters | C7: 2015 | D7: 2016 | E7: 2017 | F7: 2018 | G7: 2019 | H7: 2020
A9: Inputs - all lamps
A11: Material premium for rural areas | C11: ='DNSP Inputs O & M'!C11 -> 0.05 | D11: ='DNSP Inputs O & M'!D11 -> 0.05 | E11: ='DNSP Inputs O & M'!E11 -> 0.05 | F11: ='DNSP Inputs O & M'!F11 -> 0.05 | G11: ='DNSP Inputs O & M'!G11 -> 0.05 | H11: ='DNSP Inputs O & M'!H11 -> 0.05
A12: Labour rate (per hour) | C12: ='DNSP Inputs O & M'!C12 -> 95.82595654 | D12: ='DNSP Inputs O & M'!D12 -> 95.82595654 | E12: ='DNSP Inputs O & M'!E12 -> 95.82595654 | F12: ='DNSP Inputs O & M'!F12 -> 95.82595654 | G12: ='DNSP Inputs O & M'!G12 -> 95.82595654 | H12: ='DNSP Inputs O & M'!H12 -> 95.82595654
A13: Elevated platform vehicle (per hour) - urban MV,urban T5 | C13: ='DNSP Inputs O & M'!C14 -> 45.37701738 | D13: ='DNSP Inputs O & M'!D14 -> 45.37701738 | E13: ='DNSP Inputs O & M'!E14 -> 45.37701738 | F13: ='DNSP Inputs O & M'!F14 -> 45.37701738 | G13: ='DNSP Inputs O & M'!G14 -> 45.37701738 | H13: ='DNSP Inputs O & M'!H14 -> 45.37701738
A14: Elevated platform vehicle (per hour) - rural MV, rural T5, S-HP | C14: ='DNSP Inputs O & M'!C15 -> 81.99627041 | D14: ='DNSP Inputs O & M'!D15 -> 81.99627041 | E14: ='DNSP Inputs O & M'!E15 -> 81.99627041 | F14: ='DNSP Inputs O & M'!F15 -> 81.99627041 | G14: ='DNSP Inputs O & M'!G15 -> 81.99627041 | H14: ='DNSP Inputs O & M'!H15 -> 81.99627041
A15: Number of hours in a day | C15: ='DNSP Inputs O & M'!C17 -> 8 | D15: ='DNSP Inputs O & M'!D17 -> 8 | E15: ='DNSP Inputs O & M'!E17 -> 8 | F15: ='DNSP Inputs O & M'!F17 -> 8 | G15: ='DNSP Inputs O & M'!G17 -> 8 | H15: ='DNSP Inputs O & M'!H17 -> 8
A19: Inputs - MV80
A21: Unit cost - luminaire | C21: ='DNSP Inputs O & M'!C30 -> 193.24 | D21: ='DNSP Inputs O & M'!D30 -> 193.24 | E21: ='DNSP Inputs O & M'!E30 -> 193.24 | F21: ='DNSP Inputs O & M'!F30 -> 193.24 | G21: ='DNSP Inputs O & M'!G30 -> 193.24 | H21: ='DNSP Inputs O & M'!H30 -> 193.24
A22: Unit cost - miscellaneous materials (bulk lamp) | C22: ='DNSP Inputs O & M'!C31 -> 1.218792073 | D22: ='DNSP Inputs O & M'!D31 -> 1.218792073 | E22: ='DNSP Inputs O & M'!E31 -> 1.218792073 | F22: ='DNSP Inputs O & M'!F31 -> 1.218792073 | G22: ='DNSP Inputs O & M'!G31 -> 1.218792073 | H22: ='DNSP Inputs O & M'!H31 -> 1.218792073
A23: Number of men in crew | C23: ='DNSP Inputs O & M'!C33 -> 2 | D23: ='DNSP Inputs O & M'!D33 -> 2 | E23: ='DNSP Inputs O & M'!E33 -> 2 | F23: ='DNSP Inputs O & M'!F33 -> 2 | G23: ='DNSP Inputs O & M'!G33 -> 2 | H23: ='DNSP Inputs O & M'!H33 -> 2
A24: Number of luminaires replaced per day - urban | C24: 16 | D24: 16 | E24: 16 | F24: 16 | G24: 16 | H24: 16
A25: Number of luminaires replaced per day - rural | C25: 13 | D25: 13 | E25: 13 | F25: 13 | G25: 13 | H25: 13
A26: Number of luminaires replaced per day - remote | C26: 10 | D26: 10 | E26: 10 | F26: 10 | G26: 10 | H26: 10
A28: Other Capex unit costs Describe :……………………… | C28: 0 | D28: 0 | E28: 0 | F28: 0 | G28: 0 | H28: 0
A30: Forecast Quantities to be replaced | D30: =('DNSP Inputs General'!J42+'DNSP Inputs General'!J83)/'DNSP Inputs General'!J121 -> 0.5134443838 | E30: =('DNSP Inputs General'!K42+'DNSP Inputs General'!K83)/'DNSP Inputs General'!K121 -> 0.4364277263 | F30: =('DNSP Inputs General'!L42+'DNSP Inputs General'!L83)/'DNSP Inputs General'!L121 -> 0.3709635673 | G30: =('DNSP Inputs General'!M42+'DNSP Inputs General'!M83)/'DNSP Inputs General'!M121 -> 0.3153190322 | H30: =('DNSP Inputs General'!N42+'DNSP Inputs General'!N83)/'DNSP Inputs General'!N121 -> 0.2680211774
A31: Number of luminaires replaced per year - urban | D31: 1182.173114 | E31: 1054.804512 | F31: 941.6125214 | G31: 840.3407267 | H31: 749.9114407
A32: Number of luminaires replaced per year - rural | D32: 298.5735423 | E32: 266.4049081 | F32: 237.8167654 | G32: 212.2392268 | H32: 189.4001079
A33: Number of luminaires replaced per year - remote | D33: 58.04616235 | E33: 51.79220645 | F33: 46.23433967 | G33: 41.26176927 | H33: 36.82157946
A35: MV80 Lights replaced with T5 Energy Efficient Lights
A36: Number of Lights MV80 replaced with T5 per year
A37: SP AusNet - Central | D37: 1500 | E37: 1500 | F37: 1500 | G37: 1500 | H37: 1500
A38: SP AusNet - North/East | D38: 500 | E38: 500 | F38: 500 | G38: 500 | H38: 500
A42: Inputs - S-HP150
A44: Unit cost - luminaire | C44: 241.36 | D44: 241.36 | E44: 241.36 | F44: 241.36 | G44: 241.36 | H44: 241.36
A45: Unit cost - miscellaneous materials | C45: ='DNSP Inputs O & M'!C78 -> 2.437584145 | D45: ='DNSP Inputs O & M'!D78 -> 2.437584145 | E45: ='DNSP Inputs O & M'!E78 -> 2.437584145 | F45: ='DNSP Inputs O & M'!F78 -> 2.437584145 | G45: ='DNSP Inputs O & M'!G78 -> 2.437584145 | H45: ='DNSP Inputs O & M'!H78 -> 2.437584145
A46: Number of men in crew - repairs | C46: ='DNSP Inputs O & M'!C80 -> 2 | D46: ='DNSP Inputs O & M'!D80 -> 2 | E46: ='DNSP Inputs O & M'!E80 -> 2 | F46: ='DNSP Inputs O & M'!F80 -> 2 | G46: ='DNSP Inputs O & M'!G80 -> 2 | H46: ='DNSP Inputs O & M'!H80 -> 2
A47: Number of luminaires replaced per day - urban | C47: 16 | D47: 16 | E47: 16 | F47: 16 | G47: 16 | H47: 16
A48: Number of luminaires replaced per day - rural | C48: 13 | D48: 13 | E48: 13 | F48: 13 | G48: 13 | H48: 13
A49: Number of luminaires replaced per day - remote | C49: 10 | D49: 10 | E49: 10 | F49: 10 | G49: 10 | H49: 10
A51: Other Capex unit costs Describe :……………………… | C51: 0 | D51: 0 | E51: 0 | F51: 0 | G51: 0 | H51: 0
A53: Forecast Quantities to be replaced | D53: =('DNSP Inputs General'!J43+'DNSP Inputs General'!J84)/'DNSP Inputs General'!J121 -> 0.120292959 | E53: =('DNSP Inputs General'!K43+'DNSP Inputs General'!K84)/'DNSP Inputs General'!K121 -> 0.120292959 | F53: =('DNSP Inputs General'!L43+'DNSP Inputs General'!L84)/'DNSP Inputs General'!L121 -> 0.120292959 | G53: =('DNSP Inputs General'!M43+'DNSP Inputs General'!M84)/'DNSP Inputs General'!M121 -> 0.120292959 | H53: =('DNSP Inputs General'!N43+'DNSP Inputs General'!N84)/'DNSP Inputs General'!N121 -> 0.120292959
A54: Number of luminaires replaced per year - urban | D54: 275.8396776 | E54: 289.5534287 | F54: 304.0955272 | G54: 319.2818958 | H54: 335.2045732
A55: Number of luminaires replaced per year - rural | D55: 77.78252866 | E55: 81.64959465 | F55: 85.75024181 | G55: 90.03256321 | H55: 94.52251231
A56: Number of luminaires replaced per day - remote | D56: 6.895791954 | E56: 7.238625788 | F56: 7.602167706 | G56: 7.981815912 | H56: 8.379871303
A60: Inputs - S-HP250
A62: Unit cost - luminaire | C62: 247.68 | D62: 247.68 | E62: 247.68 | F62: 247.68 | G62: 247.68 | H62: 247.68
A63: Unit cost - miscellaneous materials | C63: ='DNSP Inputs O & M'!C121 -> 2.437584145 | D63: ='DNSP Inputs O & M'!D121 -> 2.437584145 | E63: ='DNSP Inputs O & M'!E121 -> 2.437584145 | F63: ='DNSP Inputs O & M'!F121 -> 2.437584145 | G63: ='DNSP Inputs O & M'!G121 -> 2.437584145 | H63: ='DNSP Inputs O & M'!H121 -> 2.437584145
A64: Number of men in crew - repairs | C64: ='DNSP Inputs O & M'!C123 -> 2 | D64: ='DNSP Inputs O & M'!D123 -> 2 | E64: ='DNSP Inputs O & M'!E123 -> 2 | F64: ='DNSP Inputs O & M'!F123 -> 2 | G64: ='DNSP Inputs O & M'!G123 -> 2 | H64: ='DNSP Inputs O & M'!H123 -> 2
A65: Number of luminaires replaced per day - urban | C65: 16 | D65: 16 | E65: 16 | F65: 16 | G65: 16 | H65: 16
A66: Number of luminaires replaced per day - rural | C66: 13 | D66: 13 | E66: 13 | F66: 13 | G66: 13 | H66: 13
A67: Number of luminaires replaced per day - remote | C67: 10 | D67: 10 | E67: 10 | F67: 10 | G67: 10 | H67: 10
A69: Other Capex unit costs Describe :……………………… | C69: 0 | D69: 0 | E69: 0 | F69: 0 | G69: 0 | H69: 0
A71: Forecast Quantities to be replaced | D71: =('DNSP Inputs General'!J44+'DNSP Inputs General'!J85)/'DNSP Inputs General'!J121 -> 0.08607020351 | E71: =('DNSP Inputs General'!K44+'DNSP Inputs General'!K85)/'DNSP Inputs General'!K121 -> 0.08607020351 | F71: =('DNSP Inputs General'!L44+'DNSP Inputs General'!L85)/'DNSP Inputs General'!L121 -> 0.08607020351 | G71: =('DNSP Inputs General'!M44+'DNSP Inputs General'!M85)/'DNSP Inputs General'!M121 -> 0.08607020351 | H71: =('DNSP Inputs General'!N44+'DNSP Inputs General'!N85)/'DNSP Inputs General'!N121 -> 0.08607020351
A72: Number of luminaires replaced per year - urban | D72: 174.4926628 | E72: 183.1678068 | F72: 192.3669529 | G72: 201.973656 | H72: 212.0461387
A73: Number of luminaires replaced per year - rural | D73: 50.74388165 | E73: 53.26668391 | F73: 55.9418702 | G73: 58.7355774 | H73: 61.66473706
A74: Number of luminaires replaced per day - remote | D74: 4.305884282 | E74: 4.519957274 | F74: 4.74696085 | G74: 4.984021546 | H74: 5.232576094
A78: Dedicated street lighting poles
A80: Cost of pole & bracket | C80: 861.66 | D80: 861.66 | E80: 861.66 | F80: 861.66 | G80: 861.66 | H80: 861.66
A81: Number of poles & brackets replaced per day | C81: 4 | D81: 4 | E81: 4 | F81: 4 | G81: 4 | H81: 4
A82: Cost of bracket on non-dedicated poles | C82: 43.74 | D82: 43.74 | E82: 43.74 | F82: 43.74 | G82: 43.74 | H82: 43.74
A83: Number of brackets replaced per day | C83: 20 | D83: 20 | E83: 20 | F83: 20 | G83: 20 | H83: 20
A85: Other poles & brackets Capex unit costs Describe :………………… | C85: 0 | D85: 0 | E85: 0 | F85: 0 | G85: 0 | H85: 0
A88: Forecast Quantities to be replaced
A89: Number of poles & brackets replaced per year - urban | D89: 598.7331124 | E89: 598.7331124 | F89: 598.7331124 | G89: 598.7331124 | H89: 598.7331124
A90: Number of poles & brackets replaced per year - rural | D90: 203.0623874 | E90: 203.0623874 | F90: 203.0623874 | G90: 203.0623874 | H90: 203.0623874
A91: Number of poles & brackets replaced per year - remote | D91: 15.48943329 | E91: 15.48943329 | F91: 15.48943329 | G91: 15.48943329 | H91: 15.48943329
A93: Brackets on non-dedicated poles :
A94: Number of brackets replaced per year - urban | D94: 970.796428 | E94: 970.796428 | F94: 970.796428 | G94: 970.796428 | H94: 970.796428
A95: Number of brackets replaced per year - rural | D95: 327.8522232 | E95: 327.8522232 | F95: 327.8522232 | G95: 327.8522232 | H95: 327.8522232
A96: Number of brackets replaced per year - remote | D96: 24.95638968 | E96: 24.95638968 | F96: 24.95638968 | G96: 24.95638968 | H96: 24.95638968
A100: Luminaire Replacents - Other Light types (excluding T5s)
A101: Number of luminaires replaced per year | D101: 129.5406343 | E101: 129.5406343 | F101: 129.5406343 | G101: 129.5406343 | H101: 129.5406343
A102: Forecast Capex | D102: 38208.08949 | E102: 38208.08949 | F102: 38208.08949 | G102: 38208.08949 | H102: 38208.08949

Sheet PL Tariffs
A1: ='DNSP Inputs O & M'!$A$3 -> AusNet | E1: Global Check | F1: =IF(SUM('Total RAB'!F1,'Depn & WACC Post 2004 N & E'!F1,'Depn & WACC Post 2004 Central'!F1,'Cashflow Summary'!F1)<1,"Ok","Error") -> Ok
D3: ='DNSP Inputs General'!$B$39 -> Central
A4: Public Lighting Tariffs | C4: Nominal Prices | J4: Nominal Price Movement | P4: Real Price Movement (Implied X Factor)
C5: Actual
A6: ='DNSP Inputs General'!A$41 -> Existing Lights | C6: ='DNSP Inputs General'!J$2 -> 2015 | D6: ='DNSP Inputs General'!K$2 -> 2016 | E6: ='DNSP Inputs General'!L$2 -> 2017 | F6: ='DNSP Inputs General'!M$2 -> 2018 | G6: ='DNSP Inputs General'!N$2 -> 2019 | H6: ='DNSP Inputs General'!O$2 -> 2020 | J6: =D6 -> 2016 | K6: =E6 -> 2017 | L6: 2018 | M6: 2019 | N6: 2020 | P6: =J6 -> 2016 | Q6: =K6 -> 2017 | R6: 2018 | S6: 2019 | T6: 2020
A7: ='DNSP Inputs General'!A42 -> Mercury Vapour 80W | C7: ='DNSP Inputs General'!E42 -> 48.26 | D7: ='Charges Summary'!D$31 -> 43.71257063 | E7: ='Charges Summary'!E$31 -> 46.96673213 | F7: ='Charges Summary'!F$31 -> 50.21603876 | G7: ='Charges Summary'!G$31 -> 53.43810883 | H7: ='Charges Summary'!H$31 -> 56.6054867 | J7: =IF(C7=0,"",D7/C7-1) -> -0.09422771169 | K7: =IF(D7=0,"",E7/D7-1) -> 0.07444452355 | L7: =IF(E7=0,"",F7/E7-1) -> 0.06918315345 | M7: =IF(F7=0,"",G7/F7-1) -> 0.06416416248 | N7: =IF(G7=0,"",H7/G7-1) -> 0.05927189298 | P7: =IF(C7=0,"",(D7/'Charges Summary'!D$4)/C7-1) -> -0.1165265808 | Q7: =IF(D7=0,"",(E7/'Charges Summary'!E$4)/(D7/'Charges Summary'!D$4)-1) -> 0.04799317579 | R7: =IF(E7=0,"",(F7/'Charges Summary'!F$4)/(E7/'Charges Summary'!E$4)-1) -> 0.04286133339 | S7: =IF(F7=0,"",(G7/'Charges Summary'!G$4)/(F7/'Charges Summary'!F$4)-1) -> 0.03796590309 | T7: =IF(G7=0,"",(H7/'Charges Summary'!H$4)/(G7/'Charges Summary'!G$4)-1) -> 0.03319407454
A8: ='DNSP Inputs General'!A43 -> HP Sodium 150W | C8: ='DNSP Inputs General'!E43 -> 105.11 | D8: ='Charges Summary'!D$55 -> 100.3080548 | E8: ='Charges Summary'!E$55 -> 105.1892715 | F8: ='Charges Summary'!F$55 -> 110.094756 | G8: ='Charges Summary'!G$55 -> 114.9999303 | H8: ='Charges Summary'!H$55 -> 119.8749046 | J8: -0.04568495146 | K8: 0.04866226153 | L8: 0.0466348358 | M8: 0.04455411419 | N8: 0.04239110691 | P8: =IF(C8=0,"",(D8/'Charges Summary'!D$4)/C8-1) -> -0.06917887661 | Q8: =IF(D8=0,"",(E8/'Charges Summary'!E$4)/(D8/'Charges Summary'!D$4)-1) -> 0.02284563763 | R8: =IF(E8=0,"",(F8/'Charges Summary'!F$4)/(E8/'Charges Summary'!E$4)-1) -> 0.02086812435 | S8: =IF(F8=0,"",(G8/'Charges Summary'!G$4)/(F8/'Charges Summary'!F$4)-1) -> 0.01883862724 | T8: =IF(G8=0,"",(H8/'Charges Summary'!H$4)/(G8/'Charges Summary'!G$4)-1) -> 0.01672887023
A9: ='DNSP Inputs General'!A44 -> HP Sodium 250W | C9: ='DNSP Inputs General'!E44 -> 106.4 | D9: ='Charges Summary'!D$71 -> 101.2505048 | E9: ='Charges Summary'!E$71 -> 106.1788026 | F9: ='Charges Summary'!F$71 -> 111.1311408 | G9: ='Charges Summary'!G$71 -> 116.0825929 | H9: ='Charges Summary'!H$71 -> 121.0028822 | J9: -0.04839751145 | K9: 0.0486743032 | L9: 0.04664149653 | M9: 0.04455503674 | N9: 0.04238610851 | P9: =IF(C9=0,"",(D9/'Charges Summary'!D$4)/C9-1) -> -0.0718246571 | Q9: =IF(D9=0,"",(E9/'Charges Summary'!E$4)/(D9/'Charges Summary'!D$4)-1) -> 0.02285738286 | R9: =IF(E9=0,"",(F9/'Charges Summary'!F$4)/(E9/'Charges Summary'!E$4)-1) -> 0.02087462109 | S9: =IF(F9=0,"",(G9/'Charges Summary'!G$4)/(F9/'Charges Summary'!F$4)-1) -> 0.01883952708 | T9: =IF(G9=0,"",(H9/'Charges Summary'!H$4)/(G9/'Charges Summary'!G$4)-1) -> 0.01672399488
A10: ='DNSP Inputs General'!A45 -> Mercury Vapour 50W | C10: ='DNSP Inputs General'!E45 -> 73.85 | D10: =IF('DNSP Inputs General'!$B45='DNSP Inputs General'!$A$42,D$7,IF('DNSP Inputs General'!$B45='DNSP Inputs General'!$A$43,D$8,D$9))*'DNSP Inputs General'!$D45 -> 66.88023307 | E10: =IF('DNSP Inputs General'!$B45='DNSP Inputs General'!$A$42,E$7,IF('DNSP Inputs General'!$B45='DNSP Inputs General'!$A$43,E$8,E$9))*'DNSP Inputs General'!$D45 -> 71.85910016 | F10: =IF('DNSP Inputs General'!$B45='DNSP Inputs General'!$A$42,F$7,IF('DNSP Inputs General'!$B45='DNSP Inputs General'!$A$43,F$8,F$9))*'DNSP Inputs General'!$D45 -> 76.83053931 | G10: =IF('DNSP Inputs General'!$B45='DNSP Inputs General'!$A$42,G$7,IF('DNSP Inputs General'!$B45='DNSP Inputs General'!$A$43,G$8,G$9))*'DNSP Inputs General'!$D45 -> 81.76030652 | H10: =IF('DNSP Inputs General'!$B45='DNSP Inputs General'!$A$42,H$7,IF('DNSP Inputs General'!$B45='DNSP Inputs General'!$A$43,H$8,H$9))*'DNSP Inputs General'!$D45 -> 86.60639465 | J10: -0.09437734503 | K10: 0.07444452355 | L10: 0.06918315345 | M10: 0.06416416248 | N10: 0.05927189298 | P10: =IF(C10=0,"",(D10/'Charges Summary'!D$4)/C10-1) -> -0.1166725304 | Q10: =IF(D10=0,"",(E10/'Charges Summary'!E$4)/(D10/'Charges Summary'!D$4)-1) -> 0.04799317579 | R10: =IF(E10=0,"",(F10/'Charges Summary'!F$4)/(E10/'Charges Summary'!E$4)-1) -> 0.04286133339 | S10: =IF(F10=0,"",(G10/'Charges Summary'!G$4)/(F10/'Charges Summary'!F$4)-1) -> 0.03796590309 | T10: =IF(G10=0,"",(H10/'Charges Summary'!H$4)/(G10/'Charges Summary'!G$4)-1) -> 0.03319407454
A11: ='DNSP Inputs General'!A46 -> Mercury Vapour 125W | C11: ='DNSP Inputs General'!E46 -> 70.95 | D11: =IF('DNSP Inputs General'!$B46='DNSP Inputs General'!$A$42,D$7,IF('DNSP Inputs General'!$B46='DNSP Inputs General'!$A$43,D$8,D$9))*'DNSP Inputs General'!$D46 -> 64.25747883 | E11: =IF('DNSP Inputs General'!$B46='DNSP Inputs General'!$A$42,E$7,IF('DNSP Inputs General'!$B46='DNSP Inputs General'!$A$43,E$8,E$9))*'DNSP Inputs General'!$D46 -> 69.04109623 | F11: =IF('DNSP Inputs General'!$B46='DNSP Inputs General'!$A$42,F$7,IF('DNSP Inputs General'!$B46='DNSP Inputs General'!$A$43,F$8,F$9))*'DNSP Inputs General'!$D46 -> 73.81757698 | G11: =IF('DNSP Inputs General'!$B46='DNSP Inputs General'!$A$42,G$7,IF('DNSP Inputs General'!$B46='DNSP Inputs General'!$A$43,G$8,G$9))*'DNSP Inputs General'!$D46 -> 78.55401999 | H11: =IF('DNSP Inputs General'!$B46='DNSP Inputs General'!$A$42,H$7,IF('DNSP Inputs General'!$B46='DNSP Inputs General'!$A$43,H$8,H$9))*'DNSP Inputs General'!$D46 -> 83.21006545 | J11: -0.09432728919 | K11: 0.07444452355 | L11: 0.06918315345 | M11: 0.06416416248 | N11: 0.05927189298 | P11: =IF(C11=0,"",(D11/'Charges Summary'!D$4)/C11-1) -> -0.1166237068 | Q11: =IF(D11=0,"",(E11/'Charges Summary'!E$4)/(D11/'Charges Summary'!D$4)-1) -> 0.04799317579 | R11: =IF(E11=0,"",(F11/'Charges Summary'!F$4)/(E11/'Charges Summary'!E$4)-1) -> 0.04286133339 | S11: =IF(F11=0,"",(G11/'Charges Summary'!G$4)/(F11/'Charges Summary'!F$4)-1) -> 0.03796590309 | T11: =IF(G11=0,"",(H11/'Charges Summary'!H$4)/(G11/'Charges Summary'!G$4)-1) -> 0.03319407454
A12: ='DNSP Inputs General'!A47 -> Mercury Vapour 250W | C12: ='DNSP Inputs General'!E47 -> 111.72 | D12: =IF('DNSP Inputs General'!$B47='DNSP Inputs General'!$A$42,D$7,IF('DNSP Inputs General'!$B47='DNSP Inputs General'!$A$43,D$8,D$9))*'DNSP Inputs General'!$D47 -> 106.31303 | E12: =IF('DNSP Inputs General'!$B47='DNSP Inputs General'!$A$42,E$7,IF('DNSP Inputs General'!$B47='DNSP Inputs General'!$A$43,E$8,E$9))*'DNSP Inputs General'!$D47 -> 111.4877427 | F12: =IF('DNSP Inputs General'!$B47='DNSP Inputs General'!$A$42,F$7,IF('DNSP Inputs General'!$B47='DNSP Inputs General'!$A$43,F$8,F$9))*'DNSP Inputs General'!$D47 -> 116.6876978 | G12: =IF('DNSP Inputs General'!$B47='DNSP Inputs General'!$A$42,G$7,IF('DNSP Inputs General'!$B47='DNSP Inputs General'!$A$43,G$8,G$9))*'DNSP Inputs General'!$D47 -> 121.8867225 | H12: =IF('DNSP Inputs General'!$B47='DNSP Inputs General'!$A$42,H$7,IF('DNSP Inputs General'!$B47='DNSP Inputs General'!$A$43,H$8,H$9))*'DNSP Inputs General'!$D47 -> 127.0530264 | J12: -0.04839751145 | K12: 0.0486743032 | L12: 0.04664149653 | M12: 0.04455503674 | N12: 0.04238610851 | P12: =IF(C12=0,"",(D12/'Charges Summary'!D$4)/C12-1) -> -0.0718246571 | Q12: =IF(D12=0,"",(E12/'Charges Summary'!E$4)/(D12/'Charges Summary'!D$4)-1) -> 0.02285738286 | R12: =IF(E12=0,"",(F12/'Charges Summary'!F$4)/(E12/'Charges Summary'!E$4)-1) -> 0.02087462109 | S12: =IF(F12=0,"",(G12/'Charges Summary'!G$4)/(F12/'Charges Summary'!F$4)-1) -> 0.01883952708 | T12: =IF(G12=0,"",(H12/'Charges Summary'!H$4)/(G12/'Charges Summary'!G$4)-1) -> 0.01672399488
A13: ='DNSP Inputs General'!A48 -> Mercury Vapour 400W | C13: ='DNSP Inputs General'!E48 -> 115.97 | D13: =IF('DNSP Inputs General'!$B48='DNSP Inputs General'!$A$42,D$7,IF('DNSP Inputs General'!$B48='DNSP Inputs General'!$A$43,D$8,D$9))*'DNSP Inputs General'!$D48 -> 110.3630502 | E13: =IF('DNSP Inputs General'!$B48='DNSP Inputs General'!$A$42,E$7,IF('DNSP Inputs General'!$B48='DNSP Inputs General'!$A$43,E$8,E$9))*'DNSP Inputs General'!$D48 -> 115.7348948 | F13: =IF('DNSP Inputs General'!$B48='DNSP Inputs General'!$A$42,F$7,IF('DNSP Inputs General'!$B48='DNSP Inputs General'!$A$43,F$8,F$9))*'DNSP Inputs General'!$D48 -> 121.1329435 | G13: =IF('DNSP Inputs General'!$B48='DNSP Inputs General'!$A$42,G$7,IF('DNSP Inputs General'!$B48='DNSP Inputs General'!$A$43,G$8,G$9))*'DNSP Inputs General'!$D48 -> 126.5300262 | H13: =IF('DNSP Inputs General'!$B48='DNSP Inputs General'!$A$42,H$7,IF('DNSP Inputs General'!$B48='DNSP Inputs General'!$A$43,H$8,H$9))*'DNSP Inputs General'!$D48 -> 131.8931416 | J13: -0.0483482779 | K13: 0.0486743032 | L13: 0.04664149653 | M13: 0.04455503674 | N13: 0.04238610851 | P13: =IF(C13=0,"",(D13/'Charges Summary'!D$4)/C13-1) -> -0.07177663561 | Q13: =IF(D13=0,"",(E13/'Charges Summary'!E$4)/(D13/'Charges Summary'!D$4)-1) -> 0.02285738286 | R13: =IF(E13=0,"",(F13/'Charges Summary'!F$4)/(E13/'Charges Summary'!E$4)-1) -> 0.02087462109 | S13: =IF(F13=0,"",(G13/'Charges Summary'!G$4)/(F13/'Charges Summary'!F$4)-1) -> 0.01883952708 | T13: =IF(G13=0,"",(H13/'Charges Summary'!H$4)/(G13/'Charges Summary'!G$4)-1) -> 0.01672399488
A14: ='DNSP Inputs General'!A49 -> HP Sodium 100W | C14: ='DNSP Inputs General'!E49 -> 112.46 | D14: =IF('DNSP Inputs General'!$B49='DNSP Inputs General'!$A$42,D$7,IF('DNSP Inputs General'!$B49='DNSP Inputs General'!$A$43,D$8,D$9))*'DNSP Inputs General'!$D49 -> 107.3296186 | E14: =IF('DNSP Inputs General'!$B49='DNSP Inputs General'!$A$42,E$7,IF('DNSP Inputs General'!$B49='DNSP Inputs General'!$A$43,E$8,E$9))*'DNSP Inputs General'!$D49 -> 112.5525206 | F14: =IF('DNSP Inputs General'!$B49='DNSP Inputs General'!$A$42,F$7,IF('DNSP Inputs General'!$B49='DNSP Inputs General'!$A$43,F$8,F$9))*'DNSP Inputs General'!$D49 -> 117.8013889 | G14: =IF('DNSP Inputs General'!$B49='DNSP Inputs General'!$A$42,G$7,IF('DNSP Inputs General'!$B49='DNSP Inputs General'!$A$43,G$8,G$9))*'DNSP Inputs General'!$D49 -> 123.0499254 | H14: =IF('DNSP Inputs General'!$B49='DNSP Inputs General'!$A$42,H$7,IF('DNSP Inputs General'!$B49='DNSP Inputs General'!$A$43,H$8,H$9))*'DNSP Inputs General'!$D49 -> 128.2661479 | J14: -0.04561961066 | K14: 0.04866226153 | L14: 0.0466348358 | M14: 0.04455411419 | N14: 0.04239110691 | P14: =IF(C14=0,"",(D14/'Charges Summary'!D$4)/C14-1) -> -0.06911514442 | Q14: =IF(D14=0,"",(E14/'Charges Summary'!E$4)/(D14/'Charges Summary'!D$4)-1) -> 0.02284563763 | R14: =IF(E14=0,"",(F14/'Charges Summary'!F$4)/(E14/'Charges Summary'!E$4)-1) -> 0.02086812435 | S14: =IF(F14=0,"",(G14/'Charges Summary'!G$4)/(F14/'Charges Summary'!F$4)-1) -> 0.01883862724 | T14: =IF(G14=0,"",(H14/'Charges Summary'!H$4)/(G14/'Charges Summary'!G$4)-1) -> 0.01672887023
A15: ='DNSP Inputs General'!A50 -> HP Sodium 400W | C15: ='DNSP Inputs General'!E50 -> 151.08 | D15: =IF('DNSP Inputs General'!$B50='DNSP Inputs General'!$A$42,D$7,IF('DNSP Inputs General'!$B50='DNSP Inputs General'!$A$43,D$8,D$9))*'DNSP Inputs General'!$D50 -> 143.7757168 | E15: =IF('DNSP Inputs General'!$B50='DNSP Inputs General'!$A$42,E$7,IF('DNSP Inputs General'!$B50='DNSP Inputs General'!$A$43,E$8,E$9))*'DNSP Inputs General'!$D50 -> 150.7738996 | F15: =IF('DNSP Inputs General'!$B50='DNSP Inputs General'!$A$42,F$7,IF('DNSP Inputs General'!$B50='DNSP Inputs General'!$A$43,F$8,F$9))*'DNSP Inputs General'!$D50 -> 157.8062199 | G15: =IF('DNSP Inputs General'!$B50='DNSP Inputs General'!$A$42,G$7,IF('DNSP Inputs General'!$B50='DNSP Inputs General'!$A$43,G$8,G$9))*'DNSP Inputs General'!$D50 -> 164.8372819 | H15: =IF('DNSP Inputs General'!$B50='DNSP Inputs General'!$A$42,H$7,IF('DNSP Inputs General'!$B50='DNSP Inputs General'!$A$43,H$8,H$9))*'DNSP Inputs General'!$D50 -> 171.8240928 | J15: -0.04834712212 | K15: 0.0486743032 | L15: 0.04664149653 | M15: 0.04455503674 | N15: 0.04238610851 | P15: =IF(C15=0,"",(D15/'Charges Summary'!D$4)/C15-1) -> -0.07177550829 | Q15: =IF(D15=0,"",(E15/'Charges Summary'!E$4)/(D15/'Charges Summary'!D$4)-1) -> 0.02285738286 | R15: =IF(E15=0,"",(F15/'Charges Summary'!F$4)/(E15/'Charges Summary'!E$4)-1) -> 0.02087462109 | S15: =IF(F15=0,"",(G15/'Charges Summary'!G$4)/(F15/'Charges Summary'!F$4)-1) -> 0.01883952708 | T15: =IF(G15=0,"",(H15/'Charges Summary'!H$4)/(G15/'Charges Summary'!G$4)-1) -> 0.01672399488
A18: ='DNSP Inputs General'!A$68 -> Energy Efficient Lights
A19: ='DNSP Inputs General'!A69 -> T5 2X14W | C19: ='DNSP Inputs General'!E69 -> 39.13 | D19: ='Charges Summary'!D$89 -> 48.92121976 | E19: ='Charges Summary'!E$89 -> 49.01782639 | F19: ='Charges Summary'!F$89 -> 49.787782 | G19: ='Charges Summary'!G$89 -> 50.94775426 | H19: ='Charges Summary'!H$89 -> 52.34610527 | J19: =IF(C19=0,"",D19/C19-1) -> 0.2502228408 | K19: 0.0019747387 | L19: 0.01570766539 | M19: 0.02329833166 | N19: 0.02744676434 | P19: =IF(C19=0,"",(D19/'Charges Summary'!D$4)/C19-1) -> 0.2194440725 | Q19: =IF(D19=0,"",(E19/'Charges Summary'!E$4)/(D19/'Charges Summary'!D$4)-1) -> -0.02269250254 | R19: =IF(E19=0,"",(F19/'Charges Summary'!F$4)/(E19/'Charges Summary'!E$4)-1) -> -0.009297661633 | S19: =IF(F19=0,"",(G19/'Charges Summary'!G$4)/(F19/'Charges Summary'!F$4)-1) -> -0.001893867132 | T19: =IF(G19=0,"",(H19/'Charges Summary'!H$4)/(G19/'Charges Summary'!G$4)-1) -> 0.002152436836
A20: ='DNSP Inputs General'!A70 -> T5 2X24W | C20: ='DNSP Inputs General'!E70 -> 44.31 | D20: ='Charges Summary'!D$105 -> 53.53213559 | E20: ='Charges Summary'!E$105 -> 53.49417871 | F20: ='Charges Summary'!F$105 -> 54.20222455 | G20: ='Charges Summary'!G$105 -> 55.342946 | H20: ='Charges Summary'!H$105 -> 56.74946417 | J20: 0.2081276369 | K20: -0.000709048522 | L20: 0.01323594197 | M20: 0.02104565738 | N20: 0.02541458795 | P20: =IF(C20=0,"",(D20/'Charges Summary'!D$4)/C20-1) -> 0.1783851945 | Q20: =IF(D20=0,"",(E20/'Charges Summary'!E$4)/(D20/'Charges Summary'!D$4)-1) -> -0.0253102186 | R20: =IF(E20=0,"",(F20/'Charges Summary'!F$4)/(E20/'Charges Summary'!E$4)-1) -> -0.01170853462 | S20: =IF(F20=0,"",(G20/'Charges Summary'!G$4)/(F20/'Charges Summary'!F$4)-1) -> -0.004091083672 | T20: =IF(G20=0,"",(H20/'Charges Summary'!H$4)/(G20/'Charges Summary'!G$4)-1) -> 0.0001702898391
D23: ='DNSP Inputs General'!$B$80 -> North & East
A24: Public Lighting Tariffs | C24: Nominal Prices | J24: Nominal Price Movement | P24: Real Price Movement (Implied X Factor)
C25: Actual
A26: ='DNSP Inputs General'!A$82 -> Existing Lights | C26: ='DNSP Inputs General'!J$2 -> 2015 | D26: ='DNSP Inputs General'!K$2 -> 2016 | E26: ='DNSP Inputs General'!L$2 -> 2017 | F26: ='DNSP Inputs General'!M$2 -> 2018 | G26: ='DNSP Inputs General'!N$2 -> 2019 | H26: ='DNSP Inputs General'!O$2 -> 2020 | J26: =D26 -> 2016 | K26: =E26 -> 2017 | L26: 2018 | M26: 2019 | N26: 2020 | P26: =J26 -> 2016 | Q26: =K26 -> 2017 | R26: 2018 | S26: 2019 | T26: 2020
A27: ='DNSP Inputs General'!A83 -> Mercury Vapour 80W | C27: ='DNSP Inputs General'!E83 -> 55.38 | D27: ='Charges Summary'!K$31 -> 49.43197122 | E27: ='Charges Summary'!L$31 -> 53.06893658 | F27: ='Charges Summary'!M$31 -> 56.71824118 | G27: ='Charges Summary'!N$31 -> 60.35294247 | H27: ='Charges Summary'!O$31 -> 63.94055286 | J27: =IF(C27=0,"",D27/C27-1) -> -0.1074039145 | K27: =IF(D27=0,"",E27/D27-1) -> 0.07357516342 | L27: =IF(E27=0,"",F27/E27-1) -> 0.06876536132 | M27: =IF(F27=0,"",G27/F27-1) -> 0.06408346274 | N27: =IF(G27=0,"",H27/G27-1) -> 0.05944383563 | P27: =IF(C27=0,"",(D27/'Charges Summary'!K$4)/C27-1) -> -0.1293784036 | Q27: =IF(D27=0,"",(E27/'Charges Summary'!L$4)/(D27/'Charges Summary'!K$4)-1) -> 0.04714521812 | R27: =IF(E27=0,"",(F27/'Charges Summary'!M$4)/(E27/'Charges Summary'!L$4)-1) -> 0.04245382673 | S27: =IF(F27=0,"",(G27/'Charges Summary'!N$4)/(F27/'Charges Summary'!M$4)-1) -> 0.03788719006 | T27: =IF(G27=0,"",(H27/'Charges Summary'!O$4)/(G27/'Charges Summary'!N$4)-1) -> 0.0333617842
A28: ='DNSP Inputs General'!A84 -> HP Sodium 150W | C28: ='DNSP Inputs General'!E84 -> 118.51 | D28: ='Charges Summary'!K$55 -> 113.9298618 | E28: ='Charges Summary'!L$55 -> 119.3855396 | F28: ='Charges Summary'!M$55 -> 124.8879837 | G28: ='Charges Summary'!N$55 -> 130.4083045 | H28: ='Charges Summary'!O$55 -> 135.9118418 | J28: -0.0386476938 | K28: 0.04788628478 | L28: 0.0460897029 | M28: 0.04420217773 | N28: 0.04220235299 | P28: =IF(C28=0,"",(D28/'Charges Summary'!K$4)/C28-1) -> -0.06231486656 | Q28: =IF(D28=0,"",(E28/'Charges Summary'!L$4)/(D28/'Charges Summary'!K$4)-1) -> 0.02208876437 | R28: =IF(E28=0,"",(F28/'Charges Summary'!M$4)/(E28/'Charges Summary'!L$4)-1) -> 0.02033641186 | S28: =IF(F28=0,"",(G28/'Charges Summary'!N$4)/(F28/'Charges Summary'!M$4)-1) -> 0.01849535497 | T28: =IF(G28=0,"",(H28/'Charges Summary'!O$4)/(G28/'Charges Summary'!N$4)-1) -> 0.01654476317
A29: ='DNSP Inputs General'!A85 -> HP Sodium 250W | C29: ='DNSP Inputs General'!E85 -> 117.57 | D29: ='Charges Summary'!K$71 -> 112.693964 | E29: ='Charges Summary'!L$71 -> 118.1273844 | F29: ='Charges Summary'!M$71 -> 123.6064537 | G29: ='Charges Summary'!N$71 -> 129.1021229 | H29: ='Charges Summary'!O$71 -> 134.5795508 | J29: -0.04147347143 | K29: 0.04821394368 | L29: 0.04638271882 | M29: 0.0444610218 | N29: 0.04242709441 | P29: =IF(C29=0,"",(D29/'Charges Summary'!K$4)/C29-1) -> -0.06507107743 | Q29: =IF(D29=0,"",(E29/'Charges Summary'!L$4)/(D29/'Charges Summary'!K$4)-1) -> 0.02240835675 | R29: =IF(E29=0,"",(F29/'Charges Summary'!M$4)/(E29/'Charges Summary'!L$4)-1) -> 0.02062221414 | S29: =IF(F29=0,"",(G29/'Charges Summary'!N$4)/(F29/'Charges Summary'!M$4)-1) -> 0.01874782666 | T29: =IF(G29=0,"",(H29/'Charges Summary'!O$4)/(G29/'Charges Summary'!N$4)-1) -> 0.01676397176
A30: ='DNSP Inputs General'!A86 -> Mercury Vapour 50W | C30: ='DNSP Inputs General'!E86 -> 81.97 | D30: =IF('DNSP Inputs General'!$B86='DNSP Inputs General'!$A$83,D$27,IF('DNSP Inputs General'!$B86='DNSP Inputs General'!$A$84,D$28,D$29))*'DNSP Inputs General'!$D86 -> 73.1593174 | E30: =IF('DNSP Inputs General'!$B86='DNSP Inputs General'!$A$83,E$27,IF('DNSP Inputs General'!$B86='DNSP Inputs General'!$A$84,E$28,E$29))*'DNSP Inputs General'!$D86 -> 78.54202613 | F30: =IF('DNSP Inputs General'!$B86='DNSP Inputs General'!$A$83,F$27,IF('DNSP Inputs General'!$B86='DNSP Inputs General'!$A$84,F$28,F$29))*'DNSP Inputs General'!$D86 -> 83.94299694 | G30: =IF('DNSP Inputs General'!$B86='DNSP Inputs General'!$A$83,G$27,IF('DNSP Inputs General'!$B86='DNSP Inputs General'!$A$84,G$28,G$29))*'DNSP Inputs General'!$D86 -> 89.32235486 | H30: =IF('DNSP Inputs General'!$B86='DNSP Inputs General'!$A$83,H$27,IF('DNSP Inputs General'!$B86='DNSP Inputs General'!$A$84,H$28,H$29))*'DNSP Inputs General'!$D86 -> 94.63201824 | J30: -0.1074866732 | K30: 0.07357516342 | L30: 0.06876536132 | M30: 0.06408346274 | N30: 0.05944383563 | P30: =IF(C30=0,"",(D30/'Charges Summary'!K$4)/C30-1) -> -0.1294591249 | Q30: =IF(D30=0,"",(E30/'Charges Summary'!L$4)/(D30/'Charges Summary'!K$4)-1) -> 0.04714521812 | R30: =IF(E30=0,"",(F30/'Charges Summary'!M$4)/(E30/'Charges Summary'!L$4)-1) -> 0.04245382673 | S30: =IF(F30=0,"",(G30/'Charges Summary'!N$4)/(F30/'Charges Summary'!M$4)-1) -> 0.03788719006 | T30: =IF(G30=0,"",(H30/'Charges Summary'!O$4)/(G30/'Charges Summary'!N$4)-1) -> 0.0333617842
A31: ='DNSP Inputs General'!A87 -> Mercury Vapour 125W | C31: ='DNSP Inputs General'!E87 -> 81.97 | D31: =IF('DNSP Inputs General'!$B87='DNSP Inputs General'!$A$83,D$27,IF('DNSP Inputs General'!$B87='DNSP Inputs General'!$A$84,D$28,D$29))*'DNSP Inputs General'!$D87 -> 73.1593174 | E31: =IF('DNSP Inputs General'!$B87='DNSP Inputs General'!$A$83,E$27,IF('DNSP Inputs General'!$B87='DNSP Inputs General'!$A$84,E$28,E$29))*'DNSP Inputs General'!$D87 -> 78.54202613 | F31: =IF('DNSP Inputs General'!$B87='DNSP Inputs General'!$A$83,F$27,IF('DNSP Inputs General'!$B87='DNSP Inputs General'!$A$84,F$28,F$29))*'DNSP Inputs General'!$D87 -> 83.94299694 | G31: =IF('DNSP Inputs General'!$B87='DNSP Inputs General'!$A$83,G$27,IF('DNSP Inputs General'!$B87='DNSP Inputs General'!$A$84,G$28,G$29))*'DNSP Inputs General'!$D87 -> 89.32235486 | H31: =IF('DNSP Inputs General'!$B87='DNSP Inputs General'!$A$83,H$27,IF('DNSP Inputs General'!$B87='DNSP Inputs General'!$A$84,H$28,H$29))*'DNSP Inputs General'!$D87 -> 94.63201824 | J31: -0.1074866732 | K31: 0.07357516342 | L31: 0.06876536132 | M31: 0.06408346274 | N31: 0.05944383563 | P31: =IF(C31=0,"",(D31/'Charges Summary'!K$4)/C31-1) -> -0.1294591249 | Q31: =IF(D31=0,"",(E31/'Charges Summary'!L$4)/(D31/'Charges Summary'!K$4)-1) -> 0.04714521812 | R31: =IF(E31=0,"",(F31/'Charges Summary'!M$4)/(E31/'Charges Summary'!L$4)-1) -> 0.04245382673 | S31: =IF(F31=0,"",(G31/'Charges Summary'!N$4)/(F31/'Charges Summary'!M$4)-1) -> 0.03788719006 | T31: =IF(G31=0,"",(H31/'Charges Summary'!O$4)/(G31/'Charges Summary'!N$4)-1) -> 0.0333617842
A32: ='DNSP Inputs General'!A88 -> Mercury Vapour 250W | C32: ='DNSP Inputs General'!E88 -> 122.28 | D32: =IF('DNSP Inputs General'!$B88='DNSP Inputs General'!$A$83,D$27,IF('DNSP Inputs General'!$B88='DNSP Inputs General'!$A$84,D$28,D$29))*'DNSP Inputs General'!$D88 -> 117.2017225 | E32: =IF('DNSP Inputs General'!$B88='DNSP Inputs General'!$A$83,E$27,IF('DNSP Inputs General'!$B88='DNSP Inputs General'!$A$84,E$28,E$29))*'DNSP Inputs General'!$D88 -> 122.8524798 | F32: =IF('DNSP Inputs General'!$B88='DNSP Inputs General'!$A$83,F$27,IF('DNSP Inputs General'!$B88='DNSP Inputs General'!$A$84,F$28,F$29))*'DNSP Inputs General'!$D88 -> 128.5507118 | G32: =IF('DNSP Inputs General'!$B88='DNSP Inputs General'!$A$83,G$27,IF('DNSP Inputs General'!$B88='DNSP Inputs General'!$A$84,G$28,G$29))*'DNSP Inputs General'!$D88 -> 134.2662078 | H32: =IF('DNSP Inputs General'!$B88='DNSP Inputs General'!$A$83,H$27,IF('DNSP Inputs General'!$B88='DNSP Inputs General'!$A$84,H$28,H$29))*'DNSP Inputs General'!$D88 -> 139.9627329 | J32: -0.04152991067 | K32: 0.04821394368 | L32: 0.04638271882 | M32: 0.0444610218 | N32: 0.04242709441 | P32: =IF(C32=0,"",(D32/'Charges Summary'!K$4)/C32-1) -> -0.06512612722 | Q32: =IF(D32=0,"",(E32/'Charges Summary'!L$4)/(D32/'Charges Summary'!K$4)-1) -> 0.02240835675 | R32: =IF(E32=0,"",(F32/'Charges Summary'!M$4)/(E32/'Charges Summary'!L$4)-1) -> 0.02062221414 | S32: =IF(F32=0,"",(G32/'Charges Summary'!N$4)/(F32/'Charges Summary'!M$4)-1) -> 0.01874782666 | T32: =IF(G32=0,"",(H32/'Charges Summary'!O$4)/(G32/'Charges Summary'!N$4)-1) -> 0.01676397176
A33: ='DNSP Inputs General'!A89 -> Mercury Vapour 400W | C33: ='DNSP Inputs General'!E89 -> 125.8 | D33: =IF('DNSP Inputs General'!$B89='DNSP Inputs General'!$A$83,D$27,IF('DNSP Inputs General'!$B89='DNSP Inputs General'!$A$84,D$28,D$29))*'DNSP Inputs General'!$D89 -> 120.5825414 | E33: =IF('DNSP Inputs General'!$B89='DNSP Inputs General'!$A$83,E$27,IF('DNSP Inputs General'!$B89='DNSP Inputs General'!$A$84,E$28,E$29))*'DNSP Inputs General'!$D89 -> 126.3963013 | F33: =IF('DNSP Inputs General'!$B89='DNSP Inputs General'!$A$83,F$27,IF('DNSP Inputs General'!$B89='DNSP Inputs General'!$A$84,F$28,F$29))*'DNSP Inputs General'!$D89 -> 132.2589054 | G33: =IF('DNSP Inputs General'!$B89='DNSP Inputs General'!$A$83,G$27,IF('DNSP Inputs General'!$B89='DNSP Inputs General'!$A$84,G$28,G$29))*'DNSP Inputs General'!$D89 -> 138.1392715 | H33: =IF('DNSP Inputs General'!$B89='DNSP Inputs General'!$A$83,H$27,IF('DNSP Inputs General'!$B89='DNSP Inputs General'!$A$84,H$28,H$29))*'DNSP Inputs General'!$D89 -> 144.0001194 | J33: -0.04147423337 | K33: 0.04821394368 | L33: 0.04638271882 | M33: 0.0444610218 | N33: 0.04242709441 | P33: =IF(C33=0,"",(D33/'Charges Summary'!K$4)/C33-1) -> -0.06507182062 | Q33: =IF(D33=0,"",(E33/'Charges Summary'!L$4)/(D33/'Charges Summary'!K$4)-1) -> 0.02240835675 | R33: =IF(E33=0,"",(F33/'Charges Summary'!M$4)/(E33/'Charges Summary'!L$4)-1) -> 0.02062221414 | S33: =IF(F33=0,"",(G33/'Charges Summary'!N$4)/(F33/'Charges Summary'!M$4)-1) -> 0.01874782666 | T33: =IF(G33=0,"",(H33/'Charges Summary'!O$4)/(G33/'Charges Summary'!N$4)-1) -> 0.01676397176
A34: ='DNSP Inputs General'!A90 -> HP Sodium 100W | C34: ='DNSP Inputs General'!E90 -> 126.8 | D34: =IF('DNSP Inputs General'!$B90='DNSP Inputs General'!$A$83,D$27,IF('DNSP Inputs General'!$B90='DNSP Inputs General'!$A$84,D$28,D$29))*'DNSP Inputs General'!$D90 -> 121.9049521 | E34: =IF('DNSP Inputs General'!$B90='DNSP Inputs General'!$A$83,E$27,IF('DNSP Inputs General'!$B90='DNSP Inputs General'!$A$84,E$28,E$29))*'DNSP Inputs General'!$D90 -> 127.7425274 | F34: =IF('DNSP Inputs General'!$B90='DNSP Inputs General'!$A$83,F$27,IF('DNSP Inputs General'!$B90='DNSP Inputs General'!$A$84,F$28,F$29))*'DNSP Inputs General'!$D90 -> 133.6301425 | G34: =IF('DNSP Inputs General'!$B90='DNSP Inputs General'!$A$83,G$27,IF('DNSP Inputs General'!$B90='DNSP Inputs General'!$A$84,G$28,G$29))*'DNSP Inputs General'!$D90 -> 139.5368858 | H34: =IF('DNSP Inputs General'!$B90='DNSP Inputs General'!$A$83,H$27,IF('DNSP Inputs General'!$B90='DNSP Inputs General'!$A$84,H$28,H$29))*'DNSP Inputs General'!$D90 -> 145.4256707 | J34: -0.03860447843 | K34: 0.04788628478 | L34: 0.0460897029 | M34: 0.04420217773 | N34: 0.04220235299 | P34: =IF(C34=0,"",(D34/'Charges Summary'!K$4)/C34-1) -> -0.0622727151 | Q34: =IF(D34=0,"",(E34/'Charges Summary'!L$4)/(D34/'Charges Summary'!K$4)-1) -> 0.02208876437 | R34: =IF(E34=0,"",(F34/'Charges Summary'!M$4)/(E34/'Charges Summary'!L$4)-1) -> 0.02033641186 | S34: =IF(F34=0,"",(G34/'Charges Summary'!N$4)/(F34/'Charges Summary'!M$4)-1) -> 0.01849535497 | T34: =IF(G34=0,"",(H34/'Charges Summary'!O$4)/(G34/'Charges Summary'!N$4)-1) -> 0.01654476317
A35: ='DNSP Inputs General'!A91 -> HP Sodium 400W | C35: ='DNSP Inputs General'!E91 -> 166.96 | D35: =IF('DNSP Inputs General'!$B91='DNSP Inputs General'!$A$83,D$27,IF('DNSP Inputs General'!$B91='DNSP Inputs General'!$A$84,D$28,D$29))*'DNSP Inputs General'!$D91 -> 160.0254288 | E35: =IF('DNSP Inputs General'!$B91='DNSP Inputs General'!$A$83,E$27,IF('DNSP Inputs General'!$B91='DNSP Inputs General'!$A$84,E$28,E$29))*'DNSP Inputs General'!$D91 -> 167.7408858 | F35: =IF('DNSP Inputs General'!$B91='DNSP Inputs General'!$A$83,F$27,IF('DNSP Inputs General'!$B91='DNSP Inputs General'!$A$84,F$28,F$29))*'DNSP Inputs General'!$D91 -> 175.5211642 | G35: =IF('DNSP Inputs General'!$B91='DNSP Inputs General'!$A$83,G$27,IF('DNSP Inputs General'!$B91='DNSP Inputs General'!$A$84,G$28,G$29))*'DNSP Inputs General'!$D91 -> 183.3250145 | H35: =IF('DNSP Inputs General'!$B91='DNSP Inputs General'!$A$83,H$27,IF('DNSP Inputs General'!$B91='DNSP Inputs General'!$A$84,H$28,H$29))*'DNSP Inputs General'!$D91 -> 191.1029622 | J35: -0.04153432661 | K35: 0.04821394368 | L35: 0.04638271882 | M35: 0.0444610218 | N35: 0.04242709441 | P35: =IF(C35=0,"",(D35/'Charges Summary'!K$4)/C35-1) -> -0.06513043444 | Q35: =IF(D35=0,"",(E35/'Charges Summary'!L$4)/(D35/'Charges Summary'!K$4)-1) -> 0.02240835675 | R35: =IF(E35=0,"",(F35/'Charges Summary'!M$4)/(E35/'Charges Summary'!L$4)-1) -> 0.02062221414 | S35: =IF(F35=0,"",(G35/'Charges Summary'!N$4)/(F35/'Charges Summary'!M$4)-1) -> 0.01874782666 | T35: =IF(G35=0,"",(H35/'Charges Summary'!O$4)/(G35/'Charges Summary'!N$4)-1) -> 0.01676397176
A38: ='DNSP Inputs General'!A$109 -> Energy Efficient Lights
A39: ='DNSP Inputs General'!A110 -> T5 2X14W | C39: ='DNSP Inputs General'!E110 -> 45.39 | D39: ='Charges Summary'!K$89 -> 54.53388625 | E39: ='Charges Summary'!L$89 -> 54.91339665 | F39: ='Charges Summary'!M$89 -> 55.9867502 | G39: ='Charges Summary'!N$89 -> 57.46757272 | H39: ='Charges Summary'!O$89 -> 59.20082833 | J39: =IF(C39=0,"",D39/C39-1) -> 0.2014515587 | K39: 0.006959166636 | L39: 0.01954629687 | M39: 0.02644951717 | N39: 0.03016058509 | P39: =IF(C39=0,"",(D39/'Charges Summary'!K$4)/C39-1) -> 0.1718734723 | Q39: =IF(D39=0,"",(E39/'Charges Summary'!L$4)/(D39/'Charges Summary'!K$4)-1) -> -0.01783078437 | R39: =IF(E39=0,"",(F39/'Charges Summary'!M$4)/(E39/'Charges Summary'!L$4)-1) -> -0.005553531983 | S39: =IF(F39=0,"",(G39/'Charges Summary'!N$4)/(F39/'Charges Summary'!M$4)-1) -> 0.00117974052 | T39: =IF(G39=0,"",(H39/'Charges Summary'!O$4)/(G39/'Charges Summary'!N$4)-1) -> 0.004799447046
A40: ='DNSP Inputs General'!A111 -> T5 2X24W | C40: ='DNSP Inputs General'!E111 -> 50.68 | D40: ='Charges Summary'!K$105 -> 59.24942548 | E40: ='Charges Summary'!L$105 -> 59.49701307 | F40: ='Charges Summary'!M$105 -> 60.5111642 | G40: ='Charges Summary'!N$105 -> 61.97551158 | H40: ='Charges Summary'!O$105 -> 63.71978009 | J40: 0.1690889005 | K40: 0.004178734002 | L40: 0.01704541248 | M40: 0.0241996233 | N40: 0.02814447955 | P40: =IF(C40=0,"",(D40/'Charges Summary'!K$4)/C40-1) -> 0.1403075383 | Q40: =IF(D40=0,"",(E40/'Charges Summary'!L$4)/(D40/'Charges Summary'!K$4)-1) -> -0.02054276657 | R40: =IF(E40=0,"",(F40/'Charges Summary'!M$4)/(E40/'Charges Summary'!L$4)-1) -> -0.007992848038 | S40: =IF(F40=0,"",(G40/'Charges Summary'!N$4)/(F40/'Charges Summary'!M$4)-1) -> -0.001014764051 | T40: =IF(G40=0,"",(H40/'Charges Summary'!O$4)/(G40/'Charges Summary'!N$4)-1) -> 0.002832975252

Sheet Cashflow Summary
A1: ='DNSP Inputs O & M'!$A$3 -> AusNet | E1: Check | F1: =SUM(C21,C27,C50,C176,C301) -> 2.118758857e-08
C2: ='DNSP Inputs General'!J$2 -> 2015 | D2: ='DNSP Inputs General'!K$2 -> 2016 | E2: ='DNSP Inputs General'!L$2 -> 2017 | F2: ='DNSP Inputs General'!M$2 -> 2018 | G2: ='DNSP Inputs General'!N$2 -> 2019 | H2: ='DNSP Inputs General'!O$2 -> 2020 | J2: =C2 -> 2015 | K2: =D2 -> 2016 | L2: 2017 | M2: 2018 | N2: 2019 | O2: 2020
A4: Public Lighting - Revenue | C4: Revenue - Nominal | J4: Revenue - Real 2015 $
C5: =C$2 -> 2015 | D5: =D$2 -> 2016 | E5: 2017 | F5: 2018 | G5: 2019 | H5: 2020 | J5: =J$2 -> 2015 | K5: 2016 | L5: 2017 | M5: 2018 | N5: 2019 | O5: 2020
A7: Total Revenue | C7: =C90+C215 -> 8434074.741 | D7: 7930959.857 | E7: 8191816.954 | F7: 8460818.27 | G7: 8736626.203 | H7: 9019812.987 | J7: =J90+J215 -> 8434074.741 | K7: 7735710.523 | L7: 7793439.27 | M7: 7851194.585 | N7: 7907543.451 | O7: 7962873.627
A10: Public Lighting - O & M | D10: Forecast O & M - Nominal | K10: Forecast O & M - Real 2015 $
D11: =D$2 -> 2016 | E11: 2017 | F11: 2018 | G11: 2019 | H11: 2020 | K11: =K$2 -> 2016 | L11: 2017 | M11: 2018 | N11: 2019 | O11: 2020
A13: Total O & M | D13: =D132+D257 -> 5104086.975 | E13: =E132+E257 -> 5186981.665 | F13: =F132+F257 -> 5286134.39 | G13: =G132+G257 -> 5399138.624 | H13: =H132+H257 -> 5525524.552 | K13: =K132+K257 -> 4978431.367 | L13: =L132+L257 -> 4934732.651 | M13: =M132+M257 -> 4905254.832 | N13: =N132+N257 -> 4886774.628 | O13: =O132+O257 -> 4878045.01
A16: Public Lighting - Capital Charge | D16: Capital Charge - Nominal | K16: Capital Charge - Real 2015 $
D17: =D$2 -> 2016 | E17: 2017 | F17: 2018 | G17: 2019 | H17: 2020 | K17: =K$2 -> 2016 | L17: 2017 | M17: 2018 | N17: 2019 | O17: 2020
A19: Total Capital Charge | D19: =D174+D299 -> 2826872.882 | E19: =E174+E299 -> 3004835.289 | F19: =F174+F299 -> 3174683.88 | G19: =G174+G299 -> 3337487.579 | H19: =H174+H299 -> 3494288.435 | K19: =K174+K299 -> 2757279.156 | L19: =L174+L299 -> 2858706.619 | M19: =M174+M299 -> 2945939.753 | N19: =N174+N299 -> 3020768.823 | O19: =O174+O299 -> 3084828.617
A21: Check | C21: =SUM(D21:O21) -> 9.313225746e-09 | D21: =ABS(D7-SUM(D13,D19)) -> 0 | E21: =ABS(E7-SUM(E13,E19)) -> 1.862645149e-09 | F21: =ABS(F7-SUM(F13,F19)) -> 0 | G21: =ABS(G7-SUM(G13,G19)) -> 1.862645149e-09 | H21: =ABS(H7-SUM(H13,H19)) -> 0 | K21: =ABS(K7-SUM(K13,K19)) -> 1.862645149e-09 | L21: =ABS(L7-SUM(L13,L19)) -> 0 | M21: =ABS(M7-SUM(M13,M19)) -> 1.862645149e-09 | N21: =ABS(N7-SUM(N13,N19)) -> 1.862645149e-09 | O21: =ABS(O7-SUM(O13,O19)) -> 0
A23: Public Lighting - Capital Expenditure | D23: Forecast Capital Expenditure - Nominal | K23: Forecast Capital Expenditure - Real 2015 $
D24: =D$2 -> 2016 | E24: 2017 | F24: 2018 | G24: 2019 | H24: 2020 | K24: =K$2 -> 2016 | L24: 2017 | M24: 2018 | N24: 2019 | O24: 2020
A26: Total Capital Expenditure | D26: =K26*'Charges Summary'!K$4 -> 2040808.634 | E26: =L26*'Charges Summary'!L$4 -> 2038731.766 | F26: =M26*'Charges Summary'!M$4 -> 2043412.145 | G26: =N26*'Charges Summary'!N$4 -> 2054757.882 | H26: =O26*'Charges Summary'!O$4 -> 2072948.053 | K26: ='DNSP Inputs General'!K14 -> 1990566.73 | L26: ='DNSP Inputs General'!L14 -> 1939585.845 | M26: ='DNSP Inputs General'!M14 -> 1896179.052 | N26: ='DNSP Inputs General'!N14 -> 1859766.786 | O26: ='DNSP Inputs General'!O14 -> 1830040.534
A27: Check | C27: =SUM(D27:H27) -> 6.98491931e-10 | D27: =ABS(D26-D34) -> 2.328306437e-10 | E27: =ABS(E26-E34) -> 2.328306437e-10 | F27: =ABS(F26-F34) -> 0 | G27: =ABS(G26-G34) -> 0 | H27: =ABS(H26-H34) -> 2.328306437e-10
A30: Public Lighting - RAB | D30: RAB - Historical Cost ($)
D31: =D$2 -> 2016 | E31: 2017 | F31: 2018 | G31: 2019 | H31: 2020
A33: Opening RAB | D33: ='Total RAB'!N139 -> 17040447.19 | E33: =D36 -> 18084080.72 | F33: =E36 -> 19052485.55 | G33: 19953081.68 | H33: 20792880.03
A34: Capex | D34: ='Total RAB'!N140 -> 2040808.634 | E34: ='Total RAB'!O140 -> 2038731.766 | F34: ='Total RAB'!P140 -> 2043412.145 | G34: ='Total RAB'!Q140 -> 2054757.882 | H34: ='Total RAB'!R140 -> 2072948.053
A35: Depreciation | D35: ='Total RAB'!N141 -> 997175.1066 | E35: ='Total RAB'!O141 -> 1070326.935 | F35: ='Total RAB'!P141 -> 1142816.013 | G35: ='Total RAB'!Q141 -> 1214959.536 | H35: ='Total RAB'!R141 -> 1287076.414
A36: Closing RAB | D36: =D33+D34-D35 -> 18084080.72 | E36: =E33+E34-E35 -> 19052485.55 | F36: =F33+F34-F35 -> 19953081.68 | G36: =G33+G34-G35 -> 20792880.03 | H36: =H33+H34-H35 -> 21578751.67
A38: Average RAB | D38: =SUM(D33,D36)/2 -> 17562263.95 | E38: =SUM(E33,E36)/2 -> 18568283.13 | F38: =SUM(F33,F36)/2 -> 19502783.61 | G38: =SUM(G33,G36)/2 -> 20372980.85 | H38: =SUM(H33,H36)/2 -> 21185815.85
A40: =WACC!A$8 -> Nominal Pre Tax WACC | D40: =WACC!E$8 -> 0.10418348 | E40: =WACC!F$8 -> 0.10418348 | F40: =WACC!G$8 -> 0.10418348 | G40: =WACC!H$8 -> 0.10418348 | H40: =WACC!I$8 -> 0.10418348
A42: Capital Charge | D42: Capital Charge - Nominal
D43: =D$2 -> 2016 | E43: 2017 | F43: 2018 | G43: 2019 | H43: 2020
A45: Depreciation | D45: =D35 -> 997175.1066 | E45: =E35 -> 1070326.935 | F45: =F35 -> 1142816.013 | G45: =G35 -> 1214959.536 | H45: =H35 -> 1287076.414
A46: Return | D46: =D40*D38 -> 1829697.775 | E46: =E40*E38 -> 1934508.354 | F46: =F40*F38 -> 2031867.867 | G46: =G40*G38 -> 2122528.043 | H46: =H40*H38 -> 2207212.021
D48: =SUM(D45:D47) -> 2826872.882 | E48: =SUM(E45:E47) -> 3004835.289 | F48: =SUM(F45:F47) -> 3174683.88 | G48: =SUM(G45:G47) -> 3337487.579 | H48: =SUM(H45:H47) -> 3494288.435
A50: Check | C50: =SUM(D50:H50) -> 2.793967724e-09 | D50: =ABS(D19-D48)*IF('DNSP Inputs General'!K77=0,0,1)*IF('DNSP Inputs General'!K119=0,0,1) -> 0 | E50: =ABS(E19-E48)*IF('DNSP Inputs General'!L77=0,0,1)*IF('DNSP Inputs General'!L119=0,0,1) -> 4.656612873e-10 | F50: =ABS(F19-F48)*IF('DNSP Inputs General'!M77=0,0,1)*IF('DNSP Inputs General'!M119=0,0,1) -> 0 | G50: =ABS(G19-G48)*IF('DNSP Inputs General'!N77=0,0,1)*IF('DNSP Inputs General'!N119=0,0,1) -> 9.313225746e-10 | H50: =ABS(H19-H48)*IF('DNSP Inputs General'!O77=0,0,1)*IF('DNSP Inputs General'!O119=0,0,1) -> 1.396983862e-09
A56: ='DNSP Inputs General'!$B$39 -> Central
A57: Public Lighting - Revenue | C57: Revenue - Nominal | J57: Revenue - Real 2015 $
C58: =C$2 -> 2015 | D58: =D$2 -> 2016 | E58: 2017 | F58: 2018 | G58: 2019 | H58: 2020 | J58: =J$2 -> 2015 | K58: 2016 | L58: 2017 | M58: 2018 | N58: 2019 | O58: 2020
A59: ='DNSP Inputs General'!A$41 -> Existing Lights
A60: ='DNSP Inputs General'!A$42 -> Mercury Vapour 80W | C60: =IF('PL Tariffs'!C7=0,"",'DNSP Inputs General'!J42*'PL Tariffs'!C7) -> 2357181.032 | D60: ='DNSP Inputs General'!K42*'PL Tariffs'!D7 -> 1852633.453 | E60: ='DNSP Inputs General'!L42*'PL Tariffs'!E7 -> 1718498.407 | F60: ='DNSP Inputs General'!M42*'PL Tariffs'!F7 -> 1585736.46 | G60: ='DNSP Inputs General'!N42*'PL Tariffs'!G7 -> 1455501.464 | H60: ='DNSP Inputs General'!O42*'PL Tariffs'!H7 -> 1329177.07 | J60: =C60 -> 2357181.032 | K60: =D60/'Charges Summary'!D$4 -> 1807024.163 | L60: =E60/'Charges Summary'!E$4 -> 1634925.81 | M60: =F60/'Charges Summary'!F$4 -> 1471480.075 | N60: =G60/'Charges Summary'!G$4 -> 1317378.219 | O60: =H60/'Charges Summary'!H$4 -> 1173424.444
A61: ='DNSP Inputs General'!A$43 -> HP Sodium 150W | C61: =IF('PL Tariffs'!C8=0,"",'DNSP Inputs General'!J43*'PL Tariffs'!C8) -> 1503944.395 | D61: ='DNSP Inputs General'!K43*'PL Tariffs'!D8 -> 1465150.241 | E61: ='DNSP Inputs General'!L43*'PL Tariffs'!E8 -> 1560538.579 | F61: ='DNSP Inputs General'!M43*'PL Tariffs'!F8 -> 1658366.591 | G61: ='DNSP Inputs General'!N43*'PL Tariffs'!G8 -> 1757784.231 | H61: ='DNSP Inputs General'!O43*'PL Tariffs'!H8 -> 1858403.784 | J61: 1503944.395 | K61: =D61/'Charges Summary'!D$4 -> 1429080.255 | L61: =E61/'Charges Summary'!E$4 -> 1484647.755 | M61: =F61/'Charges Summary'!F$4 -> 1538877.019 | N61: =G61/'Charges Summary'!G$4 -> 1590975.15 | O61: =H61/'Charges Summary'!H$4 -> 1640636.508
A62: ='DNSP Inputs General'!A$44 -> HP Sodium 250W | C62: =IF('PL Tariffs'!C9=0,"",'DNSP Inputs General'!J44*'PL Tariffs'!C9) -> 685809.6952 | D62: ='DNSP Inputs General'!K44*'PL Tariffs'!D9 -> 666220.2031 | E62: ='DNSP Inputs General'!L44*'PL Tariffs'!E9 -> 709602.4959 | F62: ='DNSP Inputs General'!M44*'PL Tariffs'!F9 -> 754091.297 | G62: ='DNSP Inputs General'!N44*'PL Tariffs'!G9 -> 799299.1223 | H62: ='DNSP Inputs General'!O44*'PL Tariffs'!H9 -> 845048.7635 | J62: 685809.6952 | K62: =D62/'Charges Summary'!D$4 -> 649818.7771 | L62: =E62/'Charges Summary'!E$4 -> 675093.6927 | M62: =F62/'Charges Summary'!F$4 -> 699757.0824 | N62: =G62/'Charges Summary'!G$4 -> 723447.7467 | O62: =H62/'Charges Summary'!H$4 -> 746026.1673
A63: ='DNSP Inputs General'!A$45 -> Mercury Vapour 50W | C63: =IF('PL Tariffs'!C10=0,"",'DNSP Inputs General'!J45*'PL Tariffs'!C10) -> 20175.28629 | D63: ='DNSP Inputs General'!K45*'PL Tariffs'!D10 -> 18652.00801 | E63: ='DNSP Inputs General'!L45*'PL Tariffs'!E10 -> 20354.7747 | F63: ='DNSP Inputs General'!M45*'PL Tariffs'!F10 -> 22096.79323 | G63: ='DNSP Inputs General'!N45*'PL Tariffs'!G10 -> 23861.18242 | H63: ='DNSP Inputs General'!O45*'PL Tariffs'!H10 -> 25635.58481 | J63: 20175.28629 | K63: =D63/'Charges Summary'!D$4 -> 18192.82121 | L63: =E63/'Charges Summary'!E$4 -> 19364.89809 | M63: =F63/'Charges Summary'!F$4 -> 20504.66253 | N63: =G63/'Charges Summary'!G$4 -> 21596.81923 | O63: =H63/'Charges Summary'!H$4 -> 22631.61359
A64: ='DNSP Inputs General'!A$46 -> Mercury Vapour 125W | C64: =IF('PL Tariffs'!C11=0,"",'DNSP Inputs General'!J46*'PL Tariffs'!C11) -> 57657.63052 | D64: ='DNSP Inputs General'!K46*'PL Tariffs'!D11 -> 53307.29947 | E64: ='DNSP Inputs General'!L46*'PL Tariffs'!E11 -> 58173.79394 | F64: ='DNSP Inputs General'!M46*'PL Tariffs'!F11 -> 63152.46987 | G64: ='DNSP Inputs General'!N46*'PL Tariffs'!G11 -> 68195.08099 | H64: ='DNSP Inputs General'!O46*'PL Tariffs'!H11 -> 73266.30975 | J64: 57657.63052 | K64: =D64/'Charges Summary'!D$4 -> 51994.94701 | L64: =E64/'Charges Summary'!E$4 -> 55344.73398 | M64: =F64/'Charges Summary'!F$4 -> 58602.17222 | N64: =G64/'Charges Summary'!G$4 -> 61723.54791 | O64: =H64/'Charges Summary'!H$4 -> 64680.98246
A65: ='DNSP Inputs General'!A$47 -> Mercury Vapour 250W | C65: =IF('PL Tariffs'!C12=0,"",'DNSP Inputs General'!J47*'PL Tariffs'!C12) -> 89428.13104 | D65: ='DNSP Inputs General'!K47*'PL Tariffs'!D12 -> 86873.70278 | E65: ='DNSP Inputs General'!L47*'PL Tariffs'!E12 -> 92530.66184 | F65: ='DNSP Inputs General'!M47*'PL Tariffs'!F12 -> 98331.90724 | G65: ='DNSP Inputs General'!N47*'PL Tariffs'!G12 -> 104226.9119 | H65: ='DNSP Inputs General'!O47*'PL Tariffs'!H12 -> 110192.5681 | J65: 89428.13104 | K65: =D65/'Charges Summary'!D$4 -> 84734.9916 | L65: =E65/'Charges Summary'!E$4 -> 88030.78703 | M65: =F65/'Charges Summary'!F$4 -> 91246.84078 | N65: =G65/'Charges Summary'!G$4 -> 94336.05321 | O65: =H65/'Charges Summary'!H$4 -> 97280.23141
A66: ='DNSP Inputs General'!A$48 -> Mercury Vapour 400W | C66: =IF('PL Tariffs'!C13=0,"",'DNSP Inputs General'!J48*'PL Tariffs'!C13) -> 17346.03469 | D66: ='DNSP Inputs General'!K48*'PL Tariffs'!D13 -> 16851.43375 | E66: ='DNSP Inputs General'!L48*'PL Tariffs'!E13 -> 17948.74937 | F66: ='DNSP Inputs General'!M48*'PL Tariffs'!F13 -> 19074.05311 | G66: ='DNSP Inputs General'!N48*'PL Tariffs'!G13 -> 20217.54391 | H66: ='DNSP Inputs General'!O48*'PL Tariffs'!H13 -> 21374.73945 | J66: 17346.03469 | K66: =D66/'Charges Summary'!D$4 -> 16436.57461 | L66: =E66/'Charges Summary'!E$4 -> 17075.8806 | M66: =F66/'Charges Summary'!F$4 -> 17699.71859 | N66: =G66/'Charges Summary'!G$4 -> 18298.95239 | O66: =H66/'Charges Summary'!H$4 -> 18870.05299
A67: ='DNSP Inputs General'!A$49 -> HP Sodium 100W | C67: =IF('PL Tariffs'!C14=0,"",'DNSP Inputs General'!J49*'PL Tariffs'!C14) -> 310395.8942 | D67: ='DNSP Inputs General'!K49*'PL Tariffs'!D14 -> 302409.9552 | E67: ='DNSP Inputs General'!L49*'PL Tariffs'!E14 -> 322098.3001 | F67: ='DNSP Inputs General'!M49*'PL Tariffs'!F14 -> 342290.1984 | G67: ='DNSP Inputs General'!N49*'PL Tariffs'!G14 -> 362810.199 | H67: ='DNSP Inputs General'!O49*'PL Tariffs'!H14 -> 383578.2771 | J67: 310395.8942 | K67: =D67/'Charges Summary'!D$4 -> 294965.0376 | L67: =E67/'Charges Summary'!E$4 -> 306434.2813 | M67: =F67/'Charges Summary'!F$4 -> 317627.3106 | N67: =G67/'Charges Summary'!G$4 -> 328380.4694 | O67: =H67/'Charges Summary'!H$4 -> 338630.6735
A68: ='DNSP Inputs General'!A$50 -> HP Sodium 400W | C68: =IF('PL Tariffs'!C15=0,"",'DNSP Inputs General'!J50*'PL Tariffs'!C15) -> 40930.22663 | D68: ='DNSP Inputs General'!K50*'PL Tariffs'!D15 -> 39763.19964 | E68: ='DNSP Inputs General'!L50*'PL Tariffs'!E15 -> 42352.46181 | F68: ='DNSP Inputs General'!M50*'PL Tariffs'!F15 -> 45007.76568 | G68: ='DNSP Inputs General'!N50*'PL Tariffs'!G15 -> 47705.98434 | H68: ='DNSP Inputs General'!O50*'PL Tariffs'!H15 -> 50436.54115 | J68: 40930.22663 | K68: =D68/'Charges Summary'!D$4 -> 38784.2843 | L68: =E68/'Charges Summary'!E$4 -> 40292.81183 | M68: =F68/'Charges Summary'!F$4 -> 41764.84057 | N68: =G68/'Charges Summary'!G$4 -> 43178.81242 | O68: =H68/'Charges Summary'!H$4 -> 44526.40026
A84: ='DNSP Inputs General'!A$68 -> Energy Efficient Lights
A85: ='DNSP Inputs General'!A$69 -> T5 2X14W | C85: =IF('PL Tariffs'!C19=0,"",'DNSP Inputs General'!J69*'PL Tariffs'!C19) -> 450843.5094 | D85: ='DNSP Inputs General'!K69*'PL Tariffs'!D19 -> 702928.8549 | E85: ='DNSP Inputs General'!L69*'PL Tariffs'!E19 -> 825674.6364 | F85: ='DNSP Inputs General'!M69*'PL Tariffs'!F19 -> 948208.4405 | G85: ='DNSP Inputs General'!N69*'PL Tariffs'!G19 -> 1069951.161 | H85: ='DNSP Inputs General'!O69*'PL Tariffs'!H19 -> 1190581.089 | J85: =C85 -> 450843.5094 | K85: =D85/'Charges Summary'!D$4 -> 685623.7124 | L85: =E85/'Charges Summary'!E$4 -> 785521.1086 | M85: =F85/'Charges Summary'!F$4 -> 879887.5872 | N85: =G85/'Charges Summary'!G$4 -> 968415.6213 | O85: =H85/'Charges Summary'!H$4 -> 1051069.104
A86: ='DNSP Inputs General'!A$70 -> T5 2X24W | C86: =IF('PL Tariffs'!C20=0,"",'DNSP Inputs General'!J70*'PL Tariffs'!C20) -> 41059.32896 | D86: ='DNSP Inputs General'!K70*'PL Tariffs'!D20 -> 68442.6831 | E86: ='DNSP Inputs General'!L70*'PL Tariffs'!E20 -> 84826.24231 | F86: ='DNSP Inputs General'!M70*'PL Tariffs'!F20 -> 100698.779 | G86: ='DNSP Inputs General'!N70*'PL Tariffs'!G20 -> 116162.2354 | H86: ='DNSP Inputs General'!O70*'PL Tariffs'!H20 -> 131268.4108 | J86: =C86 -> 41059.32896 | K86: =D86/'Charges Summary'!D$4 -> 66757.71829 | L86: =E86/'Charges Summary'!E$4 -> 80701.04248 | M86: =F86/'Charges Summary'!F$4 -> 93443.1734 | N86: =G86/'Charges Summary'!G$4 -> 105138.746 | O86: =H86/'Charges Summary'!H$4 -> 115886.4122
A90: Total Revenue | C90: =IF(SUM(C60:C89)=0,0,SUM(C60:C89)) -> 5574771.163 | D90: =SUM(D60:D89) -> 5273233.034 | E90: =SUM(E60:E89) -> 5452599.103 | F90: =SUM(F60:F89) -> 5637054.755 | G90: =SUM(G60:G89) -> 5825715.115 | H90: =SUM(H60:H89) -> 6018963.138 | J90: =IF(SUM(J60:J89)=0,0,SUM(J60:J89)) -> 5574771.163 | K90: =SUM(K60:K89) -> 5143413.282 | L90: =SUM(L60:L89) -> 5187432.802 | M90: =SUM(M60:M89) -> 5230890.483 | N90: =SUM(N60:N89) -> 5272870.137 | O90: =SUM(O60:O89) -> 5313662.589
A93: Public Lighting - O & M | D93: Forecast O & M - Nominal | K93: Forecast O & M - Real 2015 $
D94: =D$2 -> 2016 | E94: 2017 | F94: 2018 | G94: 2019 | H94: 2020 | K94: =K$2 -> 2016 | L94: 2017 | M94: 2018 | N94: 2019 | O94: 2020
A96: Unit cost
A97: ='DNSP Inputs General'!A$42 -> Mercury Vapour 80W | D97: =SUM('Charges Summary'!D25,'Charges Summary'!D8) -> 21.9669721 | E97: =SUM('Charges Summary'!E25,'Charges Summary'!E8) -> 22.49787871 | F97: =SUM('Charges Summary'!F25,'Charges Summary'!F8) -> 23.04247289 | G97: =SUM('Charges Summary'!G25,'Charges Summary'!G8) -> 23.60149115 | H97: =SUM('Charges Summary'!H25,'Charges Summary'!H8) -> 24.17513479
A98: ='DNSP Inputs General'!A$43 -> HP Sodium 150W | D98: =SUM('Charges Summary'!D49,'Charges Summary'!D8) -> 76.71298039 | E98: =SUM('Charges Summary'!E49,'Charges Summary'!E8) -> 78.62459817 | F98: =SUM('Charges Summary'!F49,'Charges Summary'!F8) -> 80.58476585 | G98: =SUM('Charges Summary'!G49,'Charges Summary'!G8) -> 82.59511774 | H98: =SUM('Charges Summary'!H49,'Charges Summary'!H8) -> 84.65675031
A99: ='DNSP Inputs General'!A$44 -> HP Sodium 250W | D99: =SUM('Charges Summary'!D65,'Charges Summary'!D8) -> 77.43569242 | E99: =SUM('Charges Summary'!E65,'Charges Summary'!E8) -> 79.3651228 | F99: =SUM('Charges Summary'!F65,'Charges Summary'!F8) -> 81.34355789 | G99: =SUM('Charges Summary'!G65,'Charges Summary'!G8) -> 83.37265063 | H99: =SUM('Charges Summary'!H65,'Charges Summary'!H8) -> 85.45350645
A101: ='DNSP Inputs General'!A$41 -> Existing Lights
A102: ='DNSP Inputs General'!A$42 -> Mercury Vapour 80W | D102: =D97*'DNSP Inputs General'!K42 -> 931007.8723 | E102: =E97*'DNSP Inputs General'!L42 -> 823190.5218 | F102: =F97*'DNSP Inputs General'!M42 -> 727641.811 | G102: =G97*'DNSP Inputs General'!N42 -> 642837.2125 | H102: =H97*'DNSP Inputs General'!O42 -> 567666.4349 | K102: =D102/'Charges Summary'!D$4 -> 908087.7378 | L102: =E102/'Charges Summary'!E$4 -> 783157.7995 | M102: =F102/'Charges Summary'!F$4 -> 675213.3498 | N102: =G102/'Charges Summary'!G$4 -> 581833.6588 | O102: =H102/'Charges Summary'!H$4 -> 501147.4284
A103: ='DNSP Inputs General'!A$43 -> HP Sodium 150W | D103: =D98*'DNSP Inputs General'!K43 -> 1120508.637 | E103: =E98*'DNSP Inputs General'!L43 -> 1166437.574 | F103: =F98*'DNSP Inputs General'!M43 -> 1213855.122 | G103: =G98*'DNSP Inputs General'!N43 -> 1262473.77 | H103: =H98*'DNSP Inputs General'!O43 -> 1312421.692 | K103: =D103/'Charges Summary'!D$4 -> 1092923.254 | L103: =E103/'Charges Summary'!E$4 -> 1109712.344 | M103: =F103/'Charges Summary'!F$4 -> 1126393.743 | N103: =G103/'Charges Summary'!G$4 -> 1142668.343 | O103: =H103/'Charges Summary'!H$4 -> 1158632.456
A104: ='DNSP Inputs General'!A$44 -> HP Sodium 250W | D104: =D99*'DNSP Inputs General'!K44 -> 509520.6472 | E104: =E99*'DNSP Inputs General'!L44 -> 530404.2603 | F104: =F99*'DNSP Inputs General'!M44 -> 551964.7205 | G104: =G99*'DNSP Inputs General'!N44 -> 574071.3128 | H104: =H99*'DNSP Inputs General'!O44 -> 596782.3132 | K104: =D104/'Charges Summary'!D$4 -> 496976.949 | L104: =E104/'Charges Summary'!E$4 -> 504610.0779 | M104: =F104/'Charges Summary'!F$4 -> 512194.2448 | N104: =G104/'Charges Summary'!G$4 -> 519593.4614 | O104: =H104/'Charges Summary'!H$4 -> 526851.5156
A105: ='DNSP Inputs General'!A$45 -> Mercury Vapour 50W | D105: =IF('DNSP Inputs General'!$B45='DNSP Inputs General'!$A$42,D$97,IF('DNSP Inputs General'!$B45='DNSP Inputs General'!$A$43,D$98,D$99))*'DNSP Inputs General'!$D45*'DNSP Inputs General'!K45 -> 9373.233687 | E105: =IF('DNSP Inputs General'!$B45='DNSP Inputs General'!$A$42,E$97,IF('DNSP Inputs General'!$B45='DNSP Inputs General'!$A$43,E$98,E$99))*'DNSP Inputs General'!$D45*'DNSP Inputs General'!L45 -> 9750.289868 | F105: =IF('DNSP Inputs General'!$B45='DNSP Inputs General'!$A$42,F$97,IF('DNSP Inputs General'!$B45='DNSP Inputs General'!$A$43,F$98,F$99))*'DNSP Inputs General'!$D45*'DNSP Inputs General'!M45 -> 10139.48475 | G105: =IF('DNSP Inputs General'!$B45='DNSP Inputs General'!$A$42,G$97,IF('DNSP Inputs General'!$B45='DNSP Inputs General'!$A$43,G$98,G$99))*'DNSP Inputs General'!$D45*'DNSP Inputs General'!N45 -> 10538.53697 | H105: =IF('DNSP Inputs General'!$B45='DNSP Inputs General'!$A$42,H$97,IF('DNSP Inputs General'!$B45='DNSP Inputs General'!$A$43,H$98,H$99))*'DNSP Inputs General'!$D45*'DNSP Inputs General'!O45 -> 10948.47433 | K105: =D105/'Charges Summary'!D$4 -> 9142.477554 | L105: =E105/'Charges Summary'!E$4 -> 9276.121815 | M105: =F105/'Charges Summary'!F$4 -> 9408.908829 | N105: =G105/'Charges Summary'!G$4 -> 9538.457648 | O105: =H105/'Charges Summary'!H$4 -> 9665.534933
A106: ='DNSP Inputs General'!A$46 -> Mercury Vapour 125W | D106: =IF('DNSP Inputs General'!$B46='DNSP Inputs General'!$A$42,D$97,IF('DNSP Inputs General'!$B46='DNSP Inputs General'!$A$43,D$98,D$99))*'DNSP Inputs General'!$D46*'DNSP Inputs General'!K46 -> 26788.63181 | E106: =IF('DNSP Inputs General'!$B46='DNSP Inputs General'!$A$42,E$97,IF('DNSP Inputs General'!$B46='DNSP Inputs General'!$A$43,E$98,E$99))*'DNSP Inputs General'!$D46*'DNSP Inputs General'!L46 -> 27866.25555 | F106: =IF('DNSP Inputs General'!$B46='DNSP Inputs General'!$A$42,F$97,IF('DNSP Inputs General'!$B46='DNSP Inputs General'!$A$43,F$98,F$99))*'DNSP Inputs General'!$D46*'DNSP Inputs General'!M46 -> 28978.57161 | G106: =IF('DNSP Inputs General'!$B46='DNSP Inputs General'!$A$42,G$97,IF('DNSP Inputs General'!$B46='DNSP Inputs General'!$A$43,G$98,G$99))*'DNSP Inputs General'!$D46*'DNSP Inputs General'!N46 -> 30119.05989 | H106: =IF('DNSP Inputs General'!$B46='DNSP Inputs General'!$A$42,H$97,IF('DNSP Inputs General'!$B46='DNSP Inputs General'!$A$43,H$98,H$99))*'DNSP Inputs General'!$D46*'DNSP Inputs General'!O46 -> 31290.6578 | K106: =D106/'Charges Summary'!D$4 -> 26129.13251 | L106: =E106/'Charges Summary'!E$4 -> 26511.0868 | M106: =F106/'Charges Summary'!F$4 -> 26890.5911 | N106: =G106/'Charges Summary'!G$4 -> 27260.84065 | O106: =H106/'Charges Summary'!H$4 -> 27624.02658
A107: ='DNSP Inputs General'!A$47 -> Mercury Vapour 250W | D107: =IF('DNSP Inputs General'!$B47='DNSP Inputs General'!$A$42,D$97,IF('DNSP Inputs General'!$B47='DNSP Inputs General'!$A$43,D$98,D$99))*'DNSP Inputs General'!$D47*'DNSP Inputs General'!K47 -> 66440.41274 | E107: =IF('DNSP Inputs General'!$B47='DNSP Inputs General'!$A$42,E$97,IF('DNSP Inputs General'!$B47='DNSP Inputs General'!$A$43,E$98,E$99))*'DNSP Inputs General'!$D47*'DNSP Inputs General'!L47 -> 69163.59163 | F107: =IF('DNSP Inputs General'!$B47='DNSP Inputs General'!$A$42,F$97,IF('DNSP Inputs General'!$B47='DNSP Inputs General'!$A$43,F$98,F$99))*'DNSP Inputs General'!$D47*'DNSP Inputs General'!M47 -> 71975.02996 | G107: =IF('DNSP Inputs General'!$B47='DNSP Inputs General'!$A$42,G$97,IF('DNSP Inputs General'!$B47='DNSP Inputs General'!$A$43,G$98,G$99))*'DNSP Inputs General'!$D47*'DNSP Inputs General'!N47 -> 74857.68275 | H107: =IF('DNSP Inputs General'!$B47='DNSP Inputs General'!$A$42,H$97,IF('DNSP Inputs General'!$B47='DNSP Inputs General'!$A$43,H$98,H$99))*'DNSP Inputs General'!$D47*'DNSP Inputs General'!O47 -> 77819.14908 | K107: =D107/'Charges Summary'!D$4 -> 64804.74108 | L107: =E107/'Charges Summary'!E$4 -> 65800.0849 | M107: =F107/'Charges Summary'!F$4 -> 66789.04421 | N107: =G107/'Charges Summary'!G$4 -> 67753.88636 | O107: =H107/'Charges Summary'!H$4 -> 68700.32125
A108: ='DNSP Inputs General'!A$48 -> Mercury Vapour 400W | D108: =IF('DNSP Inputs General'!$B48='DNSP Inputs General'!$A$42,D$97,IF('DNSP Inputs General'!$B48='DNSP Inputs General'!$A$43,D$98,D$99))*'DNSP Inputs General'!$D48*'DNSP Inputs General'!K48 -> 12887.86109 | E108: =IF('DNSP Inputs General'!$B48='DNSP Inputs General'!$A$42,E$97,IF('DNSP Inputs General'!$B48='DNSP Inputs General'!$A$43,E$98,E$99))*'DNSP Inputs General'!$D48*'DNSP Inputs General'!L48 -> 13416.09308 | F108: =IF('DNSP Inputs General'!$B48='DNSP Inputs General'!$A$42,F$97,IF('DNSP Inputs General'!$B48='DNSP Inputs General'!$A$43,F$98,F$99))*'DNSP Inputs General'!$D48*'DNSP Inputs General'!M48 -> 13961.4453 | G108: =IF('DNSP Inputs General'!$B48='DNSP Inputs General'!$A$42,G$97,IF('DNSP Inputs General'!$B48='DNSP Inputs General'!$A$43,G$98,G$99))*'DNSP Inputs General'!$D48*'DNSP Inputs General'!N48 -> 14520.61143 | H108: =IF('DNSP Inputs General'!$B48='DNSP Inputs General'!$A$42,H$97,IF('DNSP Inputs General'!$B48='DNSP Inputs General'!$A$43,H$98,H$99))*'DNSP Inputs General'!$D48*'DNSP Inputs General'!O48 -> 15095.06552 | K108: =D108/'Charges Summary'!D$4 -> 12570.57966 | L108: =E108/'Charges Summary'!E$4 -> 12763.65271 | M108: =F108/'Charges Summary'!F$4 -> 12955.48731 | N108: =G108/'Charges Summary'!G$4 -> 13142.64376 | O108: =H108/'Charges Summary'!H$4 -> 13326.22963
A109: ='DNSP Inputs General'!A$49 -> HP Sodium 100W | D109: =IF('DNSP Inputs General'!$B49='DNSP Inputs General'!$A$42,D$97,IF('DNSP Inputs General'!$B49='DNSP Inputs General'!$A$43,D$98,D$99))*'DNSP Inputs General'!$D49*'DNSP Inputs General'!K49 -> 231275.2353 | E109: =IF('DNSP Inputs General'!$B49='DNSP Inputs General'!$A$42,E$97,IF('DNSP Inputs General'!$B49='DNSP Inputs General'!$A$43,E$98,E$99))*'DNSP Inputs General'!$D49*'DNSP Inputs General'!L49 -> 240755.0603 | F109: =IF('DNSP Inputs General'!$B49='DNSP Inputs General'!$A$42,F$97,IF('DNSP Inputs General'!$B49='DNSP Inputs General'!$A$43,F$98,F$99))*'DNSP Inputs General'!$D49*'DNSP Inputs General'!M49 -> 250542.1376 | G109: =IF('DNSP Inputs General'!$B49='DNSP Inputs General'!$A$42,G$97,IF('DNSP Inputs General'!$B49='DNSP Inputs General'!$A$43,G$98,G$99))*'DNSP Inputs General'!$D49*'DNSP Inputs General'!N49 -> 260577.1241 | H109: =IF('DNSP Inputs General'!$B49='DNSP Inputs General'!$A$42,H$97,IF('DNSP Inputs General'!$B49='DNSP Inputs General'!$A$43,H$98,H$99))*'DNSP Inputs General'!$D49*'DNSP Inputs General'!O49 -> 270886.4756 | K109: =D109/'Charges Summary'!D$4 -> 225581.5568 | L109: =E109/'Charges Summary'!E$4 -> 229046.8588 | M109: =F109/'Charges Summary'!F$4 -> 232489.9331 | N109: =G109/'Charges Summary'!G$4 -> 235849.0433 | O109: =H109/'Charges Summary'!H$4 -> 239144.0682
A110: ='DNSP Inputs General'!A$50 -> HP Sodium 400W | D110: =IF('DNSP Inputs General'!$B50='DNSP Inputs General'!$A$42,D$97,IF('DNSP Inputs General'!$B50='DNSP Inputs General'!$A$43,D$98,D$99))*'DNSP Inputs General'!$D50*'DNSP Inputs General'!K50 -> 30410.62268 | E110: =IF('DNSP Inputs General'!$B50='DNSP Inputs General'!$A$42,E$97,IF('DNSP Inputs General'!$B50='DNSP Inputs General'!$A$43,E$98,E$99))*'DNSP Inputs General'!$D50*'DNSP Inputs General'!L50 -> 31657.05632 | F110: =IF('DNSP Inputs General'!$B50='DNSP Inputs General'!$A$42,F$97,IF('DNSP Inputs General'!$B50='DNSP Inputs General'!$A$43,F$98,F$99))*'DNSP Inputs General'!$D50*'DNSP Inputs General'!M50 -> 32943.88743 | G110: =IF('DNSP Inputs General'!$B50='DNSP Inputs General'!$A$42,G$97,IF('DNSP Inputs General'!$B50='DNSP Inputs General'!$A$43,G$98,G$99))*'DNSP Inputs General'!$D50*'DNSP Inputs General'!N50 -> 34263.31431 | H110: =IF('DNSP Inputs General'!$B50='DNSP Inputs General'!$A$42,H$97,IF('DNSP Inputs General'!$B50='DNSP Inputs General'!$A$43,H$98,H$99))*'DNSP Inputs General'!$D50*'DNSP Inputs General'!O50 -> 35618.81515 | K110: =D110/'Charges Summary'!D$4 -> 29661.95494 | L110: =E110/'Charges Summary'!E$4 -> 30117.53648 | M110: =F110/'Charges Summary'!F$4 -> 30570.19574 | N110: =G110/'Charges Summary'!G$4 -> 31011.81628 | O110: =H110/'Charges Summary'!H$4 -> 31445.01157
A126: ='DNSP Inputs General'!A$68 -> Energy Efficient Lights
A127: ='DNSP Inputs General'!A$69 -> T5 2X14W | D127: =SUM('Charges Summary'!D83,'Charges Summary'!D8)*'DNSP Inputs General'!$D69*'DNSP Inputs General'!K69 -> 366180.9487 | E127: =SUM('Charges Summary'!E83,'Charges Summary'!E8)*'DNSP Inputs General'!$D69*'DNSP Inputs General'!L69 -> 439714.3498 | F127: =SUM('Charges Summary'!F83,'Charges Summary'!F8)*'DNSP Inputs General'!$D69*'DNSP Inputs General'!M69 -> 509266.1858 | G127: =SUM('Charges Summary'!G83,'Charges Summary'!G8)*'DNSP Inputs General'!$D69*'DNSP Inputs General'!N69 -> 575268.3829 | H127: =SUM('Charges Summary'!H83,'Charges Summary'!H8)*'DNSP Inputs General'!$D69*'DNSP Inputs General'!O69 -> 638249.527 | K127: =D127/'Charges Summary'!D$4 -> 357166.0769 | L127: =E127/'Charges Summary'!E$4 -> 418330.5243 | M127: =F127/'Charges Summary'!F$4 -> 472572.2492 | N127: =G127/'Charges Summary'!G$4 -> 520676.9328 | O127: =H127/'Charges Summary'!H$4 -> 563459.612
A128: ='DNSP Inputs General'!A$70 -> T5 2X24W | D128: =SUM('Charges Summary'!D99,'Charges Summary'!D8)*'DNSP Inputs General'!$D70*'DNSP Inputs General'!K70 -> 36977.72509 | E128: =SUM('Charges Summary'!E99,'Charges Summary'!E8)*'DNSP Inputs General'!$D70*'DNSP Inputs General'!L70 -> 46982.06148 | F128: =SUM('Charges Summary'!F99,'Charges Summary'!F8)*'DNSP Inputs General'!$D70*'DNSP Inputs General'!M70 -> 56390.82271 | G128: =SUM('Charges Summary'!G99,'Charges Summary'!G8)*'DNSP Inputs General'!$D70*'DNSP Inputs General'!N70 -> 65270.12056 | H128: =SUM('Charges Summary'!H99,'Charges Summary'!H8)*'DNSP Inputs General'!$D70*'DNSP Inputs General'!O70 -> 73694.51238 | K128: =D128/'Charges Summary'!D$4 -> 36067.38431 | L128: =E128/'Charges Summary'!E$4 -> 44697.26863 | M128: =F128/'Charges Summary'!F$4 -> 52327.71911 | N128: =G128/'Charges Summary'!G$4 -> 59076.15851 | O128: =H128/'Charges Summary'!H$4 -> 65059.00842
A132: Total O & M | D132: =SUM(D102:D131) -> 3341371.827 | E132: =SUM(E102:E131) -> 3399337.114 | F132: =SUM(F102:F131) -> 3467659.219 | G132: =SUM(G102:G131) -> 3544797.128 | H132: =SUM(H102:H131) -> 3630473.116 | K132: =SUM(K102:K131) -> 3259111.844 | L132: =SUM(L102:L131) -> 3234023.356 | M132: =SUM(M102:M131) -> 3217805.467 | N132: =SUM(N102:N131) -> 3208405.243 | O132: =SUM(O102:O131) -> 3205055.213
A135: Public Lighting - Capital Charge | D135: Capital Charge - Nominal | K135: Capital Charge - Real 2015 $
D136: =D$2 -> 2016 | E136: 2017 | F136: 2018 | G136: 2019 | H136: 2020 | K136: =K$2 -> 2016 | L136: 2017 | M136: 2018 | N136: 2019 | O136: 2020
A138: Unit cost
A139: ='DNSP Inputs General'!A$42 -> Mercury Vapour 80W | D139: =SUM('Charges Summary'!D27,'Charges Summary'!D11) -> 21.74559853 | E139: =SUM('Charges Summary'!E27,'Charges Summary'!E11) -> 24.46885342 | F139: =SUM('Charges Summary'!F27,'Charges Summary'!F11) -> 27.17356587 | G139: =SUM('Charges Summary'!G27,'Charges Summary'!G11) -> 29.83661768 | H139: =SUM('Charges Summary'!H27,'Charges Summary'!H11) -> 32.43035191
A140: ='DNSP Inputs General'!A$43 -> HP Sodium 150W | D140: =SUM('Charges Summary'!D51,'Charges Summary'!D11) -> 23.59507436 | E140: =SUM('Charges Summary'!E51,'Charges Summary'!E11) -> 26.56467337 | F140: =SUM('Charges Summary'!F51,'Charges Summary'!F11) -> 29.5099901 | G140: =SUM('Charges Summary'!G51,'Charges Summary'!G11) -> 32.40481254 | H140: =SUM('Charges Summary'!H51,'Charges Summary'!H11) -> 35.21815431
A141: ='DNSP Inputs General'!A$44 -> HP Sodium 250W | D141: =SUM('Charges Summary'!D67,'Charges Summary'!D11) -> 23.81481236 | E141: =SUM('Charges Summary'!E67,'Charges Summary'!E11) -> 26.81367975 | F141: =SUM('Charges Summary'!F67,'Charges Summary'!F11) -> 29.78758291 | G141: =SUM('Charges Summary'!G67,'Charges Summary'!G11) -> 32.70994223 | H141: =SUM('Charges Summary'!H67,'Charges Summary'!H11) -> 35.54937579
A143: ='DNSP Inputs General'!A$41 -> Existing Lights
A144: ='DNSP Inputs General'!A$42 -> Mercury Vapour 80W | D144: =D139*'DNSP Inputs General'!K42 -> 921625.5809 | E144: =E139*'DNSP Inputs General'!L42 -> 895307.8855 | F144: =F139*'DNSP Inputs General'!M42 -> 858094.6487 | G144: =G139*'DNSP Inputs General'!N42 -> 812664.2516 | H144: =H139*'DNSP Inputs General'!O42 -> 761510.6352 | K144: =D144/'Charges Summary'!D$4 -> 898936.4256 | L144: =E144/'Charges Summary'!E$4 -> 851768.011 | M144: =F144/'Charges Summary'!F$4 -> 796266.7255 | N144: =G144/'Charges Summary'!G$4 -> 735544.5605 | O144: =H144/'Charges Summary'!H$4 -> 672277.0153
A145: ='DNSP Inputs General'!A$43 -> HP Sodium 150W | D145: =D140*'DNSP Inputs General'!K43 -> 344641.6039 | E145: =E140*'DNSP Inputs General'!L43 -> 394101.0051 | F145: =F140*'DNSP Inputs General'!M43 -> 444511.469 | G145: =G140*'DNSP Inputs General'!N43 -> 495310.4609 | H145: =H140*'DNSP Inputs General'!O43 -> 545982.0922 | K145: =D145/'Charges Summary'!D$4 -> 336157.0012 | L145: =E145/'Charges Summary'!E$4 -> 374935.4102 | M145: =F145/'Charges Summary'!F$4 -> 412483.2761 | N145: =G145/'Charges Summary'!G$4 -> 448306.8063 | O145: =H145/'Charges Summary'!H$4 -> 482004.0514
A146: ='DNSP Inputs General'!A$44 -> HP Sodium 250W | D146: =D141*'DNSP Inputs General'!K44 -> 156699.5558 | E146: =E141*'DNSP Inputs General'!L44 -> 179198.2356 | F146: =F141*'DNSP Inputs General'!M44 -> 202126.5765 | G146: =G141*'DNSP Inputs General'!N44 -> 225227.8096 | H146: =H141*'DNSP Inputs General'!O44 -> 248266.4504 | K146: =D146/'Charges Summary'!D$4 -> 152841.8281 | L146: =E146/'Charges Summary'!E$4 -> 170483.6149 | M146: =F146/'Charges Summary'!F$4 -> 187562.8376 | N146: =G146/'Charges Summary'!G$4 -> 203854.2853 | O146: =H146/'Charges Summary'!H$4 -> 219174.6517
A147: ='DNSP Inputs General'!A$45 -> Mercury Vapour 50W | D147: =IF('DNSP Inputs General'!$B45='DNSP Inputs General'!$A$42,D$139,IF('DNSP Inputs General'!$B45='DNSP Inputs General'!$A$43,D$140,D$141))*'DNSP Inputs General'!$D45*'DNSP Inputs General'!K45 -> 9278.774326 | E147: =IF('DNSP Inputs General'!$B45='DNSP Inputs General'!$A$42,E$139,IF('DNSP Inputs General'!$B45='DNSP Inputs General'!$A$43,E$140,E$141))*'DNSP Inputs General'!$D45*'DNSP Inputs General'!L45 -> 10604.48483 | F147: =IF('DNSP Inputs General'!$B45='DNSP Inputs General'!$A$42,F$139,IF('DNSP Inputs General'!$B45='DNSP Inputs General'!$A$43,F$140,F$141))*'DNSP Inputs General'!$D45*'DNSP Inputs General'!M45 -> 11957.30848 | G147: =IF('DNSP Inputs General'!$B45='DNSP Inputs General'!$A$42,G$139,IF('DNSP Inputs General'!$B45='DNSP Inputs General'!$A$43,G$140,G$141))*'DNSP Inputs General'!$D45*'DNSP Inputs General'!N45 -> 13322.64545 | H147: =IF('DNSP Inputs General'!$B45='DNSP Inputs General'!$A$42,H$139,IF('DNSP Inputs General'!$B45='DNSP Inputs General'!$A$43,H$140,H$141))*'DNSP Inputs General'!$D45*'DNSP Inputs General'!O45 -> 14687.11048 | K147: =D147/'Charges Summary'!D$4 -> 9050.343652 | L147: =E147/'Charges Summary'!E$4 -> 10088.77628 | M147: =F147/'Charges Summary'!F$4 -> 11095.7537 | N147: =G147/'Charges Summary'!G$4 -> 12058.36158 | O147: =H147/'Charges Summary'!H$4 -> 12966.07866
A148: ='DNSP Inputs General'!A$46 -> Mercury Vapour 125W | D148: =IF('DNSP Inputs General'!$B46='DNSP Inputs General'!$A$42,D$139,IF('DNSP Inputs General'!$B46='DNSP Inputs General'!$A$43,D$140,D$141))*'DNSP Inputs General'!$D46*'DNSP Inputs General'!K46 -> 26518.66766 | E148: =IF('DNSP Inputs General'!$B46='DNSP Inputs General'!$A$42,E$139,IF('DNSP Inputs General'!$B46='DNSP Inputs General'!$A$43,E$140,E$141))*'DNSP Inputs General'!$D46*'DNSP Inputs General'!L46 -> 30307.53838 | F148: =IF('DNSP Inputs General'!$B46='DNSP Inputs General'!$A$42,F$139,IF('DNSP Inputs General'!$B46='DNSP Inputs General'!$A$43,F$140,F$141))*'DNSP Inputs General'!$D46*'DNSP Inputs General'!M46 -> 34173.89826 | G148: =IF('DNSP Inputs General'!$B46='DNSP Inputs General'!$A$42,G$139,IF('DNSP Inputs General'!$B46='DNSP Inputs General'!$A$43,G$140,G$141))*'DNSP Inputs General'!$D46*'DNSP Inputs General'!N46 -> 38076.0211 | H148: =IF('DNSP Inputs General'!$B46='DNSP Inputs General'!$A$42,H$139,IF('DNSP Inputs General'!$B46='DNSP Inputs General'!$A$43,H$140,H$141))*'DNSP Inputs General'!$D46*'DNSP Inputs General'!O46 -> 41975.65195 | K148: =D148/'Charges Summary'!D$4 -> 25865.8145 | L148: =E148/'Charges Summary'!E$4 -> 28833.64718 | M148: =F148/'Charges Summary'!F$4 -> 31711.58113 | N148: =G148/'Charges Summary'!G$4 -> 34462.70726 | O148: =H148/'Charges Summary'!H$4 -> 37056.95588
A149: ='DNSP Inputs General'!A$47 -> Mercury Vapour 250W | D149: =IF('DNSP Inputs General'!$B47='DNSP Inputs General'!$A$42,D$139,IF('DNSP Inputs General'!$B47='DNSP Inputs General'!$A$43,D$140,D$141))*'DNSP Inputs General'!$D47*'DNSP Inputs General'!K47 -> 20433.29004 | E149: =IF('DNSP Inputs General'!$B47='DNSP Inputs General'!$A$42,E$139,IF('DNSP Inputs General'!$B47='DNSP Inputs General'!$A$43,E$140,E$141))*'DNSP Inputs General'!$D47*'DNSP Inputs General'!L47 -> 23367.07021 | F149: =IF('DNSP Inputs General'!$B47='DNSP Inputs General'!$A$42,F$139,IF('DNSP Inputs General'!$B47='DNSP Inputs General'!$A$43,F$140,F$141))*'DNSP Inputs General'!$D47*'DNSP Inputs General'!M47 -> 26356.87728 | G149: =IF('DNSP Inputs General'!$B47='DNSP Inputs General'!$A$42,G$139,IF('DNSP Inputs General'!$B47='DNSP Inputs General'!$A$43,G$140,G$141))*'DNSP Inputs General'!$D47*'DNSP Inputs General'!N47 -> 29369.22912 | H149: =IF('DNSP Inputs General'!$B47='DNSP Inputs General'!$A$42,H$139,IF('DNSP Inputs General'!$B47='DNSP Inputs General'!$A$43,H$140,H$141))*'DNSP Inputs General'!$D47*'DNSP Inputs General'!O47 -> 32373.41906 | K149: =D149/'Charges Summary'!D$4 -> 19930.25052 | L149: =E149/'Charges Summary'!E$4 -> 22230.70213 | M149: =F149/'Charges Summary'!F$4 -> 24457.79658 | N149: =G149/'Charges Summary'!G$4 -> 26582.16684 | O149: =H149/'Charges Summary'!H$4 -> 28579.91016
A150: ='DNSP Inputs General'!A$48 -> Mercury Vapour 400W | D150: =IF('DNSP Inputs General'!$B48='DNSP Inputs General'!$A$42,D$139,IF('DNSP Inputs General'!$B48='DNSP Inputs General'!$A$43,D$140,D$141))*'DNSP Inputs General'!$D48*'DNSP Inputs General'!K48 -> 3963.572662 | E150: =IF('DNSP Inputs General'!$B48='DNSP Inputs General'!$A$42,E$139,IF('DNSP Inputs General'!$B48='DNSP Inputs General'!$A$43,E$140,E$141))*'DNSP Inputs General'!$D48*'DNSP Inputs General'!L48 -> 4532.656293 | F150: =IF('DNSP Inputs General'!$B48='DNSP Inputs General'!$A$42,F$139,IF('DNSP Inputs General'!$B48='DNSP Inputs General'!$A$43,F$140,F$141))*'DNSP Inputs General'!$D48*'DNSP Inputs General'!M48 -> 5112.60781 | G150: =IF('DNSP Inputs General'!$B48='DNSP Inputs General'!$A$42,G$139,IF('DNSP Inputs General'!$B48='DNSP Inputs General'!$A$43,G$140,G$141))*'DNSP Inputs General'!$D48*'DNSP Inputs General'!N48 -> 5696.932477 | H150: =IF('DNSP Inputs General'!$B48='DNSP Inputs General'!$A$42,H$139,IF('DNSP Inputs General'!$B48='DNSP Inputs General'!$A$43,H$140,H$141))*'DNSP Inputs General'!$D48*'DNSP Inputs General'!O48 -> 6279.67393 | K150: =D150/'Charges Summary'!D$4 -> 3865.99495 | L150: =E150/'Charges Summary'!E$4 -> 4312.227891 | M150: =F150/'Charges Summary'!F$4 -> 4744.231287 | N150: =G150/'Charges Summary'!G$4 -> 5156.308631 | O150: =H150/'Charges Summary'!H$4 -> 5543.823358
A151: ='DNSP Inputs General'!A$49 -> HP Sodium 100W | D151: =IF('DNSP Inputs General'!$B49='DNSP Inputs General'!$A$42,D$139,IF('DNSP Inputs General'!$B49='DNSP Inputs General'!$A$43,D$140,D$141))*'DNSP Inputs General'!$D49*'DNSP Inputs General'!K49 -> 71134.71991 | E151: =IF('DNSP Inputs General'!$B49='DNSP Inputs General'!$A$42,E$139,IF('DNSP Inputs General'!$B49='DNSP Inputs General'!$A$43,E$140,E$141))*'DNSP Inputs General'!$D49*'DNSP Inputs General'!L49 -> 81343.23976 | F151: =IF('DNSP Inputs General'!$B49='DNSP Inputs General'!$A$42,F$139,IF('DNSP Inputs General'!$B49='DNSP Inputs General'!$A$43,F$140,F$141))*'DNSP Inputs General'!$D49*'DNSP Inputs General'!M49 -> 91748.06085 | G151: =IF('DNSP Inputs General'!$B49='DNSP Inputs General'!$A$42,G$139,IF('DNSP Inputs General'!$B49='DNSP Inputs General'!$A$43,G$140,G$141))*'DNSP Inputs General'!$D49*'DNSP Inputs General'!N49 -> 102233.0749 | H151: =IF('DNSP Inputs General'!$B49='DNSP Inputs General'!$A$42,H$139,IF('DNSP Inputs General'!$B49='DNSP Inputs General'!$A$43,H$140,H$141))*'DNSP Inputs General'!$D49*'DNSP Inputs General'!O49 -> 112691.8015 | K151: =D151/'Charges Summary'!D$4 -> 69383.48086 | L151: =E151/'Charges Summary'!E$4 -> 77387.42243 | M151: =F151/'Charges Summary'!F$4 -> 85137.37744 | N151: =G151/'Charges Summary'!G$4 -> 92531.4261 | O151: =H151/'Charges Summary'!H$4 -> 99486.60523
A152: ='DNSP Inputs General'!A$50 -> HP Sodium 400W | D152: =IF('DNSP Inputs General'!$B50='DNSP Inputs General'!$A$42,D$139,IF('DNSP Inputs General'!$B50='DNSP Inputs General'!$A$43,D$140,D$141))*'DNSP Inputs General'!$D50*'DNSP Inputs General'!K50 -> 9352.576961 | E152: =IF('DNSP Inputs General'!$B50='DNSP Inputs General'!$A$42,E$139,IF('DNSP Inputs General'!$B50='DNSP Inputs General'!$A$43,E$140,E$141))*'DNSP Inputs General'!$D50*'DNSP Inputs General'!L50 -> 10695.40549 | F152: =IF('DNSP Inputs General'!$B50='DNSP Inputs General'!$A$42,F$139,IF('DNSP Inputs General'!$B50='DNSP Inputs General'!$A$43,F$140,F$141))*'DNSP Inputs General'!$D50*'DNSP Inputs General'!M50 -> 12063.87824 | G152: =IF('DNSP Inputs General'!$B50='DNSP Inputs General'!$A$42,G$139,IF('DNSP Inputs General'!$B50='DNSP Inputs General'!$A$43,G$140,G$141))*'DNSP Inputs General'!$D50*'DNSP Inputs General'!N50 -> 13442.67003 | H152: =IF('DNSP Inputs General'!$B50='DNSP Inputs General'!$A$42,H$139,IF('DNSP Inputs General'!$B50='DNSP Inputs General'!$A$43,H$140,H$141))*'DNSP Inputs General'!$D50*'DNSP Inputs General'!O50 -> 14817.72601 | K152: =D152/'Charges Summary'!D$4 -> 9122.329367 | L152: =E152/'Charges Summary'!E$4 -> 10175.27535 | M152: =F152/'Charges Summary'!F$4 -> 11194.64483 | N152: =G152/'Charges Summary'!G$4 -> 12166.99615 | O152: =H152/'Charges Summary'!H$4 -> 13081.38869
A168: ='DNSP Inputs General'!A$68 -> Energy Efficient Lights
A169: ='DNSP Inputs General'!A$69 -> T5 2X14W | D169: =SUM('Charges Summary'!D85,'Charges Summary'!D11)*'DNSP Inputs General'!$D69*'DNSP Inputs General'!K69 -> 336747.9063 | E169: =SUM('Charges Summary'!E85,'Charges Summary'!E11)*'DNSP Inputs General'!$D69*'DNSP Inputs General'!L69 -> 385960.2866 | F169: =SUM('Charges Summary'!F85,'Charges Summary'!F11)*'DNSP Inputs General'!$D69*'DNSP Inputs General'!M69 -> 438942.2547 | G169: =SUM('Charges Summary'!G85,'Charges Summary'!G11)*'DNSP Inputs General'!$D69*'DNSP Inputs General'!N69 -> 494682.7777 | H169: =SUM('Charges Summary'!H85,'Charges Summary'!H11)*'DNSP Inputs General'!$D69*'DNSP Inputs General'!O69 -> 552331.5621 | K169: =D169/'Charges Summary'!D$4 -> 328457.6356 | L169: =E169/'Charges Summary'!E$4 -> 367190.5844 | M169: =F169/'Charges Summary'!F$4 -> 407315.338 | N169: =G169/'Charges Summary'!G$4 -> 447738.6886 | O169: =H169/'Charges Summary'!H$4 -> 487609.4921
A170: ='DNSP Inputs General'!A$70 -> T5 2X24W | D170: =SUM('Charges Summary'!D101,'Charges Summary'!D11)*'DNSP Inputs General'!$D70*'DNSP Inputs General'!K70 -> 31464.95801 | E170: =SUM('Charges Summary'!E101,'Charges Summary'!E11)*'DNSP Inputs General'!$D70*'DNSP Inputs General'!L70 -> 37844.18083 | F170: =SUM('Charges Summary'!F101,'Charges Summary'!F11)*'DNSP Inputs General'!$D70*'DNSP Inputs General'!M70 -> 44307.95634 | G170: =SUM('Charges Summary'!G101,'Charges Summary'!G11)*'DNSP Inputs General'!$D70*'DNSP Inputs General'!N70 -> 50892.1148 | H170: =SUM('Charges Summary'!H101,'Charges Summary'!H11)*'DNSP Inputs General'!$D70*'DNSP Inputs General'!O70 -> 57573.89837 | K170: =D170/'Charges Summary'!D$4 -> 30690.33398 | L170: =E170/'Charges Summary'!E$4 -> 36003.77385 | M170: =F170/'Charges Summary'!F$4 -> 41115.45429 | N170: =G170/'Charges Summary'!G$4 -> 46062.58752 | O170: =H170/'Charges Summary'!H$4 -> 50827.40381
A174: Total Capital Charge | D174: =SUM(D144:D173) -> 1931861.207 | E174: =SUM(E144:E173) -> 2053261.989 | F174: =SUM(F144:F173) -> 2169395.536 | G174: =SUM(G144:G173) -> 2280917.988 | H174: =SUM(H144:H173) -> 2388490.021 | K174: =SUM(K144:K173) -> 1884301.438 | L174: =SUM(L144:L173) -> 1953409.446 | M174: =SUM(M144:M173) -> 2013085.016 | N174: =SUM(N144:N173) -> 2064464.895 | O174: =SUM(O144:O173) -> 2108607.376
A176: Check | C176: =SUM(D176:O176) -> 5.587935448e-09 | D176: =ABS(D90-SUM(D132,D174)) -> 0 | E176: =ABS(E90-SUM(E132,E174)) -> 9.313225746e-10 | F176: =ABS(F90-SUM(F132,F174)) -> 0 | G176: =ABS(G90-SUM(G132,G174)) -> 0 | H176: =ABS(H90-SUM(H132,H174)) -> 0 | K176: =ABS(K90-SUM(K132,K174)) -> 1.862645149e-09 | L176: =ABS(L90-SUM(L132,L174)) -> 0 | M176: =ABS(M90-SUM(M132,M174)) -> 9.313225746e-10 | N176: =ABS(N90-SUM(N132,N174)) -> 9.313225746e-10 | O176: =ABS(O90-SUM(O132,O174)) -> 9.313225746e-10
A181: ='DNSP Inputs General'!$B$80 -> North & East
A182: Public Lighting - Revenue | C182: Revenue - Nominal | J182: Revenue - Real 2015 $
C183: =C$2 -> 2015 | D183: =D$2 -> 2016 | E183: 2017 | F183: 2018 | G183: 2019 | H183: 2020 | J183: =J$2 -> 2015 | K183: 2016 | L183: 2017 | M183: 2018 | N183: 2019 | O183: 2020
A184: ='DNSP Inputs General'!A$82 -> Existing Lights
A185: ='DNSP Inputs General'!A$83 -> Mercury Vapour 80W | C185: =IF('PL Tariffs'!C27=0,"",'DNSP Inputs General'!J83*'PL Tariffs'!C27) -> 1248741.237 | D185: ='DNSP Inputs General'!K83*'PL Tariffs'!D27 -> 967174.7868 | E185: ='DNSP Inputs General'!L83*'PL Tariffs'!E27 -> 896423.1377 | F185: ='DNSP Inputs General'!M83*'PL Tariffs'!F27 -> 826847.082 | G185: ='DNSP Inputs General'!N83*'PL Tariffs'!G27 -> 758881.3808 | H185: ='DNSP Inputs General'!O83*'PL Tariffs'!H27 -> 693129.816 | J185: =C185 -> 1248741.237 | K185: =D185/'Charges Summary'!K$4 -> 943364.2726 | L185: =E185/'Charges Summary'!L$4 -> 852829.0272 | M185: =F185/'Charges Summary'!M$4 -> 767270.6263 | N185: =G185/'Charges Summary'!N$4 -> 686865.542 | O185: =H185/'Charges Summary'!O$4 -> 611909.0428
A186: ='DNSP Inputs General'!A$84 -> HP Sodium 150W | C186: =IF('PL Tariffs'!C28=0,"",'DNSP Inputs General'!J84*'PL Tariffs'!C28) -> 286541.2508 | D186: ='DNSP Inputs General'!K84*'PL Tariffs'!D28 -> 281208.4288 | E186: ='DNSP Inputs General'!L84*'PL Tariffs'!E28 -> 299294.8196 | F186: ='DNSP Inputs General'!M84*'PL Tariffs'!F28 -> 317891.5411 | G186: ='DNSP Inputs General'!N84*'PL Tariffs'!G28 -> 336835.3369 | H186: ='DNSP Inputs General'!O84*'PL Tariffs'!H28 -> 356052.0702 | J186: 286541.2508 | K186: =D186/'Charges Summary'!K$4 -> 274285.4637 | L186: =E186/'Charges Summary'!L$4 -> 284739.7608 | M186: =F186/'Charges Summary'!M$4 -> 294986.6392 | N186: =G186/'Charges Summary'!N$4 -> 304870.553 | O186: =H186/'Charges Summary'!O$4 -> 314329.9804
A187: ='DNSP Inputs General'!A$85 -> HP Sodium 250W | C187: =IF('PL Tariffs'!C29=0,"",'DNSP Inputs General'!J85*'PL Tariffs'!C29) -> 649229.4083 | D187: ='DNSP Inputs General'!K85*'PL Tariffs'!D29 -> 635273.7789 | E187: ='DNSP Inputs General'!L85*'PL Tariffs'!E29 -> 676343.8921 | F187: ='DNSP Inputs General'!M85*'PL Tariffs'!F29 -> 718569.825 | G187: ='DNSP Inputs General'!N85*'PL Tariffs'!G29 -> 761579.5836 | H187: ='DNSP Inputs General'!O85*'PL Tariffs'!H29 -> 805201.9229 | J187: 649229.4083 | K187: =D187/'Charges Summary'!K$4 -> 619634.2114 | L187: =E187/'Charges Summary'!L$4 -> 643452.4939 | M187: =F187/'Charges Summary'!M$4 -> 666795.0236 | N187: =G187/'Charges Summary'!N$4 -> 689307.6926 | O187: =H187/'Charges Summary'!O$4 -> 710848.5691
A188: ='DNSP Inputs General'!A$86 -> Mercury Vapour 50W | C188: =IF('PL Tariffs'!C30=0,"",'DNSP Inputs General'!J86*'PL Tariffs'!C30) -> 23989.20824 | D188: ='DNSP Inputs General'!K86*'PL Tariffs'!D30 -> 21856.9336 | E188: ='DNSP Inputs General'!L86*'PL Tariffs'!E30 -> 23832.98274 | F188: ='DNSP Inputs General'!M86*'PL Tariffs'!F30 -> 25862.56608 | G188: ='DNSP Inputs General'!N86*'PL Tariffs'!G30 -> 27925.52759 | H188: ='DNSP Inputs General'!O86*'PL Tariffs'!H30 -> 30007.03914 | J188: 23989.20824 | K188: =D188/'Charges Summary'!K$4 -> 21318.84593 | L188: =E188/'Charges Summary'!L$4 -> 22673.95679 | M188: =F188/'Charges Summary'!M$4 -> 23999.10177 | N188: =G188/'Charges Summary'!N$4 -> 25275.46878 | O188: =H188/'Charges Summary'!O$4 -> 26490.82203
A189: ='DNSP Inputs General'!A$87 -> Mercury Vapour 125W | C189: =IF('PL Tariffs'!C31=0,"",'DNSP Inputs General'!J87*'PL Tariffs'!C31) -> 4524.310796 | D189: ='DNSP Inputs General'!K87*'PL Tariffs'!D31 -> 4122.168589 | E189: ='DNSP Inputs General'!L87*'PL Tariffs'!E31 -> 4494.847019 | F189: ='DNSP Inputs General'!M87*'PL Tariffs'!F31 -> 4877.621877 | G189: ='DNSP Inputs General'!N87*'PL Tariffs'!G31 -> 5266.691786 | H189: ='DNSP Inputs General'!O87*'PL Tariffs'!H31 -> 5659.260189 | J189: 4524.310796 | K189: =D189/'Charges Summary'!K$4 -> 4020.686463 | L189: =E189/'Charges Summary'!L$4 -> 4276.257327 | M189: =F189/'Charges Summary'!M$4 -> 4526.176694 | N189: =G189/'Charges Summary'!N$4 -> 4766.896646 | O189: =H189/'Charges Summary'!O$4 -> 4996.109539
A190: ='DNSP Inputs General'!A$88 -> Mercury Vapour 250W | C190: =IF('PL Tariffs'!C32=0,"",'DNSP Inputs General'!J88*'PL Tariffs'!C32) -> 51646.39567 | D190: ='DNSP Inputs General'!K88*'PL Tariffs'!D32 -> 50533.2455 | E190: ='DNSP Inputs General'!L88*'PL Tariffs'!E32 -> 53800.19304 | F190: ='DNSP Inputs General'!M88*'PL Tariffs'!F32 -> 57159.08098 | G190: ='DNSP Inputs General'!N88*'PL Tariffs'!G32 -> 60580.31882 | H190: ='DNSP Inputs General'!O88*'PL Tariffs'!H32 -> 64050.28477 | J190: 51646.39567 | K190: =D190/'Charges Summary'!K$4 -> 49289.18643 | L190: =E190/'Charges Summary'!L$4 -> 51183.82644 | M190: =F190/'Charges Summary'!M$4 -> 53040.6224 | N190: =G190/'Charges Summary'!N$4 -> 54831.40656 | O190: =H190/'Charges Summary'!O$4 -> 56544.88891
A191: ='DNSP Inputs General'!A$89 -> Mercury Vapour 400W | C191: =IF('PL Tariffs'!C33=0,"",'DNSP Inputs General'!J89*'PL Tariffs'!C33) -> 15667.91732 | D191: ='DNSP Inputs General'!K89*'PL Tariffs'!D33 -> 15331.11255 | E191: ='DNSP Inputs General'!L89*'PL Tariffs'!E33 -> 16322.26085 | F191: ='DNSP Inputs General'!M89*'PL Tariffs'!F33 -> 17341.30265 | G191: ='DNSP Inputs General'!N89*'PL Tariffs'!G33 -> 18379.26057 | H191: ='DNSP Inputs General'!O89*'PL Tariffs'!H33 -> 19432.00194 | J191: 15667.91732 | K191: =D191/'Charges Summary'!K$4 -> 14953.68163 | L191: =E191/'Charges Summary'!L$4 -> 15528.49013 | M191: =F191/'Charges Summary'!M$4 -> 16091.81725 | N191: =G191/'Charges Summary'!N$4 -> 16635.11728 | O191: =H191/'Charges Summary'!O$4 -> 17154.96497
A192: ='DNSP Inputs General'!A$90 -> HP Sodium 100W | C192: =IF('PL Tariffs'!C34=0,"",'DNSP Inputs General'!J90*'PL Tariffs'!C34) -> 2692.625722 | D192: ='DNSP Inputs General'!K90*'PL Tariffs'!D34 -> 2642.632027 | E192: ='DNSP Inputs General'!L90*'PL Tariffs'!E34 -> 2812.597328 | F192: ='DNSP Inputs General'!M90*'PL Tariffs'!F34 -> 2987.35842 | G192: ='DNSP Inputs General'!N90*'PL Tariffs'!G34 -> 3165.381112 | H192: ='DNSP Inputs General'!O90*'PL Tariffs'!H34 -> 3345.96871 | J192: 2692.625722 | K192: =D192/'Charges Summary'!K$4 -> 2577.574058 | L192: =E192/'Charges Summary'!L$4 -> 2675.817416 | M192: =F192/'Charges Summary'!M$4 -> 2772.111574 | N192: =G192/'Charges Summary'!N$4 -> 2864.994804 | O192: =H192/'Charges Summary'!O$4 -> 2953.888959
A193: ='DNSP Inputs General'!A$91 -> HP Sodium 400W | C193: =IF('PL Tariffs'!C35=0,"",'DNSP Inputs General'!J91*'PL Tariffs'!C35) -> 348380.9116 | D193: ='DNSP Inputs General'!K91*'PL Tariffs'!D35 -> 340870.5834 | E193: ='DNSP Inputs General'!L91*'PL Tariffs'!E35 -> 362907.686 | F193: ='DNSP Inputs General'!M91*'PL Tariffs'!F35 -> 385564.9699 | G193: ='DNSP Inputs General'!N91*'PL Tariffs'!G35 -> 408642.8333 | H193: ='DNSP Inputs General'!O91*'PL Tariffs'!H35 -> 432049.3908 | J193: 348380.9116 | K193: =D193/'Charges Summary'!K$4 -> 332478.818 | L193: =E193/'Charges Summary'!L$4 -> 345259.0588 | M193: =F193/'Charges Summary'!M$4 -> 357784.0236 | N193: =G193/'Charges Summary'!N$4 -> 369863.7077 | O193: =H193/'Charges Summary'!O$4 -> 381421.9546
A209: ='DNSP Inputs General'!A$109 -> Energy Efficient Lights
A210: ='DNSP Inputs General'!A$110 -> T5 2X14W | C210: =IF('PL Tariffs'!C39=0,"",'DNSP Inputs General'!J110*'PL Tariffs'!C39) -> 14555.40064 | D210: ='DNSP Inputs General'!K110*'PL Tariffs'!D39 -> 24413.37453 | E210: ='DNSP Inputs General'!L110*'PL Tariffs'!E39 -> 30672.68566 | F210: ='DNSP Inputs General'!M110*'PL Tariffs'!F39 -> 36770.84485 | G210: ='DNSP Inputs General'!N110*'PL Tariffs'!G39 -> 42743.17766 | H210: ='DNSP Inputs General'!O110*'PL Tariffs'!H39 -> 48605.98686 | J210: =C210 -> 14555.40064 | K210: =D210/'Charges Summary'!K$4 -> 23812.3508 | L210: =E210/'Charges Summary'!L$4 -> 29181.03692 | M210: =F210/'Charges Summary'!M$4 -> 34121.41104 | N210: =G210/'Charges Summary'!N$4 -> 38686.96299 | O210: =H210/'Charges Summary'!O$4 -> 42910.34985
A211: ='DNSP Inputs General'!A$111 -> T5 2X24W | C211: =IF('PL Tariffs'!C40=0,"",'DNSP Inputs General'!J111*'PL Tariffs'!C40) -> 213334.9111 | D211: ='DNSP Inputs General'!K111*'PL Tariffs'!D40 -> 314299.7781 | E211: ='DNSP Inputs General'!L111*'PL Tariffs'!E40 -> 372312.7489 | F211: ='DNSP Inputs General'!M111*'PL Tariffs'!F40 -> 429891.3223 | G211: ='DNSP Inputs General'!N111*'PL Tariffs'!G40 -> 486911.5955 | H211: ='DNSP Inputs General'!O111*'PL Tariffs'!H40 -> 543316.1084 | J211: =C211 -> 213334.9111 | K211: =D211/'Charges Summary'!K$4 -> 306562.1494 | L211: =E211/'Charges Summary'!L$4 -> 354206.7425 | M211: =F211/'Charges Summary'!M$4 -> 398916.5485 | N211: =G211/'Charges Summary'!N$4 -> 440704.9711 | O211: =H211/'Charges Summary'!O$4 -> 479650.4669
A215: Total Revenue | C215: =IF(SUM(C185:C214)=0,0,SUM(C185:C214)) -> 2859303.578 | D215: =SUM(D185:D214) -> 2657726.823 | E215: =SUM(E185:E214) -> 2739217.851 | F215: =SUM(F185:F214) -> 2823763.515 | G215: =SUM(G185:G214) -> 2910911.088 | H215: =SUM(H185:H214) -> 3000849.85 | J215: =IF(SUM(J185:J214)=0,0,SUM(J185:J214)) -> 2859303.578 | K215: =SUM(K185:K214) -> 2592297.24 | L215: =SUM(L185:L214) -> 2606006.468 | M215: =SUM(M185:M214) -> 2620304.102 | N215: =SUM(N185:N214) -> 2634673.314 | O215: =SUM(O185:O214) -> 2649211.038
A218: Public Lighting - O & M | D218: Forecast O & M - Nominal | K218: Forecast O & M - Real 2015 $
D219: =D$2 -> 2016 | E219: 2017 | F219: 2018 | G219: 2019 | H219: 2020 | K219: =K$2 -> 2016 | L219: 2017 | M219: 2018 | N219: 2019 | O219: 2020
A221: Unit cost
A222: ='DNSP Inputs General'!A$83 -> Mercury Vapour 80W | D222: =SUM('Charges Summary'!K25,'Charges Summary'!K8) -> 26.47983652 | E222: =SUM('Charges Summary'!L25,'Charges Summary'!L8) -> 27.12464783 | F222: =SUM('Charges Summary'!M25,'Charges Summary'!M8) -> 27.78602167 | G222: =SUM('Charges Summary'!N25,'Charges Summary'!N8) -> 28.46476709 | H222: =SUM('Charges Summary'!O25,'Charges Summary'!O8) -> 29.16115982
A223: ='DNSP Inputs General'!A$84 -> HP Sodium 150W | D223: =SUM('Charges Summary'!K49,'Charges Summary'!K8) -> 89.20049868 | E223: =SUM('Charges Summary'!L49,'Charges Summary'!L8) -> 91.42730142 | F223: =SUM('Charges Summary'!M49,'Charges Summary'!M8) -> 93.71060933 | G223: =SUM('Charges Summary'!N49,'Charges Summary'!N8) -> 96.05225751 | H223: =SUM('Charges Summary'!O49,'Charges Summary'!O8) -> 98.45354828
A224: ='DNSP Inputs General'!A$85 -> HP Sodium 250W | D224: =SUM('Charges Summary'!K65,'Charges Summary'!K8) -> 87.87784993 | E224: =SUM('Charges Summary'!L65,'Charges Summary'!L8) -> 90.07084036 | F224: =SUM('Charges Summary'!M65,'Charges Summary'!M8) -> 92.31948777 | G224: =SUM('Charges Summary'!N65,'Charges Summary'!N8) -> 94.62561298 | H224: =SUM('Charges Summary'!O65,'Charges Summary'!O8) -> 96.99049357
A226: ='DNSP Inputs General'!A$82 -> Existing Lights
A227: ='DNSP Inputs General'!A$83 -> Mercury Vapour 80W | D227: =D222*'DNSP Inputs General'!K83 -> 518098.5021 | E227: =E222*'DNSP Inputs General'!L83 -> 458180.6888 | F227: =F222*'DNSP Inputs General'!M83 -> 405068.8184 | G227: =G222*'DNSP Inputs General'!N83 -> 357917.6237 | H227: =H222*'DNSP Inputs General'!O83 -> 316113.4591 | K227: =D227/'Charges Summary'!K$4 -> 505343.6289 | L227: =E227/'Charges Summary'!L$4 -> 435898.8236 | M227: =F227/'Charges Summary'!M$4 -> 375882.5698 | N227: =G227/'Charges Summary'!N$4 -> 323952.1866 | O227: =H227/'Charges Summary'!O$4 -> 279071.3654
A228: ='DNSP Inputs General'!A$84 -> HP Sodium 150W | D228: =D223*'DNSP Inputs General'!K84 -> 220169.9509 | E228: =E223*'DNSP Inputs General'!L84 -> 229204.6237 | F228: =F223*'DNSP Inputs General'!M84 -> 238532.2362 | G228: =G223*'DNSP Inputs General'!N84 -> 248096.1211 | H228: =H223*'DNSP Inputs General'!O84 -> 257921.5263 | K228: =D228/'Charges Summary'!K$4 -> 214749.6693 | L228: =E228/'Charges Summary'!L$4 -> 218058.1335 | M228: =F228/'Charges Summary'!M$4 -> 221345.376 | N228: =G228/'Charges Summary'!N$4 -> 224552.4545 | O228: =H228/'Charges Summary'!O$4 -> 227698.3483
A229: ='DNSP Inputs General'!A$85 -> HP Sodium 250W | D229: =D224*'DNSP Inputs General'!K85 -> 495381.4015 | E229: =E224*'DNSP Inputs General'!L85 -> 515704.8304 | F229: =F224*'DNSP Inputs General'!M85 -> 536687.1729 | G229: =G224*'DNSP Inputs General'!N85 -> 558201.0065 | H229: =H224*'DNSP Inputs General'!O85 -> 580303.1102 | K229: =D229/'Charges Summary'!K$4 -> 483185.7921 | L229: =E229/'Charges Summary'!L$4 -> 490625.4985 | M229: =F229/'Charges Summary'!M$4 -> 498017.4838 | N229: =G229/'Charges Summary'!N$4 -> 505229.2052 | O229: =H229/'Charges Summary'!O$4 -> 512303.3413
A230: ='DNSP Inputs General'!A$86 -> Mercury Vapour 50W | D230: =IF('DNSP Inputs General'!$B86='DNSP Inputs General'!$A$83,D$222,IF('DNSP Inputs General'!$B86='DNSP Inputs General'!$A$84,D$223,D$224))*'DNSP Inputs General'!$D86*'DNSP Inputs General'!K86 -> 11708.37445 | E230: =IF('DNSP Inputs General'!$B86='DNSP Inputs General'!$A$83,E$222,IF('DNSP Inputs General'!$B86='DNSP Inputs General'!$A$84,E$223,E$224))*'DNSP Inputs General'!$D86*'DNSP Inputs General'!L86 -> 12181.53793 | F230: =IF('DNSP Inputs General'!$B86='DNSP Inputs General'!$A$83,F$222,IF('DNSP Inputs General'!$B86='DNSP Inputs General'!$A$84,F$223,F$224))*'DNSP Inputs General'!$D86*'DNSP Inputs General'!M86 -> 12669.95955 | G230: =IF('DNSP Inputs General'!$B86='DNSP Inputs General'!$A$83,G$222,IF('DNSP Inputs General'!$B86='DNSP Inputs General'!$A$84,G$223,G$224))*'DNSP Inputs General'!$D86*'DNSP Inputs General'!N86 -> 13170.75202 | H230: =IF('DNSP Inputs General'!$B86='DNSP Inputs General'!$A$83,H$222,IF('DNSP Inputs General'!$B86='DNSP Inputs General'!$A$84,H$223,H$224))*'DNSP Inputs General'!$D86*'DNSP Inputs General'!O86 -> 13685.21267 | K230: =D230/'Charges Summary'!K$4 -> 11420.13036 | L230: =E230/'Charges Summary'!L$4 -> 11589.13542 | M230: =F230/'Charges Summary'!M$4 -> 11757.05642 | N230: =G230/'Charges Summary'!N$4 -> 11920.88244 | O230: =H230/'Charges Summary'!O$4 -> 12081.58298
A231: ='DNSP Inputs General'!A$87 -> Mercury Vapour 125W | D231: =IF('DNSP Inputs General'!$B87='DNSP Inputs General'!$A$83,D$222,IF('DNSP Inputs General'!$B87='DNSP Inputs General'!$A$84,D$223,D$224))*'DNSP Inputs General'!$D87*'DNSP Inputs General'!K87 -> 2208.173125 | E231: =IF('DNSP Inputs General'!$B87='DNSP Inputs General'!$A$83,E$222,IF('DNSP Inputs General'!$B87='DNSP Inputs General'!$A$84,E$223,E$224))*'DNSP Inputs General'!$D87*'DNSP Inputs General'!L87 -> 2297.410694 | F231: =IF('DNSP Inputs General'!$B87='DNSP Inputs General'!$A$83,F$222,IF('DNSP Inputs General'!$B87='DNSP Inputs General'!$A$84,F$223,F$224))*'DNSP Inputs General'!$D87*'DNSP Inputs General'!M87 -> 2389.525915 | G231: =IF('DNSP Inputs General'!$B87='DNSP Inputs General'!$A$83,G$222,IF('DNSP Inputs General'!$B87='DNSP Inputs General'!$A$84,G$223,G$224))*'DNSP Inputs General'!$D87*'DNSP Inputs General'!N87 -> 2483.974251 | H231: =IF('DNSP Inputs General'!$B87='DNSP Inputs General'!$A$83,H$222,IF('DNSP Inputs General'!$B87='DNSP Inputs General'!$A$84,H$223,H$224))*'DNSP Inputs General'!$D87*'DNSP Inputs General'!O87 -> 2581.000374 | K231: =D231/'Charges Summary'!K$4 -> 2153.810937 | L231: =E231/'Charges Summary'!L$4 -> 2185.684913 | M231: =F231/'Charges Summary'!M$4 -> 2217.354436 | N231: =G231/'Charges Summary'!N$4 -> 2248.251655 | O231: =H231/'Charges Summary'!O$4 -> 2278.559416
A232: ='DNSP Inputs General'!A$88 -> Mercury Vapour 250W | D232: =IF('DNSP Inputs General'!$B88='DNSP Inputs General'!$A$83,D$222,IF('DNSP Inputs General'!$B88='DNSP Inputs General'!$A$84,D$223,D$224))*'DNSP Inputs General'!$D88*'DNSP Inputs General'!K88 -> 39405.41985 | E232: =IF('DNSP Inputs General'!$B88='DNSP Inputs General'!$A$83,E$222,IF('DNSP Inputs General'!$B88='DNSP Inputs General'!$A$84,E$223,E$224))*'DNSP Inputs General'!$D88*'DNSP Inputs General'!L88 -> 41022.05957 | F232: =IF('DNSP Inputs General'!$B88='DNSP Inputs General'!$A$83,F$222,IF('DNSP Inputs General'!$B88='DNSP Inputs General'!$A$84,F$223,F$224))*'DNSP Inputs General'!$D88*'DNSP Inputs General'!M88 -> 42691.11297 | G232: =IF('DNSP Inputs General'!$B88='DNSP Inputs General'!$A$83,G$222,IF('DNSP Inputs General'!$B88='DNSP Inputs General'!$A$84,G$223,G$224))*'DNSP Inputs General'!$D88*'DNSP Inputs General'!N88 -> 44402.44416 | H232: =IF('DNSP Inputs General'!$B88='DNSP Inputs General'!$A$83,H$222,IF('DNSP Inputs General'!$B88='DNSP Inputs General'!$A$84,H$223,H$224))*'DNSP Inputs General'!$D88*'DNSP Inputs General'!O88 -> 46160.56967 | K232: =D232/'Charges Summary'!K$4 -> 38435.31256 | L232: =E232/'Charges Summary'!L$4 -> 39027.10861 | M232: =F232/'Charges Summary'!M$4 -> 39615.10864 | N232: =G232/'Charges Summary'!N$4 -> 40188.76948 | O232: =H232/'Charges Summary'!O$4 -> 40751.48602
A233: ='DNSP Inputs General'!A$89 -> Mercury Vapour 400W | D233: =IF('DNSP Inputs General'!$B89='DNSP Inputs General'!$A$83,D$222,IF('DNSP Inputs General'!$B89='DNSP Inputs General'!$A$84,D$223,D$224))*'DNSP Inputs General'!$D89*'DNSP Inputs General'!K89 -> 11955.0787 | E233: =IF('DNSP Inputs General'!$B89='DNSP Inputs General'!$A$83,E$222,IF('DNSP Inputs General'!$B89='DNSP Inputs General'!$A$84,E$223,E$224))*'DNSP Inputs General'!$D89*'DNSP Inputs General'!L89 -> 12445.54562 | F233: =IF('DNSP Inputs General'!$B89='DNSP Inputs General'!$A$83,F$222,IF('DNSP Inputs General'!$B89='DNSP Inputs General'!$A$84,F$223,F$224))*'DNSP Inputs General'!$D89*'DNSP Inputs General'!M89 -> 12951.91416 | G233: =IF('DNSP Inputs General'!$B89='DNSP Inputs General'!$A$83,G$222,IF('DNSP Inputs General'!$B89='DNSP Inputs General'!$A$84,G$223,G$224))*'DNSP Inputs General'!$D89*'DNSP Inputs General'!N89 -> 13471.10921 | H233: =IF('DNSP Inputs General'!$B89='DNSP Inputs General'!$A$83,H$222,IF('DNSP Inputs General'!$B89='DNSP Inputs General'!$A$84,H$223,H$224))*'DNSP Inputs General'!$D89*'DNSP Inputs General'!O89 -> 14004.50104 | K233: =D233/'Charges Summary'!K$4 -> 11660.76109 | L233: =E233/'Charges Summary'!L$4 -> 11840.30412 | M233: =F233/'Charges Summary'!M$4 -> 12018.69548 | N233: =G233/'Charges Summary'!N$4 -> 12192.73653 | O233: =H233/'Charges Summary'!O$4 -> 12363.45722
A234: ='DNSP Inputs General'!A$90 -> HP Sodium 100W | D234: =IF('DNSP Inputs General'!$B90='DNSP Inputs General'!$A$83,D$222,IF('DNSP Inputs General'!$B90='DNSP Inputs General'!$A$84,D$223,D$224))*'DNSP Inputs General'!$D90*'DNSP Inputs General'!K90 -> 2069.02818 | E234: =IF('DNSP Inputs General'!$B90='DNSP Inputs General'!$A$83,E$222,IF('DNSP Inputs General'!$B90='DNSP Inputs General'!$A$84,E$223,E$224))*'DNSP Inputs General'!$D90*'DNSP Inputs General'!L90 -> 2153.93074 | F234: =IF('DNSP Inputs General'!$B90='DNSP Inputs General'!$A$83,F$222,IF('DNSP Inputs General'!$B90='DNSP Inputs General'!$A$84,F$223,F$224))*'DNSP Inputs General'!$D90*'DNSP Inputs General'!M90 -> 2241.586177 | G234: =IF('DNSP Inputs General'!$B90='DNSP Inputs General'!$A$83,G$222,IF('DNSP Inputs General'!$B90='DNSP Inputs General'!$A$84,G$223,G$224))*'DNSP Inputs General'!$D90*'DNSP Inputs General'!N90 -> 2331.461963 | H234: =IF('DNSP Inputs General'!$B90='DNSP Inputs General'!$A$83,H$222,IF('DNSP Inputs General'!$B90='DNSP Inputs General'!$A$84,H$223,H$224))*'DNSP Inputs General'!$D90*'DNSP Inputs General'!O90 -> 2423.795363 | K234: =D234/'Charges Summary'!K$4 -> 2018.091549 | L234: =E234/'Charges Summary'!L$4 -> 2049.182557 | M234: =F234/'Charges Summary'!M$4 -> 2080.074136 | N234: =G234/'Charges Summary'!N$4 -> 2110.21238 | O234: =H234/'Charges Summary'!O$4 -> 2139.775647
A235: ='DNSP Inputs General'!A$91 -> HP Sodium 400W | D235: =IF('DNSP Inputs General'!$B91='DNSP Inputs General'!$A$83,D$222,IF('DNSP Inputs General'!$B91='DNSP Inputs General'!$A$84,D$223,D$224))*'DNSP Inputs General'!$D91*'DNSP Inputs General'!K91 -> 265808.1491 | E235: =IF('DNSP Inputs General'!$B91='DNSP Inputs General'!$A$83,E$222,IF('DNSP Inputs General'!$B91='DNSP Inputs General'!$A$84,E$223,E$224))*'DNSP Inputs General'!$D91*'DNSP Inputs General'!L91 -> 276713.1467 | F235: =IF('DNSP Inputs General'!$B91='DNSP Inputs General'!$A$83,F$222,IF('DNSP Inputs General'!$B91='DNSP Inputs General'!$A$84,F$223,F$224))*'DNSP Inputs General'!$D91*'DNSP Inputs General'!M91 -> 287971.6994 | G235: =IF('DNSP Inputs General'!$B91='DNSP Inputs General'!$A$83,G$222,IF('DNSP Inputs General'!$B91='DNSP Inputs General'!$A$84,G$223,G$224))*'DNSP Inputs General'!$D91*'DNSP Inputs General'!N91 -> 299515.4358 | H235: =IF('DNSP Inputs General'!$B91='DNSP Inputs General'!$A$83,H$222,IF('DNSP Inputs General'!$B91='DNSP Inputs General'!$A$84,H$223,H$224))*'DNSP Inputs General'!$D91*'DNSP Inputs General'!O91 -> 311374.8218 | K235: =D235/'Charges Summary'!K$4 -> 259264.3177 | L235: =E235/'Charges Summary'!L$4 -> 263256.2612 | M235: =F235/'Charges Summary'!M$4 -> 267222.5989 | N235: =G235/'Charges Summary'!N$4 -> 271092.212 | O235: =H235/'Charges Summary'!O$4 -> 274888.0005
A251: ='DNSP Inputs General'!A$109 -> Energy Efficient Lights
A252: ='DNSP Inputs General'!A$110 -> T5 2X14W | D252: =SUM('Charges Summary'!K83,'Charges Summary'!K8)*'DNSP Inputs General'!$D110*'DNSP Inputs General'!K110 -> 13784.48083 | E252: =SUM('Charges Summary'!L83,'Charges Summary'!L8)*'DNSP Inputs General'!$D110*'DNSP Inputs General'!L110 -> 17619.92779 | F252: =SUM('Charges Summary'!M83,'Charges Summary'!M8)*'DNSP Inputs General'!$D110*'DNSP Inputs General'!M110 -> 21225.70692 | G252: =SUM('Charges Summary'!N83,'Charges Summary'!N8)*'DNSP Inputs General'!$D110*'DNSP Inputs General'!N110 -> 24627.32971 | H252: =SUM('Charges Summary'!O83,'Charges Summary'!O8)*'DNSP Inputs General'!$D110*'DNSP Inputs General'!O110 -> 27853.42518 | K252: =D252/'Charges Summary'!K$4 -> 13445.12586 | L252: =E252/'Charges Summary'!L$4 -> 16763.05 | M252: =F252/'Charges Summary'!M$4 -> 19696.34022 | N252: =G252/'Charges Summary'!N$4 -> 22290.26117 | O252: =H252/'Charges Summary'!O$4 -> 24589.568
A253: ='DNSP Inputs General'!A$111 -> T5 2X24W | D253: =SUM('Charges Summary'!K99,'Charges Summary'!K8)*'DNSP Inputs General'!$D111*'DNSP Inputs General'!K111 -> 182126.5887 | E253: =SUM('Charges Summary'!L99,'Charges Summary'!L8)*'DNSP Inputs General'!$D111*'DNSP Inputs General'!L111 -> 220120.8482 | F253: =SUM('Charges Summary'!M99,'Charges Summary'!M8)*'DNSP Inputs General'!$D111*'DNSP Inputs General'!M111 -> 256045.4386 | G253: =SUM('Charges Summary'!N99,'Charges Summary'!N8)*'DNSP Inputs General'!$D111*'DNSP Inputs General'!N111 -> 290124.2373 | H253: =SUM('Charges Summary'!O99,'Charges Summary'!O8)*'DNSP Inputs General'!$D111*'DNSP Inputs General'!O111 -> 322630.014 | K253: =D253/'Charges Summary'!K$4 -> 177642.8824 | L253: =E253/'Charges Summary'!L$4 -> 209416.1127 | M253: =F253/'Charges Summary'!M$4 -> 237596.7072 | N253: =G253/'Charges Summary'!N$4 -> 262592.2135 | O253: =H253/'Charges Summary'!O$4 -> 284824.3121
A257: Total O & M | D257: =SUM(D227:D256) -> 1762715.147 | E257: =SUM(E227:E256) -> 1787644.55 | F257: =SUM(F227:F256) -> 1818475.171 | G257: =SUM(G227:G256) -> 1854341.496 | H257: =SUM(H227:H256) -> 1895051.436 | K257: =SUM(K227:K256) -> 1719319.523 | L257: =SUM(L227:L256) -> 1700709.295 | M257: =SUM(M227:M256) -> 1687449.365 | N257: =SUM(N227:N256) -> 1678369.385 | O257: =SUM(O227:O256) -> 1672989.797
A260: Public Lighting - Capital Charge | D260: Capital Charge - Nominal | K260: Capital Charge - Real 2015 $
D261: =D$2 -> 2016 | E261: 2017 | F261: 2018 | G261: 2019 | H261: 2020 | K261: =K$2 -> 2016 | L261: 2017 | M261: 2018 | N261: 2019 | O261: 2020
A263: Unit cost
A264: ='DNSP Inputs General'!A$83 -> Mercury Vapour 80W | D264: =SUM('Charges Summary'!K27,'Charges Summary'!K11) -> 22.95213469 | E264: =SUM('Charges Summary'!L27,'Charges Summary'!L11) -> 25.94428875 | F264: =SUM('Charges Summary'!M27,'Charges Summary'!M11) -> 28.93221951 | G264: =SUM('Charges Summary'!N27,'Charges Summary'!N11) -> 31.88817538 | H264: =SUM('Charges Summary'!O27,'Charges Summary'!O11) -> 34.77939304
A265: ='DNSP Inputs General'!A$84 -> HP Sodium 150W | D265: =SUM('Charges Summary'!K51,'Charges Summary'!K11) -> 24.72936313 | E265: =SUM('Charges Summary'!L51,'Charges Summary'!L11) -> 27.95823819 | F265: =SUM('Charges Summary'!M51,'Charges Summary'!M11) -> 31.17737434 | G265: =SUM('Charges Summary'!N51,'Charges Summary'!N11) -> 34.35604701 | H265: =SUM('Charges Summary'!O51,'Charges Summary'!O11) -> 37.45829353
A266: ='DNSP Inputs General'!A$85 -> HP Sodium 250W | D266: =SUM('Charges Summary'!K67,'Charges Summary'!K11) -> 24.81611403 | E266: =SUM('Charges Summary'!L67,'Charges Summary'!L11) -> 28.05654403 | F266: =SUM('Charges Summary'!M67,'Charges Summary'!M11) -> 31.28696588 | G266: =SUM('Charges Summary'!N67,'Charges Summary'!N11) -> 34.47650991 | H266: =SUM('Charges Summary'!O67,'Charges Summary'!O11) -> 37.58905727
A268: ='DNSP Inputs General'!A$82 -> Existing Lights
A269: ='DNSP Inputs General'!A$83 -> Mercury Vapour 80W | D269: =D264*'DNSP Inputs General'!K83 -> 449076.2847 | E269: =E264*'DNSP Inputs General'!L83 -> 438242.4489 | F269: =F264*'DNSP Inputs General'!M83 -> 421778.2636 | G269: =G264*'DNSP Inputs General'!N83 -> 400963.757 | H269: =H264*'DNSP Inputs General'!O83 -> 377016.3569 | K269: =D269/'Charges Summary'!K$4 -> 438020.6437 | L269: =E269/'Charges Summary'!L$4 -> 416930.2036 | M269: =F269/'Charges Summary'!M$4 -> 391388.0565 | N269: =G269/'Charges Summary'!N$4 -> 362913.3555 | O269: =H269/'Charges Summary'!O$4 -> 332837.6774
A270: ='DNSP Inputs General'!A$84 -> HP Sodium 150W | D270: =D265*'DNSP Inputs General'!K84 -> 61038.4779 | E270: =E265*'DNSP Inputs General'!L84 -> 70090.19587 | F270: =F265*'DNSP Inputs General'!M84 -> 79359.30493 | G270: =G265*'DNSP Inputs General'!N84 -> 88739.21572 | H270: =H265*'DNSP Inputs General'!O84 -> 98130.54388 | K270: =D270/'Charges Summary'!K$4 -> 59535.79444 | L270: =E270/'Charges Summary'!L$4 -> 66681.62729 | M270: =F270/'Charges Summary'!M$4 -> 73641.2632 | N270: =G270/'Charges Summary'!N$4 -> 80318.09852 | O270: =H270/'Charges Summary'!O$4 -> 86631.63205
A271: ='DNSP Inputs General'!A$85 -> HP Sodium 250W | D271: =D266*'DNSP Inputs General'!K85 -> 139892.3774 | E271: =E266*'DNSP Inputs General'!L85 -> 160639.0617 | F271: =F266*'DNSP Inputs General'!M85 -> 181882.652 | G271: =G266*'DNSP Inputs General'!N85 -> 203378.5771 | H271: =H266*'DNSP Inputs General'!O85 -> 224898.8127 | K271: =D271/'Charges Summary'!K$4 -> 136448.4193 | L271: =E271/'Charges Summary'!L$4 -> 152826.9954 | M271: =F271/'Charges Summary'!M$4 -> 168777.5398 | N271: =G271/'Charges Summary'!N$4 -> 184078.4873 | O271: =H271/'Charges Summary'!O$4 -> 198545.2278
A272: ='DNSP Inputs General'!A$86 -> Mercury Vapour 50W | D272: =IF('DNSP Inputs General'!$B86='DNSP Inputs General'!$A$83,D$264,IF('DNSP Inputs General'!$B86='DNSP Inputs General'!$A$84,D$265,D$266))*'DNSP Inputs General'!$D86*'DNSP Inputs General'!K86 -> 10148.55916 | E272: =IF('DNSP Inputs General'!$B86='DNSP Inputs General'!$A$83,E$264,IF('DNSP Inputs General'!$B86='DNSP Inputs General'!$A$84,E$265,E$266))*'DNSP Inputs General'!$D86*'DNSP Inputs General'!L86 -> 11651.44482 | F272: =IF('DNSP Inputs General'!$B86='DNSP Inputs General'!$A$83,F$264,IF('DNSP Inputs General'!$B86='DNSP Inputs General'!$A$84,F$265,F$266))*'DNSP Inputs General'!$D86*'DNSP Inputs General'!M86 -> 13192.60653 | G272: =IF('DNSP Inputs General'!$B86='DNSP Inputs General'!$A$83,G$264,IF('DNSP Inputs General'!$B86='DNSP Inputs General'!$A$84,G$265,G$266))*'DNSP Inputs General'!$D86*'DNSP Inputs General'!N86 -> 14754.77557 | H272: =IF('DNSP Inputs General'!$B86='DNSP Inputs General'!$A$83,H$264,IF('DNSP Inputs General'!$B86='DNSP Inputs General'!$A$84,H$265,H$266))*'DNSP Inputs General'!$D86*'DNSP Inputs General'!O86 -> 16321.82647 | K272: =D272/'Charges Summary'!K$4 -> 9898.715575 | L272: =E272/'Charges Summary'!L$4 -> 11084.82136 | M272: =F272/'Charges Summary'!M$4 -> 12242.04535 | N272: =G272/'Charges Summary'!N$4 -> 13354.58634 | O272: =H272/'Charges Summary'!O$4 -> 14409.23905
A273: ='DNSP Inputs General'!A$87 -> Mercury Vapour 125W | D273: =IF('DNSP Inputs General'!$B87='DNSP Inputs General'!$A$83,D$264,IF('DNSP Inputs General'!$B87='DNSP Inputs General'!$A$84,D$265,D$266))*'DNSP Inputs General'!$D87*'DNSP Inputs General'!K87 -> 1913.995464 | E273: =IF('DNSP Inputs General'!$B87='DNSP Inputs General'!$A$83,E$264,IF('DNSP Inputs General'!$B87='DNSP Inputs General'!$A$84,E$265,E$266))*'DNSP Inputs General'!$D87*'DNSP Inputs General'!L87 -> 2197.436324 | F273: =IF('DNSP Inputs General'!$B87='DNSP Inputs General'!$A$83,F$264,IF('DNSP Inputs General'!$B87='DNSP Inputs General'!$A$84,F$265,F$266))*'DNSP Inputs General'!$D87*'DNSP Inputs General'!M87 -> 2488.095962 | G273: =IF('DNSP Inputs General'!$B87='DNSP Inputs General'!$A$83,G$264,IF('DNSP Inputs General'!$B87='DNSP Inputs General'!$A$84,G$265,G$266))*'DNSP Inputs General'!$D87*'DNSP Inputs General'!N87 -> 2782.717535 | H273: =IF('DNSP Inputs General'!$B87='DNSP Inputs General'!$A$83,H$264,IF('DNSP Inputs General'!$B87='DNSP Inputs General'!$A$84,H$265,H$266))*'DNSP Inputs General'!$D87*'DNSP Inputs General'!O87 -> 3078.259815 | K273: =D273/'Charges Summary'!K$4 -> 1866.875526 | L273: =E273/'Charges Summary'!L$4 -> 2090.572414 | M273: =F273/'Charges Summary'!M$4 -> 2308.822258 | N273: =G273/'Charges Summary'!N$4 -> 2518.644991 | O273: =H273/'Charges Summary'!O$4 -> 2717.550124
A274: ='DNSP Inputs General'!A$88 -> Mercury Vapour 250W | D274: =IF('DNSP Inputs General'!$B88='DNSP Inputs General'!$A$83,D$264,IF('DNSP Inputs General'!$B88='DNSP Inputs General'!$A$84,D$265,D$266))*'DNSP Inputs General'!$D88*'DNSP Inputs General'!K88 -> 11127.82565 | E274: =IF('DNSP Inputs General'!$B88='DNSP Inputs General'!$A$83,E$264,IF('DNSP Inputs General'!$B88='DNSP Inputs General'!$A$84,E$265,E$266))*'DNSP Inputs General'!$D88*'DNSP Inputs General'!L88 -> 12778.13348 | F274: =IF('DNSP Inputs General'!$B88='DNSP Inputs General'!$A$83,F$264,IF('DNSP Inputs General'!$B88='DNSP Inputs General'!$A$84,F$265,F$266))*'DNSP Inputs General'!$D88*'DNSP Inputs General'!M88 -> 14467.968 | G274: =IF('DNSP Inputs General'!$B88='DNSP Inputs General'!$A$83,G$264,IF('DNSP Inputs General'!$B88='DNSP Inputs General'!$A$84,G$265,G$266))*'DNSP Inputs General'!$D88*'DNSP Inputs General'!N88 -> 16177.87466 | H274: =IF('DNSP Inputs General'!$B88='DNSP Inputs General'!$A$83,H$264,IF('DNSP Inputs General'!$B88='DNSP Inputs General'!$A$84,H$265,H$266))*'DNSP Inputs General'!$D88*'DNSP Inputs General'!O88 -> 17889.7151 | K274: =D274/'Charges Summary'!K$4 -> 10853.87387 | L274: =E274/'Charges Summary'!L$4 -> 12156.71783 | M274: =F274/'Charges Summary'!M$4 -> 13425.51375 | N274: =G274/'Charges Summary'!N$4 -> 14642.63708 | O274: =H274/'Charges Summary'!O$4 -> 15793.40289
A275: ='DNSP Inputs General'!A$89 -> Mercury Vapour 400W | D275: =IF('DNSP Inputs General'!$B89='DNSP Inputs General'!$A$83,D$264,IF('DNSP Inputs General'!$B89='DNSP Inputs General'!$A$84,D$265,D$266))*'DNSP Inputs General'!$D89*'DNSP Inputs General'!K89 -> 3376.033853 | E275: =IF('DNSP Inputs General'!$B89='DNSP Inputs General'!$A$83,E$264,IF('DNSP Inputs General'!$B89='DNSP Inputs General'!$A$84,E$265,E$266))*'DNSP Inputs General'!$D89*'DNSP Inputs General'!L89 -> 3876.715232 | F275: =IF('DNSP Inputs General'!$B89='DNSP Inputs General'!$A$83,F$264,IF('DNSP Inputs General'!$B89='DNSP Inputs General'!$A$84,F$265,F$266))*'DNSP Inputs General'!$D89*'DNSP Inputs General'!M89 -> 4389.388484 | G275: =IF('DNSP Inputs General'!$B89='DNSP Inputs General'!$A$83,G$264,IF('DNSP Inputs General'!$B89='DNSP Inputs General'!$A$84,G$265,G$266))*'DNSP Inputs General'!$D89*'DNSP Inputs General'!N89 -> 4908.151352 | H275: =IF('DNSP Inputs General'!$B89='DNSP Inputs General'!$A$83,H$264,IF('DNSP Inputs General'!$B89='DNSP Inputs General'!$A$84,H$265,H$266))*'DNSP Inputs General'!$D89*'DNSP Inputs General'!O89 -> 5427.500905 | K275: =D275/'Charges Summary'!K$4 -> 3292.920538 | L275: =E275/'Charges Summary'!L$4 -> 3688.186015 | M275: =F275/'Charges Summary'!M$4 -> 4073.121771 | N275: =G275/'Charges Summary'!N$4 -> 4442.380752 | O275: =H275/'Charges Summary'!O$4 -> 4791.507748
A276: ='DNSP Inputs General'!A$90 -> HP Sodium 100W | D276: =IF('DNSP Inputs General'!$B90='DNSP Inputs General'!$A$83,D$264,IF('DNSP Inputs General'!$B90='DNSP Inputs General'!$A$84,D$265,D$266))*'DNSP Inputs General'!$D90*'DNSP Inputs General'!K90 -> 573.6038469 | E276: =IF('DNSP Inputs General'!$B90='DNSP Inputs General'!$A$83,E$264,IF('DNSP Inputs General'!$B90='DNSP Inputs General'!$A$84,E$265,E$266))*'DNSP Inputs General'!$D90*'DNSP Inputs General'!L90 -> 658.6665882 | F276: =IF('DNSP Inputs General'!$B90='DNSP Inputs General'!$A$83,F$264,IF('DNSP Inputs General'!$B90='DNSP Inputs General'!$A$84,F$265,F$266))*'DNSP Inputs General'!$D90*'DNSP Inputs General'!M90 -> 745.7722434 | G276: =IF('DNSP Inputs General'!$B90='DNSP Inputs General'!$A$83,G$264,IF('DNSP Inputs General'!$B90='DNSP Inputs General'!$A$84,G$265,G$266))*'DNSP Inputs General'!$D90*'DNSP Inputs General'!N90 -> 833.9191485 | H276: =IF('DNSP Inputs General'!$B90='DNSP Inputs General'!$A$83,H$264,IF('DNSP Inputs General'!$B90='DNSP Inputs General'!$A$84,H$265,H$266))*'DNSP Inputs General'!$D90*'DNSP Inputs General'!O90 -> 922.1733472 | K276: =D276/'Charges Summary'!K$4 -> 559.4825084 | L276: =E276/'Charges Summary'!L$4 -> 626.634858 | M276: =F276/'Charges Summary'!M$4 -> 692.037438 | N276: =G276/'Charges Summary'!N$4 -> 754.7824238 | O276: =H276/'Charges Summary'!O$4 -> 814.1133122
A277: ='DNSP Inputs General'!A$91 -> HP Sodium 400W | D277: =IF('DNSP Inputs General'!$B91='DNSP Inputs General'!$A$83,D$264,IF('DNSP Inputs General'!$B91='DNSP Inputs General'!$A$84,D$265,D$266))*'DNSP Inputs General'!$D91*'DNSP Inputs General'!K91 -> 75062.43432 | E277: =IF('DNSP Inputs General'!$B91='DNSP Inputs General'!$A$83,E$264,IF('DNSP Inputs General'!$B91='DNSP Inputs General'!$A$84,E$265,E$266))*'DNSP Inputs General'!$D91*'DNSP Inputs General'!L91 -> 86194.53926 | F277: =IF('DNSP Inputs General'!$B91='DNSP Inputs General'!$A$83,F$264,IF('DNSP Inputs General'!$B91='DNSP Inputs General'!$A$84,F$265,F$266))*'DNSP Inputs General'!$D91*'DNSP Inputs General'!M91 -> 97593.27044 | G277: =IF('DNSP Inputs General'!$B91='DNSP Inputs General'!$A$83,G$264,IF('DNSP Inputs General'!$B91='DNSP Inputs General'!$A$84,G$265,G$266))*'DNSP Inputs General'!$D91*'DNSP Inputs General'!N91 -> 109127.3976 | H277: =IF('DNSP Inputs General'!$B91='DNSP Inputs General'!$A$83,H$264,IF('DNSP Inputs General'!$B91='DNSP Inputs General'!$A$84,H$265,H$266))*'DNSP Inputs General'!$D91*'DNSP Inputs General'!O91 -> 120674.569 | K277: =D277/'Charges Summary'!K$4 -> 73214.50033 | L277: =E277/'Charges Summary'!L$4 -> 82002.79753 | M277: =F277/'Charges Summary'!M$4 -> 90561.42466 | N277: =G277/'Charges Summary'!N$4 -> 98771.49576 | O277: =H277/'Charges Summary'!O$4 -> 106533.9541
A293: ='DNSP Inputs General'!A$109 -> Energy Efficient Lights
A294: ='DNSP Inputs General'!A$110 -> T5 2X14W | D294: =SUM('Charges Summary'!K85,'Charges Summary'!K11)*'DNSP Inputs General'!$D110*'DNSP Inputs General'!K110 -> 10628.8937 | E294: =SUM('Charges Summary'!L85,'Charges Summary'!L11)*'DNSP Inputs General'!$D110*'DNSP Inputs General'!L110 -> 13052.75787 | F294: =SUM('Charges Summary'!M85,'Charges Summary'!M11)*'DNSP Inputs General'!$D110*'DNSP Inputs General'!M110 -> 15545.13793 | G294: =SUM('Charges Summary'!N85,'Charges Summary'!N11)*'DNSP Inputs General'!$D110*'DNSP Inputs General'!N110 -> 18115.84795 | H294: =SUM('Charges Summary'!O85,'Charges Summary'!O11)*'DNSP Inputs General'!$D110*'DNSP Inputs General'!O110 -> 20752.56168 | K294: =D294/'Charges Summary'!K$4 -> 10367.22494 | L294: =E294/'Charges Summary'!L$4 -> 12417.98692 | M294: =F294/'Charges Summary'!M$4 -> 14425.07082 | N294: =G294/'Charges Summary'!N$4 -> 16396.70182 | O294: =H294/'Charges Summary'!O$4 -> 18320.78185
A295: ='DNSP Inputs General'!A$111 -> T5 2X24W | D295: =SUM('Charges Summary'!K101,'Charges Summary'!K11)*'DNSP Inputs General'!$D111*'DNSP Inputs General'!K111 -> 132173.1893 | E295: =SUM('Charges Summary'!L101,'Charges Summary'!L11)*'DNSP Inputs General'!$D111*'DNSP Inputs General'!L111 -> 152191.9007 | F295: =SUM('Charges Summary'!M101,'Charges Summary'!M11)*'DNSP Inputs General'!$D111*'DNSP Inputs General'!M111 -> 173845.8836 | G295: =SUM('Charges Summary'!N101,'Charges Summary'!N11)*'DNSP Inputs General'!$D111*'DNSP Inputs General'!N111 -> 196787.3582 | H295: =SUM('Charges Summary'!O101,'Charges Summary'!O11)*'DNSP Inputs General'!$D111*'DNSP Inputs General'!O111 -> 220686.0944 | K295: =D295/'Charges Summary'!K$4 -> 128919.267 | L295: =E295/'Charges Summary'!L$4 -> 144790.6298 | M295: =F295/'Charges Summary'!M$4 -> 161319.8412 | N295: =G295/'Charges Summary'!N$4 -> 178112.7576 | O295: =H295/'Charges Summary'!O$4 -> 194826.1548
A299: Total Capital Charge | D299: =SUM(D269:D298) -> 895011.6753 | E299: =SUM(E269:E298) -> 951573.3007 | F299: =SUM(F269:F298) -> 1005288.344 | G299: =SUM(G269:G298) -> 1056569.592 | H299: =SUM(H269:H298) -> 1105798.414 | K299: =SUM(K269:K298) -> 872977.7177 | L299: =SUM(L269:L298) -> 905297.173 | M299: =SUM(M269:M298) -> 932854.7368 | N299: =SUM(N269:N298) -> 956303.9281 | O299: =SUM(O269:O298) -> 976221.2411
A301: Check | C301: =SUM(D301:O301) -> 2.793967724e-09 | D301: =ABS(D215-SUM(D257,D299)) -> 4.656612873e-10 | E301: =ABS(E215-SUM(E257,E299)) -> 4.656612873e-10 | F301: =ABS(F215-SUM(F257,F299)) -> 0 | G301: =ABS(G215-SUM(G257,G299)) -> 9.313225746e-10 | H301: =ABS(H215-SUM(H257,H299)) -> 0 | K301: =ABS(K215-SUM(K257,K299)) -> 4.656612873e-10 | L301: =ABS(L215-SUM(L257,L299)) -> 0 | M301: =ABS(M215-SUM(M257,M299)) -> 0 | N301: =ABS(N215-SUM(N257,N299)) -> 4.656612873e-10 | O301: =ABS(O215-SUM(O257,O299)) -> 0

Sheet Charges Summary
A1: ='DNSP Inputs O & M'!$A$3 -> AusNet | D1: ='DNSP Inputs General'!K$2 -> 2016 | E1: ='DNSP Inputs General'!L$2 -> 2017 | F1: ='DNSP Inputs General'!M$2 -> 2018 | G1: ='DNSP Inputs General'!N$2 -> 2019 | H1: ='DNSP Inputs General'!O$2 -> 2020 | K1: =D1 -> 2016 | L1: =E1 -> 2017 | M1: 2018 | N1: 2019 | O1: 2020
A2: Nominal $ | D2: ='DNSP Inputs General'!$B$39 -> Central | K2: ='DNSP Inputs General'!$B$80 -> North & East
A4: ='Total RAB'!A20 -> CPI Index | D4: =(1+WACC!E6) -> 1.02524 | E4: =D4*(1+WACC!F6) -> 1.051117058 | F4: =E4*(1+WACC!G6) -> 1.077647252 | G4: =F4*(1+WACC!H6) -> 1.104847069 | H4: =G4*(1+WACC!I6) -> 1.132733409 | K4: =D4 -> 1.02524 | L4: =E4 -> 1.051117058 | M4: 1.077647252 | N4: 1.104847069 | O4: 1.132733409
A6: ='DNSP Inputs General'!$A$6 -> Poles and Brackets | D6: ='DNSP Inputs General'!F$2 -> 2011 | E6: ='DNSP Inputs General'!G$2 -> 2012 | F6: ='DNSP Inputs General'!H$2 -> 2013 | G6: ='DNSP Inputs General'!I$2 -> 2014 | H6: ='DNSP Inputs General'!J$2 -> 2015 | K6: ='DNSP Inputs General'!F$2 -> 2011 | L6: ='DNSP Inputs General'!G$2 -> 2012 | M6: ='DNSP Inputs General'!H$2 -> 2013 | N6: ='DNSP Inputs General'!I$2 -> 2014 | O6: ='DNSP Inputs General'!J$2 -> 2015
A7: O & M
A8: ='O & M 2016-2020'!A$10 -> Dedicated poles - inspection | D8: ='O & M 2016-2020'!$B$10*D$4 -> 1.322603409 | E8: ='O & M 2016-2020'!$Y$10*E$4 -> 1.355985919 | F8: ='O & M 2016-2020'!$AV$10*F$4 -> 1.390211004 | G8: ='O & M 2016-2020'!$BS$10*G$4 -> 1.425299929 | H8: ='O & M 2016-2020'!$CP$10*H$4 -> 1.4612745 | K8: ='O & M 2016-2020'!$M$10*K$4 -> 1.328768361 | L8: ='O & M 2016-2020'!$AJ$10*L$4 -> 1.362306474 | M8: ='O & M 2016-2020'!$BG$10*M$4 -> 1.396691089 | N8: ='O & M 2016-2020'!$CD$10*N$4 -> 1.431943573 | O8: ='O & M 2016-2020'!$DA$10*O$4 -> 1.468085828
A10: Capital Charge
A11: Depreciation and Return | D11: ='Depn & WACC Post 2004 Central'!H$77 -> 12.64670274 | E11: ='Depn & WACC Post 2004 Central'!H$123 -> 14.15801449 | F11: ='Depn & WACC Post 2004 Central'!H$169 -> 15.67902221 | G11: ='Depn & WACC Post 2004 Central'!H$215 -> 17.20182841 | H11: ='Depn & WACC Post 2004 Central'!H$261 -> 18.71515587 | K11: ='Depn & WACC Post 2004 N & E'!H$77 -> 12.95282143 | L11: ='Depn & WACC Post 2004 N & E'!H$123 -> 14.61309969 | M11: ='Depn & WACC Post 2004 N & E'!H$169 -> 16.30018751 | N11: ='Depn & WACC Post 2004 N & E'!H$215 -> 18.00306022 | O11: ='Depn & WACC Post 2004 N & E'!H$261 -> 19.70695516
A13: Total Charge | D13: =SUM(D8,D11) -> 13.96930615 | E13: =SUM(E8,E11) -> 15.51400041 | F13: =SUM(F8,F11) -> 17.06923322 | G13: =SUM(G8,G11) -> 18.62712834 | H13: =SUM(H8,H11) -> 20.17643037 | K13: =SUM(K8,K11) -> 14.28158979 | L13: =SUM(L8,L11) -> 15.97540617 | M13: =SUM(M8,M11) -> 17.6968786 | N13: =SUM(N8,N11) -> 19.43500379 | O13: =SUM(O8,O11) -> 21.17504098
A18: ='DNSP Inputs General'!$A$8 -> Existing Lights
A20: ='O & M 2016-2020'!$A$8 -> MV80 | D20: =D$1 -> 2016 | E20: =E$1 -> 2017 | F20: 2018 | G20: 2019 | H20: 2020 | K20: =K$1 -> 2016 | L20: =L$1 -> 2017 | M20: 2018 | N20: 2019 | O20: 2020
A22: O & M Charge
A23: ='O & M 2016-2020'!A$9 -> Bulk change & repairs | D23: ='O & M 2016-2020'!$B$9*D$4 -> 19.15706508 | E23: ='O & M 2016-2020'!$Y$9*E$4 -> 19.64058941 | F23: ='O & M 2016-2020'!$AV$9*F$4 -> 20.13631788 | G23: ='O & M 2016-2020'!$BS$9*G$4 -> 20.64455855 | H23: ='O & M 2016-2020'!$CP$9*H$4 -> 21.1656272 | K23: ='O & M 2016-2020'!$M$9*K$4 -> 23.66376455 | L23: ='O & M 2016-2020'!$AJ$9*L$4 -> 24.26103797 | M23: ='O & M 2016-2020'!$BG$9*M$4 -> 24.87338657 | N23: ='O & M 2016-2020'!$CD$9*N$4 -> 25.50119085 | O23: ='O & M 2016-2020'!$DA$9*O$4 -> 26.1448409
A24: ='O & M 2016-2020'!A$11 -> Other costs | D24: ='O & M 2016-2020'!$B$11*D$4 -> 1.487303607 | E24: ='O & M 2016-2020'!$Y$11*E$4 -> 1.501303383 | F24: ='O & M 2016-2020'!$AV$11*F$4 -> 1.515944007 | G24: ='O & M 2016-2020'!$BS$11*G$4 -> 1.531632674 | H24: ='O & M 2016-2020'!$CP$11*H$4 -> 1.548233089 | K24: ='O & M 2016-2020'!$M$11*K$4 -> 1.487303607 | L24: ='O & M 2016-2020'!$AJ$11*L$4 -> 1.501303383 | M24: ='O & M 2016-2020'!$BG$11*M$4 -> 1.515944007 | N24: ='O & M 2016-2020'!$CD$11*N$4 -> 1.531632674 | O24: ='O & M 2016-2020'!$DA$11*O$4 -> 1.548233089
D25: =SUM(D23:D24) -> 20.64436869 | E25: =SUM(E23:E24) -> 21.14189279 | F25: =SUM(F23:F24) -> 21.65226189 | G25: =SUM(G23:G24) -> 22.17619122 | H25: =SUM(H23:H24) -> 22.71386029 | K25: =SUM(K23:K24) -> 25.15106816 | L25: =SUM(L23:L24) -> 25.76234136 | M25: =SUM(M23:M24) -> 26.38933058 | N25: =SUM(N23:N24) -> 27.03282352 | O25: =SUM(O23:O24) -> 27.69307399
A26: Capital Charge
A27: Depreciation and Return | D27: ='Depn & WACC Post 2004 Central'!H$40 -> 9.098895794 | E27: ='Depn & WACC Post 2004 Central'!H$86 -> 10.31083893 | F27: ='Depn & WACC Post 2004 Central'!H$132 -> 11.49454366 | G27: ='Depn & WACC Post 2004 Central'!H$178 -> 12.63478927 | H27: ='Depn & WACC Post 2004 Central'!H$224 -> 13.71519604 | K27: ='Depn & WACC Post 2004 N & E'!H$40 -> 9.999313261 | L27: ='Depn & WACC Post 2004 N & E'!H$86 -> 11.33118906 | M27: ='Depn & WACC Post 2004 N & E'!H$132 -> 12.632032 | N27: ='Depn & WACC Post 2004 N & E'!H$178 -> 13.88511516 | O27: ='Depn & WACC Post 2004 N & E'!H$224 -> 15.07243789
A29: Poles & Brackets Charge | D29: =D$13 -> 13.96930615 | E29: =E$13 -> 15.51400041 | F29: =F$13 -> 17.06923322 | G29: =G$13 -> 18.62712834 | H29: =H$13 -> 20.17643037 | K29: =K$13 -> 14.28158979 | L29: =L$13 -> 15.97540617 | M29: =M$13 -> 17.6968786 | N29: =N$13 -> 19.43500379 | O29: =O$13 -> 21.17504098
A31: Total Charge | D31: =SUM(D25,D27,D29) -> 43.71257063 | E31: =SUM(E25,E27,E29) -> 46.96673213 | F31: =SUM(F25,F27,F29) -> 50.21603876 | G31: =SUM(G25,G27,G29) -> 53.43810883 | H31: =SUM(H25,H27,H29) -> 56.6054867 | K31: =SUM(K25,K27,K29) -> 49.43197122 | L31: =SUM(L25,L27,L29) -> 53.06893658 | M31: =SUM(M25,M27,M29) -> 56.71824118 | N31: =SUM(N25,N27,N29) -> 60.35294247 | O31: =SUM(O25,O27,O29) -> 63.94055286
A33: WDV RAB - MV 80 Luminair
A34: RAB WDV | D34: ='Depn & WACC Post 2004 Central'!I$8 -> 41.21752537 | E34: ='Depn & WACC Post 2004 Central'!I$40 -> 46.39025551 | F34: ='Depn & WACC Post 2004 Central'!I$86 -> 51.37207356 | G34: ='Depn & WACC Post 2004 Central'!I$132 -> 55.84757351 | H34: ='Depn & WACC Post 2004 Central'!I$178 -> 59.72823524 | K34: ='Depn & WACC Post 2004 N & E'!I$8 -> 45.29636973 | L34: ='Depn & WACC Post 2004 N & E'!I$40 -> 50.98098798 | M34: ='Depn & WACC Post 2004 N & E'!I$86 -> 56.45580167 | N34: ='Depn & WACC Post 2004 N & E'!I$132 -> 61.37419255 | O34: ='Depn & WACC Post 2004 N & E'!I$178 -> 65.63888061
A36: Avoided Costs - MV 80 O & M
A37: Materials & labour - bulk lamp change | D37: ='O & M 2016-2020'!$G$9*D$4 -> -22.50832825 | E37: ='O & M 2016-2020'!$AD$9*E$4 -> -23.07643845 | F37: ='O & M 2016-2020'!$BA$9*F$4 -> -23.65888776 | G37: ='O & M 2016-2020'!$BX$9*G$4 -> -24.25603809 | H37: ='O & M 2016-2020'!$CU$9*H$4 -> -24.86826049 | K37: ='O & M 2016-2020'!$R$9*K$4 -> -27.05664248 | L37: ='O & M 2016-2020'!$AO$9*L$4 -> -27.73955213 | M37: ='O & M 2016-2020'!$BL$9*M$4 -> -28.43969843 | N37: ='O & M 2016-2020'!$CI$9*N$4 -> -29.15751642 | O37: ='O & M 2016-2020'!$DF$9*O$4 -> -29.89345213
A38: Materials & Labour - repair of faults | D38: ='O & M 2016-2020'!$G$10*D$4 -> -2.035743971 | E38: ='O & M 2016-2020'!$AD$10*E$4 -> -2.087126149 | F38: ='O & M 2016-2020'!$BA$10*F$4 -> -2.139805213 | G38: ='O & M 2016-2020'!$BX$10*G$4 -> -2.193813897 | H38: ='O & M 2016-2020'!$CU$10*H$4 -> -2.24918576 | K38: ='O & M 2016-2020'!$R$10*K$4 -> -2.602274732 | L38: ='O & M 2016-2020'!$AO$10*L$4 -> -2.667956146 | M38: ='O & M 2016-2020'!$BL$10*M$4 -> -2.735295359 | N38: ='O & M 2016-2020'!$CI$10*N$4 -> -2.804334214 | O38: ='O & M 2016-2020'!$DF$10*O$4 -> -2.87511561
D39: =SUM(D37:D38) -> -24.54407222 | E39: =SUM(E37:E38) -> -25.1635646 | F39: =SUM(F37:F38) -> -25.79869297 | G39: =SUM(G37:G38) -> -26.44985198 | H39: =SUM(H37:H38) -> -27.11744625 | K39: =SUM(K37:K38) -> -29.65891721 | L39: =SUM(L37:L38) -> -30.40750828 | M39: =SUM(M37:M38) -> -31.17499379 | N39: =SUM(N37:N38) -> -31.96185063 | O39: =SUM(O37:O38) -> -32.76856774
A44: ='O & M 2016-2020'!$A$14 -> S-HP 150 | D44: =D$1 -> 2016 | E44: =E$1 -> 2017 | F44: 2018 | G44: 2019 | H44: 2020 | K44: =K$1 -> 2016 | L44: =L$1 -> 2017 | M44: 2018 | N44: 2019 | O44: 2020
A46: O & M Charge
A47: ='O & M 2016-2020'!A$15 -> Patrols and repairs | D47: ='O & M 2016-2020'!$B$15*D$4 -> 73.90307337 | E47: ='O & M 2016-2020'!$Y$15*E$4 -> 75.76730887 | F47: ='O & M 2016-2020'!$AV$15*F$4 -> 77.67861084 | G47: ='O & M 2016-2020'!$BS$15*G$4 -> 79.63818514 | H47: ='O & M 2016-2020'!$CP$15*H$4 -> 81.64724272 | K47: ='O & M 2016-2020'!$M$15*K$4 -> 86.38442671 | L47: ='O & M 2016-2020'!$AJ$15*L$4 -> 88.56369156 | M47: ='O & M 2016-2020'!$BG$15*M$4 -> 90.79797423 | N47: ='O & M 2016-2020'!$CD$15*N$4 -> 93.08868127 | O47: ='O & M 2016-2020'!$DA$15*O$4 -> 95.43722937
A48: ='O & M 2016-2020'!A$17 -> Other costs | D48: ='O & M 2016-2020'!$B$17*D$4 -> 1.487303607 | E48: ='O & M 2016-2020'!$Y$17*E$4 -> 1.501303383 | F48: ='O & M 2016-2020'!$AV$17*F$4 -> 1.515944007 | G48: ='O & M 2016-2020'!$BS$17*G$4 -> 1.531632674 | H48: ='O & M 2016-2020'!$CP$17*H$4 -> 1.548233089 | K48: ='O & M 2016-2020'!$M$17*K$4 -> 1.487303607 | L48: ='O & M 2016-2020'!$AJ$17*L$4 -> 1.501303383 | M48: ='O & M 2016-2020'!$BG$17*M$4 -> 1.515944007 | N48: ='O & M 2016-2020'!$CD$17*N$4 -> 1.531632674 | O48: ='O & M 2016-2020'!$DA$17*O$4 -> 1.548233089
D49: =SUM(D47:D48) -> 75.39037698 | E49: =SUM(E47:E48) -> 77.26861225 | F49: =SUM(F47:F48) -> 79.19455484 | G49: =SUM(G47:G48) -> 81.16981781 | H49: =SUM(H47:H48) -> 83.19547581 | K49: =SUM(K47:K48) -> 87.87173032 | L49: =SUM(L47:L48) -> 90.06499495 | M49: =SUM(M47:M48) -> 92.31391824 | N49: =SUM(N47:N48) -> 94.62031394 | O49: =SUM(O47:O48) -> 96.98546246
A50: Capital Charge
A51: Depreciation and Return | D51: ='Depn & WACC Post 2004 Central'!H$41 -> 10.94837162 | E51: ='Depn & WACC Post 2004 Central'!H$87 -> 12.40665888 | F51: ='Depn & WACC Post 2004 Central'!H$133 -> 13.83096789 | G51: ='Depn & WACC Post 2004 Central'!H$179 -> 15.20298412 | H51: ='Depn & WACC Post 2004 Central'!H$225 -> 16.50299845 | K51: ='Depn & WACC Post 2004 N & E'!H$41 -> 11.7765417 | L51: ='Depn & WACC Post 2004 N & E'!H$87 -> 13.3451385 | M51: ='Depn & WACC Post 2004 N & E'!H$133 -> 14.87718683 | N51: ='Depn & WACC Post 2004 N & E'!H$179 -> 16.35298679 | O51: ='Depn & WACC Post 2004 N & E'!H$225 -> 17.75133838
A53: Poles & Brackets Charge | D53: =D$13 -> 13.96930615 | E53: =E$13 -> 15.51400041 | F53: =F$13 -> 17.06923322 | G53: =G$13 -> 18.62712834 | H53: =H$13 -> 20.17643037 | K53: =K$13 -> 14.28158979 | L53: =L$13 -> 15.97540617 | M53: =M$13 -> 17.6968786 | N53: =N$13 -> 19.43500379 | O53: =O$13 -> 21.17504098
A55: Total Charge | D55: =SUM(D49,D51,D53) -> 100.3080548 | E55: =SUM(E49,E51,E53) -> 105.1892715 | F55: =SUM(F49,F51,F53) -> 110.094756 | G55: =SUM(G49,G51,G53) -> 114.9999303 | H55: =SUM(H49,H51,H53) -> 119.8749046 | K55: =SUM(K49,K51,K53) -> 113.9298618 | L55: =SUM(L49,L51,L53) -> 119.3855396 | M55: =SUM(M49,M51,M53) -> 124.8879837 | N55: =SUM(N49,N51,N53) -> 130.4083045 | O55: =SUM(O49,O51,O53) -> 135.9118418
A60: ='O & M 2016-2020'!$A$20 -> S-HP 250 | D60: =D$1 -> 2016 | E60: =E$1 -> 2017 | F60: 2018 | G60: 2019 | H60: 2020 | K60: =K$1 -> 2016 | L60: =L$1 -> 2017 | M60: 2018 | N60: 2019 | O60: 2020
A62: O & M Charge
A63: ='O & M 2016-2020'!A$21 -> Patrols and repairs | D63: ='O & M 2016-2020'!$B$21*D$4 -> 74.62578541 | E63: ='O & M 2016-2020'!$Y$21*E$4 -> 76.5078335 | F63: ='O & M 2016-2020'!$AV$21*F$4 -> 78.43740288 | G63: ='O & M 2016-2020'!$BS$21*G$4 -> 80.41571803 | H63: ='O & M 2016-2020'!$CP$21*H$4 -> 82.44399886 | K63: ='O & M 2016-2020'!$M$21*K$4 -> 85.06177796 | L63: ='O & M 2016-2020'!$AJ$21*L$4 -> 87.2072305 | M63: ='O & M 2016-2020'!$BG$21*M$4 -> 89.40685267 | N63: ='O & M 2016-2020'!$CD$21*N$4 -> 91.66203673 | O63: ='O & M 2016-2020'!$DA$21*O$4 -> 93.97417465
A64: ='O & M 2016-2020'!A$23 -> Other costs | D64: ='O & M 2016-2020'!$B$23*D$4 -> 1.487303607 | E64: ='O & M 2016-2020'!$Y$23*E$4 -> 1.501303383 | F64: ='O & M 2016-2020'!$AV$23*F$4 -> 1.515944007 | G64: ='O & M 2016-2020'!$BS$23*G$4 -> 1.531632674 | H64: ='O & M 2016-2020'!$CP$23*H$4 -> 1.548233089 | K64: ='O & M 2016-2020'!$M$23*K$4 -> 1.487303607 | L64: ='O & M 2016-2020'!$AJ$23*L$4 -> 1.501303383 | M64: ='O & M 2016-2020'!$BG$23*M$4 -> 1.515944007 | N64: ='O & M 2016-2020'!$CD$23*N$4 -> 1.531632674 | O64: ='O & M 2016-2020'!$DA$23*O$4 -> 1.548233089
D65: =SUM(D63:D64) -> 76.11308901 | E65: =SUM(E63:E64) -> 78.00913688 | F65: =SUM(F63:F64) -> 79.95334689 | G65: =SUM(G63:G64) -> 81.9473507 | H65: =SUM(H63:H64) -> 83.99223195 | K65: =SUM(K63:K64) -> 86.54908157 | L65: =SUM(L63:L64) -> 88.70853389 | M65: =SUM(M63:M64) -> 90.92279668 | N65: =SUM(N63:N64) -> 93.1936694 | O65: =SUM(O63:O64) -> 95.52240774
A66: Capital Charge
A67: Depreciation and Return | D67: ='Depn & WACC Post 2004 Central'!H$42 -> 11.16810962 | E67: ='Depn & WACC Post 2004 Central'!H$88 -> 12.65566526 | F67: ='Depn & WACC Post 2004 Central'!H$134 -> 14.1085607 | G67: ='Depn & WACC Post 2004 Central'!H$180 -> 15.50811382 | H67: ='Depn & WACC Post 2004 Central'!H$226 -> 16.83421993 | K67: ='Depn & WACC Post 2004 N & E'!H$42 -> 11.8632926 | L67: ='Depn & WACC Post 2004 N & E'!H$88 -> 13.44344434 | M67: ='Depn & WACC Post 2004 N & E'!H$134 -> 14.98677837 | N67: ='Depn & WACC Post 2004 N & E'!H$180 -> 16.47344969 | O67: ='Depn & WACC Post 2004 N & E'!H$226 -> 17.88210212
A69: Poles & Brackets Charge | D69: =D$13 -> 13.96930615 | E69: =E$13 -> 15.51400041 | F69: =F$13 -> 17.06923322 | G69: =G$13 -> 18.62712834 | H69: =H$13 -> 20.17643037 | K69: =K$13 -> 14.28158979 | L69: =L$13 -> 15.97540617 | M69: =M$13 -> 17.6968786 | N69: =N$13 -> 19.43500379 | O69: =O$13 -> 21.17504098
A71: Total Charge | D71: =SUM(D65,D67,D69) -> 101.2505048 | E71: =SUM(E65,E67,E69) -> 106.1788026 | F71: =SUM(F65,F67,F69) -> 111.1311408 | G71: =SUM(G65,G67,G69) -> 116.0825929 | H71: =SUM(H65,H67,H69) -> 121.0028822 | K71: =SUM(K65,K67,K69) -> 112.693964 | L71: =SUM(L65,L67,L69) -> 118.1273844 | M71: =SUM(M65,M67,M69) -> 123.6064537 | N71: =SUM(N65,N67,N69) -> 129.1021229 | O71: =SUM(O65,O67,O69) -> 134.5795508
A76: ='DNSP Inputs General'!$A$11 -> Energy Efficient Lights
A78: ='O & M 2016-2020'!$A$26 -> T5 (2 X 14W) | D78: =D$1 -> 2016 | E78: =E$1 -> 2017 | F78: 2018 | G78: 2019 | H78: 2020 | K78: =K$1 -> 2016 | L78: =L$1 -> 2017 | M78: 2018 | N78: 2019 | O78: 2020
A80: O & M Charge
A81: ='O & M 2016-2020'!A$27 -> Bulk change & repairs | D81: ='O & M 2016-2020'!$B$27*D$4 -> 22.67491771 | E81: ='O & M 2016-2020'!$Y$27*E$4 -> 23.24723263 | F81: ='O & M 2016-2020'!$AV$27*F$4 -> 23.83399278 | G81: ='O & M 2016-2020'!$BS$27*G$4 -> 24.43556276 | H81: ='O & M 2016-2020'!$CP$27*H$4 -> 25.05231637 | K81: ='O & M 2016-2020'!$M$27*K$4 -> 27.97530055 | L81: ='O & M 2016-2020'!$AJ$27*L$4 -> 28.68139714 | M81: ='O & M 2016-2020'!$BG$27*M$4 -> 29.4053156 | N81: ='O & M 2016-2020'!$CD$27*N$4 -> 30.14750577 | O81: ='O & M 2016-2020'!$DA$27*O$4 -> 30.90842881
A82: ='O & M 2016-2020'!A$29 -> Other costs | D82: ='O & M 2016-2020'!$B$29*D$4 -> 1.487303607 | E82: ='O & M 2016-2020'!$Y$29*E$4 -> 1.501303383 | F82: ='O & M 2016-2020'!$AV$29*F$4 -> 1.515944007 | G82: ='O & M 2016-2020'!$BS$29*G$4 -> 1.531632674 | H82: ='O & M 2016-2020'!$CP$29*H$4 -> 1.548233089 | K82: ='O & M 2016-2020'!$M$29*K$4 -> 1.487303607 | L82: ='O & M 2016-2020'!$AJ$29*L$4 -> 1.501303383 | M82: ='O & M 2016-2020'!$BG$29*M$4 -> 1.515944007 | N82: ='O & M 2016-2020'!$CD$29*N$4 -> 1.531632674 | O82: ='O & M 2016-2020'!$DA$29*O$4 -> 1.548233089
D83: =SUM(D81:D82) -> 24.16222132 | E83: =SUM(E81:E82) -> 24.74853602 | F83: =SUM(F81:F82) -> 25.34993679 | G83: =SUM(G81:G82) -> 25.96719544 | H83: =SUM(H81:H82) -> 26.60054946 | K83: =SUM(K81:K82) -> 29.46260416 | L83: =SUM(L81:L82) -> 30.18270052 | M83: =SUM(M81:M82) -> 30.92125961 | N83: =SUM(N81:N82) -> 31.67913844 | O83: =SUM(O81:O82) -> 32.4566619
A84: Capital Charge
A85: Depreciation and Return | D85: ='Depn & WACC Post 2004 Central'!$H$69 -> 10.7896923 | E85: ='Depn & WACC Post 2004 Central'!$H$115 -> 8.755289963 | F85: ='Depn & WACC Post 2004 Central'!$H$161 -> 7.368611995 | G85: ='Depn & WACC Post 2004 Central'!$H$207 -> 6.353430483 | H85: ='Depn & WACC Post 2004 Central'!$H$253 -> 5.569125445 | K85: ='Depn & WACC Post 2004 N & E'!$H$69 -> 10.7896923 | L85: ='Depn & WACC Post 2004 N & E'!$H$115 -> 8.755289963 | M85: ='Depn & WACC Post 2004 N & E'!$H$161 -> 7.368611995 | N85: ='Depn & WACC Post 2004 N & E'!$H$207 -> 6.353430483 | O85: ='Depn & WACC Post 2004 N & E'!$H$253 -> 5.569125445
A87: Poles & Brackets Charge | D87: =D$13 -> 13.96930615 | E87: =E$13 -> 15.51400041 | F87: =F$13 -> 17.06923322 | G87: =G$13 -> 18.62712834 | H87: =H$13 -> 20.17643037 | K87: =K$13 -> 14.28158979 | L87: =L$13 -> 15.97540617 | M87: =M$13 -> 17.6968786 | N87: =N$13 -> 19.43500379 | O87: =O$13 -> 21.17504098
A89: Total Charge | D89: =SUM(D83,D85,D87) -> 48.92121976 | E89: =SUM(E83,E85,E87) -> 49.01782639 | F89: =SUM(F83,F85,F87) -> 49.787782 | G89: =SUM(G83,G85,G87) -> 50.94775426 | H89: =SUM(H83,H85,H87) -> 52.34610527 | K89: =SUM(K83,K85,K87) -> 54.53388625 | L89: =SUM(L83,L85,L87) -> 54.91339665 | M89: =SUM(M83,M85,M87) -> 55.9867502 | N89: =SUM(N83,N85,N87) -> 57.46757272 | O89: =SUM(O83,O85,O87) -> 59.20082833
A94: ='O & M 2016-2020'!$A$32 -> T5 (2 X 24W) | D94: =D$1 -> 2016 | E94: =E$1 -> 2017 | F94: 2018 | G94: 2019 | H94: 2020 | K94: =K$1 -> 2016 | L94: =L$1 -> 2017 | M94: 2018 | N94: 2019 | O94: 2020
A96: O & M Charge
A97: ='O & M 2016-2020'!A$33 -> Bulk change & repairs | D97: ='O & M 2016-2020'!$B$33*D$4 -> 26.11205372 | E97: ='O & M 2016-2020'!$Y$33*E$4 -> 26.77112196 | F97: ='O & M 2016-2020'!$AV$33*F$4 -> 27.44682508 | G97: ='O & M 2016-2020'!$BS$33*G$4 -> 28.13958294 | H97: ='O & M 2016-2020'!$CP$33*H$4 -> 28.84982601 | K97: ='O & M 2016-2020'!$M$33*K$4 -> 31.51705997 | L97: ='O & M 2016-2020'!$AJ$33*L$4 -> 32.31255056 | M97: ='O & M 2016-2020'!$BG$33*M$4 -> 33.12811934 | N97: ='O & M 2016-2020'!$CD$33*N$4 -> 33.96427307 | O97: ='O & M 2016-2020'!$DA$33*O$4 -> 34.82153132
A98: ='O & M 2016-2020'!A$35 -> Other costs | D98: ='O & M 2016-2020'!$B$35*D$4 -> 1.487303607 | E98: ='O & M 2016-2020'!$Y$35*E$4 -> 1.501303383 | F98: ='O & M 2016-2020'!$AV$35*F$4 -> 1.515944007 | G98: ='O & M 2016-2020'!$BS$35*G$4 -> 1.531632674 | H98: ='O & M 2016-2020'!$CP$35*H$4 -> 1.548233089 | K98: ='O & M 2016-2020'!$M$35*K$4 -> 1.487303607 | L98: ='O & M 2016-2020'!$AJ$35*L$4 -> 1.501303383 | M98: ='O & M 2016-2020'!$BG$35*M$4 -> 1.515944007 | N98: ='O & M 2016-2020'!$CD$35*N$4 -> 1.531632674 | O98: ='O & M 2016-2020'!$DA$35*O$4 -> 1.548233089
D99: =SUM(D97:D98) -> 27.59935733 | E99: =SUM(E97:E98) -> 28.27242534 | F99: =SUM(F97:F98) -> 28.96276908 | G99: =SUM(G97:G98) -> 29.67121561 | H99: =SUM(H97:H98) -> 30.3980591 | K99: =SUM(K97:K98) -> 33.00436357 | L99: =SUM(L97:L98) -> 33.81385394 | M99: =SUM(M97:M98) -> 34.64406334 | N99: =SUM(N97:N98) -> 35.49590574 | O99: =SUM(O97:O98) -> 36.36976441
A100: Capital Charge
A101: Depreciation and Return | D101: ='Depn & WACC Post 2004 Central'!$H$70 -> 11.96347211 | E101: ='Depn & WACC Post 2004 Central'!$H$116 -> 9.707752958 | F101: ='Depn & WACC Post 2004 Central'!$H$162 -> 8.170222253 | G101: ='Depn & WACC Post 2004 Central'!$H$208 -> 7.044602043 | H101: ='Depn & WACC Post 2004 Central'!$H$254 -> 6.1749747 | K101: ='Depn & WACC Post 2004 N & E'!$H$70 -> 11.96347211 | L101: ='Depn & WACC Post 2004 N & E'!$H$116 -> 9.707752958 | M101: ='Depn & WACC Post 2004 N & E'!$H$162 -> 8.170222253 | N101: ='Depn & WACC Post 2004 N & E'!$H$208 -> 7.044602043 | O101: ='Depn & WACC Post 2004 N & E'!$H$254 -> 6.1749747
A103: Poles & Brackets Charge | D103: =D$13 -> 13.96930615 | E103: =E$13 -> 15.51400041 | F103: =F$13 -> 17.06923322 | G103: =G$13 -> 18.62712834 | H103: =H$13 -> 20.17643037 | K103: =K$13 -> 14.28158979 | L103: =L$13 -> 15.97540617 | M103: =M$13 -> 17.6968786 | N103: =N$13 -> 19.43500379 | O103: =O$13 -> 21.17504098
A105: Total Charge | D105: =SUM(D99,D101,D103) -> 53.53213559 | E105: =SUM(E99,E101,E103) -> 53.49417871 | F105: =SUM(F99,F101,F103) -> 54.20222455 | G105: =SUM(G99,G101,G103) -> 55.342946 | H105: =SUM(H99,H101,H103) -> 56.74946417 | K105: =SUM(K99,K101,K103) -> 59.24942548 | L105: =SUM(L99,L101,L103) -> 59.49701307 | M105: =SUM(M99,M101,M103) -> 60.5111642 | N105: =SUM(N99,N101,N103) -> 61.97551158 | O105: =SUM(O99,O101,O103) -> 63.71978009

Sheet O & M 2016-2020
A1: ='DNSP Inputs O & M'!$A$3 -> AusNet
A3: Public Lighting O & M Costs | B3: Year | C3: 2016 | M3: Year | N3: =C3 -> 2016 | Y3: Year | Z3: =C3+1 -> 2017 | AJ3: Year | AK3: =Z3 -> 2017 | AV3: Year | AW3: =Z3+1 -> 2018 | BG3: Year | BH3: =AW3 -> 2018 | BS3: Year | BT3: =AW3+1 -> 2019 | CD3: Year | CE3: =BT3 -> 2019 | CP3: Year | CQ3: =BT3+1 -> 2020 | DA3: Year | DB3: =CQ3 -> 2020
A4: ='DNSP Inputs O & M'!C5 -> Real 2015 $
A6: Summary
B7: ='DNSP Inputs O & M'!$A$58 -> SP AusNet - Central | M7: ='DNSP Inputs O & M'!$A$63 -> SP AusNet - North/East | Y7: ='DNSP Inputs O & M'!$A$58 -> SP AusNet - Central | AJ7: ='DNSP Inputs O & M'!$A$63 -> SP AusNet - North/East | AV7: ='DNSP Inputs O & M'!$A$58 -> SP AusNet - Central | BG7: ='DNSP Inputs O & M'!$A$63 -> SP AusNet - North/East | BS7: ='DNSP Inputs O & M'!$A$58 -> SP AusNet - Central | CD7: ='DNSP Inputs O & M'!$A$63 -> SP AusNet - North/East | CP7: ='DNSP Inputs O & M'!$A$58 -> SP AusNet - Central | DA7: ='DNSP Inputs O & M'!$A$63 -> SP AusNet - North/East
A8: =$A$70 -> MV80 | D8: Avoided Costs - MV 80 O & M | O8: Avoided Costs - MV 80 O & M | AA8: Avoided Costs - MV 80 O & M | AL8: Avoided Costs - MV 80 O & M | AX8: Avoided Costs - MV 80 O & M | BI8: Avoided Costs - MV 80 O & M | BU8: Avoided Costs - MV 80 O & M | CF8: Avoided Costs - MV 80 O & M | CR8: Avoided Costs - MV 80 O & M | DC8: Avoided Costs - MV 80 O & M
A9: =$A$71 -> Bulk change & repairs | B9: =G91*C40+N91*C41+U91*C42 -> 18.68544447 | D9: Materials & labour - bulk lamp change | G9: =-((G73+G82)*C40+(N73+N82)*C41+(U73+U82)*C42)*2 -> -21.95420414 | M9: =G91*M40+N91*M41+U91*M42+'DNSP Inputs O & M'!$D$55 -> 23.08119519 | O9: Materials & labour - bulk lamp change | R9: =-((G73+G82)*M40+(N73+N82)*M41+(U73+U82)*M42)*2 -> -26.39054512 | Y9: =AD91*Z40+AK91*Z41+AR91*Z42 -> 18.68544447 | AA9: Materials & labour - bulk lamp change | AD9: =-((AD73+AD82)*Z40+(AK73+AK82)*Z41+(AR73+AR82)*Z42)*2 -> -21.95420414 | AJ9: =AD91*AJ40+AK91*AJ41+AR91*AJ42+'DNSP Inputs O & M'!$E$55 -> 23.08119519 | AL9: Materials & labour - bulk lamp change | AO9: =-((AD73+AD82)*AJ40+(AK73+AK82)*AJ41+(AR73+AR82)*AJ42)*2 -> -26.39054512 | AV9: =BA91*AW40+BH91*AW41+BO91*AW42 -> 18.68544447 | AX9: Materials & labour - bulk lamp change | BA9: =-((BA73+BA82)*AW40+(BH73+BH82)*AW41+(BO73+BO82)*AW42)*2 -> -21.95420414 | BG9: =BA91*BG40+BH91*BG41+BO91*BG42+'DNSP Inputs O & M'!$F$55 -> 23.08119519 | BI9: Materials & labour - bulk lamp change | BL9: =-((BA73+BA82)*BG40+(BH73+BH82)*BG41+(BO73+BO82)*BG42)*2 -> -26.39054512 | BS9: =BX91*BT40+CE91*BT41+CL91*BT42 -> 18.68544447 | BU9: Materials & labour - bulk lamp change | BX9: =-((BX73+BX82)*BT40+(CE73+CE82)*BT41+(CL73+CL82)*BT42)*2 -> -21.95420414 | CD9: =BX91*CD40+CE91*CD41+CL91*CD42+'DNSP Inputs O & M'!$G$55 -> 23.08119519 | CF9: Materials & labour - bulk lamp change | CI9: =-((BX73+BX82)*CD40+(CE73+CE82)*CD41+(CL73+CL82)*CD42)*2 -> -26.39054512 | CP9: =CU91*CQ40+DB91*CQ41+DI91*CQ42 -> 18.68544447 | CR9: Materials & labour - bulk lamp change | CU9: =-((CU73+CU82)*CQ40+(DB73+DB82)*CQ41+(DI73+DI82)*CQ42)*2 -> -21.95420414 | DA9: =CU91*DA40+DB91*DA41+DI91*DA42+'DNSP Inputs O & M'!$H$55 -> 23.08119519 | DC9: Materials & labour - bulk lamp change | DF9: =-((CU73+CU82)*DA40+(DB73+DB82)*DA41+(DI73+DI82)*DA42)*2 -> -26.39054512
A10: =$A$93 -> Dedicated poles - inspection | B10: =(G94*C40+N94*C41+U94*C42)*C44 -> 1.29004273 | D10: Materials & Labour - repair of faults | G10: =-((G77+G85+G87)*C40+(N77+N85+N87)*C41+(U77+U85+U87)*C42)/2 -> -1.985626752 | M10: =(G94*C40+N94*C41+U94*C42)*M44 -> 1.296055909 | O10: Materials & Labour - repair of faults | R10: =-((G77+G85+G87)*M40+(N77+N85+N87)*M41+(U77+U85+U87)*M42)/2 -> -2.538210304 | Y10: =(AD94*Z40+AK94*Z41+AR94*Z42)*Z44 -> 1.29004273 | AA10: Materials & Labour - repair of faults | AD10: =-((AD77+AD85+AD87)*Z40+(AK77+AK85+AK87)*Z41+(AR77+AR85+AR87)*Z42)/2 -> -1.985626752 | AJ10: =(AD94*Z40+AK94*Z41+AR94*Z42)*AJ44 -> 1.296055909 | AL10: Materials & Labour - repair of faults | AO10: =-((AD77+AD85+AD87)*AJ40+(AK77+AK85+AK87)*AJ41+(AR77+AR85+AR87)*AJ42)/2 -> -2.538210304 | AV10: =(BA94*AW40+BH94*AW41+BO94*AW42)*AW44 -> 1.29004273 | AX10: Materials & Labour - repair of faults | BA10: =-((BA77+BA85+BA87)*AW40+(BH77+BH85+BH87)*AW41+(BO77+BO85+BO87)*AW42)/2 -> -1.985626752 | BG10: =(BA94*AW40+BH94*AW41+BO94*AW42)*BG44 -> 1.296055909 | BI10: Materials & Labour - repair of faults | BL10: =-((BA77+BA85+BA87)*BG40+(BH77+BH85+BH87)*BG41+(BO77+BO85+BO87)*BG42)/2 -> -2.538210304 | BS10: =(BX94*BT40+CE94*BT41+CL94*BT42)*BT44 -> 1.29004273 | BU10: Materials & Labour - repair of faults | BX10: =-((BX77+BX85+BX87)*BT40+(CE77+CE85+CE87)*BT41+(CL77+CL85+CL87)*BT42)/2 -> -1.985626752 | CD10: =(BX94*BT40+CE94*BT41+CL94*BT42)*CD44 -> 1.296055909 | CF10: Materials & Labour - repair of faults | CI10: =-((BX77+BX85+BX87)*CD40+(CE77+CE85+CE87)*CD41+(CL77+CL85+CL87)*CD42)/2 -> -2.538210304 | CP10: =(CU94*CQ40+DB94*CQ41+DI94*CQ42)*CQ44 -> 1.29004273 | CR10: Materials & Labour - repair of faults | CU10: =-((CU77+CU85+CU87)*CQ40+(DB77+DB85+DB87)*CQ41+(DI77+DI85+DI87)*CQ42)/2 -> -1.985626752 | DA10: =(CU94*CQ40+DB94*CQ41+DI94*CQ42)*DA44 -> 1.296055909 | DC10: Materials & Labour - repair of faults | DF10: =-((CU77+CU85+CU87)*DA40+(DB77+DB85+DB87)*DA41+(DI77+DI85+DI87)*DA42)/2 -> -2.538210304
A11: Other costs | B11: =IF(C52=0,0,C50/C52) -> 1.450688236 | G11: =SUM(G9:G10) -> -23.93983089 | M11: =IF(C52=0,0,C50/C52) -> 1.450688236 | R11: =SUM(R9:R10) -> -28.92875542 | Y11: =IF(Z52=0,0,Z50/Z52) -> 1.428293236 | AD11: =SUM(AD9:AD10) -> -23.93983089 | AJ11: =IF(Z52=0,0,Z50/Z52) -> 1.428293236 | AO11: =SUM(AO9:AO10) -> -28.92875542 | AV11: =IF(AW52=0,0,AW50/AW52) -> 1.406716348 | BA11: =SUM(BA9:BA10) -> -23.93983089 | BG11: =IF(AW52=0,0,AW50/AW52) -> 1.406716348 | BL11: =SUM(BL9:BL10) -> -28.92875542 | BS11: =IF(BT52=0,0,BT50/BT52) -> 1.386284778 | BX11: =SUM(BX9:BX10) -> -23.93983089 | CD11: =IF(BT52=0,0,BT50/BT52) -> 1.386284778 | CI11: =SUM(CI9:CI10) -> -28.92875542 | CP11: =IF(CQ52=0,0,CQ50/CQ52) -> 1.366811535 | CU11: =SUM(CU9:CU10) -> -23.93983089 | DA11: =IF(CQ52=0,0,CQ50/CQ52) -> 1.366811535 | DF11: =SUM(DF9:DF10) -> -28.92875542
A14: =$A$111 -> S-HP 150
A15: =$A$112 -> Patrols and repairs | B15: =G128*E40+N128*E41+U128*E42 -> 72.08368126 | M15: =G128*O40+N128*O41+U128*O42+'DNSP Inputs O & M'!$D$98 -> 84.25776083 | Y15: =AD128*AB40+AK128*AB41+AR128*AB42 -> 72.08265561 | AJ15: =AD128*AL40+AK128*AL41+AR128*AL42+'DNSP Inputs O & M'!$E$98 -> 84.25673518 | AV15: =BA128*AY40+BH128*AY41+BO128*AY42 -> 72.08166743 | BG15: =BA128*BI40+BH128*BI41+BO128*BI42+'DNSP Inputs O & M'!$F$98 -> 84.255747 | BS15: =BX128*BV40+CE128*BV41+CL128*BV42 -> 72.08073171 | CD15: =BX128*CF40+CE128*CF41+CL128*CF42+'DNSP Inputs O & M'!$G$98 -> 84.25481127 | CP15: =CU128*CS40+DB128*CS41+DI128*CS42 -> 72.07983987 | DA15: =CU128*DC40+DB128*DC41+DI128*DC42+'DNSP Inputs O & M'!$H$98 -> 84.25391944
A16: =$A$10 -> Dedicated poles - inspection | B16: =B10 -> 1.29004273 | M16: =M10 -> 1.296055909 | Y16: =Y10 -> 1.29004273 | AJ16: =AJ10 -> 1.296055909 | AV16: =AV10 -> 1.29004273 | BG16: =BG10 -> 1.296055909 | BS16: =BS10 -> 1.29004273 | CD16: =CD10 -> 1.296055909 | CP16: =CP10 -> 1.29004273 | DA16: =DA10 -> 1.296055909
A17: =$A$11 -> Other costs | B17: =B11 -> 1.450688236 | M17: =M11 -> 1.450688236 | Y17: =Y11 -> 1.428293236 | AJ17: =AJ11 -> 1.428293236 | AV17: =AV11 -> 1.406716348 | BG17: =BG11 -> 1.406716348 | BS17: =BS11 -> 1.386284778 | CD17: =CD11 -> 1.386284778 | CP17: =CP11 -> 1.366811535 | DA17: =DA11 -> 1.366811535
A20: =$A$143 -> S-HP 250
A21: =$A$144 -> Patrols and repairs | B21: =G160*G40+N160*G41+U160*G42 -> 72.78860111 | M21: =G160*Q40+N160*Q41+U160*Q42+'DNSP Inputs O & M'!$D$141 -> 82.96767387 | Y21: =AD160*AD40+AK160*AD41+AR160*AD42 -> 72.78716765 | AJ21: =AD160*AN40+AK160*AN41+AR160*AN42+'DNSP Inputs O & M'!$E$141 -> 82.96624041 | AV21: =BA160*BA40+BH160*BA41+BO160*BA42 -> 72.78578656 | BG21: =BA160*BK40+BH160*BK41+BO160*BK42+'DNSP Inputs O & M'!$F$141 -> 82.96485932 | BS21: =BX160*BX40+CE160*BX41+CL160*BX42 -> 72.78447877 | CD21: =BX160*CH40+CE160*CH41+CL160*CH42+'DNSP Inputs O & M'!$G$141 -> 82.96355154 | CP21: =CU160*CU40+DB160*CU41+DI160*CU42 -> 72.78323233 | DA21: =CU160*DE40+DB160*DE41+DI160*DE42+'DNSP Inputs O & M'!$H$141 -> 82.96230509
A22: =$A$10 -> Dedicated poles - inspection | B22: =B10 -> 1.29004273 | M22: =M10 -> 1.296055909 | Y22: =Y10 -> 1.29004273 | AJ22: =AJ10 -> 1.296055909 | AV22: =AV10 -> 1.29004273 | BG22: =BG10 -> 1.296055909 | BS22: =BS10 -> 1.29004273 | CD22: =CD10 -> 1.296055909 | CP22: =CP10 -> 1.29004273 | DA22: =DA10 -> 1.296055909
A23: =$A$11 -> Other costs | B23: =B11 -> 1.450688236 | M23: =M11 -> 1.450688236 | Y23: =Y11 -> 1.428293236 | AJ23: =AJ11 -> 1.428293236 | AV23: =AV11 -> 1.406716348 | BG23: =BG11 -> 1.406716348 | BS23: =BS11 -> 1.386284778 | CD23: =CD11 -> 1.386284778 | CP23: =CP11 -> 1.366811535 | DA23: =DA11 -> 1.366811535
A26: =$A$177 -> T5 (2 X 14W)
A27: =$A$178 -> Bulk change & repairs | B27: =G198*I40+N198*I41+U198*I42 -> 22.11669239 | M27: =G198*S40+N198*S41+U198*S42+'DNSP Inputs O & M'!$D$214 -> 27.28658709 | Y27: =AD198*AF40+AK198*AF41+AR198*AF42 -> 22.11669239 | AJ27: =AD198*AP40+AK198*AP41+AR198*AP42+'DNSP Inputs O & M'!$E$214 -> 27.28658709 | AV27: =BA198*BC40+BH198*BC41+BO198*BC42 -> 22.11669239 | BG27: =BA198*BM40+BH198*BM41+BO198*BM42+'DNSP Inputs O & M'!$F$214 -> 27.28658709 | BS27: =BX198*BZ40+CE198*BZ41+CL198*BZ42 -> 22.11669239 | CD27: =BX198*CJ40+CE198*CJ41+CL198*CJ42+'DNSP Inputs O & M'!$G$214 -> 27.28658709 | CP27: =CU198*CW40+DB198*CW41+DI198*CW42 -> 22.11669239 | DA27: =CU198*DG40+DB198*DG41+DI198*DG42+'DNSP Inputs O & M'!$H$214 -> 27.28658709
A28: =$A$10 -> Dedicated poles - inspection | B28: =B10 -> 1.29004273 | M28: =M10 -> 1.296055909 | Y28: =Y10 -> 1.29004273 | AJ28: =AJ10 -> 1.296055909 | AV28: =AV10 -> 1.29004273 | BG28: =BG10 -> 1.296055909 | BS28: =BS10 -> 1.29004273 | CD28: =CD10 -> 1.296055909 | CP28: =CP10 -> 1.29004273 | DA28: =DA10 -> 1.296055909
A29: =$A$11 -> Other costs | B29: =B11 -> 1.450688236 | M29: =M11 -> 1.450688236 | Y29: =Y11 -> 1.428293236 | AJ29: =AJ11 -> 1.428293236 | AV29: =AV11 -> 1.406716348 | BG29: =BG11 -> 1.406716348 | BS29: =BS11 -> 1.386284778 | CD29: =CD11 -> 1.386284778 | CP29: =CP11 -> 1.366811535 | DA29: =DA11 -> 1.366811535
A32: =A215 -> T5 (2 X 24W)
A33: =A216 -> Bulk change & repairs | B33: =G236*K40+N236*K41+U236*K42 -> 25.46921084 | M33: =G236*U40+N236*U41+U236*U42+'DNSP Inputs O & M'!$D$263 -> 30.74115326 | Y33: =AD236*AH40+AK236*AH41+AR236*AH42 -> 25.46921084 | AJ33: =AD236*AR40+AK236*AR41+AR236*AR42+'DNSP Inputs O & M'!$E$263 -> 30.74115326 | AV33: =BA236*BE40+BH236*BE41+BO236*BE42 -> 25.46921084 | BG33: =BA236*BO40+BH236*BO41+BO236*BO42+'DNSP Inputs O & M'!$F$263 -> 30.74115326 | BS33: =BX236*CB40+CE236*CB41+CL236*CB42 -> 25.46921084 | CD33: =BX236*CL40+CE236*CL41+CL236*CL42+'DNSP Inputs O & M'!$G$263 -> 30.74115326 | CP33: =CU236*CY40+DB236*CY41+DI236*CY42 -> 25.46921084 | DA33: =CU236*DI40+DB236*DI41+DI236*DI42+'DNSP Inputs O & M'!$H$263 -> 30.74115326
A34: =$A$10 -> Dedicated poles - inspection | B34: =B10 -> 1.29004273 | M34: =M10 -> 1.296055909 | Y34: =Y10 -> 1.29004273 | AJ34: =AJ10 -> 1.296055909 | AV34: =AV10 -> 1.29004273 | BG34: =BG10 -> 1.296055909 | BS34: =BS10 -> 1.29004273 | CD34: =CD10 -> 1.296055909 | CP34: =CP10 -> 1.29004273 | DA34: =DA10 -> 1.296055909
A35: =$A$11 -> Other costs | B35: =B11 -> 1.450688236 | M35: =M11 -> 1.450688236 | Y35: =Y11 -> 1.428293236 | AJ35: =AJ11 -> 1.428293236 | AV35: =AV11 -> 1.406716348 | BG35: =BG11 -> 1.406716348 | BS35: =BS11 -> 1.386284778 | CD35: =CD11 -> 1.386284778 | CP35: =CP11 -> 1.366811535 | DA35: =DA11 -> 1.366811535
C38: =B7 -> SP AusNet - Central | M38: =M7 -> SP AusNet - North/East | Z38: =Y7 -> SP AusNet - Central | AJ38: =AJ7 -> SP AusNet - North/East | AW38: =AV7 -> SP AusNet - Central | BG38: =BG7 -> SP AusNet - North/East | BT38: =BS7 -> SP AusNet - Central | CD38: =CD7 -> SP AusNet - North/East | CQ38: =CP7 -> SP AusNet - Central | DA38: =DA7 -> SP AusNet - North/East
A39: ='DNSP Inputs O & M'!A57 -> Location of selected public lighting assets within distributors' areas (%) | C39: =$A$70 -> MV80 | E39: =$A$111 -> S-HP 150 | G39: =$A$143 -> S-HP 250 | I39: =$A$177 -> T5 (2 X 14W) | K39: =$A$215 -> T5 (2 X 24W) | M39: =$A$70 -> MV80 | O39: =$A$111 -> S-HP 150 | Q39: =$A$143 -> S-HP 250 | S39: =$A$177 -> T5 (2 X 14W) | U39: =$A$215 -> T5 (2 X 24W) | Z39: =$A$70 -> MV80 | AB39: =$A$111 -> S-HP 150 | AD39: =$A$143 -> S-HP 250 | AF39: =$A$177 -> T5 (2 X 14W) | AH39: =$A$215 -> T5 (2 X 24W) | AJ39: =$A$70 -> MV80 | AL39: =$A$111 -> S-HP 150 | AN39: =$A$143 -> S-HP 250 | AP39: =$A$177 -> T5 (2 X 14W) | AR39: =$A$215 -> T5 (2 X 24W) | AW39: =$A$70 -> MV80 | AY39: =$A$111 -> S-HP 150 | BA39: =$A$143 -> S-HP 250 | BC39: =$A$177 -> T5 (2 X 14W) | BE39: =$A$215 -> T5 (2 X 24W) | BG39: =$A$70 -> MV80 | BI39: =$A$111 -> S-HP 150 | BK39: =$A$143 -> S-HP 250 | BM39: =$A$177 -> T5 (2 X 14W) | BO39: =$A$215 -> T5 (2 X 24W) | BT39: =$A$70 -> MV80 | BV39: =$A$111 -> S-HP 150 | BX39: =$A$143 -> S-HP 250 | BZ39: =$A$177 -> T5 (2 X 14W) | CB39: =$A$215 -> T5 (2 X 24W) | CD39: =$A$70 -> MV80 | CF39: =$A$111 -> S-HP 150 | CH39: =$A$143 -> S-HP 250 | CJ39: =$A$177 -> T5 (2 X 14W) | CL39: =$A$215 -> T5 (2 X 24W) | CQ39: =$A$70 -> MV80 | CS39: =$A$111 -> S-HP 150 | CU39: =$A$143 -> S-HP 250 | CW39: =$A$177 -> T5 (2 X 14W) | CY39: =$A$215 -> T5 (2 X 24W) | DA39: =$A$70 -> MV80 | DC39: =$A$111 -> S-HP 150 | DE39: =$A$143 -> S-HP 250 | DG39: =$A$177 -> T5 (2 X 14W) | DI39: =$A$215 -> T5 (2 X 24W)
A40: ='DNSP Inputs O & M'!A59 -> Urban | C40: ='DNSP Inputs O & M'!$D$59 -> 0.96 | E40: ='DNSP Inputs O & M'!$D$102 -> 0.94 | G40: ='DNSP Inputs O & M'!$D$145 -> 0.9 | I40: ='DNSP Inputs O & M'!$D$218 -> 0.96 | K40: ='DNSP Inputs O & M'!$D$267 -> 0.96 | M40: ='DNSP Inputs O & M'!$D$64 -> 0.35 | O40: ='DNSP Inputs O & M'!$D$107 -> 0.3 | Q40: ='DNSP Inputs O & M'!$D$150 -> 0.37 | S40: ='DNSP Inputs O & M'!$D$223 -> 0.35 | U40: ='DNSP Inputs O & M'!$D$272 -> 0.35 | Z40: ='DNSP Inputs O & M'!$E$59 -> 0.96 | AB40: ='DNSP Inputs O & M'!$E$102 -> 0.94 | AD40: ='DNSP Inputs O & M'!$E$145 -> 0.9 | AF40: ='DNSP Inputs O & M'!$E$218 -> 0.96 | AH40: ='DNSP Inputs O & M'!$E$267 -> 0.96 | AJ40: ='DNSP Inputs O & M'!$E$64 -> 0.35 | AL40: ='DNSP Inputs O & M'!$E$107 -> 0.3 | AN40: ='DNSP Inputs O & M'!$E$150 -> 0.37 | AP40: ='DNSP Inputs O & M'!$E$223 -> 0.35 | AR40: ='DNSP Inputs O & M'!$E$272 -> 0.35 | AW40: ='DNSP Inputs O & M'!$F$59 -> 0.96 | AY40: ='DNSP Inputs O & M'!$F$102 -> 0.94 | BA40: ='DNSP Inputs O & M'!$F$145 -> 0.9 | BC40: ='DNSP Inputs O & M'!$F$218 -> 0.96 | BE40: ='DNSP Inputs O & M'!$F$267 -> 0.96 | BG40: ='DNSP Inputs O & M'!$F$64 -> 0.35 | BI40: ='DNSP Inputs O & M'!$F$107 -> 0.3 | BK40: ='DNSP Inputs O & M'!$F$150 -> 0.37 | BM40: ='DNSP Inputs O & M'!$F$223 -> 0.35 | BO40: ='DNSP Inputs O & M'!$F$272 -> 0.35 | BT40: ='DNSP Inputs O & M'!$G$59 -> 0.96 | BV40: ='DNSP Inputs O & M'!$G$102 -> 0.94 | BX40: ='DNSP Inputs O & M'!$G$145 -> 0.9 | BZ40: ='DNSP Inputs O & M'!$G$218 -> 0.96 | CB40: ='DNSP Inputs O & M'!$G$267 -> 0.96 | CD40: ='DNSP Inputs O & M'!$G$64 -> 0.35 | CF40: ='DNSP Inputs O & M'!$G$107 -> 0.3 | CH40: ='DNSP Inputs O & M'!$G$150 -> 0.37 | CJ40: ='DNSP Inputs O & M'!$G$223 -> 0.35 | CL40: ='DNSP Inputs O & M'!$G$272 -> 0.35 | CQ40: ='DNSP Inputs O & M'!$H$59 -> 0.96 | CS40: ='DNSP Inputs O & M'!$H$102 -> 0.94 | CU40: ='DNSP Inputs O & M'!$H$145 -> 0.9 | CW40: ='DNSP Inputs O & M'!$H$218 -> 0.96 | CY40: ='DNSP Inputs O & M'!$H$267 -> 0.96 | DA40: ='DNSP Inputs O & M'!$H$64 -> 0.35 | DC40: ='DNSP Inputs O & M'!$H$107 -> 0.3 | DE40: ='DNSP Inputs O & M'!$H$150 -> 0.37 | DG40: ='DNSP Inputs O & M'!$H$223 -> 0.35 | DI40: ='DNSP Inputs O & M'!$H$272 -> 0.35
A41: ='DNSP Inputs O & M'!A60 -> Rural | C41: ='DNSP Inputs O & M'!$D$60 -> 0.04 | E41: ='DNSP Inputs O & M'!$D$103 -> 0.06 | G41: ='DNSP Inputs O & M'!$D$146 -> 0.1 | I41: ='DNSP Inputs O & M'!$D$219 -> 0.04 | K41: ='DNSP Inputs O & M'!$D$268 -> 0.04 | M41: ='DNSP Inputs O & M'!$D$65 -> 0.53 | O41: ='DNSP Inputs O & M'!$D$108 -> 0.63 | Q41: ='DNSP Inputs O & M'!$D$151 -> 0.57 | S41: ='DNSP Inputs O & M'!$D$224 -> 0.53 | U41: ='DNSP Inputs O & M'!$D$273 -> 0.53 | Z41: ='DNSP Inputs O & M'!$E$60 -> 0.04 | AB41: ='DNSP Inputs O & M'!$E$103 -> 0.06 | AD41: ='DNSP Inputs O & M'!$E$146 -> 0.1 | AF41: ='DNSP Inputs O & M'!$E$219 -> 0.04 | AH41: ='DNSP Inputs O & M'!$E$268 -> 0.04 | AJ41: ='DNSP Inputs O & M'!$E$65 -> 0.53 | AL41: ='DNSP Inputs O & M'!$E$108 -> 0.63 | AN41: ='DNSP Inputs O & M'!$E$151 -> 0.57 | AP41: ='DNSP Inputs O & M'!$E$224 -> 0.53 | AR41: ='DNSP Inputs O & M'!$E$273 -> 0.53 | AW41: ='DNSP Inputs O & M'!$F$60 -> 0.04 | AY41: ='DNSP Inputs O & M'!$F$103 -> 0.06 | BA41: ='DNSP Inputs O & M'!$F$146 -> 0.1 | BC41: ='DNSP Inputs O & M'!$F$219 -> 0.04 | BE41: ='DNSP Inputs O & M'!$F$268 -> 0.04 | BG41: ='DNSP Inputs O & M'!$F$65 -> 0.53 | BI41: ='DNSP Inputs O & M'!$F$108 -> 0.63 | BK41: ='DNSP Inputs O & M'!$F$151 -> 0.57 | BM41: ='DNSP Inputs O & M'!$F$224 -> 0.53 | BO41: ='DNSP Inputs O & M'!$F$273 -> 0.53 | BT41: ='DNSP Inputs O & M'!$G$60 -> 0.04 | BV41: ='DNSP Inputs O & M'!$G$103 -> 0.06 | BX41: ='DNSP Inputs O & M'!$G$146 -> 0.1 | BZ41: ='DNSP Inputs O & M'!$G$219 -> 0.04 | CB41: ='DNSP Inputs O & M'!$G$268 -> 0.04 | CD41: ='DNSP Inputs O & M'!$G$65 -> 0.53 | CF41: ='DNSP Inputs O & M'!$G$108 -> 0.63 | CH41: ='DNSP Inputs O & M'!$G$151 -> 0.57 | CJ41: ='DNSP Inputs O & M'!$G$224 -> 0.53 | CL41: ='DNSP Inputs O & M'!$G$273 -> 0.53 | CQ41: ='DNSP Inputs O & M'!$H$60 -> 0.04 | CS41: ='DNSP Inputs O & M'!$H$103 -> 0.06 | CU41: ='DNSP Inputs O & M'!$H$146 -> 0.1 | CW41: ='DNSP Inputs O & M'!$H$219 -> 0.04 | CY41: ='DNSP Inputs O & M'!$H$268 -> 0.04 | DA41: ='DNSP Inputs O & M'!$H$65 -> 0.53 | DC41: ='DNSP Inputs O & M'!$H$108 -> 0.63 | DE41: ='DNSP Inputs O & M'!$H$151 -> 0.57 | DG41: ='DNSP Inputs O & M'!$H$224 -> 0.53 | DI41: ='DNSP Inputs O & M'!$H$273 -> 0.53
A42: ='DNSP Inputs O & M'!A61 -> Remote | C42: ='DNSP Inputs O & M'!$D$61 -> 0 | E42: ='DNSP Inputs O & M'!$D$104 -> 0 | G42: ='DNSP Inputs O & M'!$D$147 -> 0 | I42: ='DNSP Inputs O & M'!$D$220 -> 0 | K42: ='DNSP Inputs O & M'!$D$269 -> 0 | M42: ='DNSP Inputs O & M'!$D$66 -> 0.12 | O42: ='DNSP Inputs O & M'!$D$109 -> 0.07 | Q42: ='DNSP Inputs O & M'!$D$152 -> 0.06 | S42: ='DNSP Inputs O & M'!$D$225 -> 0.12 | U42: ='DNSP Inputs O & M'!$D$274 -> 0.12 | Z42: ='DNSP Inputs O & M'!$E$61 -> 0 | AB42: ='DNSP Inputs O & M'!$E$104 -> 0 | AD42: ='DNSP Inputs O & M'!$E$147 -> 0 | AF42: ='DNSP Inputs O & M'!$E$220 -> 0 | AH42: ='DNSP Inputs O & M'!$E$269 -> 0 | AJ42: ='DNSP Inputs O & M'!$E$66 -> 0.12 | AL42: ='DNSP Inputs O & M'!$E$109 -> 0.07 | AN42: ='DNSP Inputs O & M'!$E$152 -> 0.06 | AP42: ='DNSP Inputs O & M'!$E$225 -> 0.12 | AR42: ='DNSP Inputs O & M'!$E$274 -> 0.12 | AW42: ='DNSP Inputs O & M'!$F$61 -> 0 | AY42: ='DNSP Inputs O & M'!$F$104 -> 0 | BA42: ='DNSP Inputs O & M'!$F$147 -> 0 | BC42: ='DNSP Inputs O & M'!$F$220 -> 0 | BE42: ='DNSP Inputs O & M'!$F$269 -> 0 | BG42: ='DNSP Inputs O & M'!$F$66 -> 0.12 | BI42: ='DNSP Inputs O & M'!$F$109 -> 0.07 | BK42: ='DNSP Inputs O & M'!$F$152 -> 0.06 | BM42: ='DNSP Inputs O & M'!$F$225 -> 0.12 | BO42: ='DNSP Inputs O & M'!$F$274 -> 0.12 | BT42: ='DNSP Inputs O & M'!$G$61 -> 0 | BV42: ='DNSP Inputs O & M'!$G$104 -> 0 | BX42: ='DNSP Inputs O & M'!$G$147 -> 0 | BZ42: ='DNSP Inputs O & M'!$G$220 -> 0 | CB42: ='DNSP Inputs O & M'!$G$269 -> 0 | CD42: ='DNSP Inputs O & M'!$G$66 -> 0.12 | CF42: ='DNSP Inputs O & M'!$G$109 -> 0.07 | CH42: ='DNSP Inputs O & M'!$G$152 -> 0.06 | CJ42: ='DNSP Inputs O & M'!$G$225 -> 0.12 | CL42: ='DNSP Inputs O & M'!$G$274 -> 0.12 | CQ42: ='DNSP Inputs O & M'!$H$61 -> 0 | CS42: ='DNSP Inputs O & M'!$H$104 -> 0 | CU42: ='DNSP Inputs O & M'!$H$147 -> 0 | CW42: ='DNSP Inputs O & M'!$H$220 -> 0 | CY42: ='DNSP Inputs O & M'!$H$269 -> 0 | DA42: ='DNSP Inputs O & M'!$H$66 -> 0.12 | DC42: ='DNSP Inputs O & M'!$H$109 -> 0.07 | DE42: ='DNSP Inputs O & M'!$H$152 -> 0.06 | DG42: ='DNSP Inputs O & M'!$H$225 -> 0.12 | DI42: ='DNSP Inputs O & M'!$H$274 -> 0.12
A44: ='DNSP Inputs O & M'!A161 -> Proportion of lights on dedicated poles | C44: ='DNSP Inputs O & M'!$D$162 -> 0.381190625 | M44: ='DNSP Inputs O & M'!$D$163 -> 0.3829674402 | Z44: ='DNSP Inputs O & M'!$E$162 -> 0.381190625 | AJ44: ='DNSP Inputs O & M'!$E$163 -> 0.3829674402 | AW44: ='DNSP Inputs O & M'!$F$162 -> 0.381190625 | BG44: ='DNSP Inputs O & M'!$F$163 -> 0.3829674402 | BT44: ='DNSP Inputs O & M'!$G$162 -> 0.381190625 | CD44: ='DNSP Inputs O & M'!$G$163 -> 0.3829674402 | CQ44: ='DNSP Inputs O & M'!$H$162 -> 0.381190625 | DA44: ='DNSP Inputs O & M'!$H$163 -> 0.3829674402
A46: ='DNSP Inputs O & M'!A167 -> Other direct costs
A47: ='DNSP Inputs O & M'!$A$168 -> Call centre | C47: ='DNSP Inputs O & M'!$D$171 -> 58440 | Z47: ='DNSP Inputs O & M'!$E$171 -> 58440 | AW47: ='DNSP Inputs O & M'!$F$171 -> 58440 | BT47: ='DNSP Inputs O & M'!$G$171 -> 58440 | CQ47: ='DNSP Inputs O & M'!$H$171 -> 58440
A48: ='DNSP Inputs O & M'!$A$173 -> GIS and other | C48: ='DNSP Inputs O & M'!$D$173 -> 113442.5434 | Z48: ='DNSP Inputs O & M'!$E$173 -> 113442.5434 | AW48: ='DNSP Inputs O & M'!$F$173 -> 113442.5434 | BT48: ='DNSP Inputs O & M'!$G$173 -> 113442.5434 | CQ48: ='DNSP Inputs O & M'!$H$173 -> 113442.5434
A49: ='DNSP Inputs O & M'!A174 -> Complaints handling | C49: ='DNSP Inputs O & M'!$D$174 -> 34032.76303 | Z49: ='DNSP Inputs O & M'!$E$174 -> 34032.76303 | AW49: ='DNSP Inputs O & M'!$F$174 -> 34032.76303 | BT49: ='DNSP Inputs O & M'!$G$174 -> 34032.76303 | CQ49: ='DNSP Inputs O & M'!$H$174 -> 34032.76303
C50: =SUM(C47:C49) -> 205915.3065 | Z50: =SUM(Z47:Z49) -> 205915.3065 | AW50: =SUM(AW47:AW49) -> 205915.3065 | BT50: =SUM(BT47:BT49) -> 205915.3065 | CQ50: =SUM(CQ47:CQ49) -> 205915.3065
A52: ='DNSP Inputs General'!A77 -> Total Number of Lights | C52: =SUM('DNSP Inputs General'!$K$77,'DNSP Inputs General'!$K$119) -> 141943.1835 | Z52: =SUM('DNSP Inputs General'!$L$77,'DNSP Inputs General'!$L$119) -> 144168.7892 | AW52: =SUM('DNSP Inputs General'!$M$77,'DNSP Inputs General'!$M$119) -> 146380.119 | BT52: =SUM('DNSP Inputs General'!$N$77,'DNSP Inputs General'!$N$119) -> 148537.5225 | CQ52: =SUM('DNSP Inputs General'!$O$77,'DNSP Inputs General'!$O$119) -> 150653.767
A58: Mercury Vapour 80 Watt Standard Light Type - Cost build-up
A60: Addiitonal assumptions
A61: Proportion of lamps that will fail before bulk change | D61: ='DNSP Inputs O & M'!$D$27 -> 0.107 | AA61: ='DNSP Inputs O & M'!$E$27 -> 0.107 | AX61: ='DNSP Inputs O & M'!$F$27 -> 0.107 | BU61: ='DNSP Inputs O & M'!$G$27 -> 0.107 | CR61: ='DNSP Inputs O & M'!$H$27 -> 0.107
A62: Proportion of lamps that will fail before bulk change (per year) | D62: =D61/'DNSP Inputs O & M'!$D$25 -> 0.02675 | AA62: =AA61/'DNSP Inputs O & M'!$E$25 -> 0.02675 | AX62: =AX61/'DNSP Inputs O & M'!$F$25 -> 0.02675 | BU62: =BU61/'DNSP Inputs O & M'!$G$25 -> 0.02675 | CR62: =CR61/'DNSP Inputs O & M'!$H$25 -> 0.02675
A63: Overheads are applied to material and labour components
A64: All costs and charges are exclusive of GST
B66: Urban | I66: Rural | P66: Remote | Y66: Urban | AF66: Rural | AM66: Remote | AV66: Urban | BC66: Rural | BJ66: Remote | BS66: Urban | BZ66: Rural | CG66: Remote | CP66: Urban | CW66: Rural | DD66: Remote
B68: Unit rate | C68: Number | D68: Hours | E68: Cost | F68: Annualised | G68: Annualised | I68: Unit rate | J68: Number | K68: Hours | L68: Cost | M68: Annualised | N68: Annualised | P68: Unit rate | Q68: Number | R68: Hours | S68: Cost | T68: Annualised | U68: Annualised | Y68: Unit rate | Z68: Number | AA68: Hours | AB68: Cost | AC68: Annualised | AD68: Annualised | AF68: Unit rate | AG68: Number | AH68: Hours | AI68: Cost | AJ68: Annualised | AK68: Annualised | AM68: Unit rate | AN68: Number | AO68: Hours | AP68: Cost | AQ68: Annualised | AR68: Annualised | AV68: Unit rate | AW68: Number | AX68: Hours | AY68: Cost | AZ68: Annualised | BA68: Annualised | BC68: Unit rate | BD68: Number | BE68: Hours | BF68: Cost | BG68: Annualised | BH68: Annualised | BJ68: Unit rate | BK68: Number | BL68: Hours | BM68: Cost | BN68: Annualised | BO68: Annualised | BS68: Unit rate | BT68: Number | BU68: Hours | BV68: Cost | BW68: Annualised | BX68: Annualised | BZ68: Unit rate | CA68: Number | CB68: Hours | CC68: Cost | CD68: Annualised | CE68: Annualised | CG68: Unit rate | CH68: Number | CI68: Hours | CJ68: Cost | CK68: Annualised | CL68: Annualised | CP68: Unit rate | CQ68: Number | CR68: Hours | CS68: Cost | CT68: Annualised | CU68: Annualised | CW68: Unit rate | CX68: Number | CY68: Hours | CZ68: Cost | DA68: Annualised | DB68: Annualised | DD68: Unit rate | DE68: Number | DF68: Hours | DG68: Cost | DH68: Annualised | DI68: Annualised
F69: cost | G69: unit cost | M69: cost | N69: unit cost | T69: cost | U69: unit cost | AC69: cost | AD69: unit cost | AJ69: cost | AK69: unit cost | AQ69: cost | AR69: unit cost | AZ69: cost | BA69: unit cost | BG69: cost | BH69: unit cost | BN69: cost | BO69: unit cost | BW69: cost | BX69: unit cost | CD69: cost | CE69: unit cost | CK69: cost | CL69: unit cost | CT69: cost | CU69: unit cost | DA69: cost | DB69: unit cost | DH69: cost | DI69: unit cost
A70: MV80
A71: Bulk change & repairs
A72: Materials - bulk lamp change
A73: Lamp | B73: ='DNSP Inputs O & M'!$D$28 -> 5.57 | C73: ='DNSP Inputs O & M'!$D$34 -> 85 | E73: =B73*C73 -> 473.45 | F73: =E73/'DNSP Inputs O & M'!$D$25*0.8 -> 94.69 | G73: =(F73+F74+F75)/C73 -> 4.168597632 | I73: ='DNSP Inputs O & M'!$D$28*(1+'DNSP Inputs O & M'!$D$11) -> 5.8485 | J73: ='DNSP Inputs O & M'!$D$35 -> 70 | L73: =I73*J73 -> 409.395 | M73: =L73/'DNSP Inputs O & M'!$D$25*0.8 -> 81.879 | N73: =(M73+M74+M75)/J73 -> 4.377027513 | P73: ='DNSP Inputs O & M'!$D$28*(1+'DNSP Inputs O & M'!$D$11) -> 5.8485 | Q73: ='DNSP Inputs O & M'!$D$36 -> 50 | S73: =P73*Q73 -> 292.425 | T73: =S73/'DNSP Inputs O & M'!$D$25*0.8 -> 58.485 | U73: =(T73+T74+T75)/Q73 -> 4.377027513 | Y73: ='DNSP Inputs O & M'!$E$28 -> 5.57 | Z73: ='DNSP Inputs O & M'!$E$34 -> 85 | AB73: =Y73*Z73 -> 473.45 | AC73: =AB73/'DNSP Inputs O & M'!$E$25*0.8 -> 94.69 | AD73: =(AC73+AC74+AC75)/Z73 -> 4.168597632 | AF73: ='DNSP Inputs O & M'!$E$28*(1+'DNSP Inputs O & M'!$E$11) -> 5.8485 | AG73: ='DNSP Inputs O & M'!$E$35 -> 70 | AI73: =AF73*AG73 -> 409.395 | AJ73: =AI73/'DNSP Inputs O & M'!$E$25*0.8 -> 81.879 | AK73: =(AJ73+AJ74+AJ75)/AG73 -> 4.377027513 | AM73: ='DNSP Inputs O & M'!$E$28*(1+'DNSP Inputs O & M'!$E$11) -> 5.8485 | AN73: ='DNSP Inputs O & M'!$E$36 -> 50 | AP73: =AM73*AN73 -> 292.425 | AQ73: =AP73/'DNSP Inputs O & M'!$E$25*0.8 -> 58.485 | AR73: =(AQ73+AQ74+AQ75)/AN73 -> 4.377027513 | AV73: ='DNSP Inputs O & M'!$F$28 -> 5.57 | AW73: ='DNSP Inputs O & M'!$F$34 -> 85 | AY73: =AV73*AW73 -> 473.45 | AZ73: =AY73/'DNSP Inputs O & M'!$F$25*0.8 -> 94.69 | BA73: =(AZ73+AZ74+AZ75)/AW73 -> 4.168597632 | BC73: ='DNSP Inputs O & M'!$F$28*(1+'DNSP Inputs O & M'!$F$11) -> 5.8485 | BD73: ='DNSP Inputs O & M'!$F$35 -> 70 | BF73: =BC73*BD73 -> 409.395 | BG73: =BF73/'DNSP Inputs O & M'!$F$25*0.8 -> 81.879 | BH73: =(BG73+BG74+BG75)/BD73 -> 4.377027513 | BJ73: ='DNSP Inputs O & M'!$F$28*(1+'DNSP Inputs O & M'!$F$11) -> 5.8485 | BK73: ='DNSP Inputs O & M'!$F$36 -> 50 | BM73: =BJ73*BK73 -> 292.425 | BN73: =BM73/'DNSP Inputs O & M'!$F$25*0.8 -> 58.485 | BO73: =(BN73+BN74+BN75)/BK73 -> 4.377027513 | BS73: ='DNSP Inputs O & M'!$G$28 -> 5.57 | BT73: ='DNSP Inputs O & M'!$G$34 -> 85 | BV73: =BS73*BT73 -> 473.45 | BW73: =BV73/'DNSP Inputs O & M'!$G$25*0.8 -> 94.69 | BX73: =(BW73+BW74+BW75)/BT73 -> 4.168597632 | BZ73: ='DNSP Inputs O & M'!$G$28*(1+'DNSP Inputs O & M'!$G$11) -> 5.8485 | CA73: ='DNSP Inputs O & M'!$G$35 -> 70 | CC73: =BZ73*CA73 -> 409.395 | CD73: =CC73/'DNSP Inputs O & M'!$G$25*0.8 -> 81.879 | CE73: =(CD73+CD74+CD75)/CA73 -> 4.377027513 | CG73: ='DNSP Inputs O & M'!$G$28*(1+'DNSP Inputs O & M'!$G$11) -> 5.8485 | CH73: ='DNSP Inputs O & M'!$G$36 -> 50 | CJ73: =CG73*CH73 -> 292.425 | CK73: =CJ73/'DNSP Inputs O & M'!$G$25*0.8 -> 58.485 | CL73: =(CK73+CK74+CK75)/CH73 -> 4.377027513 | CP73: ='DNSP Inputs O & M'!$H$28 -> 5.57 | CQ73: ='DNSP Inputs O & M'!$H$34 -> 85 | CS73: =CP73*CQ73 -> 473.45 | CT73: =CS73/'DNSP Inputs O & M'!$H$25*0.8 -> 94.69 | CU73: =(CT73+CT74+CT75)/CQ73 -> 4.168597632 | CW73: ='DNSP Inputs O & M'!$H$28*(1+'DNSP Inputs O & M'!$H$11) -> 5.8485 | CX73: ='DNSP Inputs O & M'!$H$35 -> 70 | CZ73: =CW73*CX73 -> 409.395 | DA73: =CZ73/'DNSP Inputs O & M'!$H$25*0.8 -> 81.879 | DB73: =(DA73+DA74+DA75)/CX73 -> 4.377027513 | DD73: ='DNSP Inputs O & M'!$H$28*(1+'DNSP Inputs O & M'!$H$11) -> 5.8485 | DE73: ='DNSP Inputs O & M'!$H$36 -> 50 | DG73: =DD73*DE73 -> 292.425 | DH73: =DG73/'DNSP Inputs O & M'!$H$25*0.8 -> 58.485 | DI73: =(DH73+DH74+DH75)/DE73 -> 4.377027513
A74: PE cell | B74: ='DNSP Inputs O & M'!$D$29 -> 22.48671374 | C74: =C73*'DNSP Inputs O & M'!$D$25/'DNSP Inputs O & M'!$D$26 -> 42.5 | E74: =B74*C74 -> 955.6853339 | F74: =E74/'DNSP Inputs O & M'!$D$25 -> 238.9213335 | I74: ='DNSP Inputs O & M'!$D$29*(1+'DNSP Inputs O & M'!$D$11) -> 23.61104943 | J74: =J73*'DNSP Inputs O & M'!$D$25/'DNSP Inputs O & M'!$D$26 -> 35 | L74: =I74*J74 -> 826.3867299 | M74: =L74/'DNSP Inputs O & M'!$D$25 -> 206.5966825 | P74: ='DNSP Inputs O & M'!$D$29*(1+'DNSP Inputs O & M'!$D$11) -> 23.61104943 | Q74: =Q73*'DNSP Inputs O & M'!$D$25/'DNSP Inputs O & M'!$D$26 -> 25 | S74: =P74*Q74 -> 590.2762356 | T74: =S74/'DNSP Inputs O & M'!$D$25 -> 147.5690589 | Y74: ='DNSP Inputs O & M'!$E$29 -> 22.48671374 | Z74: =Z73*'DNSP Inputs O & M'!$E$25/'DNSP Inputs O & M'!$E$26 -> 42.5 | AB74: =Y74*Z74 -> 955.6853339 | AC74: =AB74/'DNSP Inputs O & M'!$E$25 -> 238.9213335 | AF74: ='DNSP Inputs O & M'!$E$29*(1+'DNSP Inputs O & M'!$E$11) -> 23.61104943 | AG74: =AG73*'DNSP Inputs O & M'!$E$25/'DNSP Inputs O & M'!$E$26 -> 35 | AI74: =AF74*AG74 -> 826.3867299 | AJ74: =AI74/'DNSP Inputs O & M'!$E$25 -> 206.5966825 | AM74: ='DNSP Inputs O & M'!$E$29*(1+'DNSP Inputs O & M'!$E$11) -> 23.61104943 | AN74: =AN73*'DNSP Inputs O & M'!$E$25/'DNSP Inputs O & M'!$E$26 -> 25 | AP74: =AM74*AN74 -> 590.2762356 | AQ74: =AP74/'DNSP Inputs O & M'!$E$25 -> 147.5690589 | AV74: ='DNSP Inputs O & M'!$F$29 -> 22.48671374 | AW74: =AW73*'DNSP Inputs O & M'!$F$25/'DNSP Inputs O & M'!$F$26 -> 42.5 | AY74: =AV74*AW74 -> 955.6853339 | AZ74: =AY74/'DNSP Inputs O & M'!$F$25 -> 238.9213335 | BC74: ='DNSP Inputs O & M'!$F$29*(1+'DNSP Inputs O & M'!$F$11) -> 23.61104943 | BD74: =BD73*'DNSP Inputs O & M'!$F$25/'DNSP Inputs O & M'!$F$26 -> 35 | BF74: =BC74*BD74 -> 826.3867299 | BG74: =BF74/'DNSP Inputs O & M'!$F$25 -> 206.5966825 | BJ74: ='DNSP Inputs O & M'!$F$29*(1+'DNSP Inputs O & M'!$F$11) -> 23.61104943 | BK74: =BK73*'DNSP Inputs O & M'!$F$25/'DNSP Inputs O & M'!$F$26 -> 25 | BM74: =BJ74*BK74 -> 590.2762356 | BN74: =BM74/'DNSP Inputs O & M'!$F$25 -> 147.5690589 | BS74: ='DNSP Inputs O & M'!$G$29 -> 22.48671374 | BT74: =BT73*'DNSP Inputs O & M'!$G$25/'DNSP Inputs O & M'!$G$26 -> 42.5 | BV74: =BS74*BT74 -> 955.6853339 | BW74: =BV74/'DNSP Inputs O & M'!$G$25 -> 238.9213335 | BZ74: ='DNSP Inputs O & M'!$G$29*(1+'DNSP Inputs O & M'!$G$11) -> 23.61104943 | CA74: =CA73*'DNSP Inputs O & M'!$G$25/'DNSP Inputs O & M'!$G$26 -> 35 | CC74: =BZ74*CA74 -> 826.3867299 | CD74: =CC74/'DNSP Inputs O & M'!$G$25 -> 206.5966825 | CG74: ='DNSP Inputs O & M'!$G$29*(1+'DNSP Inputs O & M'!$G$11) -> 23.61104943 | CH74: =CH73*'DNSP Inputs O & M'!$G$25/'DNSP Inputs O & M'!$G$26 -> 25 | CJ74: =CG74*CH74 -> 590.2762356 | CK74: =CJ74/'DNSP Inputs O & M'!$G$25 -> 147.5690589 | CP74: ='DNSP Inputs O & M'!$H$29 -> 22.48671374 | CQ74: =CQ73*'DNSP Inputs O & M'!$H$25/'DNSP Inputs O & M'!$H$26 -> 42.5 | CS74: =CP74*CQ74 -> 955.6853339 | CT74: =CS74/'DNSP Inputs O & M'!$H$25 -> 238.9213335 | CW74: ='DNSP Inputs O & M'!$H$29*(1+'DNSP Inputs O & M'!$H$11) -> 23.61104943 | CX74: =CX73*'DNSP Inputs O & M'!$H$25/'DNSP Inputs O & M'!$H$26 -> 35 | CZ74: =CW74*CX74 -> 826.3867299 | DA74: =CZ74/'DNSP Inputs O & M'!$H$25 -> 206.5966825 | DD74: ='DNSP Inputs O & M'!$H$29*(1+'DNSP Inputs O & M'!$H$11) -> 23.61104943 | DE74: =DE73*'DNSP Inputs O & M'!$H$25/'DNSP Inputs O & M'!$H$26 -> 25 | DG74: =DD74*DE74 -> 590.2762356 | DH74: =DG74/'DNSP Inputs O & M'!$H$25 -> 147.5690589
A75: Miscellaneous | B75: ='DNSP Inputs O & M'!$D$31 -> 1.218792073 | C75: ='DNSP Inputs O & M'!$D$34 -> 85 | E75: =B75*C75 -> 103.5973262 | F75: =E75/'DNSP Inputs O & M'!$D$25*0.8 -> 20.71946523 | I75: ='DNSP Inputs O & M'!$D$31*(1+'DNSP Inputs O & M'!$D$11) -> 1.279731676 | J75: ='DNSP Inputs O & M'!$D$35 -> 70 | L75: =I75*J75 -> 89.58121733 | M75: =L75/'DNSP Inputs O & M'!$D$25*0.8 -> 17.91624347 | P75: ='DNSP Inputs O & M'!$D$31*(1+'DNSP Inputs O & M'!$D$11) -> 1.279731676 | Q75: ='DNSP Inputs O & M'!$D$36 -> 50 | S75: =P75*Q75 -> 63.98658381 | T75: =S75/'DNSP Inputs O & M'!$D$25*0.8 -> 12.79731676 | Y75: ='DNSP Inputs O & M'!$E$31 -> 1.218792073 | Z75: ='DNSP Inputs O & M'!$E$34 -> 85 | AB75: =Y75*Z75 -> 103.5973262 | AC75: =AB75/'DNSP Inputs O & M'!$E$25*0.8 -> 20.71946523 | AF75: ='DNSP Inputs O & M'!$E$31*(1+'DNSP Inputs O & M'!$E$11) -> 1.279731676 | AG75: ='DNSP Inputs O & M'!$E$35 -> 70 | AI75: =AF75*AG75 -> 89.58121733 | AJ75: =AI75/'DNSP Inputs O & M'!$E$25*0.8 -> 17.91624347 | AM75: ='DNSP Inputs O & M'!$E$31*(1+'DNSP Inputs O & M'!$E$11) -> 1.279731676 | AN75: ='DNSP Inputs O & M'!$E$36 -> 50 | AP75: =AM75*AN75 -> 63.98658381 | AQ75: =AP75/'DNSP Inputs O & M'!$E$25*0.8 -> 12.79731676 | AV75: ='DNSP Inputs O & M'!$F$31 -> 1.218792073 | AW75: ='DNSP Inputs O & M'!$F$34 -> 85 | AY75: =AV75*AW75 -> 103.5973262 | AZ75: =AY75/'DNSP Inputs O & M'!$F$25*0.8 -> 20.71946523 | BC75: ='DNSP Inputs O & M'!$F$31*(1+'DNSP Inputs O & M'!$F$11) -> 1.279731676 | BD75: ='DNSP Inputs O & M'!$F$35 -> 70 | BF75: =BC75*BD75 -> 89.58121733 | BG75: =BF75/'DNSP Inputs O & M'!$F$25*0.8 -> 17.91624347 | BJ75: ='DNSP Inputs O & M'!$F$31*(1+'DNSP Inputs O & M'!$F$11) -> 1.279731676 | BK75: ='DNSP Inputs O & M'!$F$36 -> 50 | BM75: =BJ75*BK75 -> 63.98658381 | BN75: =BM75/'DNSP Inputs O & M'!$F$25*0.8 -> 12.79731676 | BS75: ='DNSP Inputs O & M'!$G$31 -> 1.218792073 | BT75: ='DNSP Inputs O & M'!$G$34 -> 85 | BV75: =BS75*BT75 -> 103.5973262 | BW75: =BV75/'DNSP Inputs O & M'!$G$25*0.8 -> 20.71946523 | BZ75: ='DNSP Inputs O & M'!$G$31*(1+'DNSP Inputs O & M'!$G$11) -> 1.279731676 | CA75: ='DNSP Inputs O & M'!$G$35 -> 70 | CC75: =BZ75*CA75 -> 89.58121733 | CD75: =CC75/'DNSP Inputs O & M'!$G$25*0.8 -> 17.91624347 | CG75: ='DNSP Inputs O & M'!$G$31*(1+'DNSP Inputs O & M'!$G$11) -> 1.279731676 | CH75: ='DNSP Inputs O & M'!$G$36 -> 50 | CJ75: =CG75*CH75 -> 63.98658381 | CK75: =CJ75/'DNSP Inputs O & M'!$G$25*0.8 -> 12.79731676 | CP75: ='DNSP Inputs O & M'!$H$31 -> 1.218792073 | CQ75: ='DNSP Inputs O & M'!$H$34 -> 85 | CS75: =CP75*CQ75 -> 103.5973262 | CT75: =CS75/'DNSP Inputs O & M'!$H$25*0.8 -> 20.71946523 | CW75: ='DNSP Inputs O & M'!$H$31*(1+'DNSP Inputs O & M'!$H$11) -> 1.279731676 | CX75: ='DNSP Inputs O & M'!$H$35 -> 70 | CZ75: =CW75*CX75 -> 89.58121733 | DA75: =CZ75/'DNSP Inputs O & M'!$H$25*0.8 -> 17.91624347 | DD75: ='DNSP Inputs O & M'!$H$31*(1+'DNSP Inputs O & M'!$H$11) -> 1.279731676 | DE75: ='DNSP Inputs O & M'!$H$36 -> 50 | DG75: =DD75*DE75 -> 63.98658381 | DH75: =DG75/'DNSP Inputs O & M'!$H$25*0.8 -> 12.79731676
A76: Materials - repair of faults
A77: Lamp | B77: ='DNSP Inputs O & M'!$D$28 -> 5.57 | C77: ='DNSP Inputs O & M'!$D$37*'DNSP Inputs O & M'!$D$40 -> 12 | E77: =B77*C77 -> 66.84 | F77: =(E77+E78+E79+E80)/'DNSP Inputs O & M'!$D$37 -> 44.79014894 | G77: =F77*D62 -> 1.198136484 | I77: ='DNSP Inputs O & M'!$D$28*(1+'DNSP Inputs O & M'!$D$11) -> 5.8485 | J77: ='DNSP Inputs O & M'!$D$38*'DNSP Inputs O & M'!$D$40 -> 9 | L77: =I77*J77 -> 52.6365 | M77: =(L77+L78+L79+L80)/'DNSP Inputs O & M'!$D$38 -> 47.02965639 | N77: =M77*D62 -> 1.258043308 | P77: ='DNSP Inputs O & M'!$D$28*(1+'DNSP Inputs O & M'!$D$11) -> 5.8485 | Q77: ='DNSP Inputs O & M'!$D$39*'DNSP Inputs O & M'!$D$40 -> 6 | S77: =P77*Q77 -> 35.091 | T77: =(S77+S78+S79+S80)/'DNSP Inputs O & M'!$D$39 -> 47.02965639 | U77: =T77*D62 -> 1.258043308 | Y77: ='DNSP Inputs O & M'!$E$28 -> 5.57 | Z77: ='DNSP Inputs O & M'!$E$37*'DNSP Inputs O & M'!$E$40 -> 12 | AB77: =Y77*Z77 -> 66.84 | AC77: =(AB77+AB78+AB79+AB80)/'DNSP Inputs O & M'!$E$37 -> 44.79014894 | AD77: =AC77*AA62 -> 1.198136484 | AF77: ='DNSP Inputs O & M'!$E$28*(1+'DNSP Inputs O & M'!$E$11) -> 5.8485 | AG77: ='DNSP Inputs O & M'!$E$38*'DNSP Inputs O & M'!$E$40 -> 9 | AI77: =AF77*AG77 -> 52.6365 | AJ77: =(AI77+AI78+AI79+AI80)/'DNSP Inputs O & M'!$E$38 -> 47.02965639 | AK77: =AJ77*AA62 -> 1.258043308 | AM77: ='DNSP Inputs O & M'!$E$28*(1+'DNSP Inputs O & M'!$E$11) -> 5.8485 | AN77: ='DNSP Inputs O & M'!$E$39*'DNSP Inputs O & M'!$E$40 -> 6 | AP77: =AM77*AN77 -> 35.091 | AQ77: =(AP77+AP78+AP79+AP80)/'DNSP Inputs O & M'!$E$39 -> 47.02965639 | AR77: =AQ77*AA62 -> 1.258043308 | AV77: ='DNSP Inputs O & M'!$F$28 -> 5.57 | AW77: ='DNSP Inputs O & M'!$F$37*'DNSP Inputs O & M'!$F$40 -> 12 | AY77: =AV77*AW77 -> 66.84 | AZ77: =(AY77+AY78+AY79+AY80)/'DNSP Inputs O & M'!$F$37 -> 44.79014894 | BA77: =AZ77*AX62 -> 1.198136484 | BC77: ='DNSP Inputs O & M'!$F$28*(1+'DNSP Inputs O & M'!$F$11) -> 5.8485 | BD77: ='DNSP Inputs O & M'!$F$38*'DNSP Inputs O & M'!$F$40 -> 9 | BF77: =BC77*BD77 -> 52.6365 | BG77: =(BF77+BF78+BF79+BF80)/'DNSP Inputs O & M'!$F$38 -> 47.02965639 | BH77: =BG77*AX62 -> 1.258043308 | BJ77: ='DNSP Inputs O & M'!$F$28*(1+'DNSP Inputs O & M'!$F$11) -> 5.8485 | BK77: ='DNSP Inputs O & M'!$F$39*'DNSP Inputs O & M'!$F$40 -> 6 | BM77: =BJ77*BK77 -> 35.091 | BN77: =(BM77+BM78+BM79+BM80)/'DNSP Inputs O & M'!$F$39 -> 47.02965639 | BO77: =BN77*AX62 -> 1.258043308 | BS77: ='DNSP Inputs O & M'!$G$28 -> 5.57 | BT77: ='DNSP Inputs O & M'!$G$37*'DNSP Inputs O & M'!$G$40 -> 12 | BV77: =BS77*BT77 -> 66.84 | BW77: =(BV77+BV78+BV79+BV80)/'DNSP Inputs O & M'!$G$37 -> 44.79014894 | BX77: =BW77*BU62 -> 1.198136484 | BZ77: ='DNSP Inputs O & M'!$G$28*(1+'DNSP Inputs O & M'!$G$11) -> 5.8485 | CA77: ='DNSP Inputs O & M'!$G$38*'DNSP Inputs O & M'!$G$40 -> 9 | CC77: =BZ77*CA77 -> 52.6365 | CD77: =(CC77+CC78+CC79+CC80)/'DNSP Inputs O & M'!$G$38 -> 47.02965639 | CE77: =CD77*BU62 -> 1.258043308 | CG77: ='DNSP Inputs O & M'!$G$28*(1+'DNSP Inputs O & M'!$G$11) -> 5.8485 | CH77: ='DNSP Inputs O & M'!$G$39*'DNSP Inputs O & M'!$G$40 -> 6 | CJ77: =CG77*CH77 -> 35.091 | CK77: =(CJ77+CJ78+CJ79+CJ80)/'DNSP Inputs O & M'!$G$39 -> 47.02965639 | CL77: =CK77*BU62 -> 1.258043308 | CP77: ='DNSP Inputs O & M'!$H$28 -> 5.57 | CQ77: ='DNSP Inputs O & M'!$H$37*'DNSP Inputs O & M'!$H$40 -> 12 | CS77: =CP77*CQ77 -> 66.84 | CT77: =(CS77+CS78+CS79+CS80)/'DNSP Inputs O & M'!$H$37 -> 44.79014894 | CU77: =CT77*CR62 -> 1.198136484 | CW77: ='DNSP Inputs O & M'!$H$28*(1+'DNSP Inputs O & M'!$H$11) -> 5.8485 | CX77: ='DNSP Inputs O & M'!$H$38*'DNSP Inputs O & M'!$H$40 -> 9 | CZ77: =CW77*CX77 -> 52.6365 | DA77: =(CZ77+CZ78+CZ79+CZ80)/'DNSP Inputs O & M'!$H$38 -> 47.02965639 | DB77: =DA77*CR62 -> 1.258043308 | DD77: ='DNSP Inputs O & M'!$H$28*(1+'DNSP Inputs O & M'!$H$11) -> 5.8485 | DE77: ='DNSP Inputs O & M'!$H$39*'DNSP Inputs O & M'!$H$40 -> 6 | DG77: =DD77*DE77 -> 35.091 | DH77: =(DG77+DG78+DG79+DG80)/'DNSP Inputs O & M'!$H$39 -> 47.02965639 | DI77: =DH77*CR62 -> 1.258043308
A78: PE cell | B78: ='DNSP Inputs O & M'!$D$29 -> 22.48671374 | C78: ='DNSP Inputs O & M'!$D$37*'DNSP Inputs O & M'!$D$41 -> 10 | E78: =B78*C78 -> 224.8671374 | I78: ='DNSP Inputs O & M'!$D$29*(1+'DNSP Inputs O & M'!$D$11) -> 23.61104943 | J78: ='DNSP Inputs O & M'!$D$38*'DNSP Inputs O & M'!$D$41 -> 7.5 | L78: =I78*J78 -> 177.0828707 | P78: ='DNSP Inputs O & M'!$D$29*(1+'DNSP Inputs O & M'!$D$11) -> 23.61104943 | Q78: ='DNSP Inputs O & M'!$D$39*'DNSP Inputs O & M'!$D$41 -> 5 | S78: =P78*Q78 -> 118.0552471 | Y78: ='DNSP Inputs O & M'!$E$29 -> 22.48671374 | Z78: ='DNSP Inputs O & M'!$E$37*'DNSP Inputs O & M'!$E$41 -> 10 | AB78: =Y78*Z78 -> 224.8671374 | AF78: ='DNSP Inputs O & M'!$E$29*(1+'DNSP Inputs O & M'!$E$11) -> 23.61104943 | AG78: ='DNSP Inputs O & M'!$E$38*'DNSP Inputs O & M'!$E$41 -> 7.5 | AI78: =AF78*AG78 -> 177.0828707 | AM78: ='DNSP Inputs O & M'!$E$29*(1+'DNSP Inputs O & M'!$E$11) -> 23.61104943 | AN78: ='DNSP Inputs O & M'!$E$39*'DNSP Inputs O & M'!$E$41 -> 5 | AP78: =AM78*AN78 -> 118.0552471 | AV78: ='DNSP Inputs O & M'!$F$29 -> 22.48671374 | AW78: ='DNSP Inputs O & M'!$F$37*'DNSP Inputs O & M'!$F$41 -> 10 | AY78: =AV78*AW78 -> 224.8671374 | BC78: ='DNSP Inputs O & M'!$F$29*(1+'DNSP Inputs O & M'!$F$11) -> 23.61104943 | BD78: ='DNSP Inputs O & M'!$F$38*'DNSP Inputs O & M'!$F$41 -> 7.5 | BF78: =BC78*BD78 -> 177.0828707 | BJ78: ='DNSP Inputs O & M'!$F$29*(1+'DNSP Inputs O & M'!$F$11) -> 23.61104943 | BK78: ='DNSP Inputs O & M'!$F$39*'DNSP Inputs O & M'!$F$41 -> 5 | BM78: =BJ78*BK78 -> 118.0552471 | BS78: ='DNSP Inputs O & M'!$G$29 -> 22.48671374 | BT78: ='DNSP Inputs O & M'!$G$37*'DNSP Inputs O & M'!$G$41 -> 10 | BV78: =BS78*BT78 -> 224.8671374 | BZ78: ='DNSP Inputs O & M'!$G$29*(1+'DNSP Inputs O & M'!$G$11) -> 23.61104943 | CA78: ='DNSP Inputs O & M'!$G$38*'DNSP Inputs O & M'!$G$41 -> 7.5 | CC78: =BZ78*CA78 -> 177.0828707 | CG78: ='DNSP Inputs O & M'!$G$29*(1+'DNSP Inputs O & M'!$G$11) -> 23.61104943 | CH78: ='DNSP Inputs O & M'!$G$39*'DNSP Inputs O & M'!$G$41 -> 5 | CJ78: =CG78*CH78 -> 118.0552471 | CP78: ='DNSP Inputs O & M'!$H$29 -> 22.48671374 | CQ78: ='DNSP Inputs O & M'!$H$37*'DNSP Inputs O & M'!$H$41 -> 10 | CS78: =CP78*CQ78 -> 224.8671374 | CW78: ='DNSP Inputs O & M'!$H$29*(1+'DNSP Inputs O & M'!$H$11) -> 23.61104943 | CX78: ='DNSP Inputs O & M'!$H$38*'DNSP Inputs O & M'!$H$41 -> 7.5 | CZ78: =CW78*CX78 -> 177.0828707 | DD78: ='DNSP Inputs O & M'!$H$29*(1+'DNSP Inputs O & M'!$H$11) -> 23.61104943 | DE78: ='DNSP Inputs O & M'!$H$39*'DNSP Inputs O & M'!$H$41 -> 5 | DG78: =DD78*DE78 -> 118.0552471
A79: Luminaire | B79: ='DNSP Inputs O & M'!$D$30 -> 193.24 | C79: ='DNSP Inputs O & M'!$D$37*'DNSP Inputs O & M'!$D$42 -> 3 | E79: =B79*C79 -> 579.72 | I79: ='DNSP Inputs O & M'!$D$30*(1+'DNSP Inputs O & M'!$D$11) -> 202.902 | J79: ='DNSP Inputs O & M'!$D$38*'DNSP Inputs O & M'!$D$42 -> 2.25 | L79: =I79*J79 -> 456.5295 | P79: ='DNSP Inputs O & M'!$D$30*(1+'DNSP Inputs O & M'!$D$11) -> 202.902 | Q79: ='DNSP Inputs O & M'!$D$39*'DNSP Inputs O & M'!$D$42 -> 1.5 | S79: =P79*Q79 -> 304.353 | Y79: ='DNSP Inputs O & M'!$E$30 -> 193.24 | Z79: ='DNSP Inputs O & M'!$E$37*'DNSP Inputs O & M'!$E$42 -> 3 | AB79: =Y79*Z79 -> 579.72 | AF79: ='DNSP Inputs O & M'!$E$30*(1+'DNSP Inputs O & M'!$E$11) -> 202.902 | AG79: ='DNSP Inputs O & M'!$E$38*'DNSP Inputs O & M'!$E$42 -> 2.25 | AI79: =AF79*AG79 -> 456.5295 | AM79: ='DNSP Inputs O & M'!$E$30*(1+'DNSP Inputs O & M'!$E$11) -> 202.902 | AN79: ='DNSP Inputs O & M'!$E$39*'DNSP Inputs O & M'!$E$42 -> 1.5 | AP79: =AM79*AN79 -> 304.353 | AV79: ='DNSP Inputs O & M'!$F$30 -> 193.24 | AW79: ='DNSP Inputs O & M'!$F$37*'DNSP Inputs O & M'!$F$42 -> 3 | AY79: =AV79*AW79 -> 579.72 | BC79: ='DNSP Inputs O & M'!$F$30*(1+'DNSP Inputs O & M'!$F$11) -> 202.902 | BD79: ='DNSP Inputs O & M'!$F$38*'DNSP Inputs O & M'!$F$42 -> 2.25 | BF79: =BC79*BD79 -> 456.5295 | BJ79: ='DNSP Inputs O & M'!$F$30*(1+'DNSP Inputs O & M'!$F$11) -> 202.902 | BK79: ='DNSP Inputs O & M'!$F$39*'DNSP Inputs O & M'!$F$42 -> 1.5 | BM79: =BJ79*BK79 -> 304.353 | BS79: ='DNSP Inputs O & M'!$G$30 -> 193.24 | BT79: ='DNSP Inputs O & M'!$G$37*'DNSP Inputs O & M'!$G$42 -> 3 | BV79: =BS79*BT79 -> 579.72 | BZ79: ='DNSP Inputs O & M'!$G$30*(1+'DNSP Inputs O & M'!$G$11) -> 202.902 | CA79: ='DNSP Inputs O & M'!$G$38*'DNSP Inputs O & M'!$G$42 -> 2.25 | CC79: =BZ79*CA79 -> 456.5295 | CG79: ='DNSP Inputs O & M'!$G$30*(1+'DNSP Inputs O & M'!$G$11) -> 202.902 | CH79: ='DNSP Inputs O & M'!$G$39*'DNSP Inputs O & M'!$G$42 -> 1.5 | CJ79: =CG79*CH79 -> 304.353 | CP79: ='DNSP Inputs O & M'!$H$30 -> 193.24 | CQ79: ='DNSP Inputs O & M'!$H$37*'DNSP Inputs O & M'!$H$42 -> 3 | CS79: =CP79*CQ79 -> 579.72 | CW79: ='DNSP Inputs O & M'!$H$30*(1+'DNSP Inputs O & M'!$H$11) -> 202.902 | CX79: ='DNSP Inputs O & M'!$H$38*'DNSP Inputs O & M'!$H$42 -> 2.25 | CZ79: =CW79*CX79 -> 456.5295 | DD79: ='DNSP Inputs O & M'!$H$30*(1+'DNSP Inputs O & M'!$H$11) -> 202.902 | DE79: ='DNSP Inputs O & M'!$H$39*'DNSP Inputs O & M'!$H$42 -> 1.5 | DG79: =DD79*DE79 -> 304.353
A80: Miscellaneous | B80: ='DNSP Inputs O & M'!$D$32 -> 12.18792073 | C80: ='DNSP Inputs O & M'!$D$37*'DNSP Inputs O & M'!$D$43 -> 2 | E80: =B80*C80 -> 24.37584145 | I80: ='DNSP Inputs O & M'!$D$32*(1+'DNSP Inputs O & M'!$D$11) -> 12.79731676 | J80: ='DNSP Inputs O & M'!$D$38*'DNSP Inputs O & M'!$D$43 -> 1.5 | L80: =I80*J80 -> 19.19597514 | P80: ='DNSP Inputs O & M'!$D$32*(1+'DNSP Inputs O & M'!$D$11) -> 12.79731676 | Q80: ='DNSP Inputs O & M'!$D$39*'DNSP Inputs O & M'!$D$43 -> 1 | S80: =P80*Q80 -> 12.79731676 | Y80: ='DNSP Inputs O & M'!$E$32 -> 12.18792073 | Z80: ='DNSP Inputs O & M'!$E$37*'DNSP Inputs O & M'!$E$43 -> 2 | AB80: =Y80*Z80 -> 24.37584145 | AF80: ='DNSP Inputs O & M'!$E$32*(1+'DNSP Inputs O & M'!$E$11) -> 12.79731676 | AG80: ='DNSP Inputs O & M'!$E$38*'DNSP Inputs O & M'!$E$43 -> 1.5 | AI80: =AF80*AG80 -> 19.19597514 | AM80: ='DNSP Inputs O & M'!$E$32*(1+'DNSP Inputs O & M'!$E$11) -> 12.79731676 | AN80: ='DNSP Inputs O & M'!$E$39*'DNSP Inputs O & M'!$E$43 -> 1 | AP80: =AM80*AN80 -> 12.79731676 | AV80: ='DNSP Inputs O & M'!$F$32 -> 12.18792073 | AW80: ='DNSP Inputs O & M'!$F$37*'DNSP Inputs O & M'!$F$43 -> 2 | AY80: =AV80*AW80 -> 24.37584145 | BC80: ='DNSP Inputs O & M'!$F$32*(1+'DNSP Inputs O & M'!$F$11) -> 12.79731676 | BD80: ='DNSP Inputs O & M'!$F$38*'DNSP Inputs O & M'!$F$43 -> 1.5 | BF80: =BC80*BD80 -> 19.19597514 | BJ80: ='DNSP Inputs O & M'!$F$32*(1+'DNSP Inputs O & M'!$F$11) -> 12.79731676 | BK80: ='DNSP Inputs O & M'!$F$39*'DNSP Inputs O & M'!$F$43 -> 1 | BM80: =BJ80*BK80 -> 12.79731676 | BS80: ='DNSP Inputs O & M'!$G$32 -> 12.18792073 | BT80: ='DNSP Inputs O & M'!$G$37*'DNSP Inputs O & M'!$G$43 -> 2 | BV80: =BS80*BT80 -> 24.37584145 | BZ80: ='DNSP Inputs O & M'!$G$32*(1+'DNSP Inputs O & M'!$G$11) -> 12.79731676 | CA80: ='DNSP Inputs O & M'!$G$38*'DNSP Inputs O & M'!$G$43 -> 1.5 | CC80: =BZ80*CA80 -> 19.19597514 | CG80: ='DNSP Inputs O & M'!$G$32*(1+'DNSP Inputs O & M'!$G$11) -> 12.79731676 | CH80: ='DNSP Inputs O & M'!$G$39*'DNSP Inputs O & M'!$G$43 -> 1 | CJ80: =CG80*CH80 -> 12.79731676 | CP80: ='DNSP Inputs O & M'!$H$32 -> 12.18792073 | CQ80: ='DNSP Inputs O & M'!$H$37*'DNSP Inputs O & M'!$H$43 -> 2 | CS80: =CP80*CQ80 -> 24.37584145 | CW80: ='DNSP Inputs O & M'!$H$32*(1+'DNSP Inputs O & M'!$H$11) -> 12.79731676 | CX80: ='DNSP Inputs O & M'!$H$38*'DNSP Inputs O & M'!$H$43 -> 1.5 | CZ80: =CW80*CX80 -> 19.19597514 | DD80: ='DNSP Inputs O & M'!$H$32*(1+'DNSP Inputs O & M'!$H$11) -> 12.79731676 | DE80: ='DNSP Inputs O & M'!$H$39*'DNSP Inputs O & M'!$H$43 -> 1 | DG80: =DD80*DE80 -> 12.79731676
A81: Labour - bulk lamp change
A82: Crew costs | B82: ='DNSP Inputs O & M'!$D$12 -> 95.82595654 | C82: ='DNSP Inputs O & M'!$D$33 -> 2 | D82: ='DNSP Inputs O & M'!$D$17 -> 8 | E82: =B82*C82*D82 -> 1533.215305 | F82: =E82/'DNSP Inputs O & M'!$D$25*(C73+C74)/C73*0.8 -> 459.9645914 | G82: =(F82+F83)/C73 -> 6.692581566 | I82: ='DNSP Inputs O & M'!$D$12 -> 95.82595654 | J82: ='DNSP Inputs O & M'!$D$33 -> 2 | K82: ='DNSP Inputs O & M'!$D$17 -> 8 | L82: =I82*J82*K82 -> 1533.215305 | M82: =L82/'DNSP Inputs O & M'!$D$25*(J73+J74)/J73*0.8 -> 459.9645914 | N82: =(M82+M83)/J73 -> 9.382223434 | P82: ='DNSP Inputs O & M'!$D$12 -> 95.82595654 | Q82: ='DNSP Inputs O & M'!$D$33 -> 2 | R82: ='DNSP Inputs O & M'!$D$17 -> 8 | S82: =P82*Q82*R82 -> 1533.215305 | T82: =S82/'DNSP Inputs O & M'!$D$25*(Q73+Q74)/Q73*0.8 -> 459.9645914 | U82: =(T82+T83)/Q73 -> 13.13511281 | Y82: ='DNSP Inputs O & M'!$E$12 -> 95.82595654 | Z82: ='DNSP Inputs O & M'!$E$33 -> 2 | AA82: ='DNSP Inputs O & M'!$E$17 -> 8 | AB82: =Y82*Z82*AA82 -> 1533.215305 | AC82: =AB82/'DNSP Inputs O & M'!$E$25*(Z73+Z74)/Z73*0.8 -> 459.9645914 | AD82: =(AC82+AC83)/Z73 -> 6.692581566 | AF82: ='DNSP Inputs O & M'!$E$12 -> 95.82595654 | AG82: ='DNSP Inputs O & M'!$E$33 -> 2 | AH82: ='DNSP Inputs O & M'!$E$17 -> 8 | AI82: =AF82*AG82*AH82 -> 1533.215305 | AJ82: =AI82/'DNSP Inputs O & M'!$E$25*(AG73+AG74)/AG73*0.8 -> 459.9645914 | AK82: =(AJ82+AJ83)/AG73 -> 9.382223434 | AM82: ='DNSP Inputs O & M'!$E$12 -> 95.82595654 | AN82: ='DNSP Inputs O & M'!$E$33 -> 2 | AO82: ='DNSP Inputs O & M'!$E$17 -> 8 | AP82: =AM82*AN82*AO82 -> 1533.215305 | AQ82: =AP82/'DNSP Inputs O & M'!$E$25*(AN73+AN74)/AN73*0.8 -> 459.9645914 | AR82: =(AQ82+AQ83)/AN73 -> 13.13511281 | AV82: ='DNSP Inputs O & M'!$F$12 -> 95.82595654 | AW82: ='DNSP Inputs O & M'!$F$33 -> 2 | AX82: ='DNSP Inputs O & M'!$F$17 -> 8 | AY82: =AV82*AW82*AX82 -> 1533.215305 | AZ82: =AY82/'DNSP Inputs O & M'!$F$25*(AW73+AW74)/AW73*0.8 -> 459.9645914 | BA82: =(AZ82+AZ83)/AW73 -> 6.692581566 | BC82: ='DNSP Inputs O & M'!$F$12 -> 95.82595654 | BD82: ='DNSP Inputs O & M'!$F$33 -> 2 | BE82: ='DNSP Inputs O & M'!$F$17 -> 8 | BF82: =BC82*BD82*BE82 -> 1533.215305 | BG82: =BF82/'DNSP Inputs O & M'!$F$25*(BD73+BD74)/BD73*0.8 -> 459.9645914 | BH82: =(BG82+BG83)/BD73 -> 9.382223434 | BJ82: ='DNSP Inputs O & M'!$F$12 -> 95.82595654 | BK82: ='DNSP Inputs O & M'!$F$33 -> 2 | BL82: ='DNSP Inputs O & M'!$F$17 -> 8 | BM82: =BJ82*BK82*BL82 -> 1533.215305 | BN82: =BM82/'DNSP Inputs O & M'!$F$25*(BK73+BK74)/BK73*0.8 -> 459.9645914 | BO82: =(BN82+BN83)/BK73 -> 13.13511281 | BS82: ='DNSP Inputs O & M'!$G$12 -> 95.82595654 | BT82: ='DNSP Inputs O & M'!$G$33 -> 2 | BU82: ='DNSP Inputs O & M'!$G$17 -> 8 | BV82: =BS82*BT82*BU82 -> 1533.215305 | BW82: =BV82/'DNSP Inputs O & M'!$G$25*(BT73+BT74)/BT73*0.8 -> 459.9645914 | BX82: =(BW82+BW83)/BT73 -> 6.692581566 | BZ82: ='DNSP Inputs O & M'!$G$12 -> 95.82595654 | CA82: ='DNSP Inputs O & M'!$G$33 -> 2 | CB82: ='DNSP Inputs O & M'!$G$17 -> 8 | CC82: =BZ82*CA82*CB82 -> 1533.215305 | CD82: =CC82/'DNSP Inputs O & M'!$G$25*(CA73+CA74)/CA73*0.8 -> 459.9645914 | CE82: =(CD82+CD83)/CA73 -> 9.382223434 | CG82: ='DNSP Inputs O & M'!$G$12 -> 95.82595654 | CH82: ='DNSP Inputs O & M'!$G$33 -> 2 | CI82: ='DNSP Inputs O & M'!$G$17 -> 8 | CJ82: =CG82*CH82*CI82 -> 1533.215305 | CK82: =CJ82/'DNSP Inputs O & M'!$G$25*(CH73+CH74)/CH73*0.8 -> 459.9645914 | CL82: =(CK82+CK83)/CH73 -> 13.13511281 | CP82: ='DNSP Inputs O & M'!$H$12 -> 95.82595654 | CQ82: ='DNSP Inputs O & M'!$H$33 -> 2 | CR82: ='DNSP Inputs O & M'!$H$17 -> 8 | CS82: =CP82*CQ82*CR82 -> 1533.215305 | CT82: =CS82/'DNSP Inputs O & M'!$H$25*(CQ73+CQ74)/CQ73*0.8 -> 459.9645914 | CU82: =(CT82+CT83)/CQ73 -> 6.692581566 | CW82: ='DNSP Inputs O & M'!$H$12 -> 95.82595654 | CX82: ='DNSP Inputs O & M'!$H$33 -> 2 | CY82: ='DNSP Inputs O & M'!$H$17 -> 8 | CZ82: =CW82*CX82*CY82 -> 1533.215305 | DA82: =CZ82/'DNSP Inputs O & M'!$H$25*(CX73+CX74)/CX73*0.8 -> 459.9645914 | DB82: =(DA82+DA83)/CX73 -> 9.382223434 | DD82: ='DNSP Inputs O & M'!$H$12 -> 95.82595654 | DE82: ='DNSP Inputs O & M'!$H$33 -> 2 | DF82: ='DNSP Inputs O & M'!$H$17 -> 8 | DG82: =DD82*DE82*DF82 -> 1533.215305 | DH82: =DG82/'DNSP Inputs O & M'!$H$25*(DE73+DE74)/DE73*0.8 -> 459.9645914 | DI82: =(DH82+DH83)/DE73 -> 13.13511281
A83: Elevated platform costs | B83: ='DNSP Inputs O & M'!$D$14 -> 45.37701738 | C83: 1 | D83: ='DNSP Inputs O & M'!$D$17 -> 8 | E83: =B83*C83*D83 -> 363.016139 | F83: =E83/'DNSP Inputs O & M'!$D$25*(C73+C74)/C73*0.8 -> 108.9048417 | I83: ='DNSP Inputs O & M'!$D$15 -> 81.99627041 | J83: 1 | K83: ='DNSP Inputs O & M'!$D$17 -> 8 | L83: =I83*J83*K83 -> 655.9701632 | M83: =L83/'DNSP Inputs O & M'!$D$25*(J73+J74)/J73*0.8 -> 196.791049 | P83: ='DNSP Inputs O & M'!$D$15 -> 81.99627041 | Q83: 1 | R83: ='DNSP Inputs O & M'!$D$17 -> 8 | S83: =P83*Q83*R83 -> 655.9701632 | T83: =S83/'DNSP Inputs O & M'!$D$25*(Q73+Q74)/Q73*0.8 -> 196.791049 | Y83: ='DNSP Inputs O & M'!$E$14 -> 45.37701738 | Z83: 1 | AA83: ='DNSP Inputs O & M'!$E$17 -> 8 | AB83: =Y83*Z83*AA83 -> 363.016139 | AC83: =AB83/'DNSP Inputs O & M'!$E$25*(Z73+Z74)/Z73*0.8 -> 108.9048417 | AF83: ='DNSP Inputs O & M'!$E$15 -> 81.99627041 | AG83: 1 | AH83: ='DNSP Inputs O & M'!$E$17 -> 8 | AI83: =AF83*AG83*AH83 -> 655.9701632 | AJ83: =AI83/'DNSP Inputs O & M'!$E$25*(AG73+AG74)/AG73*0.8 -> 196.791049 | AM83: ='DNSP Inputs O & M'!$E$15 -> 81.99627041 | AN83: 1 | AO83: ='DNSP Inputs O & M'!$E$17 -> 8 | AP83: =AM83*AN83*AO83 -> 655.9701632 | AQ83: =AP83/'DNSP Inputs O & M'!$E$25*(AN73+AN74)/AN73*0.8 -> 196.791049 | AV83: ='DNSP Inputs O & M'!$F$14 -> 45.37701738 | AW83: 1 | AX83: ='DNSP Inputs O & M'!$F$17 -> 8 | AY83: =AV83*AW83*AX83 -> 363.016139 | AZ83: =AY83/'DNSP Inputs O & M'!$F$25*(AW73+AW74)/AW73*0.8 -> 108.9048417 | BC83: ='DNSP Inputs O & M'!$F$15 -> 81.99627041 | BD83: 1 | BE83: ='DNSP Inputs O & M'!$F$17 -> 8 | BF83: =BC83*BD83*BE83 -> 655.9701632 | BG83: =BF83/'DNSP Inputs O & M'!$F$25*(BD73+BD74)/BD73*0.8 -> 196.791049 | BJ83: ='DNSP Inputs O & M'!$F$15 -> 81.99627041 | BK83: 1 | BL83: ='DNSP Inputs O & M'!$F$17 -> 8 | BM83: =BJ83*BK83*BL83 -> 655.9701632 | BN83: =BM83/'DNSP Inputs O & M'!$F$25*(BK73+BK74)/BK73*0.8 -> 196.791049 | BS83: ='DNSP Inputs O & M'!$G$14 -> 45.37701738 | BT83: 1 | BU83: ='DNSP Inputs O & M'!$G$17 -> 8 | BV83: =BS83*BT83*BU83 -> 363.016139 | BW83: =BV83/'DNSP Inputs O & M'!$G$25*(BT73+BT74)/BT73*0.8 -> 108.9048417 | BZ83: ='DNSP Inputs O & M'!$G$15 -> 81.99627041 | CA83: 1 | CB83: ='DNSP Inputs O & M'!$G$17 -> 8 | CC83: =BZ83*CA83*CB83 -> 655.9701632 | CD83: =CC83/'DNSP Inputs O & M'!$G$25*(CA73+CA74)/CA73*0.8 -> 196.791049 | CG83: ='DNSP Inputs O & M'!$G$15 -> 81.99627041 | CH83: 1 | CI83: ='DNSP Inputs O & M'!$G$17 -> 8 | CJ83: =CG83*CH83*CI83 -> 655.9701632 | CK83: =CJ83/'DNSP Inputs O & M'!$G$25*(CH73+CH74)/CH73*0.8 -> 196.791049 | CP83: ='DNSP Inputs O & M'!$H$14 -> 45.37701738 | CQ83: 1 | CR83: ='DNSP Inputs O & M'!$H$17 -> 8 | CS83: =CP83*CQ83*CR83 -> 363.016139 | CT83: =CS83/'DNSP Inputs O & M'!$H$25*(CQ73+CQ74)/CQ73*0.8 -> 108.9048417 | CW83: ='DNSP Inputs O & M'!$H$15 -> 81.99627041 | CX83: 1 | CY83: ='DNSP Inputs O & M'!$H$17 -> 8 | CZ83: =CW83*CX83*CY83 -> 655.9701632 | DA83: =CZ83/'DNSP Inputs O & M'!$H$25*(CX73+CX74)/CX73*0.8 -> 196.791049 | DD83: ='DNSP Inputs O & M'!$H$15 -> 81.99627041 | DE83: 1 | DF83: ='DNSP Inputs O & M'!$H$17 -> 8 | DG83: =DD83*DE83*DF83 -> 655.9701632 | DH83: =DG83/'DNSP Inputs O & M'!$H$25*(DE73+DE74)/DE73*0.8 -> 196.791049
A84: Labour - repair of faults
A85: Crew costs | B85: ='DNSP Inputs O & M'!$D$12 -> 95.82595654 | C85: ='DNSP Inputs O & M'!$D$33 -> 2 | D85: ='DNSP Inputs O & M'!$D$17 -> 8 | E85: =B85*C85*D85 -> 1533.215305 | F85: =(E85+E86)/'DNSP Inputs O & M'!$D$37 -> 94.81157218 | G85: =F85*D62 -> 2.536209556 | I85: ='DNSP Inputs O & M'!$D$12 -> 95.82595654 | J85: ='DNSP Inputs O & M'!$D$33 -> 2 | K85: ='DNSP Inputs O & M'!$D$17 -> 8 | L85: =I85*J85*K85 -> 1533.215305 | M85: =(L85+L86)/'DNSP Inputs O & M'!$D$38 -> 145.9456979 | N85: =M85*D62 -> 3.904047418 | P85: ='DNSP Inputs O & M'!$D$12 -> 95.82595654 | Q85: ='DNSP Inputs O & M'!$D$33 -> 2 | R85: ='DNSP Inputs O & M'!$D$17 -> 8 | S85: =P85*Q85*R85 -> 1533.215305 | T85: =(S85+S86)/'DNSP Inputs O & M'!$D$39 -> 218.9185468 | U85: =T85*D62 -> 5.856071127 | Y85: ='DNSP Inputs O & M'!$E$12 -> 95.82595654 | Z85: ='DNSP Inputs O & M'!$E$33 -> 2 | AA85: ='DNSP Inputs O & M'!$E$17 -> 8 | AB85: =Y85*Z85*AA85 -> 1533.215305 | AC85: =(AB85+AB86)/'DNSP Inputs O & M'!$E$37 -> 94.81157218 | AD85: =AC85*AA62 -> 2.536209556 | AF85: ='DNSP Inputs O & M'!$E$12 -> 95.82595654 | AG85: ='DNSP Inputs O & M'!$E$33 -> 2 | AH85: ='DNSP Inputs O & M'!$E$17 -> 8 | AI85: =AF85*AG85*AH85 -> 1533.215305 | AJ85: =(AI85+AI86)/'DNSP Inputs O & M'!$E$38 -> 145.9456979 | AK85: =AJ85*AA62 -> 3.904047418 | AM85: ='DNSP Inputs O & M'!$E$12 -> 95.82595654 | AN85: ='DNSP Inputs O & M'!$E$33 -> 2 | AO85: ='DNSP Inputs O & M'!$E$17 -> 8 | AP85: =AM85*AN85*AO85 -> 1533.215305 | AQ85: =(AP85+AP86)/'DNSP Inputs O & M'!$E$39 -> 218.9185468 | AR85: =AQ85*AA62 -> 5.856071127 | AV85: ='DNSP Inputs O & M'!$F$12 -> 95.82595654 | AW85: ='DNSP Inputs O & M'!$F$33 -> 2 | AX85: ='DNSP Inputs O & M'!$F$17 -> 8 | AY85: =AV85*AW85*AX85 -> 1533.215305 | AZ85: =(AY85+AY86)/'DNSP Inputs O & M'!$F$37 -> 94.81157218 | BA85: =AZ85*AX62 -> 2.536209556 | BC85: ='DNSP Inputs O & M'!$F$12 -> 95.82595654 | BD85: ='DNSP Inputs O & M'!$F$33 -> 2 | BE85: ='DNSP Inputs O & M'!$F$17 -> 8 | BF85: =BC85*BD85*BE85 -> 1533.215305 | BG85: =(BF85+BF86)/'DNSP Inputs O & M'!$F$38 -> 145.9456979 | BH85: =BG85*AX62 -> 3.904047418 | BJ85: ='DNSP Inputs O & M'!$F$12 -> 95.82595654 | BK85: ='DNSP Inputs O & M'!$F$33 -> 2 | BL85: ='DNSP Inputs O & M'!$F$17 -> 8 | BM85: =BJ85*BK85*BL85 -> 1533.215305 | BN85: =(BM85+BM86)/'DNSP Inputs O & M'!$F$39 -> 218.9185468 | BO85: =BN85*AX62 -> 5.856071127 | BS85: ='DNSP Inputs O & M'!$G$12 -> 95.82595654 | BT85: ='DNSP Inputs O & M'!$G$33 -> 2 | BU85: ='DNSP Inputs O & M'!$G$17 -> 8 | BV85: =BS85*BT85*BU85 -> 1533.215305 | BW85: =(BV85+BV86)/'DNSP Inputs O & M'!$G$37 -> 94.81157218 | BX85: =BW85*BU62 -> 2.536209556 | BZ85: ='DNSP Inputs O & M'!$G$12 -> 95.82595654 | CA85: ='DNSP Inputs O & M'!$G$33 -> 2 | CB85: ='DNSP Inputs O & M'!$G$17 -> 8 | CC85: =BZ85*CA85*CB85 -> 1533.215305 | CD85: =(CC85+CC86)/'DNSP Inputs O & M'!$G$38 -> 145.9456979 | CE85: =CD85*BU62 -> 3.904047418 | CG85: ='DNSP Inputs O & M'!$G$12 -> 95.82595654 | CH85: ='DNSP Inputs O & M'!$G$33 -> 2 | CI85: ='DNSP Inputs O & M'!$G$17 -> 8 | CJ85: =CG85*CH85*CI85 -> 1533.215305 | CK85: =(CJ85+CJ86)/'DNSP Inputs O & M'!$G$39 -> 218.9185468 | CL85: =CK85*BU62 -> 5.856071127 | CP85: ='DNSP Inputs O & M'!$H$12 -> 95.82595654 | CQ85: ='DNSP Inputs O & M'!$H$33 -> 2 | CR85: ='DNSP Inputs O & M'!$H$17 -> 8 | CS85: =CP85*CQ85*CR85 -> 1533.215305 | CT85: =(CS85+CS86)/'DNSP Inputs O & M'!$H$37 -> 94.81157218 | CU85: =CT85*CR62 -> 2.536209556 | CW85: ='DNSP Inputs O & M'!$H$12 -> 95.82595654 | CX85: ='DNSP Inputs O & M'!$H$33 -> 2 | CY85: ='DNSP Inputs O & M'!$H$17 -> 8 | CZ85: =CW85*CX85*CY85 -> 1533.215305 | DA85: =(CZ85+CZ86)/'DNSP Inputs O & M'!$H$38 -> 145.9456979 | DB85: =DA85*CR62 -> 3.904047418 | DD85: ='DNSP Inputs O & M'!$H$12 -> 95.82595654 | DE85: ='DNSP Inputs O & M'!$H$33 -> 2 | DF85: ='DNSP Inputs O & M'!$H$17 -> 8 | DG85: =DD85*DE85*DF85 -> 1533.215305 | DH85: =(DG85+DG86)/'DNSP Inputs O & M'!$H$39 -> 218.9185468 | DI85: =DH85*CR62 -> 5.856071127
A86: Elevated platform costs | B86: ='DNSP Inputs O & M'!$D$14 -> 45.37701738 | C86: 1 | D86: ='DNSP Inputs O & M'!$D$17 -> 8 | E86: =B86*C86*D86 -> 363.016139 | I86: ='DNSP Inputs O & M'!$D$15 -> 81.99627041 | J86: 1 | K86: ='DNSP Inputs O & M'!$D$17 -> 8 | L86: =I86*J86*K86 -> 655.9701632 | P86: ='DNSP Inputs O & M'!$D$15 -> 81.99627041 | Q86: 1 | R86: ='DNSP Inputs O & M'!$D$17 -> 8 | S86: =P86*Q86*R86 -> 655.9701632 | Y86: ='DNSP Inputs O & M'!$E$14 -> 45.37701738 | Z86: 1 | AA86: ='DNSP Inputs O & M'!$E$17 -> 8 | AB86: =Y86*Z86*AA86 -> 363.016139 | AF86: ='DNSP Inputs O & M'!$E$15 -> 81.99627041 | AG86: 1 | AH86: ='DNSP Inputs O & M'!$E$17 -> 8 | AI86: =AF86*AG86*AH86 -> 655.9701632 | AM86: ='DNSP Inputs O & M'!$E$15 -> 81.99627041 | AN86: 1 | AO86: ='DNSP Inputs O & M'!$E$17 -> 8 | AP86: =AM86*AN86*AO86 -> 655.9701632 | AV86: ='DNSP Inputs O & M'!$F$14 -> 45.37701738 | AW86: 1 | AX86: ='DNSP Inputs O & M'!$F$17 -> 8 | AY86: =AV86*AW86*AX86 -> 363.016139 | BC86: ='DNSP Inputs O & M'!$F$15 -> 81.99627041 | BD86: 1 | BE86: ='DNSP Inputs O & M'!$F$17 -> 8 | BF86: =BC86*BD86*BE86 -> 655.9701632 | BJ86: ='DNSP Inputs O & M'!$F$15 -> 81.99627041 | BK86: 1 | BL86: ='DNSP Inputs O & M'!$F$17 -> 8 | BM86: =BJ86*BK86*BL86 -> 655.9701632 | BS86: ='DNSP Inputs O & M'!$G$14 -> 45.37701738 | BT86: 1 | BU86: ='DNSP Inputs O & M'!$G$17 -> 8 | BV86: =BS86*BT86*BU86 -> 363.016139 | BZ86: ='DNSP Inputs O & M'!$G$15 -> 81.99627041 | CA86: 1 | CB86: ='DNSP Inputs O & M'!$G$17 -> 8 | CC86: =BZ86*CA86*CB86 -> 655.9701632 | CG86: ='DNSP Inputs O & M'!$G$15 -> 81.99627041 | CH86: 1 | CI86: ='DNSP Inputs O & M'!$G$17 -> 8 | CJ86: =CG86*CH86*CI86 -> 655.9701632 | CP86: ='DNSP Inputs O & M'!$H$14 -> 45.37701738 | CQ86: 1 | CR86: ='DNSP Inputs O & M'!$H$17 -> 8 | CS86: =CP86*CQ86*CR86 -> 363.016139 | CW86: ='DNSP Inputs O & M'!$H$15 -> 81.99627041 | CX86: 1 | CY86: ='DNSP Inputs O & M'!$H$17 -> 8 | CZ86: =CW86*CX86*CY86 -> 655.9701632 | DD86: ='DNSP Inputs O & M'!$H$15 -> 81.99627041 | DE86: 1 | DF86: ='DNSP Inputs O & M'!$H$17 -> 8 | DG86: =DD86*DE86*DF86 -> 655.9701632
A87: Other Maintenance and Repair costs | G87: ='DNSP Inputs O & M'!$D$50 -> 0.179797677 | N87: ='DNSP Inputs O & M'!$D$50 -> 0.179797677 | U87: ='DNSP Inputs O & M'!$D$50 -> 0.179797677 | AD87: ='DNSP Inputs O & M'!$E$50 -> 0.179797677 | AK87: ='DNSP Inputs O & M'!$E$50 -> 0.179797677 | AR87: ='DNSP Inputs O & M'!$E$50 -> 0.179797677 | BA87: ='DNSP Inputs O & M'!$F$50 -> 0.179797677 | BH87: ='DNSP Inputs O & M'!$F$50 -> 0.179797677 | BO87: ='DNSP Inputs O & M'!$F$50 -> 0.179797677 | BX87: ='DNSP Inputs O & M'!$G$50 -> 0.179797677 | CE87: ='DNSP Inputs O & M'!$G$50 -> 0.179797677 | CL87: ='DNSP Inputs O & M'!$G$50 -> 0.179797677 | CU87: ='DNSP Inputs O & M'!$H$50 -> 0.179797677 | DB87: ='DNSP Inputs O & M'!$H$50 -> 0.179797677 | DI87: ='DNSP Inputs O & M'!$H$50 -> 0.179797677
A89: Overheads | B89: ='DNSP Inputs O & M'!$D$18 -> 0.25 | G89: =B89*SUM(G73:G87) -> 3.693830729 | I89: ='DNSP Inputs O & M'!$D$18 -> 0.25 | N89: =I89*SUM(N73:N87) -> 4.775284838 | P89: ='DNSP Inputs O & M'!$D$18 -> 0.25 | U89: =P89*SUM(U73:U87) -> 6.201513108 | Y89: ='DNSP Inputs O & M'!$E$18 -> 0.25 | AD89: =Y89*SUM(AD73:AD87) -> 3.693830729 | AF89: ='DNSP Inputs O & M'!$E$18 -> 0.25 | AK89: =AF89*SUM(AK73:AK87) -> 4.775284838 | AM89: ='DNSP Inputs O & M'!$E$18 -> 0.25 | AR89: =AM89*SUM(AR73:AR87) -> 6.201513108 | AV89: ='DNSP Inputs O & M'!$F$18 -> 0.25 | BA89: =AV89*SUM(BA73:BA87) -> 3.693830729 | BC89: ='DNSP Inputs O & M'!$F$18 -> 0.25 | BH89: =BC89*SUM(BH73:BH87) -> 4.775284838 | BJ89: ='DNSP Inputs O & M'!$F$18 -> 0.25 | BO89: =BJ89*SUM(BO73:BO87) -> 6.201513108 | BS89: ='DNSP Inputs O & M'!$G$18 -> 0.25 | BX89: =BS89*SUM(BX73:BX87) -> 3.693830729 | BZ89: ='DNSP Inputs O & M'!$G$18 -> 0.25 | CE89: =BZ89*SUM(CE73:CE87) -> 4.775284838 | CG89: ='DNSP Inputs O & M'!$G$18 -> 0.25 | CL89: =CG89*SUM(CL73:CL87) -> 6.201513108 | CP89: ='DNSP Inputs O & M'!$H$18 -> 0.25 | CU89: =CP89*SUM(CU73:CU87) -> 3.693830729 | CW89: ='DNSP Inputs O & M'!$H$18 -> 0.25 | DB89: =CW89*SUM(DB73:DB87) -> 4.775284838 | DD89: ='DNSP Inputs O & M'!$H$18 -> 0.25 | DI89: =DD89*SUM(DI73:DI87) -> 6.201513108
G91: =SUM(G73,G77,G82,G85,G87,G89) -> 18.46915364 | N91: =SUM(N73,N77,N82,N85,N87,N89) -> 23.87642419 | U91: =SUM(U73,U77,U82,U85,U87,U89) -> 31.00756554 | AD91: =SUM(AD73,AD77,AD82,AD85,AD87,AD89) -> 18.46915364 | AK91: =SUM(AK73,AK77,AK82,AK85,AK87,AK89) -> 23.87642419 | AR91: =SUM(AR73,AR77,AR82,AR85,AR87,AR89) -> 31.00756554 | BA91: =SUM(BA73,BA77,BA82,BA85,BA87,BA89) -> 18.46915364 | BH91: =SUM(BH73,BH77,BH82,BH85,BH87,BH89) -> 23.87642419 | BO91: =SUM(BO73,BO77,BO82,BO85,BO87,BO89) -> 31.00756554 | BX91: =SUM(BX73,BX77,BX82,BX85,BX87,BX89) -> 18.46915364 | CE91: =SUM(CE73,CE77,CE82,CE85,CE87,CE89) -> 23.87642419 | CL91: =SUM(CL73,CL77,CL82,CL85,CL87,CL89) -> 31.00756554 | CU91: =SUM(CU73,CU77,CU82,CU85,CU87,CU89) -> 18.46915364 | DB91: =SUM(DB73,DB77,DB82,DB85,DB87,DB89) -> 23.87642419 | DI91: =SUM(DI73,DI77,DI82,DI85,DI87,DI89) -> 31.00756554
A93: Dedicated poles - inspection
A94: Crew costs | B94: ='DNSP Inputs O & M'!$D$12 -> 95.82595654 | C94: 1 | D94: ='DNSP Inputs O & M'!$D$17 -> 8 | E94: =B94*C94*D94 -> 766.6076523 | F94: =(E94+E95+E96)/'DNSP Inputs O & M'!$D$158 -> 253.8184269 | G94: =F94/'DNSP Inputs O & M'!$D$159 -> 3.384245692 | I94: ='DNSP Inputs O & M'!$D$12 -> 95.82595654 | J94: 1 | K94: ='DNSP Inputs O & M'!$D$17 -> 8 | L94: =I94*J94*K94 -> 766.6076523 | M94: =(L94+L95+L96)/'DNSP Inputs O & M'!$D$158 -> 253.8184269 | N94: =M94/'DNSP Inputs O & M'!$D$159 -> 3.384245692 | P94: ='DNSP Inputs O & M'!$D$12 -> 95.82595654 | Q94: 1 | R94: ='DNSP Inputs O & M'!$D$17 -> 8 | S94: =P94*Q94*R94 -> 766.6076523 | T94: =(S94+S95+S96)/'DNSP Inputs O & M'!$D$158 -> 253.8184269 | U94: =T94/'DNSP Inputs O & M'!$D$159 -> 3.384245692 | Y94: ='DNSP Inputs O & M'!$E$12 -> 95.82595654 | Z94: 1 | AA94: ='DNSP Inputs O & M'!$E$17 -> 8 | AB94: =Y94*Z94*AA94 -> 766.6076523 | AC94: =(AB94+AB95+AB96)/'DNSP Inputs O & M'!$E$158 -> 253.8184269 | AD94: =AC94/'DNSP Inputs O & M'!$E$159 -> 3.384245692 | AF94: ='DNSP Inputs O & M'!$E$12 -> 95.82595654 | AG94: 1 | AH94: ='DNSP Inputs O & M'!$E$17 -> 8 | AI94: =AF94*AG94*AH94 -> 766.6076523 | AJ94: =(AI94+AI95+AI96)/'DNSP Inputs O & M'!$E$158 -> 253.8184269 | AK94: =AJ94/'DNSP Inputs O & M'!$E$159 -> 3.384245692 | AM94: ='DNSP Inputs O & M'!$E$12 -> 95.82595654 | AN94: 1 | AO94: ='DNSP Inputs O & M'!$E$17 -> 8 | AP94: =AM94*AN94*AO94 -> 766.6076523 | AQ94: =(AP94+AP95+AP96)/'DNSP Inputs O & M'!$E$158 -> 253.8184269 | AR94: =AQ94/'DNSP Inputs O & M'!$E$159 -> 3.384245692 | AV94: ='DNSP Inputs O & M'!$F$12 -> 95.82595654 | AW94: 1 | AX94: ='DNSP Inputs O & M'!$F$17 -> 8 | AY94: =AV94*AW94*AX94 -> 766.6076523 | AZ94: =(AY94+AY95+AY96)/'DNSP Inputs O & M'!$F$158 -> 253.8184269 | BA94: =AZ94/'DNSP Inputs O & M'!$F$159 -> 3.384245692 | BC94: ='DNSP Inputs O & M'!$F$12 -> 95.82595654 | BD94: 1 | BE94: ='DNSP Inputs O & M'!$F$17 -> 8 | BF94: =BC94*BD94*BE94 -> 766.6076523 | BG94: =(BF94+BF95+BF96)/'DNSP Inputs O & M'!$F$158 -> 253.8184269 | BH94: =BG94/'DNSP Inputs O & M'!$F$159 -> 3.384245692 | BJ94: ='DNSP Inputs O & M'!$F$12 -> 95.82595654 | BK94: 1 | BL94: ='DNSP Inputs O & M'!$F$17 -> 8 | BM94: =BJ94*BK94*BL94 -> 766.6076523 | BN94: =(BM94+BM95+BM96)/'DNSP Inputs O & M'!$F$158 -> 253.8184269 | BO94: =BN94/'DNSP Inputs O & M'!$F$159 -> 3.384245692 | BS94: ='DNSP Inputs O & M'!$G$12 -> 95.82595654 | BT94: 1 | BU94: ='DNSP Inputs O & M'!$G$17 -> 8 | BV94: =BS94*BT94*BU94 -> 766.6076523 | BW94: =(BV94+BV95+BV96)/'DNSP Inputs O & M'!$G$158 -> 253.8184269 | BX94: =BW94/'DNSP Inputs O & M'!$G$159 -> 3.384245692 | BZ94: ='DNSP Inputs O & M'!$G$12 -> 95.82595654 | CA94: 1 | CB94: ='DNSP Inputs O & M'!$G$17 -> 8 | CC94: =BZ94*CA94*CB94 -> 766.6076523 | CD94: =(CC94+CC95+CC96)/'DNSP Inputs O & M'!$G$158 -> 253.8184269 | CE94: =CD94/'DNSP Inputs O & M'!$G$159 -> 3.384245692 | CG94: ='DNSP Inputs O & M'!$G$12 -> 95.82595654 | CH94: 1 | CI94: ='DNSP Inputs O & M'!$G$17 -> 8 | CJ94: =CG94*CH94*CI94 -> 766.6076523 | CK94: =(CJ94+CJ95+CJ96)/'DNSP Inputs O & M'!$G$158 -> 253.8184269 | CL94: =CK94/'DNSP Inputs O & M'!$G$159 -> 3.384245692 | CP94: ='DNSP Inputs O & M'!$H$12 -> 95.82595654 | CQ94: 1 | CR94: ='DNSP Inputs O & M'!$H$17 -> 8 | CS94: =CP94*CQ94*CR94 -> 766.6076523 | CT94: =(CS94+CS95+CS96)/'DNSP Inputs O & M'!$H$158 -> 253.8184269 | CU94: =CT94/'DNSP Inputs O & M'!$H$159 -> 3.384245692 | CW94: ='DNSP Inputs O & M'!$H$12 -> 95.82595654 | CX94: 1 | CY94: ='DNSP Inputs O & M'!$H$17 -> 8 | CZ94: =CW94*CX94*CY94 -> 766.6076523 | DA94: =(CZ94+CZ95+CZ96)/'DNSP Inputs O & M'!$H$158 -> 253.8184269 | DB94: =DA94/'DNSP Inputs O & M'!$H$159 -> 3.384245692 | DD94: ='DNSP Inputs O & M'!$H$12 -> 95.82595654 | DE94: 1 | DF94: ='DNSP Inputs O & M'!$H$17 -> 8 | DG94: =DD94*DE94*DF94 -> 766.6076523 | DH94: =(DG94+DG95+DG96)/'DNSP Inputs O & M'!$H$158 -> 253.8184269 | DI94: =DH94/'DNSP Inputs O & M'!$H$159 -> 3.384245692
A95: Vehicle costs | B95: ='DNSP Inputs O & M'!$D$16 -> 31.08325691 | C95: 1 | D95: ='DNSP Inputs O & M'!$D$17 -> 8 | E95: =B95*C95*D95 -> 248.6660552 | I95: ='DNSP Inputs O & M'!$D$16 -> 31.08325691 | J95: 1 | K95: ='DNSP Inputs O & M'!$D$17 -> 8 | L95: =I95*J95*K95 -> 248.6660552 | P95: ='DNSP Inputs O & M'!$D$16 -> 31.08325691 | Q95: 1 | R95: ='DNSP Inputs O & M'!$D$17 -> 8 | S95: =P95*Q95*R95 -> 248.6660552 | Y95: ='DNSP Inputs O & M'!$E$16 -> 31.08325691 | Z95: 1 | AA95: ='DNSP Inputs O & M'!$E$17 -> 8 | AB95: =Y95*Z95*AA95 -> 248.6660552 | AF95: ='DNSP Inputs O & M'!$E$16 -> 31.08325691 | AG95: 1 | AH95: ='DNSP Inputs O & M'!$E$17 -> 8 | AI95: =AF95*AG95*AH95 -> 248.6660552 | AM95: ='DNSP Inputs O & M'!$E$16 -> 31.08325691 | AN95: 1 | AO95: ='DNSP Inputs O & M'!$E$17 -> 8 | AP95: =AM95*AN95*AO95 -> 248.6660552 | AV95: ='DNSP Inputs O & M'!$F$16 -> 31.08325691 | AW95: 1 | AX95: ='DNSP Inputs O & M'!$F$17 -> 8 | AY95: =AV95*AW95*AX95 -> 248.6660552 | BC95: ='DNSP Inputs O & M'!$F$16 -> 31.08325691 | BD95: 1 | BE95: ='DNSP Inputs O & M'!$F$17 -> 8 | BF95: =BC95*BD95*BE95 -> 248.6660552 | BJ95: ='DNSP Inputs O & M'!$F$16 -> 31.08325691 | BK95: 1 | BL95: ='DNSP Inputs O & M'!$F$17 -> 8 | BM95: =BJ95*BK95*BL95 -> 248.6660552 | BS95: ='DNSP Inputs O & M'!$G$16 -> 31.08325691 | BT95: 1 | BU95: ='DNSP Inputs O & M'!$G$17 -> 8 | BV95: =BS95*BT95*BU95 -> 248.6660552 | BZ95: ='DNSP Inputs O & M'!$G$16 -> 31.08325691 | CA95: 1 | CB95: ='DNSP Inputs O & M'!$G$17 -> 8 | CC95: =BZ95*CA95*CB95 -> 248.6660552 | CG95: ='DNSP Inputs O & M'!$G$16 -> 31.08325691 | CH95: 1 | CI95: ='DNSP Inputs O & M'!$G$17 -> 8 | CJ95: =CG95*CH95*CI95 -> 248.6660552 | CP95: ='DNSP Inputs O & M'!$H$16 -> 31.08325691 | CQ95: 1 | CR95: ='DNSP Inputs O & M'!$H$17 -> 8 | CS95: =CP95*CQ95*CR95 -> 248.6660552 | CW95: ='DNSP Inputs O & M'!$H$16 -> 31.08325691 | CX95: 1 | CY95: ='DNSP Inputs O & M'!$H$17 -> 8 | CZ95: =CW95*CX95*CY95 -> 248.6660552 | DD95: ='DNSP Inputs O & M'!$H$16 -> 31.08325691 | DE95: 1 | DF95: ='DNSP Inputs O & M'!$H$17 -> 8 | DG95: =DD95*DE95*DF95 -> 248.6660552
A96: Overheads | B96: ='DNSP Inputs O & M'!$D$18 -> 0.25 | E96: =B96*(E94+E95) -> 253.8184269 | I96: ='DNSP Inputs O & M'!$D$18 -> 0.25 | L96: =I96*(L94+L95) -> 253.8184269 | P96: ='DNSP Inputs O & M'!$D$18 -> 0.25 | S96: =P96*(S94+S95) -> 253.8184269 | Y96: ='DNSP Inputs O & M'!$E$18 -> 0.25 | AB96: =Y96*(AB94+AB95) -> 253.8184269 | AF96: ='DNSP Inputs O & M'!$E$18 -> 0.25 | AI96: =AF96*(AI94+AI95) -> 253.8184269 | AM96: ='DNSP Inputs O & M'!$E$18 -> 0.25 | AP96: =AM96*(AP94+AP95) -> 253.8184269 | AV96: ='DNSP Inputs O & M'!$F$18 -> 0.25 | AY96: =AV96*(AY94+AY95) -> 253.8184269 | BC96: ='DNSP Inputs O & M'!$F$18 -> 0.25 | BF96: =BC96*(BF94+BF95) -> 253.8184269 | BJ96: ='DNSP Inputs O & M'!$F$18 -> 0.25 | BM96: =BJ96*(BM94+BM95) -> 253.8184269 | BS96: ='DNSP Inputs O & M'!$G$18 -> 0.25 | BV96: =BS96*(BV94+BV95) -> 253.8184269 | BZ96: ='DNSP Inputs O & M'!$G$18 -> 0.25 | CC96: =BZ96*(CC94+CC95) -> 253.8184269 | CG96: ='DNSP Inputs O & M'!$G$18 -> 0.25 | CJ96: =CG96*(CJ94+CJ95) -> 253.8184269 | CP96: ='DNSP Inputs O & M'!$H$18 -> 0.25 | CS96: =CP96*(CS94+CS95) -> 253.8184269 | CW96: ='DNSP Inputs O & M'!$H$18 -> 0.25 | CZ96: =CW96*(CZ94+CZ95) -> 253.8184269 | DD96: ='DNSP Inputs O & M'!$H$18 -> 0.25 | DG96: =DD96*(DG94+DG95) -> 253.8184269
A101: Sodium High Pressure 150 Watt Standard Light Type - Cost build-up
A103: Addiitonal assumptions
A104: Overheads are applied to material and labour components
A105: All costs and charges are exclusive of GST
B107: Urban | I107: Rural | P107: Remote | Y107: Urban | AF107: Rural | AM107: Remote | AV107: Urban | BC107: Rural | BJ107: Remote | BS107: Urban | BZ107: Rural | CG107: Remote | CP107: Urban | CW107: Rural | DD107: Remote
B109: Unit rate | C109: Number | D109: Hours | E109: Cost | F109: Annualised | G109: Annualised | I109: Unit rate | J109: Number | K109: Hours | L109: Cost | M109: Annualised | N109: Annualised | P109: Unit rate | Q109: Number | R109: Hours | S109: Cost | T109: Annualised | U109: Annualised | Y109: Unit rate | Z109: Number | AA109: Hours | AB109: Cost | AC109: Annualised | AD109: Annualised | AF109: Unit rate | AG109: Number | AH109: Hours | AI109: Cost | AJ109: Annualised | AK109: Annualised | AM109: Unit rate | AN109: Number | AO109: Hours | AP109: Cost | AQ109: Annualised | AR109: Annualised | AV109: Unit rate | AW109: Number | AX109: Hours | AY109: Cost | AZ109: Annualised | BA109: Annualised | BC109: Unit rate | BD109: Number | BE109: Hours | BF109: Cost | BG109: Annualised | BH109: Annualised | BJ109: Unit rate | BK109: Number | BL109: Hours | BM109: Cost | BN109: Annualised | BO109: Annualised | BS109: Unit rate | BT109: Number | BU109: Hours | BV109: Cost | BW109: Annualised | BX109: Annualised | BZ109: Unit rate | CA109: Number | CB109: Hours | CC109: Cost | CD109: Annualised | CE109: Annualised | CG109: Unit rate | CH109: Number | CI109: Hours | CJ109: Cost | CK109: Annualised | CL109: Annualised | CP109: Unit rate | CQ109: Number | CR109: Hours | CS109: Cost | CT109: Annualised | CU109: Annualised | CW109: Unit rate | CX109: Number | CY109: Hours | CZ109: Cost | DA109: Annualised | DB109: Annualised | DD109: Unit rate | DE109: Number | DF109: Hours | DG109: Cost | DH109: Annualised | DI109: Annualised
F110: cost | G110: unit cost | M110: cost | N110: unit cost | T110: cost | U110: unit cost | AC110: cost | AD110: unit cost | AJ110: cost | AK110: unit cost | AQ110: cost | AR110: unit cost | AZ110: cost | BA110: unit cost | BG110: cost | BH110: unit cost | BN110: cost | BO110: unit cost | BW110: cost | BX110: unit cost | CD110: cost | CE110: unit cost | CK110: cost | CL110: unit cost | CT110: cost | CU110: unit cost | DA110: cost | DB110: unit cost | DH110: cost | DI110: unit cost
A111: S-HP 150
A112: Patrols and repairs
A113: Materials
A114: Lamp | B114: ='DNSP Inputs O & M'!$D$76 -> 40.28 | C114: ='DNSP Inputs O & M'!$D$84 -> 15 | E114: =B114*C114 -> 604.2 | F114: =(E114+E115+E116)/'DNSP Inputs O & M'!$D$84 -> 53.656243 | G114: =F114/'DNSP Inputs O & M'!$D$74 -> 10.7312486 | I114: ='DNSP Inputs O & M'!$D$76*(1+'DNSP Inputs O & M'!$D$11) -> 42.294 | J114: ='DNSP Inputs O & M'!$D$85 -> 12 | L114: =I114*J114 -> 507.528 | M114: =(L114+L115+L116)/'DNSP Inputs O & M'!$D$85 -> 56.33905515 | N114: =M114/'DNSP Inputs O & M'!$D$74 -> 11.26781103 | P114: ='DNSP Inputs O & M'!$D$76*(1+'DNSP Inputs O & M'!$D$11) -> 42.294 | Q114: ='DNSP Inputs O & M'!$D$86 -> 9 | S114: =P114*Q114 -> 380.646 | T114: =(S114+S115+S116)/'DNSP Inputs O & M'!$D$86 -> 56.33905515 | U114: =T114/'DNSP Inputs O & M'!$D$74 -> 11.26781103 | Y114: ='DNSP Inputs O & M'!$E$76 -> 40.28 | Z114: ='DNSP Inputs O & M'!$E$84 -> 15 | AB114: =Y114*Z114 -> 604.2 | AC114: =(AB114+AB115+AB116)/'DNSP Inputs O & M'!$E$84 -> 53.656243 | AD114: =AC114/'DNSP Inputs O & M'!$E$74 -> 10.7312486 | AF114: ='DNSP Inputs O & M'!$E$76*(1+'DNSP Inputs O & M'!$E$11) -> 42.294 | AG114: ='DNSP Inputs O & M'!$E$85 -> 12 | AI114: =AF114*AG114 -> 507.528 | AJ114: =(AI114+AI115+AI116)/'DNSP Inputs O & M'!$E$85 -> 56.33905515 | AK114: =AJ114/'DNSP Inputs O & M'!$E$74 -> 11.26781103 | AM114: ='DNSP Inputs O & M'!$E$76*(1+'DNSP Inputs O & M'!$E$11) -> 42.294 | AN114: ='DNSP Inputs O & M'!$E$86 -> 9 | AP114: =AM114*AN114 -> 380.646 | AQ114: =(AP114+AP115+AP116)/'DNSP Inputs O & M'!$E$86 -> 56.33905515 | AR114: =AQ114/'DNSP Inputs O & M'!$E$74 -> 11.26781103 | AV114: ='DNSP Inputs O & M'!$F$76 -> 40.28 | AW114: ='DNSP Inputs O & M'!$F$84 -> 15 | AY114: =AV114*AW114 -> 604.2 | AZ114: =(AY114+AY115+AY116)/'DNSP Inputs O & M'!$F$84 -> 53.656243 | BA114: =AZ114/'DNSP Inputs O & M'!$F$74 -> 10.7312486 | BC114: ='DNSP Inputs O & M'!$F$76*(1+'DNSP Inputs O & M'!$F$11) -> 42.294 | BD114: ='DNSP Inputs O & M'!$F$85 -> 12 | BF114: =BC114*BD114 -> 507.528 | BG114: =(BF114+BF115+BF116)/'DNSP Inputs O & M'!$F$85 -> 56.33905515 | BH114: =BG114/'DNSP Inputs O & M'!$F$74 -> 11.26781103 | BJ114: ='DNSP Inputs O & M'!$F$76*(1+'DNSP Inputs O & M'!$F$11) -> 42.294 | BK114: ='DNSP Inputs O & M'!$F$86 -> 9 | BM114: =BJ114*BK114 -> 380.646 | BN114: =(BM114+BM115+BM116)/'DNSP Inputs O & M'!$F$86 -> 56.33905515 | BO114: =BN114/'DNSP Inputs O & M'!$F$74 -> 11.26781103 | BS114: ='DNSP Inputs O & M'!$G$76 -> 40.28 | BT114: ='DNSP Inputs O & M'!$G$84 -> 15 | BV114: =BS114*BT114 -> 604.2 | BW114: =(BV114+BV115+BV116)/'DNSP Inputs O & M'!$G$84 -> 53.656243 | BX114: =BW114/'DNSP Inputs O & M'!$G$74 -> 10.7312486 | BZ114: ='DNSP Inputs O & M'!$G$76*(1+'DNSP Inputs O & M'!$G$11) -> 42.294 | CA114: ='DNSP Inputs O & M'!$G$85 -> 12 | CC114: =BZ114*CA114 -> 507.528 | CD114: =(CC114+CC115+CC116)/'DNSP Inputs O & M'!$G$85 -> 56.33905515 | CE114: =CD114/'DNSP Inputs O & M'!$G$74 -> 11.26781103 | CG114: ='DNSP Inputs O & M'!$G$76*(1+'DNSP Inputs O & M'!$G$11) -> 42.294 | CH114: ='DNSP Inputs O & M'!$G$86 -> 9 | CJ114: =CG114*CH114 -> 380.646 | CK114: =(CJ114+CJ115+CJ116)/'DNSP Inputs O & M'!$G$86 -> 56.33905515 | CL114: =CK114/'DNSP Inputs O & M'!$G$74 -> 11.26781103 | CP114: ='DNSP Inputs O & M'!$H$76 -> 40.28 | CQ114: ='DNSP Inputs O & M'!$H$84 -> 15 | CS114: =CP114*CQ114 -> 604.2 | CT114: =(CS114+CS115+CS116)/'DNSP Inputs O & M'!$H$84 -> 53.656243 | CU114: =CT114/'DNSP Inputs O & M'!$H$74 -> 10.7312486 | CW114: ='DNSP Inputs O & M'!$H$76*(1+'DNSP Inputs O & M'!$H$11) -> 42.294 | CX114: ='DNSP Inputs O & M'!$H$85 -> 12 | CZ114: =CW114*CX114 -> 507.528 | DA114: =(CZ114+CZ115+CZ116)/'DNSP Inputs O & M'!$H$85 -> 56.33905515 | DB114: =DA114/'DNSP Inputs O & M'!$H$74 -> 11.26781103 | DD114: ='DNSP Inputs O & M'!$H$76*(1+'DNSP Inputs O & M'!$H$11) -> 42.294 | DE114: ='DNSP Inputs O & M'!$H$86 -> 9 | DG114: =DD114*DE114 -> 380.646 | DH114: =(DG114+DG115+DG116)/'DNSP Inputs O & M'!$H$86 -> 56.33905515 | DI114: =DH114/'DNSP Inputs O & M'!$H$74 -> 11.26781103
A115: PE cell | B115: ='DNSP Inputs O & M'!$D$77 -> 21.8773177 | C115: =C114*'DNSP Inputs O & M'!$D$74/'DNSP Inputs O & M'!$D$75 -> 7.5 | E115: =B115*C115 -> 164.0798828 | I115: ='DNSP Inputs O & M'!$D$77*(1+'DNSP Inputs O & M'!$D$11) -> 22.97118359 | J115: =J114*'DNSP Inputs O & M'!$D$74/'DNSP Inputs O & M'!$D$75 -> 6 | L115: =I115*J115 -> 137.8271015 | P115: ='DNSP Inputs O & M'!$D$77*(1+'DNSP Inputs O & M'!$D$11) -> 22.97118359 | Q115: =Q114*'DNSP Inputs O & M'!$D$74/'DNSP Inputs O & M'!$D$75 -> 4.5 | S115: =P115*Q115 -> 103.3703261 | Y115: ='DNSP Inputs O & M'!$E$77 -> 21.8773177 | Z115: =Z114*'DNSP Inputs O & M'!$E$74/'DNSP Inputs O & M'!$E$75 -> 7.5 | AB115: =Y115*Z115 -> 164.0798828 | AF115: ='DNSP Inputs O & M'!$E$77*(1+'DNSP Inputs O & M'!$E$11) -> 22.97118359 | AG115: =AG114*'DNSP Inputs O & M'!$E$74/'DNSP Inputs O & M'!$E$75 -> 6 | AI115: =AF115*AG115 -> 137.8271015 | AM115: ='DNSP Inputs O & M'!$E$77*(1+'DNSP Inputs O & M'!$E$11) -> 22.97118359 | AN115: =AN114*'DNSP Inputs O & M'!$E$74/'DNSP Inputs O & M'!$E$75 -> 4.5 | AP115: =AM115*AN115 -> 103.3703261 | AV115: ='DNSP Inputs O & M'!$F$77 -> 21.8773177 | AW115: =AW114*'DNSP Inputs O & M'!$F$74/'DNSP Inputs O & M'!$F$75 -> 7.5 | AY115: =AV115*AW115 -> 164.0798828 | BC115: ='DNSP Inputs O & M'!$F$77*(1+'DNSP Inputs O & M'!$F$11) -> 22.97118359 | BD115: =BD114*'DNSP Inputs O & M'!$F$74/'DNSP Inputs O & M'!$F$75 -> 6 | BF115: =BC115*BD115 -> 137.8271015 | BJ115: ='DNSP Inputs O & M'!$F$77*(1+'DNSP Inputs O & M'!$F$11) -> 22.97118359 | BK115: =BK114*'DNSP Inputs O & M'!$F$74/'DNSP Inputs O & M'!$F$75 -> 4.5 | BM115: =BJ115*BK115 -> 103.3703261 | BS115: ='DNSP Inputs O & M'!$G$77 -> 21.8773177 | BT115: =BT114*'DNSP Inputs O & M'!$G$74/'DNSP Inputs O & M'!$G$75 -> 7.5 | BV115: =BS115*BT115 -> 164.0798828 | BZ115: ='DNSP Inputs O & M'!$G$77*(1+'DNSP Inputs O & M'!$G$11) -> 22.97118359 | CA115: =CA114*'DNSP Inputs O & M'!$G$74/'DNSP Inputs O & M'!$G$75 -> 6 | CC115: =BZ115*CA115 -> 137.8271015 | CG115: ='DNSP Inputs O & M'!$G$77*(1+'DNSP Inputs O & M'!$G$11) -> 22.97118359 | CH115: =CH114*'DNSP Inputs O & M'!$G$74/'DNSP Inputs O & M'!$G$75 -> 4.5 | CJ115: =CG115*CH115 -> 103.3703261 | CP115: ='DNSP Inputs O & M'!$H$77 -> 21.8773177 | CQ115: =CQ114*'DNSP Inputs O & M'!$H$74/'DNSP Inputs O & M'!$H$75 -> 7.5 | CS115: =CP115*CQ115 -> 164.0798828 | CW115: ='DNSP Inputs O & M'!$H$77*(1+'DNSP Inputs O & M'!$H$11) -> 22.97118359 | CX115: =CX114*'DNSP Inputs O & M'!$H$74/'DNSP Inputs O & M'!$H$75 -> 6 | CZ115: =CW115*CX115 -> 137.8271015 | DD115: ='DNSP Inputs O & M'!$H$77*(1+'DNSP Inputs O & M'!$H$11) -> 22.97118359 | DE115: =DE114*'DNSP Inputs O & M'!$H$74/'DNSP Inputs O & M'!$H$75 -> 4.5 | DG115: =DD115*DE115 -> 103.3703261
A116: Miscellaneous | B116: ='DNSP Inputs O & M'!$D$78 -> 2.437584145 | C116: ='DNSP Inputs O & M'!$D$84 -> 15 | E116: =B116*C116 -> 36.56376218 | I116: ='DNSP Inputs O & M'!$D$78*(1+'DNSP Inputs O & M'!$D$11) -> 2.559463352 | J116: ='DNSP Inputs O & M'!$D$85 -> 12 | L116: =I116*J116 -> 30.71356023 | P116: ='DNSP Inputs O & M'!$D$78*(1+'DNSP Inputs O & M'!$D$11) -> 2.559463352 | Q116: ='DNSP Inputs O & M'!$D$86 -> 9 | S116: =P116*Q116 -> 23.03517017 | Y116: ='DNSP Inputs O & M'!$E$78 -> 2.437584145 | Z116: ='DNSP Inputs O & M'!$E$84 -> 15 | AB116: =Y116*Z116 -> 36.56376218 | AF116: ='DNSP Inputs O & M'!$E$78*(1+'DNSP Inputs O & M'!$E$11) -> 2.559463352 | AG116: ='DNSP Inputs O & M'!$E$85 -> 12 | AI116: =AF116*AG116 -> 30.71356023 | AM116: ='DNSP Inputs O & M'!$E$78*(1+'DNSP Inputs O & M'!$E$11) -> 2.559463352 | AN116: ='DNSP Inputs O & M'!$E$86 -> 9 | AP116: =AM116*AN116 -> 23.03517017 | AV116: ='DNSP Inputs O & M'!$F$78 -> 2.437584145 | AW116: ='DNSP Inputs O & M'!$F$84 -> 15 | AY116: =AV116*AW116 -> 36.56376218 | BC116: ='DNSP Inputs O & M'!$F$78*(1+'DNSP Inputs O & M'!$F$11) -> 2.559463352 | BD116: ='DNSP Inputs O & M'!$F$85 -> 12 | BF116: =BC116*BD116 -> 30.71356023 | BJ116: ='DNSP Inputs O & M'!$F$78*(1+'DNSP Inputs O & M'!$F$11) -> 2.559463352 | BK116: ='DNSP Inputs O & M'!$F$86 -> 9 | BM116: =BJ116*BK116 -> 23.03517017 | BS116: ='DNSP Inputs O & M'!$G$78 -> 2.437584145 | BT116: ='DNSP Inputs O & M'!$G$84 -> 15 | BV116: =BS116*BT116 -> 36.56376218 | BZ116: ='DNSP Inputs O & M'!$G$78*(1+'DNSP Inputs O & M'!$G$11) -> 2.559463352 | CA116: ='DNSP Inputs O & M'!$G$85 -> 12 | CC116: =BZ116*CA116 -> 30.71356023 | CG116: ='DNSP Inputs O & M'!$G$78*(1+'DNSP Inputs O & M'!$G$11) -> 2.559463352 | CH116: ='DNSP Inputs O & M'!$G$86 -> 9 | CJ116: =CG116*CH116 -> 23.03517017 | CP116: ='DNSP Inputs O & M'!$H$78 -> 2.437584145 | CQ116: ='DNSP Inputs O & M'!$H$84 -> 15 | CS116: =CP116*CQ116 -> 36.56376218 | CW116: ='DNSP Inputs O & M'!$H$78*(1+'DNSP Inputs O & M'!$H$11) -> 2.559463352 | CX116: ='DNSP Inputs O & M'!$H$85 -> 12 | CZ116: =CW116*CX116 -> 30.71356023 | DD116: ='DNSP Inputs O & M'!$H$78*(1+'DNSP Inputs O & M'!$H$11) -> 2.559463352 | DE116: ='DNSP Inputs O & M'!$H$86 -> 9 | DG116: =DD116*DE116 -> 23.03517017
A117: Labour - Patrol
A118: Crew costs | B118: ='DNSP Inputs O & M'!$D$13 -> 119.7793071 | C118: ='DNSP Inputs O & M'!$D$79 -> 2 | D118: ='DNSP Inputs O & M'!$D$17 -> 8 | E118: =B118*C118*D118 -> 1916.468914 | F118: =(E118+E119)/'DNSP Inputs O & M'!$D$81 -> 0.7217116564 | G118: =F118*'DNSP Inputs O & M'!$D$73 -> 2.165134969 | I118: ='DNSP Inputs O & M'!$D$13 -> 119.7793071 | J118: ='DNSP Inputs O & M'!$D$79 -> 2 | K118: ='DNSP Inputs O & M'!$D$17 -> 8 | L118: =I118*J118*K118 -> 1916.468914 | M118: =(L118+L119)/'DNSP Inputs O & M'!$D$82 -> 1.082567485 | N118: =M118*'DNSP Inputs O & M'!$D$73 -> 3.247702454 | P118: ='DNSP Inputs O & M'!$D$13 -> 119.7793071 | Q118: ='DNSP Inputs O & M'!$D$79 -> 2 | R118: ='DNSP Inputs O & M'!$D$17 -> 8 | S118: =P118*Q118*R118 -> 1916.468914 | T118: =(S118+S119)/'DNSP Inputs O & M'!$D$83 -> 2.165134969 | U118: =T118*'DNSP Inputs O & M'!$D$73 -> 6.495404908 | Y118: ='DNSP Inputs O & M'!$E$13 -> 119.7793071 | Z118: ='DNSP Inputs O & M'!$E$79 -> 2 | AA118: ='DNSP Inputs O & M'!$E$17 -> 8 | AB118: =Y118*Z118*AA118 -> 1916.468914 | AC118: =(AB118+AB119)/'DNSP Inputs O & M'!$E$81 -> 0.7217116564 | AD118: =AC118*'DNSP Inputs O & M'!$E$73 -> 2.165134969 | AF118: ='DNSP Inputs O & M'!$E$13 -> 119.7793071 | AG118: ='DNSP Inputs O & M'!$E$79 -> 2 | AH118: ='DNSP Inputs O & M'!$E$17 -> 8 | AI118: =AF118*AG118*AH118 -> 1916.468914 | AJ118: =(AI118+AI119)/'DNSP Inputs O & M'!$E$82 -> 1.082567485 | AK118: =AJ118*'DNSP Inputs O & M'!$E$73 -> 3.247702454 | AM118: ='DNSP Inputs O & M'!$E$13 -> 119.7793071 | AN118: ='DNSP Inputs O & M'!$E$79 -> 2 | AO118: ='DNSP Inputs O & M'!$E$17 -> 8 | AP118: =AM118*AN118*AO118 -> 1916.468914 | AQ118: =(AP118+AP119)/'DNSP Inputs O & M'!$E$83 -> 2.165134969 | AR118: =AQ118*'DNSP Inputs O & M'!$E$73 -> 6.495404908 | AV118: ='DNSP Inputs O & M'!$F$13 -> 119.7793071 | AW118: ='DNSP Inputs O & M'!$F$79 -> 2 | AX118: ='DNSP Inputs O & M'!$F$17 -> 8 | AY118: =AV118*AW118*AX118 -> 1916.468914 | AZ118: =(AY118+AY119)/'DNSP Inputs O & M'!$F$81 -> 0.7217116564 | BA118: =AZ118*'DNSP Inputs O & M'!$F$73 -> 2.165134969 | BC118: ='DNSP Inputs O & M'!$F$13 -> 119.7793071 | BD118: ='DNSP Inputs O & M'!$F$79 -> 2 | BE118: ='DNSP Inputs O & M'!$F$17 -> 8 | BF118: =BC118*BD118*BE118 -> 1916.468914 | BG118: =(BF118+BF119)/'DNSP Inputs O & M'!$F$82 -> 1.082567485 | BH118: =BG118*'DNSP Inputs O & M'!$F$73 -> 3.247702454 | BJ118: ='DNSP Inputs O & M'!$F$13 -> 119.7793071 | BK118: ='DNSP Inputs O & M'!$F$79 -> 2 | BL118: ='DNSP Inputs O & M'!$F$17 -> 8 | BM118: =BJ118*BK118*BL118 -> 1916.468914 | BN118: =(BM118+BM119)/'DNSP Inputs O & M'!$F$83 -> 2.165134969 | BO118: =BN118*'DNSP Inputs O & M'!$F$73 -> 6.495404908 | BS118: ='DNSP Inputs O & M'!$G$13 -> 119.7793071 | BT118: ='DNSP Inputs O & M'!$G$79 -> 2 | BU118: ='DNSP Inputs O & M'!$G$17 -> 8 | BV118: =BS118*BT118*BU118 -> 1916.468914 | BW118: =(BV118+BV119)/'DNSP Inputs O & M'!$G$81 -> 0.7217116564 | BX118: =BW118*'DNSP Inputs O & M'!$G$73 -> 2.165134969 | BZ118: ='DNSP Inputs O & M'!$G$13 -> 119.7793071 | CA118: ='DNSP Inputs O & M'!$G$79 -> 2 | CB118: ='DNSP Inputs O & M'!$G$17 -> 8 | CC118: =BZ118*CA118*CB118 -> 1916.468914 | CD118: =(CC118+CC119)/'DNSP Inputs O & M'!$G$82 -> 1.082567485 | CE118: =CD118*'DNSP Inputs O & M'!$G$73 -> 3.247702454 | CG118: ='DNSP Inputs O & M'!$G$13 -> 119.7793071 | CH118: ='DNSP Inputs O & M'!$G$79 -> 2 | CI118: ='DNSP Inputs O & M'!$G$17 -> 8 | CJ118: =CG118*CH118*CI118 -> 1916.468914 | CK118: =(CJ118+CJ119)/'DNSP Inputs O & M'!$G$83 -> 2.165134969 | CL118: =CK118*'DNSP Inputs O & M'!$G$73 -> 6.495404908 | CP118: ='DNSP Inputs O & M'!$H$13 -> 119.7793071 | CQ118: ='DNSP Inputs O & M'!$H$79 -> 2 | CR118: ='DNSP Inputs O & M'!$H$17 -> 8 | CS118: =CP118*CQ118*CR118 -> 1916.468914 | CT118: =(CS118+CS119)/'DNSP Inputs O & M'!$H$81 -> 0.7217116564 | CU118: =CT118*'DNSP Inputs O & M'!$H$73 -> 2.165134969 | CW118: ='DNSP Inputs O & M'!$H$13 -> 119.7793071 | CX118: ='DNSP Inputs O & M'!$H$79 -> 2 | CY118: ='DNSP Inputs O & M'!$H$17 -> 8 | CZ118: =CW118*CX118*CY118 -> 1916.468914 | DA118: =(CZ118+CZ119)/'DNSP Inputs O & M'!$H$82 -> 1.082567485 | DB118: =DA118*'DNSP Inputs O & M'!$H$73 -> 3.247702454 | DD118: ='DNSP Inputs O & M'!$H$13 -> 119.7793071 | DE118: ='DNSP Inputs O & M'!$H$79 -> 2 | DF118: ='DNSP Inputs O & M'!$H$17 -> 8 | DG118: =DD118*DE118*DF118 -> 1916.468914 | DH118: =(DG118+DG119)/'DNSP Inputs O & M'!$H$83 -> 2.165134969 | DI118: =DH118*'DNSP Inputs O & M'!$H$73 -> 6.495404908
A119: Vehicle costs | B119: ='DNSP Inputs O & M'!$D$16 -> 31.08325691 | C119: 1 | D119: ='DNSP Inputs O & M'!$D$17 -> 8 | E119: =B119*C119*D119 -> 248.6660552 | I119: ='DNSP Inputs O & M'!$D$16 -> 31.08325691 | J119: 1 | K119: ='DNSP Inputs O & M'!$D$17 -> 8 | L119: =I119*J119*K119 -> 248.6660552 | P119: ='DNSP Inputs O & M'!$D$16 -> 31.08325691 | Q119: 1 | R119: ='DNSP Inputs O & M'!$D$17 -> 8 | S119: =P119*Q119*R119 -> 248.6660552 | Y119: ='DNSP Inputs O & M'!$E$16 -> 31.08325691 | Z119: 1 | AA119: ='DNSP Inputs O & M'!$E$17 -> 8 | AB119: =Y119*Z119*AA119 -> 248.6660552 | AF119: ='DNSP Inputs O & M'!$E$16 -> 31.08325691 | AG119: 1 | AH119: ='DNSP Inputs O & M'!$E$17 -> 8 | AI119: =AF119*AG119*AH119 -> 248.6660552 | AM119: ='DNSP Inputs O & M'!$E$16 -> 31.08325691 | AN119: 1 | AO119: ='DNSP Inputs O & M'!$E$17 -> 8 | AP119: =AM119*AN119*AO119 -> 248.6660552 | AV119: ='DNSP Inputs O & M'!$F$16 -> 31.08325691 | AW119: 1 | AX119: ='DNSP Inputs O & M'!$F$17 -> 8 | AY119: =AV119*AW119*AX119 -> 248.6660552 | BC119: ='DNSP Inputs O & M'!$F$16 -> 31.08325691 | BD119: 1 | BE119: ='DNSP Inputs O & M'!$F$17 -> 8 | BF119: =BC119*BD119*BE119 -> 248.6660552 | BJ119: ='DNSP Inputs O & M'!$F$16 -> 31.08325691 | BK119: 1 | BL119: ='DNSP Inputs O & M'!$F$17 -> 8 | BM119: =BJ119*BK119*BL119 -> 248.6660552 | BS119: ='DNSP Inputs O & M'!$G$16 -> 31.08325691 | BT119: 1 | BU119: ='DNSP Inputs O & M'!$G$17 -> 8 | BV119: =BS119*BT119*BU119 -> 248.6660552 | BZ119: ='DNSP Inputs O & M'!$G$16 -> 31.08325691 | CA119: 1 | CB119: ='DNSP Inputs O & M'!$G$17 -> 8 | CC119: =BZ119*CA119*CB119 -> 248.6660552 | CG119: ='DNSP Inputs O & M'!$G$16 -> 31.08325691 | CH119: 1 | CI119: ='DNSP Inputs O & M'!$G$17 -> 8 | CJ119: =CG119*CH119*CI119 -> 248.6660552 | CP119: ='DNSP Inputs O & M'!$H$16 -> 31.08325691 | CQ119: 1 | CR119: ='DNSP Inputs O & M'!$H$17 -> 8 | CS119: =CP119*CQ119*CR119 -> 248.6660552 | CW119: ='DNSP Inputs O & M'!$H$16 -> 31.08325691 | CX119: 1 | CY119: ='DNSP Inputs O & M'!$H$17 -> 8 | CZ119: =CW119*CX119*CY119 -> 248.6660552 | DD119: ='DNSP Inputs O & M'!$H$16 -> 31.08325691 | DE119: 1 | DF119: ='DNSP Inputs O & M'!$H$17 -> 8 | DG119: =DD119*DE119*DF119 -> 248.6660552
A120: Labour - Repair of faults
A121: Crew costs | B121: ='DNSP Inputs O & M'!$D$12 -> 95.82595654 | C121: ='DNSP Inputs O & M'!$D$80 -> 2 | D121: ='DNSP Inputs O & M'!$D$17 -> 8 | E121: =B121*C121*D121 -> 1533.215305 | F121: =(E121+E122)/'DNSP Inputs O & M'!$D$84*(C114+C115)/C114 -> 218.9185468 | G121: =F121/'DNSP Inputs O & M'!$D$74 -> 43.78370936 | I121: ='DNSP Inputs O & M'!$D$12 -> 95.82595654 | J121: ='DNSP Inputs O & M'!$D$80 -> 2 | K121: ='DNSP Inputs O & M'!$D$17 -> 8 | L121: =I121*J121*K121 -> 1533.215305 | M121: =(L121+L122)/'DNSP Inputs O & M'!$D$85*(J114+J115)/J114 -> 273.6481835 | N121: =M121/'DNSP Inputs O & M'!$D$74 -> 54.7296367 | P121: ='DNSP Inputs O & M'!$D$12 -> 95.82595654 | Q121: ='DNSP Inputs O & M'!$D$80 -> 2 | R121: ='DNSP Inputs O & M'!$D$17 -> 8 | S121: =P121*Q121*R121 -> 1533.215305 | T121: =(S121+S122)/'DNSP Inputs O & M'!$D$86*(Q114+Q115)/Q114 -> 364.8642446 | U121: =T121/'DNSP Inputs O & M'!$D$74 -> 72.97284893 | Y121: ='DNSP Inputs O & M'!$E$12 -> 95.82595654 | Z121: ='DNSP Inputs O & M'!$E$80 -> 2 | AA121: ='DNSP Inputs O & M'!$E$17 -> 8 | AB121: =Y121*Z121*AA121 -> 1533.215305 | AC121: =(AB121+AB122)/'DNSP Inputs O & M'!$E$84*(Z114+Z115)/Z114 -> 218.9185468 | AD121: =AC121/'DNSP Inputs O & M'!$E$74 -> 43.78370936 | AF121: ='DNSP Inputs O & M'!$E$12 -> 95.82595654 | AG121: ='DNSP Inputs O & M'!$E$80 -> 2 | AH121: ='DNSP Inputs O & M'!$E$17 -> 8 | AI121: =AF121*AG121*AH121 -> 1533.215305 | AJ121: =(AI121+AI122)/'DNSP Inputs O & M'!$E$85*(AG114+AG115)/AG114 -> 273.6481835 | AK121: =AJ121/'DNSP Inputs O & M'!$E$74 -> 54.7296367 | AM121: ='DNSP Inputs O & M'!$E$12 -> 95.82595654 | AN121: ='DNSP Inputs O & M'!$E$80 -> 2 | AO121: ='DNSP Inputs O & M'!$E$17 -> 8 | AP121: =AM121*AN121*AO121 -> 1533.215305 | AQ121: =(AP121+AP122)/'DNSP Inputs O & M'!$E$86*(AN114+AN115)/AN114 -> 364.8642446 | AR121: =AQ121/'DNSP Inputs O & M'!$E$74 -> 72.97284893 | AV121: ='DNSP Inputs O & M'!$F$12 -> 95.82595654 | AW121: ='DNSP Inputs O & M'!$F$80 -> 2 | AX121: ='DNSP Inputs O & M'!$F$17 -> 8 | AY121: =AV121*AW121*AX121 -> 1533.215305 | AZ121: =(AY121+AY122)/'DNSP Inputs O & M'!$F$84*(AW114+AW115)/AW114 -> 218.9185468 | BA121: =AZ121/'DNSP Inputs O & M'!$F$74 -> 43.78370936 | BC121: ='DNSP Inputs O & M'!$F$12 -> 95.82595654 | BD121: ='DNSP Inputs O & M'!$F$80 -> 2 | BE121: ='DNSP Inputs O & M'!$F$17 -> 8 | BF121: =BC121*BD121*BE121 -> 1533.215305 | BG121: =(BF121+BF122)/'DNSP Inputs O & M'!$F$85*(BD114+BD115)/BD114 -> 273.6481835 | BH121: =BG121/'DNSP Inputs O & M'!$F$74 -> 54.7296367 | BJ121: ='DNSP Inputs O & M'!$F$12 -> 95.82595654 | BK121: ='DNSP Inputs O & M'!$F$80 -> 2 | BL121: ='DNSP Inputs O & M'!$F$17 -> 8 | BM121: =BJ121*BK121*BL121 -> 1533.215305 | BN121: =(BM121+BM122)/'DNSP Inputs O & M'!$F$86*(BK114+BK115)/BK114 -> 364.8642446 | BO121: =BN121/'DNSP Inputs O & M'!$F$74 -> 72.97284893 | BS121: ='DNSP Inputs O & M'!$G$12 -> 95.82595654 | BT121: ='DNSP Inputs O & M'!$G$80 -> 2 | BU121: ='DNSP Inputs O & M'!$G$17 -> 8 | BV121: =BS121*BT121*BU121 -> 1533.215305 | BW121: =(BV121+BV122)/'DNSP Inputs O & M'!$G$84*(BT114+BT115)/BT114 -> 218.9185468 | BX121: =BW121/'DNSP Inputs O & M'!$G$74 -> 43.78370936 | BZ121: ='DNSP Inputs O & M'!$G$12 -> 95.82595654 | CA121: ='DNSP Inputs O & M'!$G$80 -> 2 | CB121: ='DNSP Inputs O & M'!$G$17 -> 8 | CC121: =BZ121*CA121*CB121 -> 1533.215305 | CD121: =(CC121+CC122)/'DNSP Inputs O & M'!$G$85*(CA114+CA115)/CA114 -> 273.6481835 | CE121: =CD121/'DNSP Inputs O & M'!$G$74 -> 54.7296367 | CG121: ='DNSP Inputs O & M'!$G$12 -> 95.82595654 | CH121: ='DNSP Inputs O & M'!$G$80 -> 2 | CI121: ='DNSP Inputs O & M'!$G$17 -> 8 | CJ121: =CG121*CH121*CI121 -> 1533.215305 | CK121: =(CJ121+CJ122)/'DNSP Inputs O & M'!$G$86*(CH114+CH115)/CH114 -> 364.8642446 | CL121: =CK121/'DNSP Inputs O & M'!$G$74 -> 72.97284893 | CP121: ='DNSP Inputs O & M'!$H$12 -> 95.82595654 | CQ121: ='DNSP Inputs O & M'!$H$80 -> 2 | CR121: ='DNSP Inputs O & M'!$H$17 -> 8 | CS121: =CP121*CQ121*CR121 -> 1533.215305 | CT121: =(CS121+CS122)/'DNSP Inputs O & M'!$H$84*(CQ114+CQ115)/CQ114 -> 218.9185468 | CU121: =CT121/'DNSP Inputs O & M'!$H$74 -> 43.78370936 | CW121: ='DNSP Inputs O & M'!$H$12 -> 95.82595654 | CX121: ='DNSP Inputs O & M'!$H$80 -> 2 | CY121: ='DNSP Inputs O & M'!$H$17 -> 8 | CZ121: =CW121*CX121*CY121 -> 1533.215305 | DA121: =(CZ121+CZ122)/'DNSP Inputs O & M'!$H$85*(CX114+CX115)/CX114 -> 273.6481835 | DB121: =DA121/'DNSP Inputs O & M'!$H$74 -> 54.7296367 | DD121: ='DNSP Inputs O & M'!$H$12 -> 95.82595654 | DE121: ='DNSP Inputs O & M'!$H$80 -> 2 | DF121: ='DNSP Inputs O & M'!$H$17 -> 8 | DG121: =DD121*DE121*DF121 -> 1533.215305 | DH121: =(DG121+DG122)/'DNSP Inputs O & M'!$H$86*(DE114+DE115)/DE114 -> 364.8642446 | DI121: =DH121/'DNSP Inputs O & M'!$H$74 -> 72.97284893
A122: Elevated platform vehicle costs | B122: ='DNSP Inputs O & M'!$D$15 -> 81.99627041 | C122: 1 | D122: ='DNSP Inputs O & M'!$D$17 -> 8 | E122: =B122*C122*D122 -> 655.9701632 | I122: ='DNSP Inputs O & M'!$D$15 -> 81.99627041 | J122: 1 | K122: ='DNSP Inputs O & M'!$D$17 -> 8 | L122: =I122*J122*K122 -> 655.9701632 | P122: ='DNSP Inputs O & M'!$D$15 -> 81.99627041 | Q122: 1 | R122: ='DNSP Inputs O & M'!$D$17 -> 8 | S122: =P122*Q122*R122 -> 655.9701632 | Y122: ='DNSP Inputs O & M'!$E$15 -> 81.99627041 | Z122: 1 | AA122: ='DNSP Inputs O & M'!$E$17 -> 8 | AB122: =Y122*Z122*AA122 -> 655.9701632 | AF122: ='DNSP Inputs O & M'!$E$15 -> 81.99627041 | AG122: 1 | AH122: ='DNSP Inputs O & M'!$E$17 -> 8 | AI122: =AF122*AG122*AH122 -> 655.9701632 | AM122: ='DNSP Inputs O & M'!$E$15 -> 81.99627041 | AN122: 1 | AO122: ='DNSP Inputs O & M'!$E$17 -> 8 | AP122: =AM122*AN122*AO122 -> 655.9701632 | AV122: ='DNSP Inputs O & M'!$F$15 -> 81.99627041 | AW122: 1 | AX122: ='DNSP Inputs O & M'!$F$17 -> 8 | AY122: =AV122*AW122*AX122 -> 655.9701632 | BC122: ='DNSP Inputs O & M'!$F$15 -> 81.99627041 | BD122: 1 | BE122: ='DNSP Inputs O & M'!$F$17 -> 8 | BF122: =BC122*BD122*BE122 -> 655.9701632 | BJ122: ='DNSP Inputs O & M'!$F$15 -> 81.99627041 | BK122: 1 | BL122: ='DNSP Inputs O & M'!$F$17 -> 8 | BM122: =BJ122*BK122*BL122 -> 655.9701632 | BS122: ='DNSP Inputs O & M'!$G$15 -> 81.99627041 | BT122: 1 | BU122: ='DNSP Inputs O & M'!$G$17 -> 8 | BV122: =BS122*BT122*BU122 -> 655.9701632 | BZ122: ='DNSP Inputs O & M'!$G$15 -> 81.99627041 | CA122: 1 | CB122: ='DNSP Inputs O & M'!$G$17 -> 8 | CC122: =BZ122*CA122*CB122 -> 655.9701632 | CG122: ='DNSP Inputs O & M'!$G$15 -> 81.99627041 | CH122: 1 | CI122: ='DNSP Inputs O & M'!$G$17 -> 8 | CJ122: =CG122*CH122*CI122 -> 655.9701632 | CP122: ='DNSP Inputs O & M'!$H$15 -> 81.99627041 | CQ122: 1 | CR122: ='DNSP Inputs O & M'!$H$17 -> 8 | CS122: =CP122*CQ122*CR122 -> 655.9701632 | CW122: ='DNSP Inputs O & M'!$H$15 -> 81.99627041 | CX122: 1 | CY122: ='DNSP Inputs O & M'!$H$17 -> 8 | CZ122: =CW122*CX122*CY122 -> 655.9701632 | DD122: ='DNSP Inputs O & M'!$H$15 -> 81.99627041 | DE122: 1 | DF122: ='DNSP Inputs O & M'!$H$17 -> 8 | DG122: =DD122*DE122*DF122 -> 655.9701632
A124: Other Maintenance and Repair costs | G124: ='DNSP Inputs O & M'!$D$93 -> 0.2329486467 | N124: ='DNSP Inputs O & M'!$D$93 -> 0.2329486467 | U124: ='DNSP Inputs O & M'!$D$93 -> 0.2329486467 | AD124: ='DNSP Inputs O & M'!$E$93 -> 0.2321281286 | AK124: ='DNSP Inputs O & M'!$E$93 -> 0.2321281286 | AR124: ='DNSP Inputs O & M'!$E$93 -> 0.2321281286 | BA124: ='DNSP Inputs O & M'!$F$93 -> 0.2313375849 | BH124: ='DNSP Inputs O & M'!$F$93 -> 0.2313375849 | BO124: ='DNSP Inputs O & M'!$F$93 -> 0.2313375849 | BX124: ='DNSP Inputs O & M'!$G$93 -> 0.2305890038 | CE124: ='DNSP Inputs O & M'!$G$93 -> 0.2305890038 | CL124: ='DNSP Inputs O & M'!$G$93 -> 0.2305890038 | CU124: ='DNSP Inputs O & M'!$H$93 -> 0.2298755343 | DB124: ='DNSP Inputs O & M'!$H$93 -> 0.2298755343 | DI124: ='DNSP Inputs O & M'!$H$93 -> 0.2298755343
A126: Overheads | B126: ='DNSP Inputs O & M'!$D$18 -> 0.25 | G126: =B126*(G114+G118+G121+G124) -> 14.22826039 | I126: ='DNSP Inputs O & M'!$D$18 -> 0.25 | N126: =I126*(N114+N118+N121+N124) -> 17.36952471 | P126: ='DNSP Inputs O & M'!$D$18 -> 0.25 | U126: =P126*(U114+U118+U121+U124) -> 22.74225338 | Y126: ='DNSP Inputs O & M'!$E$18 -> 0.25 | AD126: =Y126*(AD114+AD118+AD121+AD124) -> 14.22805526 | AF126: ='DNSP Inputs O & M'!$E$18 -> 0.25 | AK126: =AF126*(AK114+AK118+AK121+AK124) -> 17.36931958 | AM126: ='DNSP Inputs O & M'!$E$18 -> 0.25 | AR126: =AM126*(AR114+AR118+AR121+AR124) -> 22.74204825 | AV126: ='DNSP Inputs O & M'!$F$18 -> 0.25 | BA126: =AV126*(BA114+BA118+BA121+BA124) -> 14.22785763 | BC126: ='DNSP Inputs O & M'!$F$18 -> 0.25 | BH126: =BC126*(BH114+BH118+BH121+BH124) -> 17.36912194 | BJ126: ='DNSP Inputs O & M'!$F$18 -> 0.25 | BO126: =BJ126*(BO114+BO118+BO121+BO124) -> 22.74185061 | BS126: ='DNSP Inputs O & M'!$G$18 -> 0.25 | BX126: =BS126*(BX114+BX118+BX121+BX124) -> 14.22767048 | BZ126: ='DNSP Inputs O & M'!$G$18 -> 0.25 | CE126: =BZ126*(CE114+CE118+CE121+CE124) -> 17.3689348 | CG126: ='DNSP Inputs O & M'!$G$18 -> 0.25 | CL126: =CG126*(CL114+CL118+CL121+CL124) -> 22.74166347 | CP126: ='DNSP Inputs O & M'!$H$18 -> 0.25 | CU126: =CP126*(CU114+CU118+CU121+CU124) -> 14.22749212 | CW126: ='DNSP Inputs O & M'!$H$18 -> 0.25 | DB126: =CW126*(DB114+DB118+DB121+DB124) -> 17.36875643 | DD126: ='DNSP Inputs O & M'!$H$18 -> 0.25 | DI126: =DD126*(DI114+DI118+DI121+DI124) -> 22.7414851
G128: =SUM(G114,G118,G121,G124,G126) -> 71.14130197 | N128: =SUM(N114,N118,N121,N124,N126) -> 86.84762353 | U128: =SUM(U114,U118,U121,U124,U126) -> 113.7112669 | AD128: =SUM(AD114,AD118,AD121,AD124,AD126) -> 71.14027632 | AK128: =SUM(AK114,AK118,AK121,AK124,AK126) -> 86.84659789 | AR128: =SUM(AR114,AR118,AR121,AR124,AR126) -> 113.7102412 | BA128: =SUM(BA114,BA118,BA121,BA124,BA126) -> 71.13928814 | BH128: =SUM(BH114,BH118,BH121,BH124,BH126) -> 86.84560971 | BO128: =SUM(BO114,BO118,BO121,BO124,BO126) -> 113.7092531 | BX128: =SUM(BX114,BX118,BX121,BX124,BX126) -> 71.13835241 | CE128: =SUM(CE114,CE118,CE121,CE124,CE126) -> 86.84467398 | CL128: =SUM(CL114,CL118,CL121,CL124,CL126) -> 113.7083173 | CU128: =SUM(CU114,CU118,CU121,CU124,CU126) -> 71.13746058 | DB128: =SUM(DB114,DB118,DB121,DB124,DB126) -> 86.84378214 | DI128: =SUM(DI114,DI118,DI121,DI124,DI126) -> 113.7074255
A133: Sodium High Pressure 250 Watt Standard Light Type - Cost build-up
A135: Addiitonal assumptions
A136: Overheads are applied to material and labour components
A137: All costs and charges are exclusive of GST
B139: Urban | I139: Rural | P139: Remote | Y139: Urban | AF139: Rural | AM139: Remote | AV139: Urban | BC139: Rural | BJ139: Remote | BS139: Urban | BZ139: Rural | CG139: Remote | CP139: Urban | CW139: Rural | DD139: Remote
B141: Unit rate | C141: Number | D141: Hours | E141: Cost | F141: Annualised | G141: Annualised | I141: Unit rate | J141: Number | K141: Hours | L141: Cost | M141: Annualised | N141: Annualised | P141: Unit rate | Q141: Number | R141: Hours | S141: Cost | T141: Annualised | U141: Annualised | Y141: Unit rate | Z141: Number | AA141: Hours | AB141: Cost | AC141: Annualised | AD141: Annualised | AF141: Unit rate | AG141: Number | AH141: Hours | AI141: Cost | AJ141: Annualised | AK141: Annualised | AM141: Unit rate | AN141: Number | AO141: Hours | AP141: Cost | AQ141: Annualised | AR141: Annualised | AV141: Unit rate | AW141: Number | AX141: Hours | AY141: Cost | AZ141: Annualised | BA141: Annualised | BC141: Unit rate | BD141: Number | BE141: Hours | BF141: Cost | BG141: Annualised | BH141: Annualised | BJ141: Unit rate | BK141: Number | BL141: Hours | BM141: Cost | BN141: Annualised | BO141: Annualised | BS141: Unit rate | BT141: Number | BU141: Hours | BV141: Cost | BW141: Annualised | BX141: Annualised | BZ141: Unit rate | CA141: Number | CB141: Hours | CC141: Cost | CD141: Annualised | CE141: Annualised | CG141: Unit rate | CH141: Number | CI141: Hours | CJ141: Cost | CK141: Annualised | CL141: Annualised | CP141: Unit rate | CQ141: Number | CR141: Hours | CS141: Cost | CT141: Annualised | CU141: Annualised | CW141: Unit rate | CX141: Number | CY141: Hours | CZ141: Cost | DA141: Annualised | DB141: Annualised | DD141: Unit rate | DE141: Number | DF141: Hours | DG141: Cost | DH141: Annualised | DI141: Annualised
F142: cost | G142: unit cost | M142: cost | N142: unit cost | T142: cost | U142: unit cost | AC142: cost | AD142: unit cost | AJ142: cost | AK142: unit cost | AQ142: cost | AR142: unit cost | AZ142: cost | BA142: unit cost | BG142: cost | BH142: unit cost | BN142: cost | BO142: unit cost | BW142: cost | BX142: unit cost | CD142: cost | CE142: unit cost | CK142: cost | CL142: unit cost | CT142: cost | CU142: unit cost | DA142: cost | DB142: unit cost | DH142: cost | DI142: unit cost
A143: S-HP 250
A144: Patrols and repairs
A145: Materials
A146: Lamp | B146: ='DNSP Inputs O & M'!$D$119 -> 40.48 | C146: ='DNSP Inputs O & M'!$D$84 -> 15 | E146: =B146*C146 -> 607.2 | F146: =(E146+E147+E148)/'DNSP Inputs O & M'!$D$84 -> 53.856243 | G146: =F146/'DNSP Inputs O & M'!$D$74 -> 10.7712486 | I146: ='DNSP Inputs O & M'!$D$119*(1+'DNSP Inputs O & M'!$D$11) -> 42.504 | J146: ='DNSP Inputs O & M'!$D$85 -> 12 | L146: =I146*J146 -> 510.048 | M146: =(L146+L147+L148)/'DNSP Inputs O & M'!$D$85 -> 56.54905515 | N146: =M146/'DNSP Inputs O & M'!$D$74 -> 11.30981103 | P146: ='DNSP Inputs O & M'!$D$119*(1+'DNSP Inputs O & M'!$D$11) -> 42.504 | Q146: ='DNSP Inputs O & M'!$D$85 -> 12 | S146: =P146*Q146 -> 510.048 | T146: =(S146+S147+S148)/'DNSP Inputs O & M'!$D$85 -> 56.54905515 | U146: =T146/'DNSP Inputs O & M'!$D$74 -> 11.30981103 | Y146: ='DNSP Inputs O & M'!$E$119 -> 40.48 | Z146: ='DNSP Inputs O & M'!$E$84 -> 15 | AB146: =Y146*Z146 -> 607.2 | AC146: =(AB146+AB147+AB148)/'DNSP Inputs O & M'!$E$84 -> 53.856243 | AD146: =AC146/'DNSP Inputs O & M'!$E$74 -> 10.7712486 | AF146: ='DNSP Inputs O & M'!$E$119*(1+'DNSP Inputs O & M'!$E$11) -> 42.504 | AG146: ='DNSP Inputs O & M'!$E$85 -> 12 | AI146: =AF146*AG146 -> 510.048 | AJ146: =(AI146+AI147+AI148)/'DNSP Inputs O & M'!$E$85 -> 56.54905515 | AK146: =AJ146/'DNSP Inputs O & M'!$E$74 -> 11.30981103 | AM146: ='DNSP Inputs O & M'!$E$119*(1+'DNSP Inputs O & M'!$E$11) -> 42.504 | AN146: ='DNSP Inputs O & M'!$E$85 -> 12 | AP146: =AM146*AN146 -> 510.048 | AQ146: =(AP146+AP147+AP148)/'DNSP Inputs O & M'!$E$85 -> 56.54905515 | AR146: =AQ146/'DNSP Inputs O & M'!$E$74 -> 11.30981103 | AV146: ='DNSP Inputs O & M'!$F$119 -> 40.48 | AW146: ='DNSP Inputs O & M'!$F$84 -> 15 | AY146: =AV146*AW146 -> 607.2 | AZ146: =(AY146+AY147+AY148)/'DNSP Inputs O & M'!$F$84 -> 53.856243 | BA146: =AZ146/'DNSP Inputs O & M'!$F$74 -> 10.7712486 | BC146: ='DNSP Inputs O & M'!$F$119*(1+'DNSP Inputs O & M'!$F$11) -> 42.504 | BD146: ='DNSP Inputs O & M'!$F$85 -> 12 | BF146: =BC146*BD146 -> 510.048 | BG146: =(BF146+BF147+BF148)/'DNSP Inputs O & M'!$F$85 -> 56.54905515 | BH146: =BG146/'DNSP Inputs O & M'!$F$74 -> 11.30981103 | BJ146: ='DNSP Inputs O & M'!$F$119*(1+'DNSP Inputs O & M'!$F$11) -> 42.504 | BK146: ='DNSP Inputs O & M'!$F$85 -> 12 | BM146: =BJ146*BK146 -> 510.048 | BN146: =(BM146+BM147+BM148)/'DNSP Inputs O & M'!$F$85 -> 56.54905515 | BO146: =BN146/'DNSP Inputs O & M'!$F$74 -> 11.30981103 | BS146: ='DNSP Inputs O & M'!$G$119 -> 40.48 | BT146: ='DNSP Inputs O & M'!$G$84 -> 15 | BV146: =BS146*BT146 -> 607.2 | BW146: =(BV146+BV147+BV148)/'DNSP Inputs O & M'!$G$84 -> 53.856243 | BX146: =BW146/'DNSP Inputs O & M'!$G$74 -> 10.7712486 | BZ146: ='DNSP Inputs O & M'!$G$119*(1+'DNSP Inputs O & M'!$G$11) -> 42.504 | CA146: ='DNSP Inputs O & M'!$G$85 -> 12 | CC146: =BZ146*CA146 -> 510.048 | CD146: =(CC146+CC147+CC148)/'DNSP Inputs O & M'!$G$85 -> 56.54905515 | CE146: =CD146/'DNSP Inputs O & M'!$G$74 -> 11.30981103 | CG146: ='DNSP Inputs O & M'!$G$119*(1+'DNSP Inputs O & M'!$G$11) -> 42.504 | CH146: ='DNSP Inputs O & M'!$G$85 -> 12 | CJ146: =CG146*CH146 -> 510.048 | CK146: =(CJ146+CJ147+CJ148)/'DNSP Inputs O & M'!$G$85 -> 56.54905515 | CL146: =CK146/'DNSP Inputs O & M'!$G$74 -> 11.30981103 | CP146: ='DNSP Inputs O & M'!$H$119 -> 40.48 | CQ146: ='DNSP Inputs O & M'!$H$84 -> 15 | CS146: =CP146*CQ146 -> 607.2 | CT146: =(CS146+CS147+CS148)/'DNSP Inputs O & M'!$H$84 -> 53.856243 | CU146: =CT146/'DNSP Inputs O & M'!$H$74 -> 10.7712486 | CW146: ='DNSP Inputs O & M'!$H$119*(1+'DNSP Inputs O & M'!$H$11) -> 42.504 | CX146: ='DNSP Inputs O & M'!$H$85 -> 12 | CZ146: =CW146*CX146 -> 510.048 | DA146: =(CZ146+CZ147+CZ148)/'DNSP Inputs O & M'!$H$85 -> 56.54905515 | DB146: =DA146/'DNSP Inputs O & M'!$H$74 -> 11.30981103 | DD146: ='DNSP Inputs O & M'!$H$119*(1+'DNSP Inputs O & M'!$H$11) -> 42.504 | DE146: ='DNSP Inputs O & M'!$H$85 -> 12 | DG146: =DD146*DE146 -> 510.048 | DH146: =(DG146+DG147+DG148)/'DNSP Inputs O & M'!$H$85 -> 56.54905515 | DI146: =DH146/'DNSP Inputs O & M'!$H$74 -> 11.30981103
A147: PE cell | B147: ='DNSP Inputs O & M'!$D$120 -> 21.8773177 | C147: =C146*'DNSP Inputs O & M'!$D$74/'DNSP Inputs O & M'!$D$75 -> 7.5 | E147: =B147*C147 -> 164.0798828 | I147: ='DNSP Inputs O & M'!$D$120*(1+'DNSP Inputs O & M'!$D$11) -> 22.97118359 | J147: =J146*'DNSP Inputs O & M'!$D$74/'DNSP Inputs O & M'!$D$75 -> 6 | L147: =I147*J147 -> 137.8271015 | P147: ='DNSP Inputs O & M'!$D$120*(1+'DNSP Inputs O & M'!$D$11) -> 22.97118359 | Q147: =Q146*'DNSP Inputs O & M'!$D$74/'DNSP Inputs O & M'!$D$75 -> 6 | S147: =P147*Q147 -> 137.8271015 | Y147: ='DNSP Inputs O & M'!$E$120 -> 21.8773177 | Z147: =Z146*'DNSP Inputs O & M'!$E$74/'DNSP Inputs O & M'!$E$75 -> 7.5 | AB147: =Y147*Z147 -> 164.0798828 | AF147: ='DNSP Inputs O & M'!$E$120*(1+'DNSP Inputs O & M'!$E$11) -> 22.97118359 | AG147: =AG146*'DNSP Inputs O & M'!$E$74/'DNSP Inputs O & M'!$E$75 -> 6 | AI147: =AF147*AG147 -> 137.8271015 | AM147: ='DNSP Inputs O & M'!$E$120*(1+'DNSP Inputs O & M'!$E$11) -> 22.97118359 | AN147: =AN146*'DNSP Inputs O & M'!$E$74/'DNSP Inputs O & M'!$E$75 -> 6 | AP147: =AM147*AN147 -> 137.8271015 | AV147: ='DNSP Inputs O & M'!$F$120 -> 21.8773177 | AW147: =AW146*'DNSP Inputs O & M'!$F$74/'DNSP Inputs O & M'!$F$75 -> 7.5 | AY147: =AV147*AW147 -> 164.0798828 | BC147: ='DNSP Inputs O & M'!$F$120*(1+'DNSP Inputs O & M'!$F$11) -> 22.97118359 | BD147: =BD146*'DNSP Inputs O & M'!$F$74/'DNSP Inputs O & M'!$F$75 -> 6 | BF147: =BC147*BD147 -> 137.8271015 | BJ147: ='DNSP Inputs O & M'!$F$120*(1+'DNSP Inputs O & M'!$F$11) -> 22.97118359 | BK147: =BK146*'DNSP Inputs O & M'!$F$74/'DNSP Inputs O & M'!$F$75 -> 6 | BM147: =BJ147*BK147 -> 137.8271015 | BS147: ='DNSP Inputs O & M'!$G$120 -> 21.8773177 | BT147: =BT146*'DNSP Inputs O & M'!$G$74/'DNSP Inputs O & M'!$G$75 -> 7.5 | BV147: =BS147*BT147 -> 164.0798828 | BZ147: ='DNSP Inputs O & M'!$G$120*(1+'DNSP Inputs O & M'!$G$11) -> 22.97118359 | CA147: =CA146*'DNSP Inputs O & M'!$G$74/'DNSP Inputs O & M'!$G$75 -> 6 | CC147: =BZ147*CA147 -> 137.8271015 | CG147: ='DNSP Inputs O & M'!$G$120*(1+'DNSP Inputs O & M'!$G$11) -> 22.97118359 | CH147: =CH146*'DNSP Inputs O & M'!$G$74/'DNSP Inputs O & M'!$G$75 -> 6 | CJ147: =CG147*CH147 -> 137.8271015 | CP147: ='DNSP Inputs O & M'!$H$120 -> 21.8773177 | CQ147: =CQ146*'DNSP Inputs O & M'!$H$74/'DNSP Inputs O & M'!$H$75 -> 7.5 | CS147: =CP147*CQ147 -> 164.0798828 | CW147: ='DNSP Inputs O & M'!$H$120*(1+'DNSP Inputs O & M'!$H$11) -> 22.97118359 | CX147: =CX146*'DNSP Inputs O & M'!$H$74/'DNSP Inputs O & M'!$H$75 -> 6 | CZ147: =CW147*CX147 -> 137.8271015 | DD147: ='DNSP Inputs O & M'!$H$120*(1+'DNSP Inputs O & M'!$H$11) -> 22.97118359 | DE147: =DE146*'DNSP Inputs O & M'!$H$74/'DNSP Inputs O & M'!$H$75 -> 6 | DG147: =DD147*DE147 -> 137.8271015
A148: Miscellaneous | B148: ='DNSP Inputs O & M'!$D$121 -> 2.437584145 | C148: ='DNSP Inputs O & M'!$D$84 -> 15 | E148: =B148*C148 -> 36.56376218 | I148: ='DNSP Inputs O & M'!$D$121*(1+'DNSP Inputs O & M'!$D$11) -> 2.559463352 | J148: ='DNSP Inputs O & M'!$D$85 -> 12 | L148: =I148*J148 -> 30.71356023 | P148: ='DNSP Inputs O & M'!$D$121*(1+'DNSP Inputs O & M'!$D$11) -> 2.559463352 | Q148: ='DNSP Inputs O & M'!$D$85 -> 12 | S148: =P148*Q148 -> 30.71356023 | Y148: ='DNSP Inputs O & M'!$E$121 -> 2.437584145 | Z148: ='DNSP Inputs O & M'!$E$84 -> 15 | AB148: =Y148*Z148 -> 36.56376218 | AF148: ='DNSP Inputs O & M'!$E$121*(1+'DNSP Inputs O & M'!$E$11) -> 2.559463352 | AG148: ='DNSP Inputs O & M'!$E$85 -> 12 | AI148: =AF148*AG148 -> 30.71356023 | AM148: ='DNSP Inputs O & M'!$E$121*(1+'DNSP Inputs O & M'!$E$11) -> 2.559463352 | AN148: ='DNSP Inputs O & M'!$E$85 -> 12 | AP148: =AM148*AN148 -> 30.71356023 | AV148: ='DNSP Inputs O & M'!$F$121 -> 2.437584145 | AW148: ='DNSP Inputs O & M'!$F$84 -> 15 | AY148: =AV148*AW148 -> 36.56376218 | BC148: ='DNSP Inputs O & M'!$F$121*(1+'DNSP Inputs O & M'!$F$11) -> 2.559463352 | BD148: ='DNSP Inputs O & M'!$F$85 -> 12 | BF148: =BC148*BD148 -> 30.71356023 | BJ148: ='DNSP Inputs O & M'!$F$121*(1+'DNSP Inputs O & M'!$F$11) -> 2.559463352 | BK148: ='DNSP Inputs O & M'!$F$85 -> 12 | BM148: =BJ148*BK148 -> 30.71356023 | BS148: ='DNSP Inputs O & M'!$G$121 -> 2.437584145 | BT148: ='DNSP Inputs O & M'!$G$84 -> 15 | BV148: =BS148*BT148 -> 36.56376218 | BZ148: ='DNSP Inputs O & M'!$G$121*(1+'DNSP Inputs O & M'!$G$11) -> 2.559463352 | CA148: ='DNSP Inputs O & M'!$G$85 -> 12 | CC148: =BZ148*CA148 -> 30.71356023 | CG148: ='DNSP Inputs O & M'!$G$121*(1+'DNSP Inputs O & M'!$G$11) -> 2.559463352 | CH148: ='DNSP Inputs O & M'!$G$85 -> 12 | CJ148: =CG148*CH148 -> 30.71356023 | CP148: ='DNSP Inputs O & M'!$H$121 -> 2.437584145 | CQ148: ='DNSP Inputs O & M'!$H$84 -> 15 | CS148: =CP148*CQ148 -> 36.56376218 | CW148: ='DNSP Inputs O & M'!$H$121*(1+'DNSP Inputs O & M'!$H$11) -> 2.559463352 | CX148: ='DNSP Inputs O & M'!$H$85 -> 12 | CZ148: =CW148*CX148 -> 30.71356023 | DD148: ='DNSP Inputs O & M'!$H$121*(1+'DNSP Inputs O & M'!$H$11) -> 2.559463352 | DE148: ='DNSP Inputs O & M'!$H$85 -> 12 | DG148: =DD148*DE148 -> 30.71356023
A149: Labour - Patrol
A150: Crew costs | B150: ='DNSP Inputs O & M'!$D$13 -> 119.7793071 | C150: ='DNSP Inputs O & M'!$D$79 -> 2 | D150: ='DNSP Inputs O & M'!$D$17 -> 8 | E150: =B150*C150*D150 -> 1916.468914 | F150: =(E150+E151)/'DNSP Inputs O & M'!$D$81 -> 0.7217116564 | G150: =F150*'DNSP Inputs O & M'!$D$73 -> 2.165134969 | I150: ='DNSP Inputs O & M'!$D$13 -> 119.7793071 | J150: ='DNSP Inputs O & M'!$D$79 -> 2 | K150: ='DNSP Inputs O & M'!$D$17 -> 8 | L150: =I150*J150*K150 -> 1916.468914 | M150: =(L150+L151)/'DNSP Inputs O & M'!$D$82 -> 1.082567485 | N150: =M150*'DNSP Inputs O & M'!$D$73 -> 3.247702454 | P150: ='DNSP Inputs O & M'!$D$13 -> 119.7793071 | Q150: ='DNSP Inputs O & M'!$D$79 -> 2 | R150: ='DNSP Inputs O & M'!$D$17 -> 8 | S150: =P150*Q150*R150 -> 1916.468914 | T150: =(S150+S151)/'DNSP Inputs O & M'!$D$83 -> 2.165134969 | U150: =T150*'DNSP Inputs O & M'!$D$73 -> 6.495404908 | Y150: ='DNSP Inputs O & M'!$E$13 -> 119.7793071 | Z150: ='DNSP Inputs O & M'!$E$79 -> 2 | AA150: ='DNSP Inputs O & M'!$E$17 -> 8 | AB150: =Y150*Z150*AA150 -> 1916.468914 | AC150: =(AB150+AB151)/'DNSP Inputs O & M'!$E$81 -> 0.7217116564 | AD150: =AC150*'DNSP Inputs O & M'!$E$73 -> 2.165134969 | AF150: ='DNSP Inputs O & M'!$E$13 -> 119.7793071 | AG150: ='DNSP Inputs O & M'!$E$79 -> 2 | AH150: ='DNSP Inputs O & M'!$E$17 -> 8 | AI150: =AF150*AG150*AH150 -> 1916.468914 | AJ150: =(AI150+AI151)/'DNSP Inputs O & M'!$E$82 -> 1.082567485 | AK150: =AJ150*'DNSP Inputs O & M'!$E$73 -> 3.247702454 | AM150: ='DNSP Inputs O & M'!$E$13 -> 119.7793071 | AN150: ='DNSP Inputs O & M'!$E$79 -> 2 | AO150: ='DNSP Inputs O & M'!$E$17 -> 8 | AP150: =AM150*AN150*AO150 -> 1916.468914 | AQ150: =(AP150+AP151)/'DNSP Inputs O & M'!$E$83 -> 2.165134969 | AR150: =AQ150*'DNSP Inputs O & M'!$E$73 -> 6.495404908 | AV150: ='DNSP Inputs O & M'!$F$13 -> 119.7793071 | AW150: ='DNSP Inputs O & M'!$F$79 -> 2 | AX150: ='DNSP Inputs O & M'!$F$17 -> 8 | AY150: =AV150*AW150*AX150 -> 1916.468914 | AZ150: =(AY150+AY151)/'DNSP Inputs O & M'!$F$81 -> 0.7217116564 | BA150: =AZ150*'DNSP Inputs O & M'!$F$73 -> 2.165134969 | BC150: ='DNSP Inputs O & M'!$F$13 -> 119.7793071 | BD150: ='DNSP Inputs O & M'!$F$79 -> 2 | BE150: ='DNSP Inputs O & M'!$F$17 -> 8 | BF150: =BC150*BD150*BE150 -> 1916.468914 | BG150: =(BF150+BF151)/'DNSP Inputs O & M'!$F$82 -> 1.082567485 | BH150: =BG150*'DNSP Inputs O & M'!$F$73 -> 3.247702454 | BJ150: ='DNSP Inputs O & M'!$F$13 -> 119.7793071 | BK150: ='DNSP Inputs O & M'!$F$79 -> 2 | BL150: ='DNSP Inputs O & M'!$F$17 -> 8 | BM150: =BJ150*BK150*BL150 -> 1916.468914 | BN150: =(BM150+BM151)/'DNSP Inputs O & M'!$F$83 -> 2.165134969 | BO150: =BN150*'DNSP Inputs O & M'!$F$73 -> 6.495404908 | BS150: ='DNSP Inputs O & M'!$G$13 -> 119.7793071 | BT150: ='DNSP Inputs O & M'!$G$79 -> 2 | BU150: ='DNSP Inputs O & M'!$G$17 -> 8 | BV150: =BS150*BT150*BU150 -> 1916.468914 | BW150: =(BV150+BV151)/'DNSP Inputs O & M'!$G$81 -> 0.7217116564 | BX150: =BW150*'DNSP Inputs O & M'!$G$73 -> 2.165134969 | BZ150: ='DNSP Inputs O & M'!$G$13 -> 119.7793071 | CA150: ='DNSP Inputs O & M'!$G$79 -> 2 | CB150: ='DNSP Inputs O & M'!$G$17 -> 8 | CC150: =BZ150*CA150*CB150 -> 1916.468914 | CD150: =(CC150+CC151)/'DNSP Inputs O & M'!$G$82 -> 1.082567485 | CE150: =CD150*'DNSP Inputs O & M'!$G$73 -> 3.247702454 | CG150: ='DNSP Inputs O & M'!$G$13 -> 119.7793071 | CH150: ='DNSP Inputs O & M'!$G$79 -> 2 | CI150: ='DNSP Inputs O & M'!$G$17 -> 8 | CJ150: =CG150*CH150*CI150 -> 1916.468914 | CK150: =(CJ150+CJ151)/'DNSP Inputs O & M'!$G$83 -> 2.165134969 | CL150: =CK150*'DNSP Inputs O & M'!$G$73 -> 6.495404908 | CP150: ='DNSP Inputs O & M'!$H$13 -> 119.7793071 | CQ150: ='DNSP Inputs O & M'!$H$79 -> 2 | CR150: ='DNSP Inputs O & M'!$H$17 -> 8 | CS150: =CP150*CQ150*CR150 -> 1916.468914 | CT150: =(CS150+CS151)/'DNSP Inputs O & M'!$H$81 -> 0.7217116564 | CU150: =CT150*'DNSP Inputs O & M'!$H$73 -> 2.165134969 | CW150: ='DNSP Inputs O & M'!$H$13 -> 119.7793071 | CX150: ='DNSP Inputs O & M'!$H$79 -> 2 | CY150: ='DNSP Inputs O & M'!$H$17 -> 8 | CZ150: =CW150*CX150*CY150 -> 1916.468914 | DA150: =(CZ150+CZ151)/'DNSP Inputs O & M'!$H$82 -> 1.082567485 | DB150: =DA150*'DNSP Inputs O & M'!$H$73 -> 3.247702454 | DD150: ='DNSP Inputs O & M'!$H$13 -> 119.7793071 | DE150: ='DNSP Inputs O & M'!$H$79 -> 2 | DF150: ='DNSP Inputs O & M'!$H$17 -> 8 | DG150: =DD150*DE150*DF150 -> 1916.468914 | DH150: =(DG150+DG151)/'DNSP Inputs O & M'!$H$83 -> 2.165134969 | DI150: =DH150*'DNSP Inputs O & M'!$H$73 -> 6.495404908
A151: Vehicle costs | B151: ='DNSP Inputs O & M'!$D$16 -> 31.08325691 | C151: 1 | D151: ='DNSP Inputs O & M'!$D$17 -> 8 | E151: =B151*C151*D151 -> 248.6660552 | I151: ='DNSP Inputs O & M'!$D$16 -> 31.08325691 | J151: 1 | K151: ='DNSP Inputs O & M'!$D$17 -> 8 | L151: =I151*J151*K151 -> 248.6660552 | P151: ='DNSP Inputs O & M'!$D$16 -> 31.08325691 | Q151: 1 | R151: ='DNSP Inputs O & M'!$D$17 -> 8 | S151: =P151*Q151*R151 -> 248.6660552 | Y151: ='DNSP Inputs O & M'!$E$16 -> 31.08325691 | Z151: 1 | AA151: ='DNSP Inputs O & M'!$E$17 -> 8 | AB151: =Y151*Z151*AA151 -> 248.6660552 | AF151: ='DNSP Inputs O & M'!$E$16 -> 31.08325691 | AG151: 1 | AH151: ='DNSP Inputs O & M'!$E$17 -> 8 | AI151: =AF151*AG151*AH151 -> 248.6660552 | AM151: ='DNSP Inputs O & M'!$E$16 -> 31.08325691 | AN151: 1 | AO151: ='DNSP Inputs O & M'!$E$17 -> 8 | AP151: =AM151*AN151*AO151 -> 248.6660552 | AV151: ='DNSP Inputs O & M'!$F$16 -> 31.08325691 | AW151: 1 | AX151: ='DNSP Inputs O & M'!$F$17 -> 8 | AY151: =AV151*AW151*AX151 -> 248.6660552 | BC151: ='DNSP Inputs O & M'!$F$16 -> 31.08325691 | BD151: 1 | BE151: ='DNSP Inputs O & M'!$F$17 -> 8 | BF151: =BC151*BD151*BE151 -> 248.6660552 | BJ151: ='DNSP Inputs O & M'!$F$16 -> 31.08325691 | BK151: 1 | BL151: ='DNSP Inputs O & M'!$F$17 -> 8 | BM151: =BJ151*BK151*BL151 -> 248.6660552 | BS151: ='DNSP Inputs O & M'!$G$16 -> 31.08325691 | BT151: 1 | BU151: ='DNSP Inputs O & M'!$G$17 -> 8 | BV151: =BS151*BT151*BU151 -> 248.6660552 | BZ151: ='DNSP Inputs O & M'!$G$16 -> 31.08325691 | CA151: 1 | CB151: ='DNSP Inputs O & M'!$G$17 -> 8 | CC151: =BZ151*CA151*CB151 -> 248.6660552 | CG151: ='DNSP Inputs O & M'!$G$16 -> 31.08325691 | CH151: 1 | CI151: ='DNSP Inputs O & M'!$G$17 -> 8 | CJ151: =CG151*CH151*CI151 -> 248.6660552 | CP151: ='DNSP Inputs O & M'!$H$16 -> 31.08325691 | CQ151: 1 | CR151: ='DNSP Inputs O & M'!$H$17 -> 8 | CS151: =CP151*CQ151*CR151 -> 248.6660552 | CW151: ='DNSP Inputs O & M'!$H$16 -> 31.08325691 | CX151: 1 | CY151: ='DNSP Inputs O & M'!$H$17 -> 8 | CZ151: =CW151*CX151*CY151 -> 248.6660552 | DD151: ='DNSP Inputs O & M'!$H$16 -> 31.08325691 | DE151: 1 | DF151: ='DNSP Inputs O & M'!$H$17 -> 8 | DG151: =DD151*DE151*DF151 -> 248.6660552
A152: Labour - Repair of faults
